Workbook

Sheet Student Entry
A1: Student Entry
A2: School # 1 Name: | B2: School # 2 Name: | C2: School # 3 Name:
A3: Osseo-Maple Grove | B3: Stillwater
A4: Student Names: | B4: Student Names: | C4: Student Names:
A5: Breidenbach, Heather | B5: Rubie Ballantyne
A6: Drazenovich, Holly | B6: Miranda Bergan
A7: Ganser, Anna | B7: Ellie Bliss
A8: Hammann, Allison | B8: Greta Bliss
A9: Hawes, Danielle | B9: Sophie Browning
A10: Heiss, Hayley | B10: Linnea Coltvet
A11: Heitzig, Elisabeth (Ellie) | B11: Emily Cossetta
A12: Honnold, Emily | B12: Hannah Dettmann
A13: Knox, Rachel | B13: Rachel Duerr
A14: Laborde, Caroline | B14: Ryann Ellis
A15: Littel, Hannah | B15: Aubrie Filandrinos
A16: Mason, Ellery | B16: Andrea Finholt
A17: McBride, Elizabeth (Lizzy) | B17: Ali Gerard
A18: McNamee, Kelly | B18: Grace Henke
A19: Moline, Katelyn (Katie) | B19: Kya Hodgdon
A20: Olsen, Katherine (Katie) | B20: Raina Hoge
A21: Peters, Madison | B21: Kaitlin Johnson
A22: Prentice, Margo | B22: Sofia Johnson
A23: Ruohoniemi, Jessica (Jess) | B23: Kelly Keenan
A24: Trudeau, Alexandra (Trudy) | B24: Anna Koenning
A25: Vanderwarn, Marie | B25: Madi Kulzer
A26: Vrba, Elena (Ellie) | B26: Courtney Lillemoen
A27: Waldron, Zoe | B27: Sophie Ogaard
B28: Emily Shanley
B29: Brie Sheridan
B30: Emma Sneden
B31: Grace Sneden
B32: Isabel Solheim
B33: Jane Sorenson
B34: Claire Summary
B35: Mamie Thrall
B36: Morgan Tope-Yates
B37: Carolyn Wrightsman
B38: Grace Zimmer
B39: Grace Gualtieri

Sheet Fig 1 Ballet Leg
B1: Figure #1: | C1: 101 R/L Ballet Leg, single, *right or *left
A2: # | B2: Degree of Difficulty | C2: Judge 1 | D2: Judge 2 | E2: Judge 3 | F2: Judge 4 | G2: Judge 5 | H2: Score | I2: Penalty
A3: =IF(Draw!E2=0,"",Draw!E2) -> 1 | B3: 1.6 | C3: 56 | D3: 57 | E3: 59 | H3: =IF(B3="","",IF(K3=5,(SUM(C3:G3)-MAX(C3:G3)-MIN(C3:G3))/3,IF(K3=4,(SUM(C3:G3)-MAX(C3:G3))/3,SUM(C3:G3)/3))*B3/7.6) -> 12.07017544 | K3: =COUNT(C3:G3) -> 3
A4: =IF(Draw!E3=0,"",Draw!E3) -> 2 | B4: =IF(A4="","",B$3) -> 1.6 | C4: 49 | D4: 50 | E4: 48 | H4: =IF(B4="","",IF(K4=5,(SUM(C4:G4)-MAX(C4:G4)-MIN(C4:G4))/3,IF(K4=4,(SUM(C4:G4)-MAX(C4:G4))/3,SUM(C4:G4)/3))*B4/7.6) -> 10.31578947 | K4: =COUNT(C4:G4) -> 3
A5: =IF(Draw!E4=0,"",Draw!E4) -> 3 | B5: =IF(A5="","",B$3) -> 1.6 | C5: 61 | D5: 60 | E5: 59 | H5: 12.63157895 | K5: 3
A6: =IF(Draw!E5=0,"",Draw!E5) -> 4 | B6: 1.6 | C6: 54 | D6: 56 | E6: 51 | H6: =IF(B6="","",IF(K6=5,(SUM(C6:G6)-MAX(C6:G6)-MIN(C6:G6))/3,IF(K6=4,(SUM(C6:G6)-MAX(C6:G6))/3,SUM(C6:G6)/3))*B6/7.6) -> 11.29824561 | K6: 3
A7: =IF(Draw!E6=0,"",Draw!E6) -> 5 | B7: =IF(A7="","",B$3) -> 1.6 | C7: 58 | D7: 62 | E7: 63 | H7: 12.84210526 | K7: 3
A8: =IF(Draw!E7=0,"",Draw!E7) -> 6 | B8: 1.6 | C8: 61 | D8: 60 | E8: 65 | H8: 13.05263158 | K8: 3
A9: =IF(Draw!E8=0,"",Draw!E8) -> 7 | B9: 1.6 | C9: 52 | D9: 56 | E9: 54 | H9: 11.36842105 | K9: 3
A10: =IF(Draw!E9=0,"",Draw!E9) -> 8 | B10: 1.6 | C10: 57 | D10: 55 | E10: 58 | H10: 11.92982456 | K10: 3
A11: =IF(Draw!E10=0,"",Draw!E10) -> 9 | B11: 1.6 | C11: 57 | D11: 53 | E11: 60 | H11: 11.92982456 | K11: 3
A12: =IF(Draw!E11=0,"",Draw!E11) -> 10 | B12: 1.6 | C12: 51 | D12: 55 | E12: 55 | H12: 11.29824561 | K12: 3
A13: =IF(Draw!E12=0,"",Draw!E12) -> 11 | B13: 1.6 | C13: 65 | D13: 61 | E13: 64 | H13: 13.33333333 | K13: 3
A14: =IF(Draw!E13=0,"",Draw!E13) -> 12 | B14: 1.6 | C14: 57 | D14: 57 | E14: 61 | H14: 12.28070175 | K14: 3
A15: =IF(Draw!E14=0,"",Draw!E14) -> 13 | B15: 1.6 | C15: 57 | D15: 56 | E15: 56 | H15: 11.85964912 | K15: 3
A16: =IF(Draw!E15=0,"",Draw!E15) -> 14 | B16: 1.6 | C16: 56 | D16: 54 | E16: 58 | H16: 11.78947368 | K16: 3
A17: =IF(Draw!E16=0,"",Draw!E16) -> 15 | B17: 1.6 | C17: 64 | D17: 62 | E17: 62 | H17: 13.19298246 | K17: 3
A18: =IF(Draw!E17=0,"",Draw!E17) -> 16 | B18: 1.6 | C18: 50 | D18: 50 | E18: 54 | H18: 10.80701754 | K18: 3
A19: =IF(Draw!E18=0,"",Draw!E18) -> 17 | B19: 1.6 | C19: 53 | D19: 52 | E19: 52 | H19: 11.01754386 | K19: 3
A20: =IF(Draw!E19=0,"",Draw!E19) -> 18 | B20: 1.6 | C20: 62 | D20: 62 | E20: 60 | H20: 12.9122807 | K20: 3
A21: =IF(Draw!E20=0,"",Draw!E20) -> 19 | B21: 1.6 | C21: 54 | D21: 63 | E21: 53 | H21: 11.92982456 | K21: 3
A22: =IF(Draw!E21=0,"",Draw!E21) -> 20 | B22: 1.6 | C22: 60 | D22: 64 | E22: 66 | H22: 13.33333333 | K22: 3
A23: =IF(Draw!E22=0,"",Draw!E22) -> 21 | B23: 1.6 | C23: 52 | D23: 60 | E23: 56 | H23: 11.78947368 | K23: 3
A24: =IF(Draw!E23=0,"",Draw!E23) -> 22 | B24: 1.6 | C24: 56 | D24: 57 | E24: 57 | H24: 11.92982456 | K24: 3
A25: =IF(Draw!E24=0,"",Draw!E24) -> 23 | B25: 1.6 | C25: 51 | D25: 54 | E25: 54 | H25: 11.15789474 | K25: 3
A26: =IF(Draw!E25=0,"",Draw!E25) -> 24 | B26: 1.6 | C26: 55 | D26: 49 | E26: 52 | H26: 10.94736842 | K26: 3
A27: =IF(Draw!E26=0,"",Draw!E26) -> 25 | B27: 1.6 | C27: 48 | D27: 47 | E27: 47 | H27: 9.964912281 | K27: 3
A28: =IF(Draw!E27=0,"",Draw!E27) -> 26 | B28: 1.6 | C28: 54 | D28: 51 | E28: 55 | H28: 11.22807018 | K28: 3
A29: =IF(Draw!E28=0,"",Draw!E28) -> 27 | B29: 1.6 | C29: 52 | D29: 50 | E29: 52 | H29: 10.80701754 | K29: 3
A30: =IF(Draw!E29=0,"",Draw!E29) -> 28 | B30: 1.6 | C30: 55 | D30: 56 | E30: 54 | H30: 11.57894737 | K30: 3
A31: =IF(Draw!E30=0,"",Draw!E30) -> 29 | B31: 1.6 | C31: 63 | D31: 61 | E31: 59 | H31: 12.84210526 | K31: 3
A32: =IF(Draw!E31=0,"",Draw!E31) -> 30 | B32: 1.6 | C32: 54 | D32: 53 | E32: 53 | H32: 11.22807018 | K32: 3
A33: =IF(Draw!E32=0,"",Draw!E32) -> 31 | B33: 1.6 | C33: 59 | D33: 65 | E33: 61 | H33: 12.98245614 | K33: 3
A34: =IF(Draw!E33=0,"",Draw!E33) -> 32 | B34: 1.6 | C34: 62 | D34: 61 | E34: 63 | H34: 13.05263158 | K34: 3
A35: =IF(Draw!E34=0,"",Draw!E34) -> 33 | B35: 1.6 | C35: 57 | D35: 60 | E35: 61 | H35: 12.49122807 | K35: 3
A36: =IF(Draw!E35=0,"",Draw!E35) -> 34 | B36: 1.6 | C36: 55 | D36: 59 | E36: 58 | H36: 12.07017544 | K36: 3
A37: =IF(Draw!E36=0,"",Draw!E36) -> 35 | B37: 1.6 | C37: 0 | D37: 0 | E37: 0 | F37: 0 | G37: 0 | H37: 0 | K37: 5
A38: =IF(Draw!E37=0,"",Draw!E37) -> 36 | B38: 1.6 | C38: 53 | D38: 54 | E38: 56 | H38: 11.43859649 | K38: 3
A39: =IF(Draw!E38=0,"",Draw!E38) -> 37 | B39: 1.6 | C39: 66 | D39: 67 | E39: 65 | H39: 13.89473684 | K39: 3
A40: =IF(Draw!E39=0,"",Draw!E39) -> 38 | B40: 1.6 | C40: 55 | D40: 52 | E40: 57 | H40: 11.50877193 | K40: 3
A41: =IF(Draw!E40=0,"",Draw!E40) -> 39 | B41: 1.6 | C41: 0 | D41: 0 | E41: 0 | F41: 0 | G41: 0 | H41: 0 | K41: 5
A42: =IF(Draw!E41=0,"",Draw!E41) -> 40 | B42: 1.6 | C42: 52 | D42: 58 | E42: 56 | H42: 11.64912281 | K42: 3
A43: =IF(Draw!E42=0,"",Draw!E42) -> 41 | B43: 1.6 | C43: 59 | D43: 56 | E43: 55 | H43: 11.92982456 | K43: 3
A44: =IF(Draw!E43=0,"",Draw!E43) -> 42 | B44: 1.6 | C44: 52 | D44: 52 | E44: 56 | H44: 11.22807018 | K44: 3
A45: =IF(Draw!E44=0,"",Draw!E44) -> 43 | B45: 1.6 | C45: 50 | D45: 54 | E45: 53 | H45: 11.01754386 | K45: 3
A46: =IF(Draw!E45=0,"",Draw!E45) -> 44 | B46: 1.6 | C46: 55 | D46: 60 | E46: 57 | H46: 12.07017544 | K46: 3
A47: =IF(Draw!E46=0,"",Draw!E46) -> 45 | B47: 1.6 | C47: 54 | D47: 54 | E47: 55 | H47: 11.43859649 | K47: 3
A48: =IF(Draw!E47=0,"",Draw!E47) -> 46 | B48: 1.6 | C48: 57 | D48: 56 | E48: 61 | H48: 12.21052632 | K48: 3
A49: =IF(Draw!E48=0,"",Draw!E48) -> 47 | B49: 1.6 | C49: 51 | D49: 55 | E49: 52 | H49: 11.0877193 | K49: 3
A50: =IF(Draw!E49=0,"",Draw!E49) -> 48 | B50: 1.6 | C50: 60 | D50: 60 | E50: 60 | H50: 12.63157895 | K50: 3
A51: =IF(Draw!E50=0,"",Draw!E50) -> 49 | B51: 1.6 | C51: 0 | D51: 0 | E51: 0 | F51: 0 | G51: 0 | H51: 0 | K51: 5
A52: =IF(Draw!E51=0,"",Draw!E51) -> 50 | B52: 1.6 | C52: 51 | D52: 49 | E52: 49 | H52: 10.45614035 | K52: 3
A53: =IF(Draw!E52=0,"",Draw!E52) -> 51 | B53: 1.6 | C53: 54 | D53: 50 | E53: 51 | H53: 10.87719298 | K53: 3
A54: =IF(Draw!E53=0,"",Draw!E53) -> 52 | B54: 1.6 | C54: 54 | D54: 53 | E54: 58 | H54: 11.57894737 | K54: 3
A55: =IF(Draw!E54=0,"",Draw!E54) -> 53 | B55: 1.6 | C55: 60 | D55: 63 | E55: 58 | H55: 12.70175439 | K55: 3
A56: =IF(Draw!E55=0,"",Draw!E55) -> 54 | B56: 1.6 | C56: 59 | D56: 56 | E56: 61 | H56: 12.35087719 | K56: 3
A57: =IF(Draw!E56=0,"",Draw!E56) -> 55 | B57: 1.6 | C57: 64 | D57: 66 | E57: 68 | H57: 13.89473684 | K57: 3
A58: =IF(Draw!E57=0,"",Draw!E57) -> 56 | B58: 1.6 | C58: 61 | D58: 63 | E58: 65 | H58: 13.26315789 | K58: 3
A59: =IF(Draw!E58=0,"",Draw!E58) -> 57 | B59: 1.6 | C59: 52 | D59: 55 | E59: 55 | H59: 11.36842105 | K59: 3
A60: =IF(Draw!E59=0,"",Draw!E59) -> 58 | B60: 1.6 | C60: 58 | D60: 56 | E60: 60 | H60: 12.21052632 | K60: 3
A61: =IF(Draw!E60=0,"",Draw!E60) ->  | K61: 0
A62: =IF(Draw!E61=0,"",Draw!E61) ->  | K62: 0
A63: =IF(Draw!E62=0,"",Draw!E62) ->  | K63: 0
A64: =IF(Draw!E63=0,"",Draw!E63) ->  | K64: 0
A65: =IF(Draw!E64=0,"",Draw!E64) ->  | K65: 0
A66: =IF(Draw!E65=0,"",Draw!E65) ->  | K66: 0
A67: =IF(Draw!E66=0,"",Draw!E66) ->  | K67: 0
A68: =IF(Draw!E67=0,"",Draw!E67) ->  | K68: =COUNT(C68:G68) -> 0
A69: =IF(Draw!E68=0,"",Draw!E68) ->  | K69: 0
A70: =IF(Draw!E69=0,"",Draw!E69) ->  | H70: =IF(B70="","",IF(K70=5,(SUM(C70:G70)-MAX(C70:G70)-MIN(C70:G70))/3,IF(K70=4,(SUM(C70:G70)-MAX(C70:G70))/3,SUM(C70:G70)/3))*B70/7.6) ->  | K70: 0
A71: =IF(Draw!E70=0,"",Draw!E70) ->  | B71: =IF(A71="","",B$3) ->  | K71: 0
A72: =IF(Draw!E71=0,"",Draw!E71) ->  | K72: 0
A73: =IF(Draw!E72=0,"",Draw!E72) ->  | K73: 0
A74: =IF(Draw!E73=0,"",Draw!E73) ->  | K74: 0
A75: =IF(Draw!E74=0,"",Draw!E74) ->  | K75: 0
A76: =IF(Draw!E75=0,"",Draw!E75) ->  | K76: 0
A77: =IF(Draw!E76=0,"",Draw!E76) ->  | K77: 0
A78: =IF(Draw!E77=0,"",Draw!E77) ->  | K78: 0
A79: =IF(Draw!E78=0,"",Draw!E78) ->  | K79: 0
A80: =IF(Draw!E79=0,"",Draw!E79) ->  | K80: 0
A81: =IF(Draw!E80=0,"",Draw!E80) ->  | K81: 0
A82: =IF(Draw!E81=0,"",Draw!E81) ->  | K82: 0
A83: =IF(Draw!E82=0,"",Draw!E82) ->  | K83: 0
A84: =IF(Draw!E83=0,"",Draw!E83) ->  | K84: 0
A85: =IF(Draw!E84=0,"",Draw!E84) ->  | K85: 0
A86: =IF(Draw!E85=0,"",Draw!E85) ->  | K86: 0
A87: =IF(Draw!E86=0,"",Draw!E86) ->  | K87: 0
A88: =IF(Draw!E87=0,"",Draw!E87) ->  | K88: 0
A89: =IF(Draw!E88=0,"",Draw!E88) ->  | K89: 0
A90: =IF(Draw!E89=0,"",Draw!E89) ->  | K90: 0
A91: =IF(Draw!E90=0,"",Draw!E90) ->  | K91: 0
A92: =IF(Draw!E91=0,"",Draw!E91) ->  | K92: 0
A93: =IF(Draw!E92=0,"",Draw!E92) ->  | K93: 0
A94: =IF(Draw!E93=0,"",Draw!E93) ->  | K94: 0
A95: =IF(Draw!E94=0,"",Draw!E94) ->  | K95: 0
A96: =IF(Draw!E95=0,"",Draw!E95) ->  | K96: 0
A97: =IF(Draw!E96=0,"",Draw!E96) ->  | K97: 0
A98: =IF(Draw!E97=0,"",Draw!E97) ->  | K98: 0
A99: =IF(Draw!E98=0,"",Draw!E98) ->  | K99: 0
A100: =IF(Draw!E99=0,"",Draw!E99) ->  | K100: 0
A101: =IF(Draw!E100=0,"",Draw!E100) ->  | K101: 0
A102: =IF(Draw!E101=0,"",Draw!E101) ->  | K102: 0
A103: =IF(Draw!E102=0,"",Draw!E102) ->  | K103: 0
A104: =IF(Draw!E103=0,"",Draw!E103) ->  | K104: 0
A105: =IF(Draw!E104=0,"",Draw!E104) ->  | K105: 0
A106: =IF(Draw!E105=0,"",Draw!E105) ->  | K106: 0
A107: =IF(Draw!E106=0,"",Draw!E106) ->  | K107: 0
A108: =IF(Draw!E107=0,"",Draw!E107) ->  | K108: 0
A109: =IF(Draw!E108=0,"",Draw!E108) ->  | K109: 0
A110: =IF(Draw!E109=0,"",Draw!E109) ->  | K110: 0
A111: =IF(Draw!E110=0,"",Draw!E110) ->  | K111: 0
A112: =IF(Draw!E111=0,"",Draw!E111) ->  | K112: 0
A113: =IF(Draw!E112=0,"",Draw!E112) ->  | K113: 0
A114: =IF(Draw!E113=0,"",Draw!E113) ->  | K114: 0
A115: =IF(Draw!E114=0,"",Draw!E114) ->  | K115: 0
A116: =IF(Draw!E115=0,"",Draw!E115) ->  | K116: 0
A117: =IF(Draw!E116=0,"",Draw!E116) ->  | K117: 0
A118: =IF(Draw!E117=0,"",Draw!E117) ->  | K118: 0
A119: =IF(Draw!E118=0,"",Draw!E118) ->  | K119: 0
A120: =IF(Draw!E119=0,"",Draw!E119) ->  | K120: 0
A121: =IF(Draw!E120=0,"",Draw!E120) ->  | K121: 0
A122: =IF(Draw!E121=0,"",Draw!E121) ->  | K122: 0
A123: =IF(Draw!E122=0,"",Draw!E122) ->  | K123: 0
A124: =IF(Draw!E123=0,"",Draw!E123) ->  | K124: 0
A125: =IF(Draw!E124=0,"",Draw!E124) ->  | K125: 0
A126: =IF(Draw!E125=0,"",Draw!E125) ->  | K126: 0
A127: =IF(Draw!E126=0,"",Draw!E126) ->  | K127: 0
A128: =IF(Draw!E127=0,"",Draw!E127) ->  | K128: 0
A129: =IF(Draw!E128=0,"",Draw!E128) ->  | K129: 0
A130: =IF(Draw!E129=0,"",Draw!E129) ->  | K130: 0
A131: =IF(Draw!E130=0,"",Draw!E130) ->  | K131: 0
A132: =IF(Draw!E131=0,"",Draw!E131) ->  | K132: =COUNT(C132:G132) -> 0
A133: =IF(Draw!E132=0,"",Draw!E132) ->  | K133: 0
A134: =IF(Draw!E133=0,"",Draw!E133) ->  | H134: =IF(B134="","",IF(K134=5,(SUM(C134:G134)-MAX(C134:G134)-MIN(C134:G134))/3,IF(K134=4,(SUM(C134:G134)-MAX(C134:G134))/3,SUM(C134:G134)/3))*B134/7.6) ->  | K134: 0
A135: =IF(Draw!E134=0,"",Draw!E134) ->  | B135: =IF(A135="","",B$3) ->  | K135: 0
A136: =IF(Draw!E135=0,"",Draw!E135) ->  | K136: 0
A137: =IF(Draw!E136=0,"",Draw!E136) ->  | K137: 0
A138: =IF(Draw!E137=0,"",Draw!E137) ->  | K138: 0
A139: =IF(Draw!E138=0,"",Draw!E138) ->  | K139: 0
A140: =IF(Draw!E139=0,"",Draw!E139) ->  | K140: 0
A141: =IF(Draw!E140=0,"",Draw!E140) ->  | K141: 0
A142: =IF(Draw!E141=0,"",Draw!E141) ->  | K142: 0
A143: =IF(Draw!E142=0,"",Draw!E142) ->  | K143: 0
A144: =IF(Draw!E143=0,"",Draw!E143) ->  | K144: 0
A145: =IF(Draw!E144=0,"",Draw!E144) ->  | K145: 0
A146: =IF(Draw!E145=0,"",Draw!E145) ->  | K146: 0
A147: =IF(Draw!E146=0,"",Draw!E146) ->  | K147: 0
A148: =IF(Draw!E147=0,"",Draw!E147) ->  | K148: 0
A149: =IF(Draw!E148=0,"",Draw!E148) ->  | K149: 0
A150: =IF(Draw!E149=0,"",Draw!E149) ->  | K150: 0

Sheet Fig 2 Barracuda
B1: Figure #2: | C1: 301 Barracuda
A2: # | B2: Degree of Difficulty | C2: Judge 1 | D2: Judge 2 | E2: Judge 3 | F2: Judge 4 | G2: Judge 5 | H2: Score | I2: Penalty
A3: =IF(Draw!E2=0,"",Draw!E2) -> 1 | B3: 2 | C3: 58 | D3: 63 | E3: 58 | F3: 59 | G3: 60 | H3: =IF(B3="","",IF(K3=5,(SUM(C3:G3)-MAX(C3:G3)-MIN(C3:G3))/3,IF(K3=4,(SUM(C3:G3)-MAX(C3:G3))/3,SUM(C3:G3)/3))*B3/7.6) -> 15.52631579 | K3: =COUNT(C3:G3) -> 5
A4: =IF(Draw!E3=0,"",Draw!E3) -> 2 | B4: =IF(A4="","",B$3) -> 2 | C4: 50 | D4: 52 | E4: 52 | F4: 53 | G4: 56 | H4: =IF(B4="","",IF(K4=5,(SUM(C4:G4)-MAX(C4:G4)-MIN(C4:G4))/3,IF(K4=4,(SUM(C4:G4)-MAX(C4:G4))/3,SUM(C4:G4)/3))*B4/7.6) -> 13.77192982 | K4: =COUNT(C4:G4) -> 5
A5: =IF(Draw!E4=0,"",Draw!E4) -> 3 | B5: =IF(A5="","",B$3) -> 2 | C5: 55 | D5: 59 | E5: 56 | F5: 57 | G5: 56 | H5: =IF(B5="","",IF(K5=5,(SUM(C5:G5)-MAX(C5:G5)-MIN(C5:G5))/3,IF(K5=4,(SUM(C5:G5)-MAX(C5:G5))/3,SUM(C5:G5)/3))*B5/7.6) -> 14.8245614 | K5: 5
A6: =IF(Draw!E5=0,"",Draw!E5) -> 4 | B6: 2 | C6: 48 | D6: 48 | E6: 48 | F6: 52 | G6: 54 | H6: =IF(B6="","",IF(K6=5,(SUM(C6:G6)-MAX(C6:G6)-MIN(C6:G6))/3,IF(K6=4,(SUM(C6:G6)-MAX(C6:G6))/3,SUM(C6:G6)/3))*B6/7.6) -> 12.98245614 | K6: 5
A7: =IF(Draw!E6=0,"",Draw!E6) -> 5 | B7: =IF(A7="","",B$3) -> 2 | C7: 62 | D7: 64 | E7: 63 | F7: 65 | G7: 61 | H7: =IF(B7="","",IF(K7=5,(SUM(C7:G7)-MAX(C7:G7)-MIN(C7:G7))/3,IF(K7=4,(SUM(C7:G7)-MAX(C7:G7))/3,SUM(C7:G7)/3))*B7/7.6) -> 16.57894737 | K7: 5
A8: =IF(Draw!E7=0,"",Draw!E7) -> 6 | B8: 2 | C8: 61 | D8: 65 | E8: 65 | F8: 66 | G8: 62 | H8: =IF(B8="","",IF(K8=5,(SUM(C8:G8)-MAX(C8:G8)-MIN(C8:G8))/3,IF(K8=4,(SUM(C8:G8)-MAX(C8:G8))/3,SUM(C8:G8)/3))*B8/7.6) -> 16.84210526 | K8: 5
A9: =IF(Draw!E8=0,"",Draw!E8) -> 7 | B9: 2 | C9: 49 | D9: 55 | E9: 47 | F9: 48 | G9: 51 | H9: =IF(B9="","",IF(K9=5,(SUM(C9:G9)-MAX(C9:G9)-MIN(C9:G9))/3,IF(K9=4,(SUM(C9:G9)-MAX(C9:G9))/3,SUM(C9:G9)/3))*B9/7.6) -> 12.98245614 | K9: 5
A10: =IF(Draw!E9=0,"",Draw!E9) -> 8 | B10: 2 | C10: 63 | D10: 63 | E10: 58 | F10: 62 | G10: 55 | H10: =IF(B10="","",IF(K10=5,(SUM(C10:G10)-MAX(C10:G10)-MIN(C10:G10))/3,IF(K10=4,(SUM(C10:G10)-MAX(C10:G10))/3,SUM(C10:G10)/3))*B10/7.6) -> 16.05263158 | K10: 5
A11: =IF(Draw!E10=0,"",Draw!E10) -> 9 | B11: 2 | C11: 63 | D11: 62 | E11: 57 | F11: 63 | G11: 57 | H11: =IF(B11="","",IF(K11=5,(SUM(C11:G11)-MAX(C11:G11)-MIN(C11:G11))/3,IF(K11=4,(SUM(C11:G11)-MAX(C11:G11))/3,SUM(C11:G11)/3))*B11/7.6) -> 15.96491228 | K11: 5
A12: =IF(Draw!E11=0,"",Draw!E11) -> 10 | B12: 2 | C12: 52 | D12: 57 | E12: 58 | F12: 56 | G12: 53 | H12: =IF(B12="","",IF(K12=5,(SUM(C12:G12)-MAX(C12:G12)-MIN(C12:G12))/3,IF(K12=4,(SUM(C12:G12)-MAX(C12:G12))/3,SUM(C12:G12)/3))*B12/7.6) -> 14.56140351 | K12: 5
A13: =IF(Draw!E12=0,"",Draw!E12) -> 11 | B13: 2 | C13: 63 | D13: 58 | E13: 60 | F13: 56 | G13: 58 | H13: =IF(B13="","",IF(K13=5,(SUM(C13:G13)-MAX(C13:G13)-MIN(C13:G13))/3,IF(K13=4,(SUM(C13:G13)-MAX(C13:G13))/3,SUM(C13:G13)/3))*B13/7.6) -> 15.43859649 | K13: 5
A14: =IF(Draw!E13=0,"",Draw!E13) -> 12 | B14: 2 | C14: 62 | D14: 61 | E14: 57 | F14: 61 | G14: 59 | H14: =IF(B14="","",IF(K14=5,(SUM(C14:G14)-MAX(C14:G14)-MIN(C14:G14))/3,IF(K14=4,(SUM(C14:G14)-MAX(C14:G14))/3,SUM(C14:G14)/3))*B14/7.6) -> 15.87719298 | K14: 5
A15: =IF(Draw!E14=0,"",Draw!E14) -> 13 | B15: 2 | C15: 57 | D15: 56 | E15: 56 | F15: 57 | G15: 56 | H15: =IF(B15="","",IF(K15=5,(SUM(C15:G15)-MAX(C15:G15)-MIN(C15:G15))/3,IF(K15=4,(SUM(C15:G15)-MAX(C15:G15))/3,SUM(C15:G15)/3))*B15/7.6) -> 14.8245614 | K15: 5
A16: =IF(Draw!E15=0,"",Draw!E15) -> 14 | B16: 2 | C16: 58 | D16: 57 | E16: 57 | F16: 54 | G16: 61 | H16: =IF(B16="","",IF(K16=5,(SUM(C16:G16)-MAX(C16:G16)-MIN(C16:G16))/3,IF(K16=4,(SUM(C16:G16)-MAX(C16:G16))/3,SUM(C16:G16)/3))*B16/7.6) -> 15.0877193 | K16: 5
A17: =IF(Draw!E16=0,"",Draw!E16) -> 15 | B17: 2 | C17: 61 | D17: 59 | E17: 56 | F17: 59 | G17: 54 | H17: =IF(B17="","",IF(K17=5,(SUM(C17:G17)-MAX(C17:G17)-MIN(C17:G17))/3,IF(K17=4,(SUM(C17:G17)-MAX(C17:G17))/3,SUM(C17:G17)/3))*B17/7.6) -> 15.26315789 | K17: 5
A18: =IF(Draw!E17=0,"",Draw!E17) -> 16 | B18: 2 | C18: 53 | D18: 55 | E18: 56 | F18: 56 | G18: 54 | H18: =IF(B18="","",IF(K18=5,(SUM(C18:G18)-MAX(C18:G18)-MIN(C18:G18))/3,IF(K18=4,(SUM(C18:G18)-MAX(C18:G18))/3,SUM(C18:G18)/3))*B18/7.6) -> 14.47368421 | K18: 5
A19: =IF(Draw!E18=0,"",Draw!E18) -> 17 | B19: 2 | C19: 54 | D19: 59 | E19: 54 | F19: 55 | G19: 51 | H19: =IF(B19="","",IF(K19=5,(SUM(C19:G19)-MAX(C19:G19)-MIN(C19:G19))/3,IF(K19=4,(SUM(C19:G19)-MAX(C19:G19))/3,SUM(C19:G19)/3))*B19/7.6) -> 14.29824561 | K19: 5
A20: =IF(Draw!E19=0,"",Draw!E19) -> 18 | B20: 2 | C20: 55 | D20: 56 | E20: 57 | F20: 58 | G20: 58 | H20: =IF(B20="","",IF(K20=5,(SUM(C20:G20)-MAX(C20:G20)-MIN(C20:G20))/3,IF(K20=4,(SUM(C20:G20)-MAX(C20:G20))/3,SUM(C20:G20)/3))*B20/7.6) -> 15 | K20: 5
A21: =IF(Draw!E20=0,"",Draw!E20) -> 19 | B21: 2 | C21: 53 | D21: 55 | E21: 54 | F21: 54 | G21: 54 | H21: =IF(B21="","",IF(K21=5,(SUM(C21:G21)-MAX(C21:G21)-MIN(C21:G21))/3,IF(K21=4,(SUM(C21:G21)-MAX(C21:G21))/3,SUM(C21:G21)/3))*B21/7.6) -> 14.21052632 | K21: 5
A22: =IF(Draw!E21=0,"",Draw!E21) -> 20 | B22: 2 | C22: 65 | D22: 65 | E22: 63 | F22: 61 | G22: 64 | H22: =IF(B22="","",IF(K22=5,(SUM(C22:G22)-MAX(C22:G22)-MIN(C22:G22))/3,IF(K22=4,(SUM(C22:G22)-MAX(C22:G22))/3,SUM(C22:G22)/3))*B22/7.6) -> 16.84210526 | K22: 5
A23: =IF(Draw!E22=0,"",Draw!E22) -> 21 | B23: 2 | C23: 61 | D23: 56 | E23: 58 | F23: 57 | G23: 58 | H23: =IF(B23="","",IF(K23=5,(SUM(C23:G23)-MAX(C23:G23)-MIN(C23:G23))/3,IF(K23=4,(SUM(C23:G23)-MAX(C23:G23))/3,SUM(C23:G23)/3))*B23/7.6) -> 15.1754386 | K23: 5
A24: =IF(Draw!E23=0,"",Draw!E23) -> 22 | B24: 2 | C24: 62 | D24: 59 | E24: 59 | F24: 60 | G24: 60 | H24: =IF(B24="","",IF(K24=5,(SUM(C24:G24)-MAX(C24:G24)-MIN(C24:G24))/3,IF(K24=4,(SUM(C24:G24)-MAX(C24:G24))/3,SUM(C24:G24)/3))*B24/7.6) -> 15.70175439 | K24: 5
A25: =IF(Draw!E24=0,"",Draw!E24) -> 23 | B25: 2 | C25: 50 | D25: 51 | E25: 52 | F25: 53 | G25: 56 | H25: =IF(B25="","",IF(K25=5,(SUM(C25:G25)-MAX(C25:G25)-MIN(C25:G25))/3,IF(K25=4,(SUM(C25:G25)-MAX(C25:G25))/3,SUM(C25:G25)/3))*B25/7.6) -> 13.68421053 | K25: 5
A26: =IF(Draw!E25=0,"",Draw!E25) -> 24 | B26: 2 | C26: 49 | D26: 49 | E26: 49 | F26: 50 | G26: 51 | H26: =IF(B26="","",IF(K26=5,(SUM(C26:G26)-MAX(C26:G26)-MIN(C26:G26))/3,IF(K26=4,(SUM(C26:G26)-MAX(C26:G26))/3,SUM(C26:G26)/3))*B26/7.6) -> 12.98245614 | K26: 5
A27: =IF(Draw!E26=0,"",Draw!E26) -> 25 | B27: 2 | C27: 50 | D27: 50 | E27: 47 | F27: 47 | G27: 48 | H27: =IF(B27="","",IF(K27=5,(SUM(C27:G27)-MAX(C27:G27)-MIN(C27:G27))/3,IF(K27=4,(SUM(C27:G27)-MAX(C27:G27))/3,SUM(C27:G27)/3))*B27/7.6) -> 12.71929825 | K27: 5
A28: =IF(Draw!E27=0,"",Draw!E27) -> 26 | B28: 2 | C28: 52 | D28: 56 | E28: 56 | F28: 58 | G28: 51 | H28: =IF(B28="","",IF(K28=5,(SUM(C28:G28)-MAX(C28:G28)-MIN(C28:G28))/3,IF(K28=4,(SUM(C28:G28)-MAX(C28:G28))/3,SUM(C28:G28)/3))*B28/7.6) -> 14.38596491 | K28: 5
A29: =IF(Draw!E28=0,"",Draw!E28) -> 27 | B29: 2 | C29: 51 | D29: 51 | E29: 50 | F29: 56 | G29: 51 | H29: =IF(B29="","",IF(K29=5,(SUM(C29:G29)-MAX(C29:G29)-MIN(C29:G29))/3,IF(K29=4,(SUM(C29:G29)-MAX(C29:G29))/3,SUM(C29:G29)/3))*B29/7.6) -> 13.42105263 | K29: 5
A30: =IF(Draw!E29=0,"",Draw!E29) -> 28 | B30: 2 | C30: 48 | D30: 50 | E30: 48 | F30: 52 | G30: 48 | H30: =IF(B30="","",IF(K30=5,(SUM(C30:G30)-MAX(C30:G30)-MIN(C30:G30))/3,IF(K30=4,(SUM(C30:G30)-MAX(C30:G30))/3,SUM(C30:G30)/3))*B30/7.6) -> 12.80701754 | K30: 5
A31: =IF(Draw!E30=0,"",Draw!E30) -> 29 | B31: 2 | C31: 61 | D31: 60 | E31: 63 | F31: 64 | G31: 63 | H31: =IF(B31="","",IF(K31=5,(SUM(C31:G31)-MAX(C31:G31)-MIN(C31:G31))/3,IF(K31=4,(SUM(C31:G31)-MAX(C31:G31))/3,SUM(C31:G31)/3))*B31/7.6) -> 16.40350877 | K31: 5
A32: =IF(Draw!E31=0,"",Draw!E31) -> 30 | B32: 2 | C32: 51 | D32: 50 | E32: 52 | F32: 54 | G32: 56 | H32: =IF(B32="","",IF(K32=5,(SUM(C32:G32)-MAX(C32:G32)-MIN(C32:G32))/3,IF(K32=4,(SUM(C32:G32)-MAX(C32:G32))/3,SUM(C32:G32)/3))*B32/7.6) -> 13.77192982 | K32: 5
A33: =IF(Draw!E32=0,"",Draw!E32) -> 31 | B33: 2 | C33: 54 | D33: 52 | E33: 54 | F33: 56 | G33: 57 | H33: =IF(B33="","",IF(K33=5,(SUM(C33:G33)-MAX(C33:G33)-MIN(C33:G33))/3,IF(K33=4,(SUM(C33:G33)-MAX(C33:G33))/3,SUM(C33:G33)/3))*B33/7.6) -> 14.38596491 | K33: 5
A34: =IF(Draw!E33=0,"",Draw!E33) -> 32 | B34: 2 | C34: 57 | D34: 56 | E34: 57 | F34: 60 | G34: 60 | H34: =IF(B34="","",IF(K34=5,(SUM(C34:G34)-MAX(C34:G34)-MIN(C34:G34))/3,IF(K34=4,(SUM(C34:G34)-MAX(C34:G34))/3,SUM(C34:G34)/3))*B34/7.6) -> 15.26315789 | K34: 5
A35: =IF(Draw!E34=0,"",Draw!E34) -> 33 | B35: 2 | C35: 58 | D35: 60 | E35: 58 | F35: 58 | G35: 61 | H35: =IF(B35="","",IF(K35=5,(SUM(C35:G35)-MAX(C35:G35)-MIN(C35:G35))/3,IF(K35=4,(SUM(C35:G35)-MAX(C35:G35))/3,SUM(C35:G35)/3))*B35/7.6) -> 15.43859649 | K35: 5
A36: =IF(Draw!E35=0,"",Draw!E35) -> 34 | B36: 2 | C36: 56 | D36: 60 | E36: 56 | F36: 55 | G36: 53 | H36: =IF(B36="","",IF(K36=5,(SUM(C36:G36)-MAX(C36:G36)-MIN(C36:G36))/3,IF(K36=4,(SUM(C36:G36)-MAX(C36:G36))/3,SUM(C36:G36)/3))*B36/7.6) -> 14.64912281 | K36: 5
A37: =IF(Draw!E36=0,"",Draw!E36) -> 35 | B37: 2 | C37: 0 | D37: 0 | E37: 0 | F37: 0 | G37: 0 | H37: =IF(B37="","",IF(K37=5,(SUM(C37:G37)-MAX(C37:G37)-MIN(C37:G37))/3,IF(K37=4,(SUM(C37:G37)-MAX(C37:G37))/3,SUM(C37:G37)/3))*B37/7.6) -> 0 | K37: 5
A38: =IF(Draw!E37=0,"",Draw!E37) -> 36 | B38: 2 | C38: 55 | D38: 56 | E38: 53 | F38: 57 | G38: 56 | H38: =IF(B38="","",IF(K38=5,(SUM(C38:G38)-MAX(C38:G38)-MIN(C38:G38))/3,IF(K38=4,(SUM(C38:G38)-MAX(C38:G38))/3,SUM(C38:G38)/3))*B38/7.6) -> 14.64912281 | K38: 5
A39: =IF(Draw!E38=0,"",Draw!E38) -> 37 | B39: 2 | C39: 60 | D39: 64 | E39: 58 | F39: 63 | G39: 64 | H39: =IF(B39="","",IF(K39=5,(SUM(C39:G39)-MAX(C39:G39)-MIN(C39:G39))/3,IF(K39=4,(SUM(C39:G39)-MAX(C39:G39))/3,SUM(C39:G39)/3))*B39/7.6) -> 16.40350877 | K39: 5
A40: =IF(Draw!E39=0,"",Draw!E39) -> 38 | B40: 2 | C40: 61 | D40: 60 | E40: 60 | F40: 60 | G40: 62 | H40: =IF(B40="","",IF(K40=5,(SUM(C40:G40)-MAX(C40:G40)-MIN(C40:G40))/3,IF(K40=4,(SUM(C40:G40)-MAX(C40:G40))/3,SUM(C40:G40)/3))*B40/7.6) -> 15.87719298 | K40: 5
A41: =IF(Draw!E40=0,"",Draw!E40) -> 39 | B41: 2 | C41: 0 | D41: 0 | E41: 0 | F41: 0 | G41: 0 | H41: =IF(B41="","",IF(K41=5,(SUM(C41:G41)-MAX(C41:G41)-MIN(C41:G41))/3,IF(K41=4,(SUM(C41:G41)-MAX(C41:G41))/3,SUM(C41:G41)/3))*B41/7.6) -> 0 | K41: 5
A42: =IF(Draw!E41=0,"",Draw!E41) -> 40 | B42: 2 | C42: 48 | D42: 48 | E42: 50 | F42: 50 | G42: 53 | H42: =IF(B42="","",IF(K42=5,(SUM(C42:G42)-MAX(C42:G42)-MIN(C42:G42))/3,IF(K42=4,(SUM(C42:G42)-MAX(C42:G42))/3,SUM(C42:G42)/3))*B42/7.6) -> 12.98245614 | K42: 5
A43: =IF(Draw!E42=0,"",Draw!E42) -> 41 | B43: 2 | C43: 58 | D43: 56 | E43: 62 | F43: 58 | G43: 59 | H43: =IF(B43="","",IF(K43=5,(SUM(C43:G43)-MAX(C43:G43)-MIN(C43:G43))/3,IF(K43=4,(SUM(C43:G43)-MAX(C43:G43))/3,SUM(C43:G43)/3))*B43/7.6) -> 15.35087719 | K43: 5
A44: =IF(Draw!E43=0,"",Draw!E43) -> 42 | B44: 2 | C44: 57 | D44: 58 | E44: 58 | F44: 56 | G44: 59 | H44: =IF(B44="","",IF(K44=5,(SUM(C44:G44)-MAX(C44:G44)-MIN(C44:G44))/3,IF(K44=4,(SUM(C44:G44)-MAX(C44:G44))/3,SUM(C44:G44)/3))*B44/7.6) -> 15.1754386 | K44: 5
A45: =IF(Draw!E44=0,"",Draw!E44) -> 43 | B45: 2 | C45: 50 | D45: 51 | E45: 52 | F45: 56 | G45: 57 | H45: =IF(B45="","",IF(K45=5,(SUM(C45:G45)-MAX(C45:G45)-MIN(C45:G45))/3,IF(K45=4,(SUM(C45:G45)-MAX(C45:G45))/3,SUM(C45:G45)/3))*B45/7.6) -> 13.94736842 | K45: 5
A46: =IF(Draw!E45=0,"",Draw!E45) -> 44 | B46: 2 | C46: 53 | D46: 57 | E46: 54 | F46: 54 | G46: 60 | H46: =IF(B46="","",IF(K46=5,(SUM(C46:G46)-MAX(C46:G46)-MIN(C46:G46))/3,IF(K46=4,(SUM(C46:G46)-MAX(C46:G46))/3,SUM(C46:G46)/3))*B46/7.6) -> 14.47368421 | K46: 5
A47: =IF(Draw!E46=0,"",Draw!E46) -> 45 | B47: 2 | C47: 54 | D47: 56 | E47: 55 | F47: 56 | G47: 57 | H47: =IF(B47="","",IF(K47=5,(SUM(C47:G47)-MAX(C47:G47)-MIN(C47:G47))/3,IF(K47=4,(SUM(C47:G47)-MAX(C47:G47))/3,SUM(C47:G47)/3))*B47/7.6) -> 14.64912281 | K47: 5
A48: =IF(Draw!E47=0,"",Draw!E47) -> 46 | B48: 2 | C48: 54 | D48: 59 | E48: 53 | F48: 55 | G48: 53 | H48: =IF(B48="","",IF(K48=5,(SUM(C48:G48)-MAX(C48:G48)-MIN(C48:G48))/3,IF(K48=4,(SUM(C48:G48)-MAX(C48:G48))/3,SUM(C48:G48)/3))*B48/7.6) -> 14.21052632 | K48: 5
A49: =IF(Draw!E48=0,"",Draw!E48) -> 47 | B49: 2 | C49: 53 | D49: 56 | E49: 54 | F49: 58 | G49: 57 | H49: =IF(B49="","",IF(K49=5,(SUM(C49:G49)-MAX(C49:G49)-MIN(C49:G49))/3,IF(K49=4,(SUM(C49:G49)-MAX(C49:G49))/3,SUM(C49:G49)/3))*B49/7.6) -> 14.64912281 | K49: 5
A50: =IF(Draw!E49=0,"",Draw!E49) -> 48 | B50: 2 | C50: 57 | D50: 61 | E50: 57 | F50: 62 | G50: 61 | H50: =IF(B50="","",IF(K50=5,(SUM(C50:G50)-MAX(C50:G50)-MIN(C50:G50))/3,IF(K50=4,(SUM(C50:G50)-MAX(C50:G50))/3,SUM(C50:G50)/3))*B50/7.6) -> 15.70175439 | K50: 5
A51: =IF(Draw!E50=0,"",Draw!E50) -> 49 | B51: 2 | C51: 0 | D51: 0 | E51: 0 | F51: 0 | G51: 0 | H51: =IF(B51="","",IF(K51=5,(SUM(C51:G51)-MAX(C51:G51)-MIN(C51:G51))/3,IF(K51=4,(SUM(C51:G51)-MAX(C51:G51))/3,SUM(C51:G51)/3))*B51/7.6) -> 0 | K51: 5
A52: =IF(Draw!E51=0,"",Draw!E51) -> 50 | B52: 2 | C52: 51 | D52: 51 | E52: 53 | F52: 56 | G52: 53 | H52: =IF(B52="","",IF(K52=5,(SUM(C52:G52)-MAX(C52:G52)-MIN(C52:G52))/3,IF(K52=4,(SUM(C52:G52)-MAX(C52:G52))/3,SUM(C52:G52)/3))*B52/7.6) -> 13.77192982 | K52: 5
A53: =IF(Draw!E52=0,"",Draw!E52) -> 51 | B53: 2 | C53: 52 | D53: 52 | E53: 52 | F53: 52 | G53: 51 | H53: =IF(B53="","",IF(K53=5,(SUM(C53:G53)-MAX(C53:G53)-MIN(C53:G53))/3,IF(K53=4,(SUM(C53:G53)-MAX(C53:G53))/3,SUM(C53:G53)/3))*B53/7.6) -> 13.68421053 | K53: 5
A54: =IF(Draw!E53=0,"",Draw!E53) -> 52 | B54: 2 | C54: 63 | D54: 61 | E54: 61 | F54: 63 | G54: 62 | H54: =IF(B54="","",IF(K54=5,(SUM(C54:G54)-MAX(C54:G54)-MIN(C54:G54))/3,IF(K54=4,(SUM(C54:G54)-MAX(C54:G54))/3,SUM(C54:G54)/3))*B54/7.6) -> 16.31578947 | K54: 5
A55: =IF(Draw!E54=0,"",Draw!E54) -> 53 | B55: 2 | C55: 56 | D55: 59 | E55: 58 | F55: 55 | G55: 57 | H55: =IF(B55="","",IF(K55=5,(SUM(C55:G55)-MAX(C55:G55)-MIN(C55:G55))/3,IF(K55=4,(SUM(C55:G55)-MAX(C55:G55))/3,SUM(C55:G55)/3))*B55/7.6) -> 15 | K55: 5
A56: =IF(Draw!E55=0,"",Draw!E55) -> 54 | B56: 2 | C56: 56 | D56: 58 | E56: 55 | F56: 60 | G56: 60 | H56: =IF(B56="","",IF(K56=5,(SUM(C56:G56)-MAX(C56:G56)-MIN(C56:G56))/3,IF(K56=4,(SUM(C56:G56)-MAX(C56:G56))/3,SUM(C56:G56)/3))*B56/7.6) -> 15.26315789 | K56: 5
A57: =IF(Draw!E56=0,"",Draw!E56) -> 55 | B57: 2 | C57: 64 | D57: 66 | E57: 64 | F57: 62 | G57: 65 | H57: =IF(B57="","",IF(K57=5,(SUM(C57:G57)-MAX(C57:G57)-MIN(C57:G57))/3,IF(K57=4,(SUM(C57:G57)-MAX(C57:G57))/3,SUM(C57:G57)/3))*B57/7.6) -> 16.92982456 | K57: 5
A58: =IF(Draw!E57=0,"",Draw!E57) -> 56 | B58: 2 | C58: 59 | D58: 65 | E58: 60 | F58: 61 | G58: 61 | H58: =IF(B58="","",IF(K58=5,(SUM(C58:G58)-MAX(C58:G58)-MIN(C58:G58))/3,IF(K58=4,(SUM(C58:G58)-MAX(C58:G58))/3,SUM(C58:G58)/3))*B58/7.6) -> 15.96491228 | K58: 5
A59: =IF(Draw!E58=0,"",Draw!E58) -> 57 | B59: 2 | C59: 56 | D59: 60 | E59: 56 | F59: 52 | G59: 57 | H59: =IF(B59="","",IF(K59=5,(SUM(C59:G59)-MAX(C59:G59)-MIN(C59:G59))/3,IF(K59=4,(SUM(C59:G59)-MAX(C59:G59))/3,SUM(C59:G59)/3))*B59/7.6) -> 14.8245614 | K59: 5
A60: =IF(Draw!E59=0,"",Draw!E59) -> 58 | B60: 2 | C60: 58 | D60: 61 | E60: 57 | F60: 56 | G60: 59 | H60: =IF(B60="","",IF(K60=5,(SUM(C60:G60)-MAX(C60:G60)-MIN(C60:G60))/3,IF(K60=4,(SUM(C60:G60)-MAX(C60:G60))/3,SUM(C60:G60)/3))*B60/7.6) -> 15.26315789 | K60: 5
A61: =IF(Draw!E60=0,"",Draw!E60) ->  | H61: =IF(B61="","",IF(K61=5,(SUM(C61:G61)-MAX(C61:G61)-MIN(C61:G61))/3,IF(K61=4,(SUM(C61:G61)-MAX(C61:G61))/3,SUM(C61:G61)/3))*B61/7.6) ->  | K61: 0
A62: =IF(Draw!E61=0,"",Draw!E61) ->  | H62: =IF(B62="","",IF(K62=5,(SUM(C62:G62)-MAX(C62:G62)-MIN(C62:G62))/3,IF(K62=4,(SUM(C62:G62)-MAX(C62:G62))/3,SUM(C62:G62)/3))*B62/7.6) ->  | K62: 0
A63: =IF(Draw!E62=0,"",Draw!E62) ->  | H63: =IF(B63="","",IF(K63=5,(SUM(C63:G63)-MAX(C63:G63)-MIN(C63:G63))/3,IF(K63=4,(SUM(C63:G63)-MAX(C63:G63))/3,SUM(C63:G63)/3))*B63/7.6) ->  | K63: 0
A64: =IF(Draw!E63=0,"",Draw!E63) ->  | H64: =IF(B64="","",IF(K64=5,(SUM(C64:G64)-MAX(C64:G64)-MIN(C64:G64))/3,IF(K64=4,(SUM(C64:G64)-MAX(C64:G64))/3,SUM(C64:G64)/3))*B64/7.6) ->  | K64: 0
A65: =IF(Draw!E64=0,"",Draw!E64) ->  | H65: =IF(B65="","",IF(K65=5,(SUM(C65:G65)-MAX(C65:G65)-MIN(C65:G65))/3,IF(K65=4,(SUM(C65:G65)-MAX(C65:G65))/3,SUM(C65:G65)/3))*B65/7.6) ->  | K65: 0
A66: =IF(Draw!E65=0,"",Draw!E65) ->  | H66: =IF(B66="","",IF(K66=5,(SUM(C66:G66)-MAX(C66:G66)-MIN(C66:G66))/3,IF(K66=4,(SUM(C66:G66)-MAX(C66:G66))/3,SUM(C66:G66)/3))*B66/7.6) ->  | K66: 0
A67: =IF(Draw!E66=0,"",Draw!E66) ->  | H67: =IF(B67="","",IF(K67=5,(SUM(C67:G67)-MAX(C67:G67)-MIN(C67:G67))/3,IF(K67=4,(SUM(C67:G67)-MAX(C67:G67))/3,SUM(C67:G67)/3))*B67/7.6) ->  | K67: 0
A68: =IF(Draw!E67=0,"",Draw!E67) ->  | H68: =IF(B68="","",IF(K68=5,(SUM(C68:G68)-MAX(C68:G68)-MIN(C68:G68))/3,IF(K68=4,(SUM(C68:G68)-MAX(C68:G68))/3,SUM(C68:G68)/3))*B68/7.6) ->  | K68: =COUNT(C68:G68) -> 0
A69: =IF(Draw!E68=0,"",Draw!E68) ->  | H69: =IF(B69="","",IF(K69=5,(SUM(C69:G69)-MAX(C69:G69)-MIN(C69:G69))/3,IF(K69=4,(SUM(C69:G69)-MAX(C69:G69))/3,SUM(C69:G69)/3))*B69/7.6) ->  | K69: 0
A70: =IF(Draw!E69=0,"",Draw!E69) ->  | H70: =IF(B70="","",IF(K70=5,(SUM(C70:G70)-MAX(C70:G70)-MIN(C70:G70))/3,IF(K70=4,(SUM(C70:G70)-MAX(C70:G70))/3,SUM(C70:G70)/3))*B70/7.6) ->  | K70: 0
A71: =IF(Draw!E70=0,"",Draw!E70) ->  | B71: =IF(A71="","",B$3) ->  | H71: =IF(B71="","",IF(K71=5,(SUM(C71:G71)-MAX(C71:G71)-MIN(C71:G71))/3,IF(K71=4,(SUM(C71:G71)-MAX(C71:G71))/3,SUM(C71:G71)/3))*B71/7.6) ->  | K71: 0
A72: =IF(Draw!E71=0,"",Draw!E71) ->  | H72: =IF(B72="","",IF(K72=5,(SUM(C72:G72)-MAX(C72:G72)-MIN(C72:G72))/3,IF(K72=4,(SUM(C72:G72)-MAX(C72:G72))/3,SUM(C72:G72)/3))*B72/7.6) ->  | K72: 0
A73: =IF(Draw!E72=0,"",Draw!E72) ->  | H73: =IF(B73="","",IF(K73=5,(SUM(C73:G73)-MAX(C73:G73)-MIN(C73:G73))/3,IF(K73=4,(SUM(C73:G73)-MAX(C73:G73))/3,SUM(C73:G73)/3))*B73/7.6) ->  | K73: 0
A74: =IF(Draw!E73=0,"",Draw!E73) ->  | H74: =IF(B74="","",IF(K74=5,(SUM(C74:G74)-MAX(C74:G74)-MIN(C74:G74))/3,IF(K74=4,(SUM(C74:G74)-MAX(C74:G74))/3,SUM(C74:G74)/3))*B74/7.6) ->  | K74: 0
A75: =IF(Draw!E74=0,"",Draw!E74) ->  | H75: =IF(B75="","",IF(K75=5,(SUM(C75:G75)-MAX(C75:G75)-MIN(C75:G75))/3,IF(K75=4,(SUM(C75:G75)-MAX(C75:G75))/3,SUM(C75:G75)/3))*B75/7.6) ->  | K75: 0
A76: =IF(Draw!E75=0,"",Draw!E75) ->  | H76: =IF(B76="","",IF(K76=5,(SUM(C76:G76)-MAX(C76:G76)-MIN(C76:G76))/3,IF(K76=4,(SUM(C76:G76)-MAX(C76:G76))/3,SUM(C76:G76)/3))*B76/7.6) ->  | K76: 0
A77: =IF(Draw!E76=0,"",Draw!E76) ->  | H77: =IF(B77="","",IF(K77=5,(SUM(C77:G77)-MAX(C77:G77)-MIN(C77:G77))/3,IF(K77=4,(SUM(C77:G77)-MAX(C77:G77))/3,SUM(C77:G77)/3))*B77/7.6) ->  | K77: 0
A78: =IF(Draw!E77=0,"",Draw!E77) ->  | H78: =IF(B78="","",IF(K78=5,(SUM(C78:G78)-MAX(C78:G78)-MIN(C78:G78))/3,IF(K78=4,(SUM(C78:G78)-MAX(C78:G78))/3,SUM(C78:G78)/3))*B78/7.6) ->  | K78: 0
A79: =IF(Draw!E78=0,"",Draw!E78) ->  | H79: =IF(B79="","",IF(K79=5,(SUM(C79:G79)-MAX(C79:G79)-MIN(C79:G79))/3,IF(K79=4,(SUM(C79:G79)-MAX(C79:G79))/3,SUM(C79:G79)/3))*B79/7.6) ->  | K79: 0
A80: =IF(Draw!E79=0,"",Draw!E79) ->  | H80: =IF(B80="","",IF(K80=5,(SUM(C80:G80)-MAX(C80:G80)-MIN(C80:G80))/3,IF(K80=4,(SUM(C80:G80)-MAX(C80:G80))/3,SUM(C80:G80)/3))*B80/7.6) ->  | K80: 0
A81: =IF(Draw!E80=0,"",Draw!E80) ->  | H81: =IF(B81="","",IF(K81=5,(SUM(C81:G81)-MAX(C81:G81)-MIN(C81:G81))/3,IF(K81=4,(SUM(C81:G81)-MAX(C81:G81))/3,SUM(C81:G81)/3))*B81/7.6) ->  | K81: 0
A82: =IF(Draw!E81=0,"",Draw!E81) ->  | H82: =IF(B82="","",IF(K82=5,(SUM(C82:G82)-MAX(C82:G82)-MIN(C82:G82))/3,IF(K82=4,(SUM(C82:G82)-MAX(C82:G82))/3,SUM(C82:G82)/3))*B82/7.6) ->  | K82: 0
A83: =IF(Draw!E82=0,"",Draw!E82) ->  | H83: =IF(B83="","",IF(K83=5,(SUM(C83:G83)-MAX(C83:G83)-MIN(C83:G83))/3,IF(K83=4,(SUM(C83:G83)-MAX(C83:G83))/3,SUM(C83:G83)/3))*B83/7.6) ->  | K83: 0
A84: =IF(Draw!E83=0,"",Draw!E83) ->  | H84: =IF(B84="","",IF(K84=5,(SUM(C84:G84)-MAX(C84:G84)-MIN(C84:G84))/3,IF(K84=4,(SUM(C84:G84)-MAX(C84:G84))/3,SUM(C84:G84)/3))*B84/7.6) ->  | K84: 0
A85: =IF(Draw!E84=0,"",Draw!E84) ->  | H85: =IF(B85="","",IF(K85=5,(SUM(C85:G85)-MAX(C85:G85)-MIN(C85:G85))/3,IF(K85=4,(SUM(C85:G85)-MAX(C85:G85))/3,SUM(C85:G85)/3))*B85/7.6) ->  | K85: 0
A86: =IF(Draw!E85=0,"",Draw!E85) ->  | H86: =IF(B86="","",IF(K86=5,(SUM(C86:G86)-MAX(C86:G86)-MIN(C86:G86))/3,IF(K86=4,(SUM(C86:G86)-MAX(C86:G86))/3,SUM(C86:G86)/3))*B86/7.6) ->  | K86: 0
A87: =IF(Draw!E86=0,"",Draw!E86) ->  | H87: =IF(B87="","",IF(K87=5,(SUM(C87:G87)-MAX(C87:G87)-MIN(C87:G87))/3,IF(K87=4,(SUM(C87:G87)-MAX(C87:G87))/3,SUM(C87:G87)/3))*B87/7.6) ->  | K87: 0
A88: =IF(Draw!E87=0,"",Draw!E87) ->  | H88: =IF(B88="","",IF(K88=5,(SUM(C88:G88)-MAX(C88:G88)-MIN(C88:G88))/3,IF(K88=4,(SUM(C88:G88)-MAX(C88:G88))/3,SUM(C88:G88)/3))*B88/7.6) ->  | K88: 0
A89: =IF(Draw!E88=0,"",Draw!E88) ->  | H89: =IF(B89="","",IF(K89=5,(SUM(C89:G89)-MAX(C89:G89)-MIN(C89:G89))/3,IF(K89=4,(SUM(C89:G89)-MAX(C89:G89))/3,SUM(C89:G89)/3))*B89/7.6) ->  | K89: 0
A90: =IF(Draw!E89=0,"",Draw!E89) ->  | H90: =IF(B90="","",IF(K90=5,(SUM(C90:G90)-MAX(C90:G90)-MIN(C90:G90))/3,IF(K90=4,(SUM(C90:G90)-MAX(C90:G90))/3,SUM(C90:G90)/3))*B90/7.6) ->  | K90: 0
A91: =IF(Draw!E90=0,"",Draw!E90) ->  | H91: =IF(B91="","",IF(K91=5,(SUM(C91:G91)-MAX(C91:G91)-MIN(C91:G91))/3,IF(K91=4,(SUM(C91:G91)-MAX(C91:G91))/3,SUM(C91:G91)/3))*B91/7.6) ->  | K91: 0
A92: =IF(Draw!E91=0,"",Draw!E91) ->  | H92: =IF(B92="","",IF(K92=5,(SUM(C92:G92)-MAX(C92:G92)-MIN(C92:G92))/3,IF(K92=4,(SUM(C92:G92)-MAX(C92:G92))/3,SUM(C92:G92)/3))*B92/7.6) ->  | K92: 0
A93: =IF(Draw!E92=0,"",Draw!E92) ->  | H93: =IF(B93="","",IF(K93=5,(SUM(C93:G93)-MAX(C93:G93)-MIN(C93:G93))/3,IF(K93=4,(SUM(C93:G93)-MAX(C93:G93))/3,SUM(C93:G93)/3))*B93/7.6) ->  | K93: 0
A94: =IF(Draw!E93=0,"",Draw!E93) ->  | H94: =IF(B94="","",IF(K94=5,(SUM(C94:G94)-MAX(C94:G94)-MIN(C94:G94))/3,IF(K94=4,(SUM(C94:G94)-MAX(C94:G94))/3,SUM(C94:G94)/3))*B94/7.6) ->  | K94: 0
A95: =IF(Draw!E94=0,"",Draw!E94) ->  | H95: =IF(B95="","",IF(K95=5,(SUM(C95:G95)-MAX(C95:G95)-MIN(C95:G95))/3,IF(K95=4,(SUM(C95:G95)-MAX(C95:G95))/3,SUM(C95:G95)/3))*B95/7.6) ->  | K95: 0
A96: =IF(Draw!E95=0,"",Draw!E95) ->  | H96: =IF(B96="","",IF(K96=5,(SUM(C96:G96)-MAX(C96:G96)-MIN(C96:G96))/3,IF(K96=4,(SUM(C96:G96)-MAX(C96:G96))/3,SUM(C96:G96)/3))*B96/7.6) ->  | K96: 0
A97: =IF(Draw!E96=0,"",Draw!E96) ->  | H97: =IF(B97="","",IF(K97=5,(SUM(C97:G97)-MAX(C97:G97)-MIN(C97:G97))/3,IF(K97=4,(SUM(C97:G97)-MAX(C97:G97))/3,SUM(C97:G97)/3))*B97/7.6) ->  | K97: 0
A98: =IF(Draw!E97=0,"",Draw!E97) ->  | H98: =IF(B98="","",IF(K98=5,(SUM(C98:G98)-MAX(C98:G98)-MIN(C98:G98))/3,IF(K98=4,(SUM(C98:G98)-MAX(C98:G98))/3,SUM(C98:G98)/3))*B98/7.6) ->  | K98: 0
A99: =IF(Draw!E98=0,"",Draw!E98) ->  | H99: =IF(B99="","",IF(K99=5,(SUM(C99:G99)-MAX(C99:G99)-MIN(C99:G99))/3,IF(K99=4,(SUM(C99:G99)-MAX(C99:G99))/3,SUM(C99:G99)/3))*B99/7.6) ->  | K99: 0
A100: =IF(Draw!E99=0,"",Draw!E99) ->  | H100: =IF(B100="","",IF(K100=5,(SUM(C100:G100)-MAX(C100:G100)-MIN(C100:G100))/3,IF(K100=4,(SUM(C100:G100)-MAX(C100:G100))/3,SUM(C100:G100)/3))*B100/7.6) ->  | K100: 0
A101: =IF(Draw!E100=0,"",Draw!E100) ->  | H101: =IF(B101="","",IF(K101=5,(SUM(C101:G101)-MAX(C101:G101)-MIN(C101:G101))/3,IF(K101=4,(SUM(C101:G101)-MAX(C101:G101))/3,SUM(C101:G101)/3))*B101/7.6) ->  | K101: 0
A102: =IF(Draw!E101=0,"",Draw!E101) ->  | H102: =IF(B102="","",IF(K102=5,(SUM(C102:G102)-MAX(C102:G102)-MIN(C102:G102))/3,IF(K102=4,(SUM(C102:G102)-MAX(C102:G102))/3,SUM(C102:G102)/3))*B102/7.6) ->  | K102: 0
A103: =IF(Draw!E102=0,"",Draw!E102) ->  | H103: =IF(B103="","",IF(K103=5,(SUM(C103:G103)-MAX(C103:G103)-MIN(C103:G103))/3,IF(K103=4,(SUM(C103:G103)-MAX(C103:G103))/3,SUM(C103:G103)/3))*B103/7.6) ->  | K103: 0
A104: =IF(Draw!E103=0,"",Draw!E103) ->  | H104: =IF(B104="","",IF(K104=5,(SUM(C104:G104)-MAX(C104:G104)-MIN(C104:G104))/3,IF(K104=4,(SUM(C104:G104)-MAX(C104:G104))/3,SUM(C104:G104)/3))*B104/7.6) ->  | K104: 0
A105: =IF(Draw!E104=0,"",Draw!E104) ->  | H105: =IF(B105="","",IF(K105=5,(SUM(C105:G105)-MAX(C105:G105)-MIN(C105:G105))/3,IF(K105=4,(SUM(C105:G105)-MAX(C105:G105))/3,SUM(C105:G105)/3))*B105/7.6) ->  | K105: 0
A106: =IF(Draw!E105=0,"",Draw!E105) ->  | H106: =IF(B106="","",IF(K106=5,(SUM(C106:G106)-MAX(C106:G106)-MIN(C106:G106))/3,IF(K106=4,(SUM(C106:G106)-MAX(C106:G106))/3,SUM(C106:G106)/3))*B106/7.6) ->  | K106: 0
A107: =IF(Draw!E106=0,"",Draw!E106) ->  | H107: =IF(B107="","",IF(K107=5,(SUM(C107:G107)-MAX(C107:G107)-MIN(C107:G107))/3,IF(K107=4,(SUM(C107:G107)-MAX(C107:G107))/3,SUM(C107:G107)/3))*B107/7.6) ->  | K107: 0
A108: =IF(Draw!E107=0,"",Draw!E107) ->  | H108: =IF(B108="","",IF(K108=5,(SUM(C108:G108)-MAX(C108:G108)-MIN(C108:G108))/3,IF(K108=4,(SUM(C108:G108)-MAX(C108:G108))/3,SUM(C108:G108)/3))*B108/7.6) ->  | K108: 0
A109: =IF(Draw!E108=0,"",Draw!E108) ->  | H109: =IF(B109="","",IF(K109=5,(SUM(C109:G109)-MAX(C109:G109)-MIN(C109:G109))/3,IF(K109=4,(SUM(C109:G109)-MAX(C109:G109))/3,SUM(C109:G109)/3))*B109/7.6) ->  | K109: 0
A110: =IF(Draw!E109=0,"",Draw!E109) ->  | H110: =IF(B110="","",IF(K110=5,(SUM(C110:G110)-MAX(C110:G110)-MIN(C110:G110))/3,IF(K110=4,(SUM(C110:G110)-MAX(C110:G110))/3,SUM(C110:G110)/3))*B110/7.6) ->  | K110: 0
A111: =IF(Draw!E110=0,"",Draw!E110) ->  | H111: =IF(B111="","",IF(K111=5,(SUM(C111:G111)-MAX(C111:G111)-MIN(C111:G111))/3,IF(K111=4,(SUM(C111:G111)-MAX(C111:G111))/3,SUM(C111:G111)/3))*B111/7.6) ->  | K111: 0
A112: =IF(Draw!E111=0,"",Draw!E111) ->  | H112: =IF(B112="","",IF(K112=5,(SUM(C112:G112)-MAX(C112:G112)-MIN(C112:G112))/3,IF(K112=4,(SUM(C112:G112)-MAX(C112:G112))/3,SUM(C112:G112)/3))*B112/7.6) ->  | K112: 0
A113: =IF(Draw!E112=0,"",Draw!E112) ->  | H113: =IF(B113="","",IF(K113=5,(SUM(C113:G113)-MAX(C113:G113)-MIN(C113:G113))/3,IF(K113=4,(SUM(C113:G113)-MAX(C113:G113))/3,SUM(C113:G113)/3))*B113/7.6) ->  | K113: 0
A114: =IF(Draw!E113=0,"",Draw!E113) ->  | H114: =IF(B114="","",IF(K114=5,(SUM(C114:G114)-MAX(C114:G114)-MIN(C114:G114))/3,IF(K114=4,(SUM(C114:G114)-MAX(C114:G114))/3,SUM(C114:G114)/3))*B114/7.6) ->  | K114: 0
A115: =IF(Draw!E114=0,"",Draw!E114) ->  | H115: =IF(B115="","",IF(K115=5,(SUM(C115:G115)-MAX(C115:G115)-MIN(C115:G115))/3,IF(K115=4,(SUM(C115:G115)-MAX(C115:G115))/3,SUM(C115:G115)/3))*B115/7.6) ->  | K115: 0
A116: =IF(Draw!E115=0,"",Draw!E115) ->  | H116: =IF(B116="","",IF(K116=5,(SUM(C116:G116)-MAX(C116:G116)-MIN(C116:G116))/3,IF(K116=4,(SUM(C116:G116)-MAX(C116:G116))/3,SUM(C116:G116)/3))*B116/7.6) ->  | K116: 0
A117: =IF(Draw!E116=0,"",Draw!E116) ->  | H117: =IF(B117="","",IF(K117=5,(SUM(C117:G117)-MAX(C117:G117)-MIN(C117:G117))/3,IF(K117=4,(SUM(C117:G117)-MAX(C117:G117))/3,SUM(C117:G117)/3))*B117/7.6) ->  | K117: 0
A118: =IF(Draw!E117=0,"",Draw!E117) ->  | H118: =IF(B118="","",IF(K118=5,(SUM(C118:G118)-MAX(C118:G118)-MIN(C118:G118))/3,IF(K118=4,(SUM(C118:G118)-MAX(C118:G118))/3,SUM(C118:G118)/3))*B118/7.6) ->  | K118: 0
A119: =IF(Draw!E118=0,"",Draw!E118) ->  | H119: =IF(B119="","",IF(K119=5,(SUM(C119:G119)-MAX(C119:G119)-MIN(C119:G119))/3,IF(K119=4,(SUM(C119:G119)-MAX(C119:G119))/3,SUM(C119:G119)/3))*B119/7.6) ->  | K119: 0
A120: =IF(Draw!E119=0,"",Draw!E119) ->  | H120: =IF(B120="","",IF(K120=5,(SUM(C120:G120)-MAX(C120:G120)-MIN(C120:G120))/3,IF(K120=4,(SUM(C120:G120)-MAX(C120:G120))/3,SUM(C120:G120)/3))*B120/7.6) ->  | K120: 0
A121: =IF(Draw!E120=0,"",Draw!E120) ->  | H121: =IF(B121="","",IF(K121=5,(SUM(C121:G121)-MAX(C121:G121)-MIN(C121:G121))/3,IF(K121=4,(SUM(C121:G121)-MAX(C121:G121))/3,SUM(C121:G121)/3))*B121/7.6) ->  | K121: 0
A122: =IF(Draw!E121=0,"",Draw!E121) ->  | H122: =IF(B122="","",IF(K122=5,(SUM(C122:G122)-MAX(C122:G122)-MIN(C122:G122))/3,IF(K122=4,(SUM(C122:G122)-MAX(C122:G122))/3,SUM(C122:G122)/3))*B122/7.6) ->  | K122: 0
A123: =IF(Draw!E122=0,"",Draw!E122) ->  | H123: =IF(B123="","",IF(K123=5,(SUM(C123:G123)-MAX(C123:G123)-MIN(C123:G123))/3,IF(K123=4,(SUM(C123:G123)-MAX(C123:G123))/3,SUM(C123:G123)/3))*B123/7.6) ->  | K123: 0
A124: =IF(Draw!E123=0,"",Draw!E123) ->  | H124: =IF(B124="","",IF(K124=5,(SUM(C124:G124)-MAX(C124:G124)-MIN(C124:G124))/3,IF(K124=4,(SUM(C124:G124)-MAX(C124:G124))/3,SUM(C124:G124)/3))*B124/7.6) ->  | K124: 0
A125: =IF(Draw!E124=0,"",Draw!E124) ->  | H125: =IF(B125="","",IF(K125=5,(SUM(C125:G125)-MAX(C125:G125)-MIN(C125:G125))/3,IF(K125=4,(SUM(C125:G125)-MAX(C125:G125))/3,SUM(C125:G125)/3))*B125/7.6) ->  | K125: 0
A126: =IF(Draw!E125=0,"",Draw!E125) ->  | H126: =IF(B126="","",IF(K126=5,(SUM(C126:G126)-MAX(C126:G126)-MIN(C126:G126))/3,IF(K126=4,(SUM(C126:G126)-MAX(C126:G126))/3,SUM(C126:G126)/3))*B126/7.6) ->  | K126: 0
A127: =IF(Draw!E126=0,"",Draw!E126) ->  | H127: =IF(B127="","",IF(K127=5,(SUM(C127:G127)-MAX(C127:G127)-MIN(C127:G127))/3,IF(K127=4,(SUM(C127:G127)-MAX(C127:G127))/3,SUM(C127:G127)/3))*B127/7.6) ->  | K127: 0
A128: =IF(Draw!E127=0,"",Draw!E127) ->  | H128: =IF(B128="","",IF(K128=5,(SUM(C128:G128)-MAX(C128:G128)-MIN(C128:G128))/3,IF(K128=4,(SUM(C128:G128)-MAX(C128:G128))/3,SUM(C128:G128)/3))*B128/7.6) ->  | K128: 0
A129: =IF(Draw!E128=0,"",Draw!E128) ->  | H129: =IF(B129="","",IF(K129=5,(SUM(C129:G129)-MAX(C129:G129)-MIN(C129:G129))/3,IF(K129=4,(SUM(C129:G129)-MAX(C129:G129))/3,SUM(C129:G129)/3))*B129/7.6) ->  | K129: 0
A130: =IF(Draw!E129=0,"",Draw!E129) ->  | H130: =IF(B130="","",IF(K130=5,(SUM(C130:G130)-MAX(C130:G130)-MIN(C130:G130))/3,IF(K130=4,(SUM(C130:G130)-MAX(C130:G130))/3,SUM(C130:G130)/3))*B130/7.6) ->  | K130: 0
A131: =IF(Draw!E130=0,"",Draw!E130) ->  | H131: =IF(B131="","",IF(K131=5,(SUM(C131:G131)-MAX(C131:G131)-MIN(C131:G131))/3,IF(K131=4,(SUM(C131:G131)-MAX(C131:G131))/3,SUM(C131:G131)/3))*B131/7.6) ->  | K131: 0
A132: =IF(Draw!E131=0,"",Draw!E131) ->  | H132: =IF(B132="","",IF(K132=5,(SUM(C132:G132)-MAX(C132:G132)-MIN(C132:G132))/3,IF(K132=4,(SUM(C132:G132)-MAX(C132:G132))/3,SUM(C132:G132)/3))*B132/7.6) ->  | K132: =COUNT(C132:G132) -> 0
A133: =IF(Draw!E132=0,"",Draw!E132) ->  | H133: =IF(B133="","",IF(K133=5,(SUM(C133:G133)-MAX(C133:G133)-MIN(C133:G133))/3,IF(K133=4,(SUM(C133:G133)-MAX(C133:G133))/3,SUM(C133:G133)/3))*B133/7.6) ->  | K133: 0
A134: =IF(Draw!E133=0,"",Draw!E133) ->  | H134: =IF(B134="","",IF(K134=5,(SUM(C134:G134)-MAX(C134:G134)-MIN(C134:G134))/3,IF(K134=4,(SUM(C134:G134)-MAX(C134:G134))/3,SUM(C134:G134)/3))*B134/7.6) ->  | K134: 0
A135: =IF(Draw!E134=0,"",Draw!E134) ->  | B135: =IF(A135="","",B$3) ->  | H135: =IF(B135="","",IF(K135=5,(SUM(C135:G135)-MAX(C135:G135)-MIN(C135:G135))/3,IF(K135=4,(SUM(C135:G135)-MAX(C135:G135))/3,SUM(C135:G135)/3))*B135/7.6) ->  | K135: 0
A136: =IF(Draw!E135=0,"",Draw!E135) ->  | H136: =IF(B136="","",IF(K136=5,(SUM(C136:G136)-MAX(C136:G136)-MIN(C136:G136))/3,IF(K136=4,(SUM(C136:G136)-MAX(C136:G136))/3,SUM(C136:G136)/3))*B136/7.6) ->  | K136: 0
A137: =IF(Draw!E136=0,"",Draw!E136) ->  | H137: =IF(B137="","",IF(K137=5,(SUM(C137:G137)-MAX(C137:G137)-MIN(C137:G137))/3,IF(K137=4,(SUM(C137:G137)-MAX(C137:G137))/3,SUM(C137:G137)/3))*B137/7.6) ->  | K137: 0
A138: =IF(Draw!E137=0,"",Draw!E137) ->  | H138: =IF(B138="","",IF(K138=5,(SUM(C138:G138)-MAX(C138:G138)-MIN(C138:G138))/3,IF(K138=4,(SUM(C138:G138)-MAX(C138:G138))/3,SUM(C138:G138)/3))*B138/7.6) ->  | K138: 0
A139: =IF(Draw!E138=0,"",Draw!E138) ->  | H139: =IF(B139="","",IF(K139=5,(SUM(C139:G139)-MAX(C139:G139)-MIN(C139:G139))/3,IF(K139=4,(SUM(C139:G139)-MAX(C139:G139))/3,SUM(C139:G139)/3))*B139/7.6) ->  | K139: 0
A140: =IF(Draw!E139=0,"",Draw!E139) ->  | H140: =IF(B140="","",IF(K140=5,(SUM(C140:G140)-MAX(C140:G140)-MIN(C140:G140))/3,IF(K140=4,(SUM(C140:G140)-MAX(C140:G140))/3,SUM(C140:G140)/3))*B140/7.6) ->  | K140: 0
A141: =IF(Draw!E140=0,"",Draw!E140) ->  | H141: =IF(B141="","",IF(K141=5,(SUM(C141:G141)-MAX(C141:G141)-MIN(C141:G141))/3,IF(K141=4,(SUM(C141:G141)-MAX(C141:G141))/3,SUM(C141:G141)/3))*B141/7.6) ->  | K141: 0
A142: =IF(Draw!E141=0,"",Draw!E141) ->  | H142: =IF(B142="","",IF(K142=5,(SUM(C142:G142)-MAX(C142:G142)-MIN(C142:G142))/3,IF(K142=4,(SUM(C142:G142)-MAX(C142:G142))/3,SUM(C142:G142)/3))*B142/7.6) ->  | K142: 0
A143: =IF(Draw!E142=0,"",Draw!E142) ->  | H143: =IF(B143="","",IF(K143=5,(SUM(C143:G143)-MAX(C143:G143)-MIN(C143:G143))/3,IF(K143=4,(SUM(C143:G143)-MAX(C143:G143))/3,SUM(C143:G143)/3))*B143/7.6) ->  | K143: 0
A144: =IF(Draw!E143=0,"",Draw!E143) ->  | H144: =IF(B144="","",IF(K144=5,(SUM(C144:G144)-MAX(C144:G144)-MIN(C144:G144))/3,IF(K144=4,(SUM(C144:G144)-MAX(C144:G144))/3,SUM(C144:G144)/3))*B144/7.6) ->  | K144: 0
A145: =IF(Draw!E144=0,"",Draw!E144) ->  | H145: =IF(B145="","",IF(K145=5,(SUM(C145:G145)-MAX(C145:G145)-MIN(C145:G145))/3,IF(K145=4,(SUM(C145:G145)-MAX(C145:G145))/3,SUM(C145:G145)/3))*B145/7.6) ->  | K145: 0
A146: =IF(Draw!E145=0,"",Draw!E145) ->  | H146: =IF(B146="","",IF(K146=5,(SUM(C146:G146)-MAX(C146:G146)-MIN(C146:G146))/3,IF(K146=4,(SUM(C146:G146)-MAX(C146:G146))/3,SUM(C146:G146)/3))*B146/7.6) ->  | K146: 0
A147: =IF(Draw!E146=0,"",Draw!E146) ->  | H147: =IF(B147="","",IF(K147=5,(SUM(C147:G147)-MAX(C147:G147)-MIN(C147:G147))/3,IF(K147=4,(SUM(C147:G147)-MAX(C147:G147))/3,SUM(C147:G147)/3))*B147/7.6) ->  | K147: 0
A148: =IF(Draw!E147=0,"",Draw!E147) ->  | H148: =IF(B148="","",IF(K148=5,(SUM(C148:G148)-MAX(C148:G148)-MIN(C148:G148))/3,IF(K148=4,(SUM(C148:G148)-MAX(C148:G148))/3,SUM(C148:G148)/3))*B148/7.6) ->  | K148: 0
A149: =IF(Draw!E148=0,"",Draw!E148) ->  | H149: =IF(B149="","",IF(K149=5,(SUM(C149:G149)-MAX(C149:G149)-MIN(C149:G149))/3,IF(K149=4,(SUM(C149:G149)-MAX(C149:G149))/3,SUM(C149:G149)/3))*B149/7.6) ->  | K149: 0
A150: =IF(Draw!E149=0,"",Draw!E149) ->  | H150: =IF(B150="","",IF(K150=5,(SUM(C150:G150)-MAX(C150:G150)-MIN(C150:G150))/3,IF(K150=4,(SUM(C150:G150)-MAX(C150:G150))/3,SUM(C150:G150)/3))*B150/7.6) ->  | K150: 0

Sheet Fig 3 Tower
B1: Figure #3: | C1: 349 Tower
A2: # | B2: Degree of Difficulty | C2: Judge 1 | D2: Judge 2 | E2: Judge 3 | F2: Judge 4 | G2: Judge 5 | H2: Score | I2: Penalty
A3: =IF(Draw!E2=0,"",Draw!E2) -> 1 | B3: 1.9 | C3: 58 | D3: 61 | E3: 61 | H3: =IF(B3="","",IF(K3=5,(SUM(C3:G3)-MAX(C3:G3)-MIN(C3:G3))/3,IF(K3=4,(SUM(C3:G3)-MAX(C3:G3))/3,SUM(C3:G3)/3))*B3/7.6) -> 15 | K3: =COUNT(C3:G3) -> 3
A4: =IF(Draw!E3=0,"",Draw!E3) -> 2 | B4: =IF(A4="","",B$3) -> 1.9 | C4: 47 | D4: 44 | E4: 42 | H4: =IF(B4="","",IF(K4=5,(SUM(C4:G4)-MAX(C4:G4)-MIN(C4:G4))/3,IF(K4=4,(SUM(C4:G4)-MAX(C4:G4))/3,SUM(C4:G4)/3))*B4/7.6) -> 11.08333333 | K4: =COUNT(C4:G4) -> 3
A5: =IF(Draw!E4=0,"",Draw!E4) -> 3 | B5: =IF(A5="","",B$3) -> 1.9 | C5: 55 | D5: 53 | E5: 56 | H5: =IF(B5="","",IF(K5=5,(SUM(C5:G5)-MAX(C5:G5)-MIN(C5:G5))/3,IF(K5=4,(SUM(C5:G5)-MAX(C5:G5))/3,SUM(C5:G5)/3))*B5/7.6) -> 13.66666667 | K5: 3
A6: =IF(Draw!E5=0,"",Draw!E5) -> 4 | B6: 1.9 | C6: 56 | D6: 55 | E6: 55 | H6: =IF(B6="","",IF(K6=5,(SUM(C6:G6)-MAX(C6:G6)-MIN(C6:G6))/3,IF(K6=4,(SUM(C6:G6)-MAX(C6:G6))/3,SUM(C6:G6)/3))*B6/7.6) -> 13.83333333 | K6: 3
A7: =IF(Draw!E6=0,"",Draw!E6) -> 5 | B7: =IF(A7="","",B$3) -> 1.9 | C7: 57 | D7: 63 | E7: 65 | H7: =IF(B7="","",IF(K7=5,(SUM(C7:G7)-MAX(C7:G7)-MIN(C7:G7))/3,IF(K7=4,(SUM(C7:G7)-MAX(C7:G7))/3,SUM(C7:G7)/3))*B7/7.6) -> 15.41666667 | K7: 3
A8: =IF(Draw!E7=0,"",Draw!E7) -> 6 | B8: 1.9 | C8: 55 | D8: 61 | E8: 61 | H8: =IF(B8="","",IF(K8=5,(SUM(C8:G8)-MAX(C8:G8)-MIN(C8:G8))/3,IF(K8=4,(SUM(C8:G8)-MAX(C8:G8))/3,SUM(C8:G8)/3))*B8/7.6) -> 14.75 | K8: 3
A9: =IF(Draw!E8=0,"",Draw!E8) -> 7 | B9: 1.9 | C9: 56 | D9: 56 | E9: 55 | H9: =IF(B9="","",IF(K9=5,(SUM(C9:G9)-MAX(C9:G9)-MIN(C9:G9))/3,IF(K9=4,(SUM(C9:G9)-MAX(C9:G9))/3,SUM(C9:G9)/3))*B9/7.6) -> 13.91666667 | K9: 3
A10: =IF(Draw!E9=0,"",Draw!E9) -> 8 | B10: 1.9 | C10: 59 | D10: 57 | E10: 55 | H10: =IF(B10="","",IF(K10=5,(SUM(C10:G10)-MAX(C10:G10)-MIN(C10:G10))/3,IF(K10=4,(SUM(C10:G10)-MAX(C10:G10))/3,SUM(C10:G10)/3))*B10/7.6) -> 14.25 | K10: 3
A11: =IF(Draw!E10=0,"",Draw!E10) -> 9 | B11: 1.9 | C11: 60 | D11: 59 | E11: 59 | H11: =IF(B11="","",IF(K11=5,(SUM(C11:G11)-MAX(C11:G11)-MIN(C11:G11))/3,IF(K11=4,(SUM(C11:G11)-MAX(C11:G11))/3,SUM(C11:G11)/3))*B11/7.6) -> 14.83333333 | K11: 3
A12: =IF(Draw!E11=0,"",Draw!E11) -> 10 | B12: 1.9 | C12: 56 | D12: 56 | E12: 54 | H12: =IF(B12="","",IF(K12=5,(SUM(C12:G12)-MAX(C12:G12)-MIN(C12:G12))/3,IF(K12=4,(SUM(C12:G12)-MAX(C12:G12))/3,SUM(C12:G12)/3))*B12/7.6) -> 13.83333333 | K12: 3
A13: =IF(Draw!E12=0,"",Draw!E12) -> 11 | B13: 1.9 | C13: 60 | D13: 61 | E13: 61 | H13: =IF(B13="","",IF(K13=5,(SUM(C13:G13)-MAX(C13:G13)-MIN(C13:G13))/3,IF(K13=4,(SUM(C13:G13)-MAX(C13:G13))/3,SUM(C13:G13)/3))*B13/7.6) -> 15.16666667 | K13: 3
A14: =IF(Draw!E13=0,"",Draw!E13) -> 12 | B14: 1.9 | C14: 54 | D14: 57 | E14: 56 | H14: =IF(B14="","",IF(K14=5,(SUM(C14:G14)-MAX(C14:G14)-MIN(C14:G14))/3,IF(K14=4,(SUM(C14:G14)-MAX(C14:G14))/3,SUM(C14:G14)/3))*B14/7.6) -> 13.91666667 | K14: 3
A15: =IF(Draw!E14=0,"",Draw!E14) -> 13 | B15: 1.9 | C15: 54 | D15: 54 | E15: 53 | H15: =IF(B15="","",IF(K15=5,(SUM(C15:G15)-MAX(C15:G15)-MIN(C15:G15))/3,IF(K15=4,(SUM(C15:G15)-MAX(C15:G15))/3,SUM(C15:G15)/3))*B15/7.6) -> 13.41666667 | K15: 3
A16: =IF(Draw!E15=0,"",Draw!E15) -> 14 | B16: 1.9 | C16: 55 | D16: 56 | E16: 55 | H16: =IF(B16="","",IF(K16=5,(SUM(C16:G16)-MAX(C16:G16)-MIN(C16:G16))/3,IF(K16=4,(SUM(C16:G16)-MAX(C16:G16))/3,SUM(C16:G16)/3))*B16/7.6) -> 13.83333333 | K16: 3
A17: =IF(Draw!E16=0,"",Draw!E16) -> 15 | B17: 1.9 | C17: 57 | D17: 59 | E17: 60 | H17: =IF(B17="","",IF(K17=5,(SUM(C17:G17)-MAX(C17:G17)-MIN(C17:G17))/3,IF(K17=4,(SUM(C17:G17)-MAX(C17:G17))/3,SUM(C17:G17)/3))*B17/7.6) -> 14.66666667 | K17: 3
A18: =IF(Draw!E17=0,"",Draw!E17) -> 16 | B18: 1.9 | C18: 56 | D18: 57 | E18: 59 | H18: =IF(B18="","",IF(K18=5,(SUM(C18:G18)-MAX(C18:G18)-MIN(C18:G18))/3,IF(K18=4,(SUM(C18:G18)-MAX(C18:G18))/3,SUM(C18:G18)/3))*B18/7.6) -> 14.33333333 | K18: 3
A19: =IF(Draw!E18=0,"",Draw!E18) -> 17 | B19: 1.9 | C19: 51 | D19: 48 | E19: 53 | H19: =IF(B19="","",IF(K19=5,(SUM(C19:G19)-MAX(C19:G19)-MIN(C19:G19))/3,IF(K19=4,(SUM(C19:G19)-MAX(C19:G19))/3,SUM(C19:G19)/3))*B19/7.6) -> 12.66666667 | K19: 3
A20: =IF(Draw!E19=0,"",Draw!E19) -> 18 | B20: 1.9 | C20: 58 | D20: 59 | E20: 55 | H20: =IF(B20="","",IF(K20=5,(SUM(C20:G20)-MAX(C20:G20)-MIN(C20:G20))/3,IF(K20=4,(SUM(C20:G20)-MAX(C20:G20))/3,SUM(C20:G20)/3))*B20/7.6) -> 14.33333333 | K20: 3
A21: =IF(Draw!E20=0,"",Draw!E20) -> 19 | B21: 1.9 | C21: 52 | D21: 56 | E21: 50 | H21: =IF(B21="","",IF(K21=5,(SUM(C21:G21)-MAX(C21:G21)-MIN(C21:G21))/3,IF(K21=4,(SUM(C21:G21)-MAX(C21:G21))/3,SUM(C21:G21)/3))*B21/7.6) -> 13.16666667 | K21: 3
A22: =IF(Draw!E21=0,"",Draw!E21) -> 20 | B22: 1.9 | C22: 64 | D22: 65 | E22: 68 | H22: =IF(B22="","",IF(K22=5,(SUM(C22:G22)-MAX(C22:G22)-MIN(C22:G22))/3,IF(K22=4,(SUM(C22:G22)-MAX(C22:G22))/3,SUM(C22:G22)/3))*B22/7.6) -> 16.41666667 | K22: 3
A23: =IF(Draw!E22=0,"",Draw!E22) -> 21 | B23: 1.9 | C23: 47 | D23: 55 | E23: 54 | H23: =IF(B23="","",IF(K23=5,(SUM(C23:G23)-MAX(C23:G23)-MIN(C23:G23))/3,IF(K23=4,(SUM(C23:G23)-MAX(C23:G23))/3,SUM(C23:G23)/3))*B23/7.6) -> 13 | K23: 3
A24: =IF(Draw!E23=0,"",Draw!E23) -> 22 | B24: 1.9 | C24: 53 | D24: 54 | E24: 56 | H24: =IF(B24="","",IF(K24=5,(SUM(C24:G24)-MAX(C24:G24)-MIN(C24:G24))/3,IF(K24=4,(SUM(C24:G24)-MAX(C24:G24))/3,SUM(C24:G24)/3))*B24/7.6) -> 13.58333333 | K24: 3
A25: =IF(Draw!E24=0,"",Draw!E24) -> 23 | B25: 1.9 | C25: 52 | D25: 50 | E25: 52 | H25: =IF(B25="","",IF(K25=5,(SUM(C25:G25)-MAX(C25:G25)-MIN(C25:G25))/3,IF(K25=4,(SUM(C25:G25)-MAX(C25:G25))/3,SUM(C25:G25)/3))*B25/7.6) -> 12.83333333 | K25: 3
A26: =IF(Draw!E25=0,"",Draw!E25) -> 24 | B26: 1.9 | C26: 54 | D26: 48 | E26: 50 | H26: =IF(B26="","",IF(K26=5,(SUM(C26:G26)-MAX(C26:G26)-MIN(C26:G26))/3,IF(K26=4,(SUM(C26:G26)-MAX(C26:G26))/3,SUM(C26:G26)/3))*B26/7.6) -> 12.66666667 | K26: 3
A27: =IF(Draw!E26=0,"",Draw!E26) -> 25 | B27: 1.9 | C27: 46 | D27: 41 | E27: 42 | H27: =IF(B27="","",IF(K27=5,(SUM(C27:G27)-MAX(C27:G27)-MIN(C27:G27))/3,IF(K27=4,(SUM(C27:G27)-MAX(C27:G27))/3,SUM(C27:G27)/3))*B27/7.6) -> 10.75 | K27: 3
A28: =IF(Draw!E27=0,"",Draw!E27) -> 26 | B28: 1.9 | C28: 54 | D28: 47 | E28: 51 | H28: =IF(B28="","",IF(K28=5,(SUM(C28:G28)-MAX(C28:G28)-MIN(C28:G28))/3,IF(K28=4,(SUM(C28:G28)-MAX(C28:G28))/3,SUM(C28:G28)/3))*B28/7.6) -> 12.66666667 | K28: 3
A29: =IF(Draw!E28=0,"",Draw!E28) -> 27 | B29: 1.9 | C29: 55 | D29: 51 | E29: 52 | H29: =IF(B29="","",IF(K29=5,(SUM(C29:G29)-MAX(C29:G29)-MIN(C29:G29))/3,IF(K29=4,(SUM(C29:G29)-MAX(C29:G29))/3,SUM(C29:G29)/3))*B29/7.6) -> 13.16666667 | K29: 3
A30: =IF(Draw!E29=0,"",Draw!E29) -> 28 | B30: 1.9 | C30: 51 | D30: 46 | E30: 49 | H30: =IF(B30="","",IF(K30=5,(SUM(C30:G30)-MAX(C30:G30)-MIN(C30:G30))/3,IF(K30=4,(SUM(C30:G30)-MAX(C30:G30))/3,SUM(C30:G30)/3))*B30/7.6) -> 12.16666667 | K30: 3
A31: =IF(Draw!E30=0,"",Draw!E30) -> 29 | B31: 1.9 | C31: 62 | D31: 64 | E31: 61 | H31: =IF(B31="","",IF(K31=5,(SUM(C31:G31)-MAX(C31:G31)-MIN(C31:G31))/3,IF(K31=4,(SUM(C31:G31)-MAX(C31:G31))/3,SUM(C31:G31)/3))*B31/7.6) -> 15.58333333 | K31: 3
A32: =IF(Draw!E31=0,"",Draw!E31) -> 30 | B32: 1.9 | C32: 47 | D32: 51 | E32: 50 | H32: =IF(B32="","",IF(K32=5,(SUM(C32:G32)-MAX(C32:G32)-MIN(C32:G32))/3,IF(K32=4,(SUM(C32:G32)-MAX(C32:G32))/3,SUM(C32:G32)/3))*B32/7.6) -> 12.33333333 | K32: 3
A33: =IF(Draw!E32=0,"",Draw!E32) -> 31 | B33: 1.9 | C33: 54 | D33: 53 | E33: 51 | H33: =IF(B33="","",IF(K33=5,(SUM(C33:G33)-MAX(C33:G33)-MIN(C33:G33))/3,IF(K33=4,(SUM(C33:G33)-MAX(C33:G33))/3,SUM(C33:G33)/3))*B33/7.6) -> 13.16666667 | K33: 3
A34: =IF(Draw!E33=0,"",Draw!E33) -> 32 | B34: 1.9 | C34: 56 | D34: 54 | E34: 56 | H34: =IF(B34="","",IF(K34=5,(SUM(C34:G34)-MAX(C34:G34)-MIN(C34:G34))/3,IF(K34=4,(SUM(C34:G34)-MAX(C34:G34))/3,SUM(C34:G34)/3))*B34/7.6) -> 13.83333333 | K34: 3
A35: =IF(Draw!E34=0,"",Draw!E34) -> 33 | B35: 1.9 | C35: 58 | D35: 62 | E35: 60 | H35: =IF(B35="","",IF(K35=5,(SUM(C35:G35)-MAX(C35:G35)-MIN(C35:G35))/3,IF(K35=4,(SUM(C35:G35)-MAX(C35:G35))/3,SUM(C35:G35)/3))*B35/7.6) -> 15 | K35: 3
A36: =IF(Draw!E35=0,"",Draw!E35) -> 34 | B36: 1.9 | C36: 57 | D36: 57 | E36: 60 | H36: =IF(B36="","",IF(K36=5,(SUM(C36:G36)-MAX(C36:G36)-MIN(C36:G36))/3,IF(K36=4,(SUM(C36:G36)-MAX(C36:G36))/3,SUM(C36:G36)/3))*B36/7.6) -> 14.5 | K36: 3
A37: =IF(Draw!E36=0,"",Draw!E36) -> 35 | B37: 1.9 | C37: 0 | D37: 0 | E37: 0 | F37: 0 | G37: 0 | H37: =IF(B37="","",IF(K37=5,(SUM(C37:G37)-MAX(C37:G37)-MIN(C37:G37))/3,IF(K37=4,(SUM(C37:G37)-MAX(C37:G37))/3,SUM(C37:G37)/3))*B37/7.6) -> 0 | K37: 5
A38: =IF(Draw!E37=0,"",Draw!E37) -> 36 | B38: 1.9 | C38: 53 | D38: 49 | E38: 54 | H38: =IF(B38="","",IF(K38=5,(SUM(C38:G38)-MAX(C38:G38)-MIN(C38:G38))/3,IF(K38=4,(SUM(C38:G38)-MAX(C38:G38))/3,SUM(C38:G38)/3))*B38/7.6) -> 13 | K38: 3
A39: =IF(Draw!E38=0,"",Draw!E38) -> 37 | B39: 1.9 | C39: 54 | D39: 55 | E39: 55 | H39: =IF(B39="","",IF(K39=5,(SUM(C39:G39)-MAX(C39:G39)-MIN(C39:G39))/3,IF(K39=4,(SUM(C39:G39)-MAX(C39:G39))/3,SUM(C39:G39)/3))*B39/7.6) -> 13.66666667 | K39: 3
A40: =IF(Draw!E39=0,"",Draw!E39) -> 38 | B40: 1.9 | C40: 55 | D40: 56 | E40: 60 | H40: =IF(B40="","",IF(K40=5,(SUM(C40:G40)-MAX(C40:G40)-MIN(C40:G40))/3,IF(K40=4,(SUM(C40:G40)-MAX(C40:G40))/3,SUM(C40:G40)/3))*B40/7.6) -> 14.25 | K40: 3
A41: =IF(Draw!E40=0,"",Draw!E40) -> 39 | B41: 1.9 | C41: 0 | D41: 0 | E41: 0 | F41: 0 | G41: 0 | H41: =IF(B41="","",IF(K41=5,(SUM(C41:G41)-MAX(C41:G41)-MIN(C41:G41))/3,IF(K41=4,(SUM(C41:G41)-MAX(C41:G41))/3,SUM(C41:G41)/3))*B41/7.6) -> 0 | K41: 5
A42: =IF(Draw!E41=0,"",Draw!E41) -> 40 | B42: 1.9 | C42: 51 | D42: 53 | E42: 52 | H42: =IF(B42="","",IF(K42=5,(SUM(C42:G42)-MAX(C42:G42)-MIN(C42:G42))/3,IF(K42=4,(SUM(C42:G42)-MAX(C42:G42))/3,SUM(C42:G42)/3))*B42/7.6) -> 13 | K42: 3
A43: =IF(Draw!E42=0,"",Draw!E42) -> 41 | B43: 1.9 | C43: 48 | D43: 52 | E43: 53 | H43: =IF(B43="","",IF(K43=5,(SUM(C43:G43)-MAX(C43:G43)-MIN(C43:G43))/3,IF(K43=4,(SUM(C43:G43)-MAX(C43:G43))/3,SUM(C43:G43)/3))*B43/7.6) -> 12.75 | K43: 3
A44: =IF(Draw!E43=0,"",Draw!E43) -> 42 | B44: 1.9 | C44: 54 | D44: 56 | E44: 59 | H44: =IF(B44="","",IF(K44=5,(SUM(C44:G44)-MAX(C44:G44)-MIN(C44:G44))/3,IF(K44=4,(SUM(C44:G44)-MAX(C44:G44))/3,SUM(C44:G44)/3))*B44/7.6) -> 14.08333333 | K44: 3
A45: =IF(Draw!E44=0,"",Draw!E44) -> 43 | B45: 1.9 | C45: 50 | D45: 47 | E45: 46 | H45: =IF(B45="","",IF(K45=5,(SUM(C45:G45)-MAX(C45:G45)-MIN(C45:G45))/3,IF(K45=4,(SUM(C45:G45)-MAX(C45:G45))/3,SUM(C45:G45)/3))*B45/7.6) -> 11.91666667 | K45: 3
A46: =IF(Draw!E45=0,"",Draw!E45) -> 44 | B46: 1.9 | C46: 56 | D46: 58 | E46: 59 | H46: =IF(B46="","",IF(K46=5,(SUM(C46:G46)-MAX(C46:G46)-MIN(C46:G46))/3,IF(K46=4,(SUM(C46:G46)-MAX(C46:G46))/3,SUM(C46:G46)/3))*B46/7.6) -> 14.41666667 | K46: 3
A47: =IF(Draw!E46=0,"",Draw!E46) -> 45 | B47: 1.9 | C47: 49 | D47: 46 | E47: 46 | H47: =IF(B47="","",IF(K47=5,(SUM(C47:G47)-MAX(C47:G47)-MIN(C47:G47))/3,IF(K47=4,(SUM(C47:G47)-MAX(C47:G47))/3,SUM(C47:G47)/3))*B47/7.6) -> 11.75 | K47: 3
A48: =IF(Draw!E47=0,"",Draw!E47) -> 46 | B48: 1.9 | C48: 53 | D48: 57 | E48: 58 | H48: =IF(B48="","",IF(K48=5,(SUM(C48:G48)-MAX(C48:G48)-MIN(C48:G48))/3,IF(K48=4,(SUM(C48:G48)-MAX(C48:G48))/3,SUM(C48:G48)/3))*B48/7.6) -> 14 | K48: 3
A49: =IF(Draw!E48=0,"",Draw!E48) -> 47 | B49: 1.9 | C49: 52 | D49: 54 | E49: 54 | H49: =IF(B49="","",IF(K49=5,(SUM(C49:G49)-MAX(C49:G49)-MIN(C49:G49))/3,IF(K49=4,(SUM(C49:G49)-MAX(C49:G49))/3,SUM(C49:G49)/3))*B49/7.6) -> 13.33333333 | K49: 3
A50: =IF(Draw!E49=0,"",Draw!E49) -> 48 | B50: 1.9 | C50: 57 | D50: 57 | E50: 58 | H50: =IF(B50="","",IF(K50=5,(SUM(C50:G50)-MAX(C50:G50)-MIN(C50:G50))/3,IF(K50=4,(SUM(C50:G50)-MAX(C50:G50))/3,SUM(C50:G50)/3))*B50/7.6) -> 14.33333333 | K50: 3
A51: =IF(Draw!E50=0,"",Draw!E50) -> 49 | B51: 1.9 | C51: 0 | D51: 0 | E51: 0 | F51: 0 | G51: 0 | H51: =IF(B51="","",IF(K51=5,(SUM(C51:G51)-MAX(C51:G51)-MIN(C51:G51))/3,IF(K51=4,(SUM(C51:G51)-MAX(C51:G51))/3,SUM(C51:G51)/3))*B51/7.6) -> 0 | K51: 5
A52: =IF(Draw!E51=0,"",Draw!E51) -> 50 | B52: 1.9 | C52: 48 | D52: 50 | E52: 47 | H52: =IF(B52="","",IF(K52=5,(SUM(C52:G52)-MAX(C52:G52)-MIN(C52:G52))/3,IF(K52=4,(SUM(C52:G52)-MAX(C52:G52))/3,SUM(C52:G52)/3))*B52/7.6) -> 12.08333333 | K52: 3
A53: =IF(Draw!E52=0,"",Draw!E52) -> 51 | B53: 1.9 | C53: 54 | D53: 50 | E53: 53 | H53: =IF(B53="","",IF(K53=5,(SUM(C53:G53)-MAX(C53:G53)-MIN(C53:G53))/3,IF(K53=4,(SUM(C53:G53)-MAX(C53:G53))/3,SUM(C53:G53)/3))*B53/7.6) -> 13.08333333 | K53: 3
A54: =IF(Draw!E53=0,"",Draw!E53) -> 52 | B54: 1.9 | C54: 58 | D54: 56 | E54: 60 | H54: =IF(B54="","",IF(K54=5,(SUM(C54:G54)-MAX(C54:G54)-MIN(C54:G54))/3,IF(K54=4,(SUM(C54:G54)-MAX(C54:G54))/3,SUM(C54:G54)/3))*B54/7.6) -> 14.5 | K54: 3
A55: =IF(Draw!E54=0,"",Draw!E54) -> 53 | B55: 1.9 | C55: 51 | D55: 48 | E55: 53 | H55: =IF(B55="","",IF(K55=5,(SUM(C55:G55)-MAX(C55:G55)-MIN(C55:G55))/3,IF(K55=4,(SUM(C55:G55)-MAX(C55:G55))/3,SUM(C55:G55)/3))*B55/7.6) -> 12.66666667 | K55: 3
A56: =IF(Draw!E55=0,"",Draw!E55) -> 54 | B56: 1.9 | C56: 59 | D56: 55 | E56: 59 | H56: =IF(B56="","",IF(K56=5,(SUM(C56:G56)-MAX(C56:G56)-MIN(C56:G56))/3,IF(K56=4,(SUM(C56:G56)-MAX(C56:G56))/3,SUM(C56:G56)/3))*B56/7.6) -> 14.41666667 | K56: 3
A57: =IF(Draw!E56=0,"",Draw!E56) -> 55 | B57: 1.9 | C57: 63 | D57: 62 | E57: 67 | H57: =IF(B57="","",IF(K57=5,(SUM(C57:G57)-MAX(C57:G57)-MIN(C57:G57))/3,IF(K57=4,(SUM(C57:G57)-MAX(C57:G57))/3,SUM(C57:G57)/3))*B57/7.6) -> 16 | K57: 3
A58: =IF(Draw!E57=0,"",Draw!E57) -> 56 | B58: 1.9 | C58: 60 | D58: 65 | E58: 66 | H58: =IF(B58="","",IF(K58=5,(SUM(C58:G58)-MAX(C58:G58)-MIN(C58:G58))/3,IF(K58=4,(SUM(C58:G58)-MAX(C58:G58))/3,SUM(C58:G58)/3))*B58/7.6) -> 15.91666667 | K58: 3
A59: =IF(Draw!E58=0,"",Draw!E58) -> 57 | B59: 1.9 | C59: 48 | D59: 46 | E59: 47 | H59: =IF(B59="","",IF(K59=5,(SUM(C59:G59)-MAX(C59:G59)-MIN(C59:G59))/3,IF(K59=4,(SUM(C59:G59)-MAX(C59:G59))/3,SUM(C59:G59)/3))*B59/7.6) -> 11.75 | K59: 3
A60: =IF(Draw!E59=0,"",Draw!E59) -> 58 | B60: 1.9 | C60: 57 | D60: 57 | E60: 60 | H60: =IF(B60="","",IF(K60=5,(SUM(C60:G60)-MAX(C60:G60)-MIN(C60:G60))/3,IF(K60=4,(SUM(C60:G60)-MAX(C60:G60))/3,SUM(C60:G60)/3))*B60/7.6) -> 14.5 | K60: 3
A61: =IF(Draw!E60=0,"",Draw!E60) ->  | H61: =IF(B61="","",IF(K61=5,(SUM(C61:G61)-MAX(C61:G61)-MIN(C61:G61))/3,IF(K61=4,(SUM(C61:G61)-MAX(C61:G61))/3,SUM(C61:G61)/3))*B61/7.6) ->  | K61: 0
A62: =IF(Draw!E61=0,"",Draw!E61) ->  | H62: =IF(B62="","",IF(K62=5,(SUM(C62:G62)-MAX(C62:G62)-MIN(C62:G62))/3,IF(K62=4,(SUM(C62:G62)-MAX(C62:G62))/3,SUM(C62:G62)/3))*B62/7.6) ->  | K62: 0
A63: =IF(Draw!E62=0,"",Draw!E62) ->  | H63: =IF(B63="","",IF(K63=5,(SUM(C63:G63)-MAX(C63:G63)-MIN(C63:G63))/3,IF(K63=4,(SUM(C63:G63)-MAX(C63:G63))/3,SUM(C63:G63)/3))*B63/7.6) ->  | K63: 0
A64: =IF(Draw!E63=0,"",Draw!E63) ->  | H64: =IF(B64="","",IF(K64=5,(SUM(C64:G64)-MAX(C64:G64)-MIN(C64:G64))/3,IF(K64=4,(SUM(C64:G64)-MAX(C64:G64))/3,SUM(C64:G64)/3))*B64/7.6) ->  | K64: 0
A65: =IF(Draw!E64=0,"",Draw!E64) ->  | H65: =IF(B65="","",IF(K65=5,(SUM(C65:G65)-MAX(C65:G65)-MIN(C65:G65))/3,IF(K65=4,(SUM(C65:G65)-MAX(C65:G65))/3,SUM(C65:G65)/3))*B65/7.6) ->  | K65: 0
A66: =IF(Draw!E65=0,"",Draw!E65) ->  | H66: =IF(B66="","",IF(K66=5,(SUM(C66:G66)-MAX(C66:G66)-MIN(C66:G66))/3,IF(K66=4,(SUM(C66:G66)-MAX(C66:G66))/3,SUM(C66:G66)/3))*B66/7.6) ->  | K66: 0
A67: =IF(Draw!E66=0,"",Draw!E66) ->  | H67: =IF(B67="","",IF(K67=5,(SUM(C67:G67)-MAX(C67:G67)-MIN(C67:G67))/3,IF(K67=4,(SUM(C67:G67)-MAX(C67:G67))/3,SUM(C67:G67)/3))*B67/7.6) ->  | K67: 0
A68: =IF(Draw!E67=0,"",Draw!E67) ->  | H68: =IF(B68="","",IF(K68=5,(SUM(C68:G68)-MAX(C68:G68)-MIN(C68:G68))/3,IF(K68=4,(SUM(C68:G68)-MAX(C68:G68))/3,SUM(C68:G68)/3))*B68/7.6) ->  | K68: =COUNT(C68:G68) -> 0
A69: =IF(Draw!E68=0,"",Draw!E68) ->  | H69: =IF(B69="","",IF(K69=5,(SUM(C69:G69)-MAX(C69:G69)-MIN(C69:G69))/3,IF(K69=4,(SUM(C69:G69)-MAX(C69:G69))/3,SUM(C69:G69)/3))*B69/7.6) ->  | K69: 0
A70: =IF(Draw!E69=0,"",Draw!E69) ->  | H70: =IF(B70="","",IF(K70=5,(SUM(C70:G70)-MAX(C70:G70)-MIN(C70:G70))/3,IF(K70=4,(SUM(C70:G70)-MAX(C70:G70))/3,SUM(C70:G70)/3))*B70/7.6) ->  | K70: 0
A71: =IF(Draw!E70=0,"",Draw!E70) ->  | B71: =IF(A71="","",B$3) ->  | H71: =IF(B71="","",IF(K71=5,(SUM(C71:G71)-MAX(C71:G71)-MIN(C71:G71))/3,IF(K71=4,(SUM(C71:G71)-MAX(C71:G71))/3,SUM(C71:G71)/3))*B71/7.6) ->  | K71: 0
A72: =IF(Draw!E71=0,"",Draw!E71) ->  | H72: =IF(B72="","",IF(K72=5,(SUM(C72:G72)-MAX(C72:G72)-MIN(C72:G72))/3,IF(K72=4,(SUM(C72:G72)-MAX(C72:G72))/3,SUM(C72:G72)/3))*B72/7.6) ->  | K72: 0
A73: =IF(Draw!E72=0,"",Draw!E72) ->  | H73: =IF(B73="","",IF(K73=5,(SUM(C73:G73)-MAX(C73:G73)-MIN(C73:G73))/3,IF(K73=4,(SUM(C73:G73)-MAX(C73:G73))/3,SUM(C73:G73)/3))*B73/7.6) ->  | K73: 0
A74: =IF(Draw!E73=0,"",Draw!E73) ->  | H74: =IF(B74="","",IF(K74=5,(SUM(C74:G74)-MAX(C74:G74)-MIN(C74:G74))/3,IF(K74=4,(SUM(C74:G74)-MAX(C74:G74))/3,SUM(C74:G74)/3))*B74/7.6) ->  | K74: 0
A75: =IF(Draw!E74=0,"",Draw!E74) ->  | H75: =IF(B75="","",IF(K75=5,(SUM(C75:G75)-MAX(C75:G75)-MIN(C75:G75))/3,IF(K75=4,(SUM(C75:G75)-MAX(C75:G75))/3,SUM(C75:G75)/3))*B75/7.6) ->  | K75: 0
A76: =IF(Draw!E75=0,"",Draw!E75) ->  | H76: =IF(B76="","",IF(K76=5,(SUM(C76:G76)-MAX(C76:G76)-MIN(C76:G76))/3,IF(K76=4,(SUM(C76:G76)-MAX(C76:G76))/3,SUM(C76:G76)/3))*B76/7.6) ->  | K76: 0
A77: =IF(Draw!E76=0,"",Draw!E76) ->  | H77: =IF(B77="","",IF(K77=5,(SUM(C77:G77)-MAX(C77:G77)-MIN(C77:G77))/3,IF(K77=4,(SUM(C77:G77)-MAX(C77:G77))/3,SUM(C77:G77)/3))*B77/7.6) ->  | K77: 0
A78: =IF(Draw!E77=0,"",Draw!E77) ->  | H78: =IF(B78="","",IF(K78=5,(SUM(C78:G78)-MAX(C78:G78)-MIN(C78:G78))/3,IF(K78=4,(SUM(C78:G78)-MAX(C78:G78))/3,SUM(C78:G78)/3))*B78/7.6) ->  | K78: 0
A79: =IF(Draw!E78=0,"",Draw!E78) ->  | H79: =IF(B79="","",IF(K79=5,(SUM(C79:G79)-MAX(C79:G79)-MIN(C79:G79))/3,IF(K79=4,(SUM(C79:G79)-MAX(C79:G79))/3,SUM(C79:G79)/3))*B79/7.6) ->  | K79: 0
A80: =IF(Draw!E79=0,"",Draw!E79) ->  | H80: =IF(B80="","",IF(K80=5,(SUM(C80:G80)-MAX(C80:G80)-MIN(C80:G80))/3,IF(K80=4,(SUM(C80:G80)-MAX(C80:G80))/3,SUM(C80:G80)/3))*B80/7.6) ->  | K80: 0
A81: =IF(Draw!E80=0,"",Draw!E80) ->  | H81: =IF(B81="","",IF(K81=5,(SUM(C81:G81)-MAX(C81:G81)-MIN(C81:G81))/3,IF(K81=4,(SUM(C81:G81)-MAX(C81:G81))/3,SUM(C81:G81)/3))*B81/7.6) ->  | K81: 0
A82: =IF(Draw!E81=0,"",Draw!E81) ->  | H82: =IF(B82="","",IF(K82=5,(SUM(C82:G82)-MAX(C82:G82)-MIN(C82:G82))/3,IF(K82=4,(SUM(C82:G82)-MAX(C82:G82))/3,SUM(C82:G82)/3))*B82/7.6) ->  | K82: 0
A83: =IF(Draw!E82=0,"",Draw!E82) ->  | H83: =IF(B83="","",IF(K83=5,(SUM(C83:G83)-MAX(C83:G83)-MIN(C83:G83))/3,IF(K83=4,(SUM(C83:G83)-MAX(C83:G83))/3,SUM(C83:G83)/3))*B83/7.6) ->  | K83: 0
A84: =IF(Draw!E83=0,"",Draw!E83) ->  | H84: =IF(B84="","",IF(K84=5,(SUM(C84:G84)-MAX(C84:G84)-MIN(C84:G84))/3,IF(K84=4,(SUM(C84:G84)-MAX(C84:G84))/3,SUM(C84:G84)/3))*B84/7.6) ->  | K84: 0
A85: =IF(Draw!E84=0,"",Draw!E84) ->  | H85: =IF(B85="","",IF(K85=5,(SUM(C85:G85)-MAX(C85:G85)-MIN(C85:G85))/3,IF(K85=4,(SUM(C85:G85)-MAX(C85:G85))/3,SUM(C85:G85)/3))*B85/7.6) ->  | K85: 0
A86: =IF(Draw!E85=0,"",Draw!E85) ->  | H86: =IF(B86="","",IF(K86=5,(SUM(C86:G86)-MAX(C86:G86)-MIN(C86:G86))/3,IF(K86=4,(SUM(C86:G86)-MAX(C86:G86))/3,SUM(C86:G86)/3))*B86/7.6) ->  | K86: 0
A87: =IF(Draw!E86=0,"",Draw!E86) ->  | H87: =IF(B87="","",IF(K87=5,(SUM(C87:G87)-MAX(C87:G87)-MIN(C87:G87))/3,IF(K87=4,(SUM(C87:G87)-MAX(C87:G87))/3,SUM(C87:G87)/3))*B87/7.6) ->  | K87: 0
A88: =IF(Draw!E87=0,"",Draw!E87) ->  | H88: =IF(B88="","",IF(K88=5,(SUM(C88:G88)-MAX(C88:G88)-MIN(C88:G88))/3,IF(K88=4,(SUM(C88:G88)-MAX(C88:G88))/3,SUM(C88:G88)/3))*B88/7.6) ->  | K88: 0
A89: =IF(Draw!E88=0,"",Draw!E88) ->  | H89: =IF(B89="","",IF(K89=5,(SUM(C89:G89)-MAX(C89:G89)-MIN(C89:G89))/3,IF(K89=4,(SUM(C89:G89)-MAX(C89:G89))/3,SUM(C89:G89)/3))*B89/7.6) ->  | K89: 0
A90: =IF(Draw!E89=0,"",Draw!E89) ->  | H90: =IF(B90="","",IF(K90=5,(SUM(C90:G90)-MAX(C90:G90)-MIN(C90:G90))/3,IF(K90=4,(SUM(C90:G90)-MAX(C90:G90))/3,SUM(C90:G90)/3))*B90/7.6) ->  | K90: 0
A91: =IF(Draw!E90=0,"",Draw!E90) ->  | H91: =IF(B91="","",IF(K91=5,(SUM(C91:G91)-MAX(C91:G91)-MIN(C91:G91))/3,IF(K91=4,(SUM(C91:G91)-MAX(C91:G91))/3,SUM(C91:G91)/3))*B91/7.6) ->  | K91: 0
A92: =IF(Draw!E91=0,"",Draw!E91) ->  | H92: =IF(B92="","",IF(K92=5,(SUM(C92:G92)-MAX(C92:G92)-MIN(C92:G92))/3,IF(K92=4,(SUM(C92:G92)-MAX(C92:G92))/3,SUM(C92:G92)/3))*B92/7.6) ->  | K92: 0
A93: =IF(Draw!E92=0,"",Draw!E92) ->  | H93: =IF(B93="","",IF(K93=5,(SUM(C93:G93)-MAX(C93:G93)-MIN(C93:G93))/3,IF(K93=4,(SUM(C93:G93)-MAX(C93:G93))/3,SUM(C93:G93)/3))*B93/7.6) ->  | K93: 0
A94: =IF(Draw!E93=0,"",Draw!E93) ->  | H94: =IF(B94="","",IF(K94=5,(SUM(C94:G94)-MAX(C94:G94)-MIN(C94:G94))/3,IF(K94=4,(SUM(C94:G94)-MAX(C94:G94))/3,SUM(C94:G94)/3))*B94/7.6) ->  | K94: 0
A95: =IF(Draw!E94=0,"",Draw!E94) ->  | H95: =IF(B95="","",IF(K95=5,(SUM(C95:G95)-MAX(C95:G95)-MIN(C95:G95))/3,IF(K95=4,(SUM(C95:G95)-MAX(C95:G95))/3,SUM(C95:G95)/3))*B95/7.6) ->  | K95: 0
A96: =IF(Draw!E95=0,"",Draw!E95) ->  | H96: =IF(B96="","",IF(K96=5,(SUM(C96:G96)-MAX(C96:G96)-MIN(C96:G96))/3,IF(K96=4,(SUM(C96:G96)-MAX(C96:G96))/3,SUM(C96:G96)/3))*B96/7.6) ->  | K96: 0
A97: =IF(Draw!E96=0,"",Draw!E96) ->  | H97: =IF(B97="","",IF(K97=5,(SUM(C97:G97)-MAX(C97:G97)-MIN(C97:G97))/3,IF(K97=4,(SUM(C97:G97)-MAX(C97:G97))/3,SUM(C97:G97)/3))*B97/7.6) ->  | K97: 0
A98: =IF(Draw!E97=0,"",Draw!E97) ->  | H98: =IF(B98="","",IF(K98=5,(SUM(C98:G98)-MAX(C98:G98)-MIN(C98:G98))/3,IF(K98=4,(SUM(C98:G98)-MAX(C98:G98))/3,SUM(C98:G98)/3))*B98/7.6) ->  | K98: 0
A99: =IF(Draw!E98=0,"",Draw!E98) ->  | H99: =IF(B99="","",IF(K99=5,(SUM(C99:G99)-MAX(C99:G99)-MIN(C99:G99))/3,IF(K99=4,(SUM(C99:G99)-MAX(C99:G99))/3,SUM(C99:G99)/3))*B99/7.6) ->  | K99: 0
A100: =IF(Draw!E99=0,"",Draw!E99) ->  | H100: =IF(B100="","",IF(K100=5,(SUM(C100:G100)-MAX(C100:G100)-MIN(C100:G100))/3,IF(K100=4,(SUM(C100:G100)-MAX(C100:G100))/3,SUM(C100:G100)/3))*B100/7.6) ->  | K100: 0
A101: =IF(Draw!E100=0,"",Draw!E100) ->  | H101: =IF(B101="","",IF(K101=5,(SUM(C101:G101)-MAX(C101:G101)-MIN(C101:G101))/3,IF(K101=4,(SUM(C101:G101)-MAX(C101:G101))/3,SUM(C101:G101)/3))*B101/7.6) ->  | K101: 0
A102: =IF(Draw!E101=0,"",Draw!E101) ->  | H102: =IF(B102="","",IF(K102=5,(SUM(C102:G102)-MAX(C102:G102)-MIN(C102:G102))/3,IF(K102=4,(SUM(C102:G102)-MAX(C102:G102))/3,SUM(C102:G102)/3))*B102/7.6) ->  | K102: 0
A103: =IF(Draw!E102=0,"",Draw!E102) ->  | H103: =IF(B103="","",IF(K103=5,(SUM(C103:G103)-MAX(C103:G103)-MIN(C103:G103))/3,IF(K103=4,(SUM(C103:G103)-MAX(C103:G103))/3,SUM(C103:G103)/3))*B103/7.6) ->  | K103: 0
A104: =IF(Draw!E103=0,"",Draw!E103) ->  | H104: =IF(B104="","",IF(K104=5,(SUM(C104:G104)-MAX(C104:G104)-MIN(C104:G104))/3,IF(K104=4,(SUM(C104:G104)-MAX(C104:G104))/3,SUM(C104:G104)/3))*B104/7.6) ->  | K104: 0
A105: =IF(Draw!E104=0,"",Draw!E104) ->  | H105: =IF(B105="","",IF(K105=5,(SUM(C105:G105)-MAX(C105:G105)-MIN(C105:G105))/3,IF(K105=4,(SUM(C105:G105)-MAX(C105:G105))/3,SUM(C105:G105)/3))*B105/7.6) ->  | K105: 0
A106: =IF(Draw!E105=0,"",Draw!E105) ->  | H106: =IF(B106="","",IF(K106=5,(SUM(C106:G106)-MAX(C106:G106)-MIN(C106:G106))/3,IF(K106=4,(SUM(C106:G106)-MAX(C106:G106))/3,SUM(C106:G106)/3))*B106/7.6) ->  | K106: 0
A107: =IF(Draw!E106=0,"",Draw!E106) ->  | H107: =IF(B107="","",IF(K107=5,(SUM(C107:G107)-MAX(C107:G107)-MIN(C107:G107))/3,IF(K107=4,(SUM(C107:G107)-MAX(C107:G107))/3,SUM(C107:G107)/3))*B107/7.6) ->  | K107: 0
A108: =IF(Draw!E107=0,"",Draw!E107) ->  | H108: =IF(B108="","",IF(K108=5,(SUM(C108:G108)-MAX(C108:G108)-MIN(C108:G108))/3,IF(K108=4,(SUM(C108:G108)-MAX(C108:G108))/3,SUM(C108:G108)/3))*B108/7.6) ->  | K108: 0
A109: =IF(Draw!E108=0,"",Draw!E108) ->  | H109: =IF(B109="","",IF(K109=5,(SUM(C109:G109)-MAX(C109:G109)-MIN(C109:G109))/3,IF(K109=4,(SUM(C109:G109)-MAX(C109:G109))/3,SUM(C109:G109)/3))*B109/7.6) ->  | K109: 0
A110: =IF(Draw!E109=0,"",Draw!E109) ->  | H110: =IF(B110="","",IF(K110=5,(SUM(C110:G110)-MAX(C110:G110)-MIN(C110:G110))/3,IF(K110=4,(SUM(C110:G110)-MAX(C110:G110))/3,SUM(C110:G110)/3))*B110/7.6) ->  | K110: 0
A111: =IF(Draw!E110=0,"",Draw!E110) ->  | H111: =IF(B111="","",IF(K111=5,(SUM(C111:G111)-MAX(C111:G111)-MIN(C111:G111))/3,IF(K111=4,(SUM(C111:G111)-MAX(C111:G111))/3,SUM(C111:G111)/3))*B111/7.6) ->  | K111: 0
A112: =IF(Draw!E111=0,"",Draw!E111) ->  | H112: =IF(B112="","",IF(K112=5,(SUM(C112:G112)-MAX(C112:G112)-MIN(C112:G112))/3,IF(K112=4,(SUM(C112:G112)-MAX(C112:G112))/3,SUM(C112:G112)/3))*B112/7.6) ->  | K112: 0
A113: =IF(Draw!E112=0,"",Draw!E112) ->  | H113: =IF(B113="","",IF(K113=5,(SUM(C113:G113)-MAX(C113:G113)-MIN(C113:G113))/3,IF(K113=4,(SUM(C113:G113)-MAX(C113:G113))/3,SUM(C113:G113)/3))*B113/7.6) ->  | K113: 0
A114: =IF(Draw!E113=0,"",Draw!E113) ->  | H114: =IF(B114="","",IF(K114=5,(SUM(C114:G114)-MAX(C114:G114)-MIN(C114:G114))/3,IF(K114=4,(SUM(C114:G114)-MAX(C114:G114))/3,SUM(C114:G114)/3))*B114/7.6) ->  | K114: 0
A115: =IF(Draw!E114=0,"",Draw!E114) ->  | H115: =IF(B115="","",IF(K115=5,(SUM(C115:G115)-MAX(C115:G115)-MIN(C115:G115))/3,IF(K115=4,(SUM(C115:G115)-MAX(C115:G115))/3,SUM(C115:G115)/3))*B115/7.6) ->  | K115: 0
A116: =IF(Draw!E115=0,"",Draw!E115) ->  | H116: =IF(B116="","",IF(K116=5,(SUM(C116:G116)-MAX(C116:G116)-MIN(C116:G116))/3,IF(K116=4,(SUM(C116:G116)-MAX(C116:G116))/3,SUM(C116:G116)/3))*B116/7.6) ->  | K116: 0
A117: =IF(Draw!E116=0,"",Draw!E116) ->  | H117: =IF(B117="","",IF(K117=5,(SUM(C117:G117)-MAX(C117:G117)-MIN(C117:G117))/3,IF(K117=4,(SUM(C117:G117)-MAX(C117:G117))/3,SUM(C117:G117)/3))*B117/7.6) ->  | K117: 0
A118: =IF(Draw!E117=0,"",Draw!E117) ->  | H118: =IF(B118="","",IF(K118=5,(SUM(C118:G118)-MAX(C118:G118)-MIN(C118:G118))/3,IF(K118=4,(SUM(C118:G118)-MAX(C118:G118))/3,SUM(C118:G118)/3))*B118/7.6) ->  | K118: 0
A119: =IF(Draw!E118=0,"",Draw!E118) ->  | H119: =IF(B119="","",IF(K119=5,(SUM(C119:G119)-MAX(C119:G119)-MIN(C119:G119))/3,IF(K119=4,(SUM(C119:G119)-MAX(C119:G119))/3,SUM(C119:G119)/3))*B119/7.6) ->  | K119: 0
A120: =IF(Draw!E119=0,"",Draw!E119) ->  | H120: =IF(B120="","",IF(K120=5,(SUM(C120:G120)-MAX(C120:G120)-MIN(C120:G120))/3,IF(K120=4,(SUM(C120:G120)-MAX(C120:G120))/3,SUM(C120:G120)/3))*B120/7.6) ->  | K120: 0
A121: =IF(Draw!E120=0,"",Draw!E120) ->  | H121: =IF(B121="","",IF(K121=5,(SUM(C121:G121)-MAX(C121:G121)-MIN(C121:G121))/3,IF(K121=4,(SUM(C121:G121)-MAX(C121:G121))/3,SUM(C121:G121)/3))*B121/7.6) ->  | K121: 0
A122: =IF(Draw!E121=0,"",Draw!E121) ->  | H122: =IF(B122="","",IF(K122=5,(SUM(C122:G122)-MAX(C122:G122)-MIN(C122:G122))/3,IF(K122=4,(SUM(C122:G122)-MAX(C122:G122))/3,SUM(C122:G122)/3))*B122/7.6) ->  | K122: 0
A123: =IF(Draw!E122=0,"",Draw!E122) ->  | H123: =IF(B123="","",IF(K123=5,(SUM(C123:G123)-MAX(C123:G123)-MIN(C123:G123))/3,IF(K123=4,(SUM(C123:G123)-MAX(C123:G123))/3,SUM(C123:G123)/3))*B123/7.6) ->  | K123: 0
A124: =IF(Draw!E123=0,"",Draw!E123) ->  | H124: =IF(B124="","",IF(K124=5,(SUM(C124:G124)-MAX(C124:G124)-MIN(C124:G124))/3,IF(K124=4,(SUM(C124:G124)-MAX(C124:G124))/3,SUM(C124:G124)/3))*B124/7.6) ->  | K124: 0
A125: =IF(Draw!E124=0,"",Draw!E124) ->  | H125: =IF(B125="","",IF(K125=5,(SUM(C125:G125)-MAX(C125:G125)-MIN(C125:G125))/3,IF(K125=4,(SUM(C125:G125)-MAX(C125:G125))/3,SUM(C125:G125)/3))*B125/7.6) ->  | K125: 0
A126: =IF(Draw!E125=0,"",Draw!E125) ->  | H126: =IF(B126="","",IF(K126=5,(SUM(C126:G126)-MAX(C126:G126)-MIN(C126:G126))/3,IF(K126=4,(SUM(C126:G126)-MAX(C126:G126))/3,SUM(C126:G126)/3))*B126/7.6) ->  | K126: 0
A127: =IF(Draw!E126=0,"",Draw!E126) ->  | H127: =IF(B127="","",IF(K127=5,(SUM(C127:G127)-MAX(C127:G127)-MIN(C127:G127))/3,IF(K127=4,(SUM(C127:G127)-MAX(C127:G127))/3,SUM(C127:G127)/3))*B127/7.6) ->  | K127: 0
A128: =IF(Draw!E127=0,"",Draw!E127) ->  | H128: =IF(B128="","",IF(K128=5,(SUM(C128:G128)-MAX(C128:G128)-MIN(C128:G128))/3,IF(K128=4,(SUM(C128:G128)-MAX(C128:G128))/3,SUM(C128:G128)/3))*B128/7.6) ->  | K128: 0
A129: =IF(Draw!E128=0,"",Draw!E128) ->  | H129: =IF(B129="","",IF(K129=5,(SUM(C129:G129)-MAX(C129:G129)-MIN(C129:G129))/3,IF(K129=4,(SUM(C129:G129)-MAX(C129:G129))/3,SUM(C129:G129)/3))*B129/7.6) ->  | K129: 0
A130: =IF(Draw!E129=0,"",Draw!E129) ->  | H130: =IF(B130="","",IF(K130=5,(SUM(C130:G130)-MAX(C130:G130)-MIN(C130:G130))/3,IF(K130=4,(SUM(C130:G130)-MAX(C130:G130))/3,SUM(C130:G130)/3))*B130/7.6) ->  | K130: 0
A131: =IF(Draw!E130=0,"",Draw!E130) ->  | H131: =IF(B131="","",IF(K131=5,(SUM(C131:G131)-MAX(C131:G131)-MIN(C131:G131))/3,IF(K131=4,(SUM(C131:G131)-MAX(C131:G131))/3,SUM(C131:G131)/3))*B131/7.6) ->  | K131: 0
A132: =IF(Draw!E131=0,"",Draw!E131) ->  | H132: =IF(B132="","",IF(K132=5,(SUM(C132:G132)-MAX(C132:G132)-MIN(C132:G132))/3,IF(K132=4,(SUM(C132:G132)-MAX(C132:G132))/3,SUM(C132:G132)/3))*B132/7.6) ->  | K132: =COUNT(C132:G132) -> 0
A133: =IF(Draw!E132=0,"",Draw!E132) ->  | H133: =IF(B133="","",IF(K133=5,(SUM(C133:G133)-MAX(C133:G133)-MIN(C133:G133))/3,IF(K133=4,(SUM(C133:G133)-MAX(C133:G133))/3,SUM(C133:G133)/3))*B133/7.6) ->  | K133: 0
A134: =IF(Draw!E133=0,"",Draw!E133) ->  | H134: =IF(B134="","",IF(K134=5,(SUM(C134:G134)-MAX(C134:G134)-MIN(C134:G134))/3,IF(K134=4,(SUM(C134:G134)-MAX(C134:G134))/3,SUM(C134:G134)/3))*B134/7.6) ->  | K134: 0
A135: =IF(Draw!E134=0,"",Draw!E134) ->  | B135: =IF(A135="","",B$3) ->  | H135: =IF(B135="","",IF(K135=5,(SUM(C135:G135)-MAX(C135:G135)-MIN(C135:G135))/3,IF(K135=4,(SUM(C135:G135)-MAX(C135:G135))/3,SUM(C135:G135)/3))*B135/7.6) ->  | K135: 0
A136: =IF(Draw!E135=0,"",Draw!E135) ->  | H136: =IF(B136="","",IF(K136=5,(SUM(C136:G136)-MAX(C136:G136)-MIN(C136:G136))/3,IF(K136=4,(SUM(C136:G136)-MAX(C136:G136))/3,SUM(C136:G136)/3))*B136/7.6) ->  | K136: 0
A137: =IF(Draw!E136=0,"",Draw!E136) ->  | H137: =IF(B137="","",IF(K137=5,(SUM(C137:G137)-MAX(C137:G137)-MIN(C137:G137))/3,IF(K137=4,(SUM(C137:G137)-MAX(C137:G137))/3,SUM(C137:G137)/3))*B137/7.6) ->  | K137: 0
A138: =IF(Draw!E137=0,"",Draw!E137) ->  | H138: =IF(B138="","",IF(K138=5,(SUM(C138:G138)-MAX(C138:G138)-MIN(C138:G138))/3,IF(K138=4,(SUM(C138:G138)-MAX(C138:G138))/3,SUM(C138:G138)/3))*B138/7.6) ->  | K138: 0
A139: =IF(Draw!E138=0,"",Draw!E138) ->  | H139: =IF(B139="","",IF(K139=5,(SUM(C139:G139)-MAX(C139:G139)-MIN(C139:G139))/3,IF(K139=4,(SUM(C139:G139)-MAX(C139:G139))/3,SUM(C139:G139)/3))*B139/7.6) ->  | K139: 0
A140: =IF(Draw!E139=0,"",Draw!E139) ->  | H140: =IF(B140="","",IF(K140=5,(SUM(C140:G140)-MAX(C140:G140)-MIN(C140:G140))/3,IF(K140=4,(SUM(C140:G140)-MAX(C140:G140))/3,SUM(C140:G140)/3))*B140/7.6) ->  | K140: 0
A141: =IF(Draw!E140=0,"",Draw!E140) ->  | H141: =IF(B141="","",IF(K141=5,(SUM(C141:G141)-MAX(C141:G141)-MIN(C141:G141))/3,IF(K141=4,(SUM(C141:G141)-MAX(C141:G141))/3,SUM(C141:G141)/3))*B141/7.6) ->  | K141: 0
A142: =IF(Draw!E141=0,"",Draw!E141) ->  | H142: =IF(B142="","",IF(K142=5,(SUM(C142:G142)-MAX(C142:G142)-MIN(C142:G142))/3,IF(K142=4,(SUM(C142:G142)-MAX(C142:G142))/3,SUM(C142:G142)/3))*B142/7.6) ->  | K142: 0
A143: =IF(Draw!E142=0,"",Draw!E142) ->  | H143: =IF(B143="","",IF(K143=5,(SUM(C143:G143)-MAX(C143:G143)-MIN(C143:G143))/3,IF(K143=4,(SUM(C143:G143)-MAX(C143:G143))/3,SUM(C143:G143)/3))*B143/7.6) ->  | K143: 0
A144: =IF(Draw!E143=0,"",Draw!E143) ->  | H144: =IF(B144="","",IF(K144=5,(SUM(C144:G144)-MAX(C144:G144)-MIN(C144:G144))/3,IF(K144=4,(SUM(C144:G144)-MAX(C144:G144))/3,SUM(C144:G144)/3))*B144/7.6) ->  | K144: 0
A145: =IF(Draw!E144=0,"",Draw!E144) ->  | H145: =IF(B145="","",IF(K145=5,(SUM(C145:G145)-MAX(C145:G145)-MIN(C145:G145))/3,IF(K145=4,(SUM(C145:G145)-MAX(C145:G145))/3,SUM(C145:G145)/3))*B145/7.6) ->  | K145: 0
A146: =IF(Draw!E145=0,"",Draw!E145) ->  | H146: =IF(B146="","",IF(K146=5,(SUM(C146:G146)-MAX(C146:G146)-MIN(C146:G146))/3,IF(K146=4,(SUM(C146:G146)-MAX(C146:G146))/3,SUM(C146:G146)/3))*B146/7.6) ->  | K146: 0
A147: =IF(Draw!E146=0,"",Draw!E146) ->  | H147: =IF(B147="","",IF(K147=5,(SUM(C147:G147)-MAX(C147:G147)-MIN(C147:G147))/3,IF(K147=4,(SUM(C147:G147)-MAX(C147:G147))/3,SUM(C147:G147)/3))*B147/7.6) ->  | K147: 0
A148: =IF(Draw!E147=0,"",Draw!E147) ->  | H148: =IF(B148="","",IF(K148=5,(SUM(C148:G148)-MAX(C148:G148)-MIN(C148:G148))/3,IF(K148=4,(SUM(C148:G148)-MAX(C148:G148))/3,SUM(C148:G148)/3))*B148/7.6) ->  | K148: 0
A149: =IF(Draw!E148=0,"",Draw!E148) ->  | H149: =IF(B149="","",IF(K149=5,(SUM(C149:G149)-MAX(C149:G149)-MIN(C149:G149))/3,IF(K149=4,(SUM(C149:G149)-MAX(C149:G149))/3,SUM(C149:G149)/3))*B149/7.6) ->  | K149: 0
A150: =IF(Draw!E149=0,"",Draw!E149) ->  | H150: =IF(B150="","",IF(K150=5,(SUM(C150:G150)-MAX(C150:G150)-MIN(C150:G150))/3,IF(K150=4,(SUM(C150:G150)-MAX(C150:G150))/3,SUM(C150:G150)/3))*B150/7.6) ->  | K150: 0

Sheet Fig 4 Walkover
B1: Figure #4: | C1: 360 Walkover Front
A2: # | B2: Degree of Difficulty | C2: Judge 1 | D2: Judge 2 | E2: Judge 3 | F2: Judge 4 | G2: Judge 5 | H2: Score | I2: Penalty
A3: =IF(Draw!E2=0,"",Draw!E2) -> 1 | B3: 2.1 | C3: 58 | D3: 57 | E3: 58 | F3: 57 | G3: 55 | H3: =IF(B3="","",IF(K3=5,(SUM(C3:G3)-MAX(C3:G3)-MIN(C3:G3))/3,IF(K3=4,(SUM(C3:G3)-MAX(C3:G3))/3,SUM(C3:G3)/3))*B3/7.6) -> 15.84210526 | K3: =COUNT(C3:G3) -> 5
A4: =IF(Draw!E3=0,"",Draw!E3) -> 2 | B4: =IF(A4="","",B$3) -> 2.1 | C4: 51 | D4: 50 | E4: 53 | F4: 54 | G4: 54 | H4: =IF(B4="","",IF(K4=5,(SUM(C4:G4)-MAX(C4:G4)-MIN(C4:G4))/3,IF(K4=4,(SUM(C4:G4)-MAX(C4:G4))/3,SUM(C4:G4)/3))*B4/7.6) -> 14.55263158 | K4: =COUNT(C4:G4) -> 5
A5: =IF(Draw!E4=0,"",Draw!E4) -> 3 | B5: =IF(A5="","",B$3) -> 2.1 | C5: 56 | D5: 55 | E5: 54 | F5: 57 | G5: 58 | H5: =IF(B5="","",IF(K5=5,(SUM(C5:G5)-MAX(C5:G5)-MIN(C5:G5))/3,IF(K5=4,(SUM(C5:G5)-MAX(C5:G5))/3,SUM(C5:G5)/3))*B5/7.6) -> 15.47368421 | K5: 5
A6: =IF(Draw!E5=0,"",Draw!E5) -> 4 | B6: 2.1 | C6: 56 | D6: 49 | E6: 51 | F6: 52 | G6: 51 | H6: =IF(B6="","",IF(K6=5,(SUM(C6:G6)-MAX(C6:G6)-MIN(C6:G6))/3,IF(K6=4,(SUM(C6:G6)-MAX(C6:G6))/3,SUM(C6:G6)/3))*B6/7.6) -> 14.18421053 | K6: 5
A7: =IF(Draw!E6=0,"",Draw!E6) -> 5 | B7: =IF(A7="","",B$3) -> 2.1 | C7: 62 | D7: 70 | E7: 68 | F7: 67 | G7: 63 | H7: =IF(B7="","",IF(K7=5,(SUM(C7:G7)-MAX(C7:G7)-MIN(C7:G7))/3,IF(K7=4,(SUM(C7:G7)-MAX(C7:G7))/3,SUM(C7:G7)/3))*B7/7.6) -> 18.23684211 | K7: 5
A8: =IF(Draw!E7=0,"",Draw!E7) -> 6 | B8: 2.1 | C8: 63 | D8: 65 | E8: 64 | F8: 63 | G8: 62 | H8: =IF(B8="","",IF(K8=5,(SUM(C8:G8)-MAX(C8:G8)-MIN(C8:G8))/3,IF(K8=4,(SUM(C8:G8)-MAX(C8:G8))/3,SUM(C8:G8)/3))*B8/7.6) -> 17.5 | K8: 5
A9: =IF(Draw!E8=0,"",Draw!E8) -> 7 | B9: 2.1 | C9: 49 | D9: 50 | E9: 50 | F9: 50 | G9: 50 | H9: =IF(B9="","",IF(K9=5,(SUM(C9:G9)-MAX(C9:G9)-MIN(C9:G9))/3,IF(K9=4,(SUM(C9:G9)-MAX(C9:G9))/3,SUM(C9:G9)/3))*B9/7.6) -> 13.81578947 | K9: 5
A10: =IF(Draw!E9=0,"",Draw!E9) -> 8 | B10: 2.1 | C10: 61 | D10: 62 | E10: 56 | F10: 59 | G10: 62 | H10: =IF(B10="","",IF(K10=5,(SUM(C10:G10)-MAX(C10:G10)-MIN(C10:G10))/3,IF(K10=4,(SUM(C10:G10)-MAX(C10:G10))/3,SUM(C10:G10)/3))*B10/7.6) -> 16.76315789 | K10: 5
A11: =IF(Draw!E10=0,"",Draw!E10) -> 9 | B11: 2.1 | C11: 57 | D11: 58 | E11: 58 | F11: 61 | G11: 60 | H11: =IF(B11="","",IF(K11=5,(SUM(C11:G11)-MAX(C11:G11)-MIN(C11:G11))/3,IF(K11=4,(SUM(C11:G11)-MAX(C11:G11))/3,SUM(C11:G11)/3))*B11/7.6) -> 16.21052632 | K11: 5
A12: =IF(Draw!E11=0,"",Draw!E11) -> 10 | B12: 2.1 | C12: 58 | D12: 57 | E12: 57 | F12: 58 | G12: 57 | H12: =IF(B12="","",IF(K12=5,(SUM(C12:G12)-MAX(C12:G12)-MIN(C12:G12))/3,IF(K12=4,(SUM(C12:G12)-MAX(C12:G12))/3,SUM(C12:G12)/3))*B12/7.6) -> 15.84210526 | K12: 5
A13: =IF(Draw!E12=0,"",Draw!E12) -> 11 | B13: 2.1 | C13: 60 | D13: 58 | E13: 56 | F13: 57 | G13: 61 | H13: =IF(B13="","",IF(K13=5,(SUM(C13:G13)-MAX(C13:G13)-MIN(C13:G13))/3,IF(K13=4,(SUM(C13:G13)-MAX(C13:G13))/3,SUM(C13:G13)/3))*B13/7.6) -> 16.11842105 | K13: 5
A14: =IF(Draw!E13=0,"",Draw!E13) -> 12 | B14: 2.1 | C14: 55 | D14: 58 | E14: 59 | F14: 60 | G14: 58 | H14: =IF(B14="","",IF(K14=5,(SUM(C14:G14)-MAX(C14:G14)-MIN(C14:G14))/3,IF(K14=4,(SUM(C14:G14)-MAX(C14:G14))/3,SUM(C14:G14)/3))*B14/7.6) -> 16.11842105 | K14: 5
A15: =IF(Draw!E14=0,"",Draw!E14) -> 13 | B15: 2.1 | C15: 52 | D15: 52 | E15: 54 | F15: 55 | G15: 54 | H15: =IF(B15="","",IF(K15=5,(SUM(C15:G15)-MAX(C15:G15)-MIN(C15:G15))/3,IF(K15=4,(SUM(C15:G15)-MAX(C15:G15))/3,SUM(C15:G15)/3))*B15/7.6) -> 14.73684211 | K15: 5
A16: =IF(Draw!E15=0,"",Draw!E15) -> 14 | B16: 2.1 | C16: 55 | D16: 57 | E16: 57 | F16: 56 | G16: 56 | H16: =IF(B16="","",IF(K16=5,(SUM(C16:G16)-MAX(C16:G16)-MIN(C16:G16))/3,IF(K16=4,(SUM(C16:G16)-MAX(C16:G16))/3,SUM(C16:G16)/3))*B16/7.6) -> 15.56578947 | K16: 5
A17: =IF(Draw!E16=0,"",Draw!E16) -> 15 | B17: 2.1 | C17: 59 | D17: 58 | E17: 60 | F17: 59 | G17: 59 | H17: =IF(B17="","",IF(K17=5,(SUM(C17:G17)-MAX(C17:G17)-MIN(C17:G17))/3,IF(K17=4,(SUM(C17:G17)-MAX(C17:G17))/3,SUM(C17:G17)/3))*B17/7.6) -> 16.30263158 | K17: 5
A18: =IF(Draw!E17=0,"",Draw!E17) -> 16 | B18: 2.1 | C18: 54 | D18: 56 | E18: 52 | F18: 54 | G18: 57 | H18: =IF(B18="","",IF(K18=5,(SUM(C18:G18)-MAX(C18:G18)-MIN(C18:G18))/3,IF(K18=4,(SUM(C18:G18)-MAX(C18:G18))/3,SUM(C18:G18)/3))*B18/7.6) -> 15.10526316 | K18: 5
A19: =IF(Draw!E18=0,"",Draw!E18) -> 17 | B19: 2.1 | C19: 49 | D19: 50 | E19: 53 | F19: 52 | G19: 53 | H19: =IF(B19="","",IF(K19=5,(SUM(C19:G19)-MAX(C19:G19)-MIN(C19:G19))/3,IF(K19=4,(SUM(C19:G19)-MAX(C19:G19))/3,SUM(C19:G19)/3))*B19/7.6) -> 14.27631579 | K19: 5
A20: =IF(Draw!E19=0,"",Draw!E19) -> 18 | B20: 2.1 | C20: 59 | D20: 61 | E20: 62 | F20: 60 | G20: 66 | H20: =IF(B20="","",IF(K20=5,(SUM(C20:G20)-MAX(C20:G20)-MIN(C20:G20))/3,IF(K20=4,(SUM(C20:G20)-MAX(C20:G20))/3,SUM(C20:G20)/3))*B20/7.6) -> 16.85526316 | K20: 5
A21: =IF(Draw!E20=0,"",Draw!E20) -> 19 | B21: 2.1 | C21: 49 | D21: 52 | E21: 50 | F21: 53 | G21: 58 | H21: =IF(B21="","",IF(K21=5,(SUM(C21:G21)-MAX(C21:G21)-MIN(C21:G21))/3,IF(K21=4,(SUM(C21:G21)-MAX(C21:G21))/3,SUM(C21:G21)/3))*B21/7.6) -> 14.27631579 | K21: 5
A22: =IF(Draw!E21=0,"",Draw!E21) -> 20 | B22: 2.1 | C22: 61 | D22: 66 | E22: 66 | F22: 62 | G22: 62 | H22: =IF(B22="","",IF(K22=5,(SUM(C22:G22)-MAX(C22:G22)-MIN(C22:G22))/3,IF(K22=4,(SUM(C22:G22)-MAX(C22:G22))/3,SUM(C22:G22)/3))*B22/7.6) -> 17.5 | K22: 5
A23: =IF(Draw!E22=0,"",Draw!E22) -> 21 | B23: 2.1 | C23: 55 | D23: 54 | E23: 52 | F23: 52 | G23: 57 | H23: =IF(B23="","",IF(K23=5,(SUM(C23:G23)-MAX(C23:G23)-MIN(C23:G23))/3,IF(K23=4,(SUM(C23:G23)-MAX(C23:G23))/3,SUM(C23:G23)/3))*B23/7.6) -> 14.82894737 | K23: 5
A24: =IF(Draw!E23=0,"",Draw!E23) -> 22 | B24: 2.1 | C24: 56 | D24: 55 | E24: 55 | F24: 58 | G24: 59 | H24: =IF(B24="","",IF(K24=5,(SUM(C24:G24)-MAX(C24:G24)-MIN(C24:G24))/3,IF(K24=4,(SUM(C24:G24)-MAX(C24:G24))/3,SUM(C24:G24)/3))*B24/7.6) -> 15.56578947 | K24: 5
A25: =IF(Draw!E24=0,"",Draw!E24) -> 23 | B25: 2.1 | C25: 53 | D25: 53 | E25: 52 | F25: 55 | G25: 56 | H25: =IF(B25="","",IF(K25=5,(SUM(C25:G25)-MAX(C25:G25)-MIN(C25:G25))/3,IF(K25=4,(SUM(C25:G25)-MAX(C25:G25))/3,SUM(C25:G25)/3))*B25/7.6) -> 14.82894737 | K25: 5
A26: =IF(Draw!E25=0,"",Draw!E25) -> 24 | B26: 2.1 | C26: 54 | D26: 53 | E26: 53 | F26: 57 | G26: 52 | H26: =IF(B26="","",IF(K26=5,(SUM(C26:G26)-MAX(C26:G26)-MIN(C26:G26))/3,IF(K26=4,(SUM(C26:G26)-MAX(C26:G26))/3,SUM(C26:G26)/3))*B26/7.6) -> 14.73684211 | K26: 5
A27: =IF(Draw!E26=0,"",Draw!E26) -> 25 | B27: 2.1 | C27: 50 | D27: 50 | E27: 53 | F27: 51 | G27: 51 | H27: =IF(B27="","",IF(K27=5,(SUM(C27:G27)-MAX(C27:G27)-MIN(C27:G27))/3,IF(K27=4,(SUM(C27:G27)-MAX(C27:G27))/3,SUM(C27:G27)/3))*B27/7.6) -> 14 | K27: 5
A28: =IF(Draw!E27=0,"",Draw!E27) -> 26 | B28: 2.1 | C28: 52 | D28: 54 | E28: 54 | F28: 52 | G28: 52 | H28: =IF(B28="","",IF(K28=5,(SUM(C28:G28)-MAX(C28:G28)-MIN(C28:G28))/3,IF(K28=4,(SUM(C28:G28)-MAX(C28:G28))/3,SUM(C28:G28)/3))*B28/7.6) -> 14.55263158 | K28: 5
A29: =IF(Draw!E28=0,"",Draw!E28) -> 27 | B29: 2.1 | C29: 52 | D29: 52 | E29: 52 | F29: 50 | G29: 50 | H29: =IF(B29="","",IF(K29=5,(SUM(C29:G29)-MAX(C29:G29)-MIN(C29:G29))/3,IF(K29=4,(SUM(C29:G29)-MAX(C29:G29))/3,SUM(C29:G29)/3))*B29/7.6) -> 14.18421053 | K29: 5
A30: =IF(Draw!E29=0,"",Draw!E29) -> 28 | B30: 2.1 | C30: 49 | D30: 47 | E30: 48 | F30: 48 | G30: 47 | H30: =IF(B30="","",IF(K30=5,(SUM(C30:G30)-MAX(C30:G30)-MIN(C30:G30))/3,IF(K30=4,(SUM(C30:G30)-MAX(C30:G30))/3,SUM(C30:G30)/3))*B30/7.6) -> 13.17105263 | K30: 5
A31: =IF(Draw!E30=0,"",Draw!E30) -> 29 | B31: 2.1 | C31: 63 | D31: 62 | E31: 62 | F31: 64 | G31: 64 | H31: =IF(B31="","",IF(K31=5,(SUM(C31:G31)-MAX(C31:G31)-MIN(C31:G31))/3,IF(K31=4,(SUM(C31:G31)-MAX(C31:G31))/3,SUM(C31:G31)/3))*B31/7.6) -> 17.40789474 | K31: 5
A32: =IF(Draw!E31=0,"",Draw!E31) -> 30 | B32: 2.1 | C32: 49 | D32: 49 | E32: 49 | F32: 49 | G32: 50 | H32: =IF(B32="","",IF(K32=5,(SUM(C32:G32)-MAX(C32:G32)-MIN(C32:G32))/3,IF(K32=4,(SUM(C32:G32)-MAX(C32:G32))/3,SUM(C32:G32)/3))*B32/7.6) -> 13.53947368 | K32: 5
A33: =IF(Draw!E32=0,"",Draw!E32) -> 31 | B33: 2.1 | C33: 54 | D33: 53 | E33: 52 | F33: 52 | G33: 51 | H33: =IF(B33="","",IF(K33=5,(SUM(C33:G33)-MAX(C33:G33)-MIN(C33:G33))/3,IF(K33=4,(SUM(C33:G33)-MAX(C33:G33))/3,SUM(C33:G33)/3))*B33/7.6) -> 14.46052632 | K33: 5
A34: =IF(Draw!E33=0,"",Draw!E33) -> 32 | B34: 2.1 | C34: 57 | D34: 57 | E34: 58 | F34: 57 | G34: 50 | H34: =IF(B34="","",IF(K34=5,(SUM(C34:G34)-MAX(C34:G34)-MIN(C34:G34))/3,IF(K34=4,(SUM(C34:G34)-MAX(C34:G34))/3,SUM(C34:G34)/3))*B34/7.6) -> 15.75 | K34: 5
A35: =IF(Draw!E34=0,"",Draw!E34) -> 33 | B35: 2.1 | C35: 61 | D35: 60 | E35: 60 | F35: 63 | G35: 59 | H35: =IF(B35="","",IF(K35=5,(SUM(C35:G35)-MAX(C35:G35)-MIN(C35:G35))/3,IF(K35=4,(SUM(C35:G35)-MAX(C35:G35))/3,SUM(C35:G35)/3))*B35/7.6) -> 16.67105263 | K35: 5
A36: =IF(Draw!E35=0,"",Draw!E35) -> 34 | B36: 2.1 | C36: 55 | D36: 57 | E36: 61 | F36: 55 | G36: 58 | H36: =IF(B36="","",IF(K36=5,(SUM(C36:G36)-MAX(C36:G36)-MIN(C36:G36))/3,IF(K36=4,(SUM(C36:G36)-MAX(C36:G36))/3,SUM(C36:G36)/3))*B36/7.6) -> 15.65789474 | K36: 5
A37: =IF(Draw!E36=0,"",Draw!E36) -> 35 | B37: 2.1 | C37: 0 | D37: 0 | E37: 0 | F37: 0 | G37: 0 | H37: =IF(B37="","",IF(K37=5,(SUM(C37:G37)-MAX(C37:G37)-MIN(C37:G37))/3,IF(K37=4,(SUM(C37:G37)-MAX(C37:G37))/3,SUM(C37:G37)/3))*B37/7.6) -> 0 | K37: 5
A38: =IF(Draw!E37=0,"",Draw!E37) -> 36 | B38: 2.1 | C38: 55 | D38: 54 | E38: 53 | F38: 54 | G38: 52 | H38: =IF(B38="","",IF(K38=5,(SUM(C38:G38)-MAX(C38:G38)-MIN(C38:G38))/3,IF(K38=4,(SUM(C38:G38)-MAX(C38:G38))/3,SUM(C38:G38)/3))*B38/7.6) -> 14.82894737 | K38: 5
A39: =IF(Draw!E38=0,"",Draw!E38) -> 37 | B39: 2.1 | C39: 58 | D39: 57 | E39: 54 | F39: 53 | G39: 58 | H39: =IF(B39="","",IF(K39=5,(SUM(C39:G39)-MAX(C39:G39)-MIN(C39:G39))/3,IF(K39=4,(SUM(C39:G39)-MAX(C39:G39))/3,SUM(C39:G39)/3))*B39/7.6) -> 15.56578947 | K39: 5
A40: =IF(Draw!E39=0,"",Draw!E39) -> 38 | B40: 2.1 | C40: 55 | D40: 56 | E40: 55 | F40: 52 | G40: 56 | H40: =IF(B40="","",IF(K40=5,(SUM(C40:G40)-MAX(C40:G40)-MIN(C40:G40))/3,IF(K40=4,(SUM(C40:G40)-MAX(C40:G40))/3,SUM(C40:G40)/3))*B40/7.6) -> 15.28947368 | K40: 5
A41: =IF(Draw!E40=0,"",Draw!E40) -> 39 | B41: 2.1 | C41: 0 | D41: 0 | E41: 0 | F41: 0 | G41: 0 | H41: =IF(B41="","",IF(K41=5,(SUM(C41:G41)-MAX(C41:G41)-MIN(C41:G41))/3,IF(K41=4,(SUM(C41:G41)-MAX(C41:G41))/3,SUM(C41:G41)/3))*B41/7.6) -> 0 | K41: 5
A42: =IF(Draw!E41=0,"",Draw!E41) -> 40 | B42: 2.1 | C42: 50 | D42: 49 | E42: 50 | F42: 48 | G42: 50 | H42: =IF(B42="","",IF(K42=5,(SUM(C42:G42)-MAX(C42:G42)-MIN(C42:G42))/3,IF(K42=4,(SUM(C42:G42)-MAX(C42:G42))/3,SUM(C42:G42)/3))*B42/7.6) -> 13.72368421 | K42: 5
A43: =IF(Draw!E42=0,"",Draw!E42) -> 41 | B43: 2.1 | C43: 56 | D43: 56 | E43: 54 | F43: 52 | G43: 55 | H43: =IF(B43="","",IF(K43=5,(SUM(C43:G43)-MAX(C43:G43)-MIN(C43:G43))/3,IF(K43=4,(SUM(C43:G43)-MAX(C43:G43))/3,SUM(C43:G43)/3))*B43/7.6) -> 15.19736842 | K43: 5
A44: =IF(Draw!E43=0,"",Draw!E43) -> 42 | B44: 2.1 | C44: 54 | D44: 56 | E44: 52 | F44: 53 | G44: 53 | H44: =IF(B44="","",IF(K44=5,(SUM(C44:G44)-MAX(C44:G44)-MIN(C44:G44))/3,IF(K44=4,(SUM(C44:G44)-MAX(C44:G44))/3,SUM(C44:G44)/3))*B44/7.6) -> 14.73684211 | K44: 5
A45: =IF(Draw!E44=0,"",Draw!E44) -> 43 | B45: 2.1 | C45: 49 | D45: 48 | E45: 53 | F45: 50 | G45: 50 | H45: =IF(B45="","",IF(K45=5,(SUM(C45:G45)-MAX(C45:G45)-MIN(C45:G45))/3,IF(K45=4,(SUM(C45:G45)-MAX(C45:G45))/3,SUM(C45:G45)/3))*B45/7.6) -> 13.72368421 | K45: 5
A46: =IF(Draw!E45=0,"",Draw!E45) -> 44 | B46: 2.1 | C46: 56 | D46: 57 | E46: 56 | F46: 57 | G46: 54 | H46: =IF(B46="","",IF(K46=5,(SUM(C46:G46)-MAX(C46:G46)-MIN(C46:G46))/3,IF(K46=4,(SUM(C46:G46)-MAX(C46:G46))/3,SUM(C46:G46)/3))*B46/7.6) -> 15.56578947 | K46: 5
A47: =IF(Draw!E46=0,"",Draw!E46) -> 45 | B47: 2.1 | C47: 56 | D47: 51 | E47: 53 | F47: 54 | G47: 51 | H47: =IF(B47="","",IF(K47=5,(SUM(C47:G47)-MAX(C47:G47)-MIN(C47:G47))/3,IF(K47=4,(SUM(C47:G47)-MAX(C47:G47))/3,SUM(C47:G47)/3))*B47/7.6) -> 14.55263158 | K47: 5
A48: =IF(Draw!E47=0,"",Draw!E47) -> 46 | B48: 2.1 | C48: 57 | D48: 60 | E48: 60 | F48: 59 | G48: 58 | H48: =IF(B48="","",IF(K48=5,(SUM(C48:G48)-MAX(C48:G48)-MIN(C48:G48))/3,IF(K48=4,(SUM(C48:G48)-MAX(C48:G48))/3,SUM(C48:G48)/3))*B48/7.6) -> 16.30263158 | K48: 5
A49: =IF(Draw!E48=0,"",Draw!E48) -> 47 | B49: 2.1 | C49: 51 | D49: 49 | E49: 51 | F49: 50 | G49: 51 | H49: =IF(B49="","",IF(K49=5,(SUM(C49:G49)-MAX(C49:G49)-MIN(C49:G49))/3,IF(K49=4,(SUM(C49:G49)-MAX(C49:G49))/3,SUM(C49:G49)/3))*B49/7.6) -> 14 | K49: 5
A50: =IF(Draw!E49=0,"",Draw!E49) -> 48 | B50: 2.1 | C50: 57 | D50: 56 | E50: 58 | F50: 57 | G50: 63 | H50: =IF(B50="","",IF(K50=5,(SUM(C50:G50)-MAX(C50:G50)-MIN(C50:G50))/3,IF(K50=4,(SUM(C50:G50)-MAX(C50:G50))/3,SUM(C50:G50)/3))*B50/7.6) -> 15.84210526 | K50: 5
A51: =IF(Draw!E50=0,"",Draw!E50) -> 49 | B51: 2.1 | C51: 0 | D51: 0 | E51: 0 | F51: 0 | G51: 0 | H51: =IF(B51="","",IF(K51=5,(SUM(C51:G51)-MAX(C51:G51)-MIN(C51:G51))/3,IF(K51=4,(SUM(C51:G51)-MAX(C51:G51))/3,SUM(C51:G51)/3))*B51/7.6) -> 0 | K51: 5
A52: =IF(Draw!E51=0,"",Draw!E51) -> 50 | B52: 2.1 | C52: 51 | D52: 51 | E52: 54 | F52: 51 | G52: 52 | H52: =IF(B52="","",IF(K52=5,(SUM(C52:G52)-MAX(C52:G52)-MIN(C52:G52))/3,IF(K52=4,(SUM(C52:G52)-MAX(C52:G52))/3,SUM(C52:G52)/3))*B52/7.6) -> 14.18421053 | K52: 5
A53: =IF(Draw!E52=0,"",Draw!E52) -> 51 | B53: 2.1 | C53: 53 | D53: 49 | E53: 50 | F53: 52 | G53: 52 | H53: =IF(B53="","",IF(K53=5,(SUM(C53:G53)-MAX(C53:G53)-MIN(C53:G53))/3,IF(K53=4,(SUM(C53:G53)-MAX(C53:G53))/3,SUM(C53:G53)/3))*B53/7.6) -> 14.18421053 | K53: 5
A54: =IF(Draw!E53=0,"",Draw!E53) -> 52 | B54: 2.1 | C54: 59 | D54: 57 | E54: 56 | F54: 63 | G54: 57 | H54: =IF(B54="","",IF(K54=5,(SUM(C54:G54)-MAX(C54:G54)-MIN(C54:G54))/3,IF(K54=4,(SUM(C54:G54)-MAX(C54:G54))/3,SUM(C54:G54)/3))*B54/7.6) -> 15.93421053 | K54: 5
A55: =IF(Draw!E54=0,"",Draw!E54) -> 53 | B55: 2.1 | C55: 54 | D55: 54 | E55: 56 | F55: 54 | G55: 55 | H55: =IF(B55="","",IF(K55=5,(SUM(C55:G55)-MAX(C55:G55)-MIN(C55:G55))/3,IF(K55=4,(SUM(C55:G55)-MAX(C55:G55))/3,SUM(C55:G55)/3))*B55/7.6) -> 15.01315789 | K55: 5
A56: =IF(Draw!E55=0,"",Draw!E55) -> 54 | B56: 2.1 | C56: 56 | D56: 57 | E56: 54 | F56: 57 | G56: 55 | H56: =IF(B56="","",IF(K56=5,(SUM(C56:G56)-MAX(C56:G56)-MIN(C56:G56))/3,IF(K56=4,(SUM(C56:G56)-MAX(C56:G56))/3,SUM(C56:G56)/3))*B56/7.6) -> 15.47368421 | K56: 5
A57: =IF(Draw!E56=0,"",Draw!E56) -> 55 | B57: 2.1 | C57: 63 | D57: 63 | E57: 62 | F57: 60 | G57: 60 | H57: =IF(B57="","",IF(K57=5,(SUM(C57:G57)-MAX(C57:G57)-MIN(C57:G57))/3,IF(K57=4,(SUM(C57:G57)-MAX(C57:G57))/3,SUM(C57:G57)/3))*B57/7.6) -> 17.03947368 | K57: 5
A58: =IF(Draw!E57=0,"",Draw!E57) -> 56 | B58: 2.1 | C58: 65 | D58: 65 | E58: 65 | F58: 64 | G58: 63 | H58: =IF(B58="","",IF(K58=5,(SUM(C58:G58)-MAX(C58:G58)-MIN(C58:G58))/3,IF(K58=4,(SUM(C58:G58)-MAX(C58:G58))/3,SUM(C58:G58)/3))*B58/7.6) -> 17.86842105 | K58: 5
A59: =IF(Draw!E58=0,"",Draw!E58) -> 57 | B59: 2.1 | C59: 51 | D59: 51 | E59: 54 | F59: 53 | G59: 54 | H59: =IF(B59="","",IF(K59=5,(SUM(C59:G59)-MAX(C59:G59)-MIN(C59:G59))/3,IF(K59=4,(SUM(C59:G59)-MAX(C59:G59))/3,SUM(C59:G59)/3))*B59/7.6) -> 14.55263158 | K59: 5
A60: =IF(Draw!E59=0,"",Draw!E59) -> 58 | B60: 2.1 | C60: 59 | D60: 60 | E60: 56 | F60: 58 | G60: 56 | H60: =IF(B60="","",IF(K60=5,(SUM(C60:G60)-MAX(C60:G60)-MIN(C60:G60))/3,IF(K60=4,(SUM(C60:G60)-MAX(C60:G60))/3,SUM(C60:G60)/3))*B60/7.6) -> 15.93421053 | K60: 5
A61: =IF(Draw!E60=0,"",Draw!E60) ->  | H61: =IF(B61="","",IF(K61=5,(SUM(C61:G61)-MAX(C61:G61)-MIN(C61:G61))/3,IF(K61=4,(SUM(C61:G61)-MAX(C61:G61))/3,SUM(C61:G61)/3))*B61/7.6) ->  | K61: 0
A62: =IF(Draw!E61=0,"",Draw!E61) ->  | H62: =IF(B62="","",IF(K62=5,(SUM(C62:G62)-MAX(C62:G62)-MIN(C62:G62))/3,IF(K62=4,(SUM(C62:G62)-MAX(C62:G62))/3,SUM(C62:G62)/3))*B62/7.6) ->  | K62: 0
A63: =IF(Draw!E62=0,"",Draw!E62) ->  | H63: =IF(B63="","",IF(K63=5,(SUM(C63:G63)-MAX(C63:G63)-MIN(C63:G63))/3,IF(K63=4,(SUM(C63:G63)-MAX(C63:G63))/3,SUM(C63:G63)/3))*B63/7.6) ->  | K63: 0
A64: =IF(Draw!E63=0,"",Draw!E63) ->  | H64: =IF(B64="","",IF(K64=5,(SUM(C64:G64)-MAX(C64:G64)-MIN(C64:G64))/3,IF(K64=4,(SUM(C64:G64)-MAX(C64:G64))/3,SUM(C64:G64)/3))*B64/7.6) ->  | K64: 0
A65: =IF(Draw!E64=0,"",Draw!E64) ->  | H65: =IF(B65="","",IF(K65=5,(SUM(C65:G65)-MAX(C65:G65)-MIN(C65:G65))/3,IF(K65=4,(SUM(C65:G65)-MAX(C65:G65))/3,SUM(C65:G65)/3))*B65/7.6) ->  | K65: 0
A66: =IF(Draw!E65=0,"",Draw!E65) ->  | H66: =IF(B66="","",IF(K66=5,(SUM(C66:G66)-MAX(C66:G66)-MIN(C66:G66))/3,IF(K66=4,(SUM(C66:G66)-MAX(C66:G66))/3,SUM(C66:G66)/3))*B66/7.6) ->  | K66: 0
A67: =IF(Draw!E66=0,"",Draw!E66) ->  | H67: =IF(B67="","",IF(K67=5,(SUM(C67:G67)-MAX(C67:G67)-MIN(C67:G67))/3,IF(K67=4,(SUM(C67:G67)-MAX(C67:G67))/3,SUM(C67:G67)/3))*B67/7.6) ->  | K67: 0
A68: =IF(Draw!E67=0,"",Draw!E67) ->  | H68: =IF(B68="","",IF(K68=5,(SUM(C68:G68)-MAX(C68:G68)-MIN(C68:G68))/3,IF(K68=4,(SUM(C68:G68)-MAX(C68:G68))/3,SUM(C68:G68)/3))*B68/7.6) ->  | K68: =COUNT(C68:G68) -> 0
A69: =IF(Draw!E68=0,"",Draw!E68) ->  | H69: =IF(B69="","",IF(K69=5,(SUM(C69:G69)-MAX(C69:G69)-MIN(C69:G69))/3,IF(K69=4,(SUM(C69:G69)-MAX(C69:G69))/3,SUM(C69:G69)/3))*B69/7.6) ->  | K69: 0
A70: =IF(Draw!E69=0,"",Draw!E69) ->  | H70: =IF(B70="","",IF(K70=5,(SUM(C70:G70)-MAX(C70:G70)-MIN(C70:G70))/3,IF(K70=4,(SUM(C70:G70)-MAX(C70:G70))/3,SUM(C70:G70)/3))*B70/7.6) ->  | K70: 0
A71: =IF(Draw!E70=0,"",Draw!E70) ->  | B71: =IF(A71="","",B$3) ->  | H71: =IF(B71="","",IF(K71=5,(SUM(C71:G71)-MAX(C71:G71)-MIN(C71:G71))/3,IF(K71=4,(SUM(C71:G71)-MAX(C71:G71))/3,SUM(C71:G71)/3))*B71/7.6) ->  | K71: 0
A72: =IF(Draw!E71=0,"",Draw!E71) ->  | H72: =IF(B72="","",IF(K72=5,(SUM(C72:G72)-MAX(C72:G72)-MIN(C72:G72))/3,IF(K72=4,(SUM(C72:G72)-MAX(C72:G72))/3,SUM(C72:G72)/3))*B72/7.6) ->  | K72: 0
A73: =IF(Draw!E72=0,"",Draw!E72) ->  | H73: =IF(B73="","",IF(K73=5,(SUM(C73:G73)-MAX(C73:G73)-MIN(C73:G73))/3,IF(K73=4,(SUM(C73:G73)-MAX(C73:G73))/3,SUM(C73:G73)/3))*B73/7.6) ->  | K73: 0
A74: =IF(Draw!E73=0,"",Draw!E73) ->  | H74: =IF(B74="","",IF(K74=5,(SUM(C74:G74)-MAX(C74:G74)-MIN(C74:G74))/3,IF(K74=4,(SUM(C74:G74)-MAX(C74:G74))/3,SUM(C74:G74)/3))*B74/7.6) ->  | K74: 0
A75: =IF(Draw!E74=0,"",Draw!E74) ->  | H75: =IF(B75="","",IF(K75=5,(SUM(C75:G75)-MAX(C75:G75)-MIN(C75:G75))/3,IF(K75=4,(SUM(C75:G75)-MAX(C75:G75))/3,SUM(C75:G75)/3))*B75/7.6) ->  | K75: 0
A76: =IF(Draw!E75=0,"",Draw!E75) ->  | H76: =IF(B76="","",IF(K76=5,(SUM(C76:G76)-MAX(C76:G76)-MIN(C76:G76))/3,IF(K76=4,(SUM(C76:G76)-MAX(C76:G76))/3,SUM(C76:G76)/3))*B76/7.6) ->  | K76: 0
A77: =IF(Draw!E76=0,"",Draw!E76) ->  | H77: =IF(B77="","",IF(K77=5,(SUM(C77:G77)-MAX(C77:G77)-MIN(C77:G77))/3,IF(K77=4,(SUM(C77:G77)-MAX(C77:G77))/3,SUM(C77:G77)/3))*B77/7.6) ->  | K77: 0
A78: =IF(Draw!E77=0,"",Draw!E77) ->  | H78: =IF(B78="","",IF(K78=5,(SUM(C78:G78)-MAX(C78:G78)-MIN(C78:G78))/3,IF(K78=4,(SUM(C78:G78)-MAX(C78:G78))/3,SUM(C78:G78)/3))*B78/7.6) ->  | K78: 0
A79: =IF(Draw!E78=0,"",Draw!E78) ->  | H79: =IF(B79="","",IF(K79=5,(SUM(C79:G79)-MAX(C79:G79)-MIN(C79:G79))/3,IF(K79=4,(SUM(C79:G79)-MAX(C79:G79))/3,SUM(C79:G79)/3))*B79/7.6) ->  | K79: 0
A80: =IF(Draw!E79=0,"",Draw!E79) ->  | H80: =IF(B80="","",IF(K80=5,(SUM(C80:G80)-MAX(C80:G80)-MIN(C80:G80))/3,IF(K80=4,(SUM(C80:G80)-MAX(C80:G80))/3,SUM(C80:G80)/3))*B80/7.6) ->  | K80: 0
A81: =IF(Draw!E80=0,"",Draw!E80) ->  | H81: =IF(B81="","",IF(K81=5,(SUM(C81:G81)-MAX(C81:G81)-MIN(C81:G81))/3,IF(K81=4,(SUM(C81:G81)-MAX(C81:G81))/3,SUM(C81:G81)/3))*B81/7.6) ->  | K81: 0
A82: =IF(Draw!E81=0,"",Draw!E81) ->  | H82: =IF(B82="","",IF(K82=5,(SUM(C82:G82)-MAX(C82:G82)-MIN(C82:G82))/3,IF(K82=4,(SUM(C82:G82)-MAX(C82:G82))/3,SUM(C82:G82)/3))*B82/7.6) ->  | K82: 0
A83: =IF(Draw!E82=0,"",Draw!E82) ->  | H83: =IF(B83="","",IF(K83=5,(SUM(C83:G83)-MAX(C83:G83)-MIN(C83:G83))/3,IF(K83=4,(SUM(C83:G83)-MAX(C83:G83))/3,SUM(C83:G83)/3))*B83/7.6) ->  | K83: 0
A84: =IF(Draw!E83=0,"",Draw!E83) ->  | H84: =IF(B84="","",IF(K84=5,(SUM(C84:G84)-MAX(C84:G84)-MIN(C84:G84))/3,IF(K84=4,(SUM(C84:G84)-MAX(C84:G84))/3,SUM(C84:G84)/3))*B84/7.6) ->  | K84: 0
A85: =IF(Draw!E84=0,"",Draw!E84) ->  | H85: =IF(B85="","",IF(K85=5,(SUM(C85:G85)-MAX(C85:G85)-MIN(C85:G85))/3,IF(K85=4,(SUM(C85:G85)-MAX(C85:G85))/3,SUM(C85:G85)/3))*B85/7.6) ->  | K85: 0
A86: =IF(Draw!E85=0,"",Draw!E85) ->  | H86: =IF(B86="","",IF(K86=5,(SUM(C86:G86)-MAX(C86:G86)-MIN(C86:G86))/3,IF(K86=4,(SUM(C86:G86)-MAX(C86:G86))/3,SUM(C86:G86)/3))*B86/7.6) ->  | K86: 0
A87: =IF(Draw!E86=0,"",Draw!E86) ->  | H87: =IF(B87="","",IF(K87=5,(SUM(C87:G87)-MAX(C87:G87)-MIN(C87:G87))/3,IF(K87=4,(SUM(C87:G87)-MAX(C87:G87))/3,SUM(C87:G87)/3))*B87/7.6) ->  | K87: 0
A88: =IF(Draw!E87=0,"",Draw!E87) ->  | H88: =IF(B88="","",IF(K88=5,(SUM(C88:G88)-MAX(C88:G88)-MIN(C88:G88))/3,IF(K88=4,(SUM(C88:G88)-MAX(C88:G88))/3,SUM(C88:G88)/3))*B88/7.6) ->  | K88: 0
A89: =IF(Draw!E88=0,"",Draw!E88) ->  | H89: =IF(B89="","",IF(K89=5,(SUM(C89:G89)-MAX(C89:G89)-MIN(C89:G89))/3,IF(K89=4,(SUM(C89:G89)-MAX(C89:G89))/3,SUM(C89:G89)/3))*B89/7.6) ->  | K89: 0
A90: =IF(Draw!E89=0,"",Draw!E89) ->  | H90: =IF(B90="","",IF(K90=5,(SUM(C90:G90)-MAX(C90:G90)-MIN(C90:G90))/3,IF(K90=4,(SUM(C90:G90)-MAX(C90:G90))/3,SUM(C90:G90)/3))*B90/7.6) ->  | K90: 0
A91: =IF(Draw!E90=0,"",Draw!E90) ->  | H91: =IF(B91="","",IF(K91=5,(SUM(C91:G91)-MAX(C91:G91)-MIN(C91:G91))/3,IF(K91=4,(SUM(C91:G91)-MAX(C91:G91))/3,SUM(C91:G91)/3))*B91/7.6) ->  | K91: 0
A92: =IF(Draw!E91=0,"",Draw!E91) ->  | H92: =IF(B92="","",IF(K92=5,(SUM(C92:G92)-MAX(C92:G92)-MIN(C92:G92))/3,IF(K92=4,(SUM(C92:G92)-MAX(C92:G92))/3,SUM(C92:G92)/3))*B92/7.6) ->  | K92: 0
A93: =IF(Draw!E92=0,"",Draw!E92) ->  | H93: =IF(B93="","",IF(K93=5,(SUM(C93:G93)-MAX(C93:G93)-MIN(C93:G93))/3,IF(K93=4,(SUM(C93:G93)-MAX(C93:G93))/3,SUM(C93:G93)/3))*B93/7.6) ->  | K93: 0
A94: =IF(Draw!E93=0,"",Draw!E93) ->  | H94: =IF(B94="","",IF(K94=5,(SUM(C94:G94)-MAX(C94:G94)-MIN(C94:G94))/3,IF(K94=4,(SUM(C94:G94)-MAX(C94:G94))/3,SUM(C94:G94)/3))*B94/7.6) ->  | K94: 0
A95: =IF(Draw!E94=0,"",Draw!E94) ->  | H95: =IF(B95="","",IF(K95=5,(SUM(C95:G95)-MAX(C95:G95)-MIN(C95:G95))/3,IF(K95=4,(SUM(C95:G95)-MAX(C95:G95))/3,SUM(C95:G95)/3))*B95/7.6) ->  | K95: 0
A96: =IF(Draw!E95=0,"",Draw!E95) ->  | H96: =IF(B96="","",IF(K96=5,(SUM(C96:G96)-MAX(C96:G96)-MIN(C96:G96))/3,IF(K96=4,(SUM(C96:G96)-MAX(C96:G96))/3,SUM(C96:G96)/3))*B96/7.6) ->  | K96: 0
A97: =IF(Draw!E96=0,"",Draw!E96) ->  | H97: =IF(B97="","",IF(K97=5,(SUM(C97:G97)-MAX(C97:G97)-MIN(C97:G97))/3,IF(K97=4,(SUM(C97:G97)-MAX(C97:G97))/3,SUM(C97:G97)/3))*B97/7.6) ->  | K97: 0
A98: =IF(Draw!E97=0,"",Draw!E97) ->  | H98: =IF(B98="","",IF(K98=5,(SUM(C98:G98)-MAX(C98:G98)-MIN(C98:G98))/3,IF(K98=4,(SUM(C98:G98)-MAX(C98:G98))/3,SUM(C98:G98)/3))*B98/7.6) ->  | K98: 0
A99: =IF(Draw!E98=0,"",Draw!E98) ->  | H99: =IF(B99="","",IF(K99=5,(SUM(C99:G99)-MAX(C99:G99)-MIN(C99:G99))/3,IF(K99=4,(SUM(C99:G99)-MAX(C99:G99))/3,SUM(C99:G99)/3))*B99/7.6) ->  | K99: 0
A100: =IF(Draw!E99=0,"",Draw!E99) ->  | H100: =IF(B100="","",IF(K100=5,(SUM(C100:G100)-MAX(C100:G100)-MIN(C100:G100))/3,IF(K100=4,(SUM(C100:G100)-MAX(C100:G100))/3,SUM(C100:G100)/3))*B100/7.6) ->  | K100: 0
A101: =IF(Draw!E100=0,"",Draw!E100) ->  | H101: =IF(B101="","",IF(K101=5,(SUM(C101:G101)-MAX(C101:G101)-MIN(C101:G101))/3,IF(K101=4,(SUM(C101:G101)-MAX(C101:G101))/3,SUM(C101:G101)/3))*B101/7.6) ->  | K101: 0
A102: =IF(Draw!E101=0,"",Draw!E101) ->  | H102: =IF(B102="","",IF(K102=5,(SUM(C102:G102)-MAX(C102:G102)-MIN(C102:G102))/3,IF(K102=4,(SUM(C102:G102)-MAX(C102:G102))/3,SUM(C102:G102)/3))*B102/7.6) ->  | K102: 0
A103: =IF(Draw!E102=0,"",Draw!E102) ->  | H103: =IF(B103="","",IF(K103=5,(SUM(C103:G103)-MAX(C103:G103)-MIN(C103:G103))/3,IF(K103=4,(SUM(C103:G103)-MAX(C103:G103))/3,SUM(C103:G103)/3))*B103/7.6) ->  | K103: 0
A104: =IF(Draw!E103=0,"",Draw!E103) ->  | H104: =IF(B104="","",IF(K104=5,(SUM(C104:G104)-MAX(C104:G104)-MIN(C104:G104))/3,IF(K104=4,(SUM(C104:G104)-MAX(C104:G104))/3,SUM(C104:G104)/3))*B104/7.6) ->  | K104: 0
A105: =IF(Draw!E104=0,"",Draw!E104) ->  | H105: =IF(B105="","",IF(K105=5,(SUM(C105:G105)-MAX(C105:G105)-MIN(C105:G105))/3,IF(K105=4,(SUM(C105:G105)-MAX(C105:G105))/3,SUM(C105:G105)/3))*B105/7.6) ->  | K105: 0
A106: =IF(Draw!E105=0,"",Draw!E105) ->  | H106: =IF(B106="","",IF(K106=5,(SUM(C106:G106)-MAX(C106:G106)-MIN(C106:G106))/3,IF(K106=4,(SUM(C106:G106)-MAX(C106:G106))/3,SUM(C106:G106)/3))*B106/7.6) ->  | K106: 0
A107: =IF(Draw!E106=0,"",Draw!E106) ->  | H107: =IF(B107="","",IF(K107=5,(SUM(C107:G107)-MAX(C107:G107)-MIN(C107:G107))/3,IF(K107=4,(SUM(C107:G107)-MAX(C107:G107))/3,SUM(C107:G107)/3))*B107/7.6) ->  | K107: 0
A108: =IF(Draw!E107=0,"",Draw!E107) ->  | H108: =IF(B108="","",IF(K108=5,(SUM(C108:G108)-MAX(C108:G108)-MIN(C108:G108))/3,IF(K108=4,(SUM(C108:G108)-MAX(C108:G108))/3,SUM(C108:G108)/3))*B108/7.6) ->  | K108: 0
A109: =IF(Draw!E108=0,"",Draw!E108) ->  | H109: =IF(B109="","",IF(K109=5,(SUM(C109:G109)-MAX(C109:G109)-MIN(C109:G109))/3,IF(K109=4,(SUM(C109:G109)-MAX(C109:G109))/3,SUM(C109:G109)/3))*B109/7.6) ->  | K109: 0
A110: =IF(Draw!E109=0,"",Draw!E109) ->  | H110: =IF(B110="","",IF(K110=5,(SUM(C110:G110)-MAX(C110:G110)-MIN(C110:G110))/3,IF(K110=4,(SUM(C110:G110)-MAX(C110:G110))/3,SUM(C110:G110)/3))*B110/7.6) ->  | K110: 0
A111: =IF(Draw!E110=0,"",Draw!E110) ->  | H111: =IF(B111="","",IF(K111=5,(SUM(C111:G111)-MAX(C111:G111)-MIN(C111:G111))/3,IF(K111=4,(SUM(C111:G111)-MAX(C111:G111))/3,SUM(C111:G111)/3))*B111/7.6) ->  | K111: 0
A112: =IF(Draw!E111=0,"",Draw!E111) ->  | H112: =IF(B112="","",IF(K112=5,(SUM(C112:G112)-MAX(C112:G112)-MIN(C112:G112))/3,IF(K112=4,(SUM(C112:G112)-MAX(C112:G112))/3,SUM(C112:G112)/3))*B112/7.6) ->  | K112: 0
A113: =IF(Draw!E112=0,"",Draw!E112) ->  | H113: =IF(B113="","",IF(K113=5,(SUM(C113:G113)-MAX(C113:G113)-MIN(C113:G113))/3,IF(K113=4,(SUM(C113:G113)-MAX(C113:G113))/3,SUM(C113:G113)/3))*B113/7.6) ->  | K113: 0
A114: =IF(Draw!E113=0,"",Draw!E113) ->  | H114: =IF(B114="","",IF(K114=5,(SUM(C114:G114)-MAX(C114:G114)-MIN(C114:G114))/3,IF(K114=4,(SUM(C114:G114)-MAX(C114:G114))/3,SUM(C114:G114)/3))*B114/7.6) ->  | K114: 0
A115: =IF(Draw!E114=0,"",Draw!E114) ->  | H115: =IF(B115="","",IF(K115=5,(SUM(C115:G115)-MAX(C115:G115)-MIN(C115:G115))/3,IF(K115=4,(SUM(C115:G115)-MAX(C115:G115))/3,SUM(C115:G115)/3))*B115/7.6) ->  | K115: 0
A116: =IF(Draw!E115=0,"",Draw!E115) ->  | H116: =IF(B116="","",IF(K116=5,(SUM(C116:G116)-MAX(C116:G116)-MIN(C116:G116))/3,IF(K116=4,(SUM(C116:G116)-MAX(C116:G116))/3,SUM(C116:G116)/3))*B116/7.6) ->  | K116: 0
A117: =IF(Draw!E116=0,"",Draw!E116) ->  | H117: =IF(B117="","",IF(K117=5,(SUM(C117:G117)-MAX(C117:G117)-MIN(C117:G117))/3,IF(K117=4,(SUM(C117:G117)-MAX(C117:G117))/3,SUM(C117:G117)/3))*B117/7.6) ->  | K117: 0
A118: =IF(Draw!E117=0,"",Draw!E117) ->  | H118: =IF(B118="","",IF(K118=5,(SUM(C118:G118)-MAX(C118:G118)-MIN(C118:G118))/3,IF(K118=4,(SUM(C118:G118)-MAX(C118:G118))/3,SUM(C118:G118)/3))*B118/7.6) ->  | K118: 0
A119: =IF(Draw!E118=0,"",Draw!E118) ->  | H119: =IF(B119="","",IF(K119=5,(SUM(C119:G119)-MAX(C119:G119)-MIN(C119:G119))/3,IF(K119=4,(SUM(C119:G119)-MAX(C119:G119))/3,SUM(C119:G119)/3))*B119/7.6) ->  | K119: 0
A120: =IF(Draw!E119=0,"",Draw!E119) ->  | H120: =IF(B120="","",IF(K120=5,(SUM(C120:G120)-MAX(C120:G120)-MIN(C120:G120))/3,IF(K120=4,(SUM(C120:G120)-MAX(C120:G120))/3,SUM(C120:G120)/3))*B120/7.6) ->  | K120: 0
A121: =IF(Draw!E120=0,"",Draw!E120) ->  | H121: =IF(B121="","",IF(K121=5,(SUM(C121:G121)-MAX(C121:G121)-MIN(C121:G121))/3,IF(K121=4,(SUM(C121:G121)-MAX(C121:G121))/3,SUM(C121:G121)/3))*B121/7.6) ->  | K121: 0
A122: =IF(Draw!E121=0,"",Draw!E121) ->  | H122: =IF(B122="","",IF(K122=5,(SUM(C122:G122)-MAX(C122:G122)-MIN(C122:G122))/3,IF(K122=4,(SUM(C122:G122)-MAX(C122:G122))/3,SUM(C122:G122)/3))*B122/7.6) ->  | K122: 0
A123: =IF(Draw!E122=0,"",Draw!E122) ->  | H123: =IF(B123="","",IF(K123=5,(SUM(C123:G123)-MAX(C123:G123)-MIN(C123:G123))/3,IF(K123=4,(SUM(C123:G123)-MAX(C123:G123))/3,SUM(C123:G123)/3))*B123/7.6) ->  | K123: 0
A124: =IF(Draw!E123=0,"",Draw!E123) ->  | H124: =IF(B124="","",IF(K124=5,(SUM(C124:G124)-MAX(C124:G124)-MIN(C124:G124))/3,IF(K124=4,(SUM(C124:G124)-MAX(C124:G124))/3,SUM(C124:G124)/3))*B124/7.6) ->  | K124: 0
A125: =IF(Draw!E124=0,"",Draw!E124) ->  | H125: =IF(B125="","",IF(K125=5,(SUM(C125:G125)-MAX(C125:G125)-MIN(C125:G125))/3,IF(K125=4,(SUM(C125:G125)-MAX(C125:G125))/3,SUM(C125:G125)/3))*B125/7.6) ->  | K125: 0
A126: =IF(Draw!E125=0,"",Draw!E125) ->  | H126: =IF(B126="","",IF(K126=5,(SUM(C126:G126)-MAX(C126:G126)-MIN(C126:G126))/3,IF(K126=4,(SUM(C126:G126)-MAX(C126:G126))/3,SUM(C126:G126)/3))*B126/7.6) ->  | K126: 0
A127: =IF(Draw!E126=0,"",Draw!E126) ->  | H127: =IF(B127="","",IF(K127=5,(SUM(C127:G127)-MAX(C127:G127)-MIN(C127:G127))/3,IF(K127=4,(SUM(C127:G127)-MAX(C127:G127))/3,SUM(C127:G127)/3))*B127/7.6) ->  | K127: 0
A128: =IF(Draw!E127=0,"",Draw!E127) ->  | H128: =IF(B128="","",IF(K128=5,(SUM(C128:G128)-MAX(C128:G128)-MIN(C128:G128))/3,IF(K128=4,(SUM(C128:G128)-MAX(C128:G128))/3,SUM(C128:G128)/3))*B128/7.6) ->  | K128: 0
A129: =IF(Draw!E128=0,"",Draw!E128) ->  | H129: =IF(B129="","",IF(K129=5,(SUM(C129:G129)-MAX(C129:G129)-MIN(C129:G129))/3,IF(K129=4,(SUM(C129:G129)-MAX(C129:G129))/3,SUM(C129:G129)/3))*B129/7.6) ->  | K129: 0
A130: =IF(Draw!E129=0,"",Draw!E129) ->  | H130: =IF(B130="","",IF(K130=5,(SUM(C130:G130)-MAX(C130:G130)-MIN(C130:G130))/3,IF(K130=4,(SUM(C130:G130)-MAX(C130:G130))/3,SUM(C130:G130)/3))*B130/7.6) ->  | K130: 0
A131: =IF(Draw!E130=0,"",Draw!E130) ->  | H131: =IF(B131="","",IF(K131=5,(SUM(C131:G131)-MAX(C131:G131)-MIN(C131:G131))/3,IF(K131=4,(SUM(C131:G131)-MAX(C131:G131))/3,SUM(C131:G131)/3))*B131/7.6) ->  | K131: 0
A132: =IF(Draw!E131=0,"",Draw!E131) ->  | H132: =IF(B132="","",IF(K132=5,(SUM(C132:G132)-MAX(C132:G132)-MIN(C132:G132))/3,IF(K132=4,(SUM(C132:G132)-MAX(C132:G132))/3,SUM(C132:G132)/3))*B132/7.6) ->  | K132: =COUNT(C132:G132) -> 0
A133: =IF(Draw!E132=0,"",Draw!E132) ->  | H133: =IF(B133="","",IF(K133=5,(SUM(C133:G133)-MAX(C133:G133)-MIN(C133:G133))/3,IF(K133=4,(SUM(C133:G133)-MAX(C133:G133))/3,SUM(C133:G133)/3))*B133/7.6) ->  | K133: 0
A134: =IF(Draw!E133=0,"",Draw!E133) ->  | H134: =IF(B134="","",IF(K134=5,(SUM(C134:G134)-MAX(C134:G134)-MIN(C134:G134))/3,IF(K134=4,(SUM(C134:G134)-MAX(C134:G134))/3,SUM(C134:G134)/3))*B134/7.6) ->  | K134: 0
A135: =IF(Draw!E134=0,"",Draw!E134) ->  | B135: =IF(A135="","",B$3) ->  | H135: =IF(B135="","",IF(K135=5,(SUM(C135:G135)-MAX(C135:G135)-MIN(C135:G135))/3,IF(K135=4,(SUM(C135:G135)-MAX(C135:G135))/3,SUM(C135:G135)/3))*B135/7.6) ->  | K135: 0
A136: =IF(Draw!E135=0,"",Draw!E135) ->  | H136: =IF(B136="","",IF(K136=5,(SUM(C136:G136)-MAX(C136:G136)-MIN(C136:G136))/3,IF(K136=4,(SUM(C136:G136)-MAX(C136:G136))/3,SUM(C136:G136)/3))*B136/7.6) ->  | K136: 0
A137: =IF(Draw!E136=0,"",Draw!E136) ->  | H137: =IF(B137="","",IF(K137=5,(SUM(C137:G137)-MAX(C137:G137)-MIN(C137:G137))/3,IF(K137=4,(SUM(C137:G137)-MAX(C137:G137))/3,SUM(C137:G137)/3))*B137/7.6) ->  | K137: 0
A138: =IF(Draw!E137=0,"",Draw!E137) ->  | H138: =IF(B138="","",IF(K138=5,(SUM(C138:G138)-MAX(C138:G138)-MIN(C138:G138))/3,IF(K138=4,(SUM(C138:G138)-MAX(C138:G138))/3,SUM(C138:G138)/3))*B138/7.6) ->  | K138: 0
A139: =IF(Draw!E138=0,"",Draw!E138) ->  | H139: =IF(B139="","",IF(K139=5,(SUM(C139:G139)-MAX(C139:G139)-MIN(C139:G139))/3,IF(K139=4,(SUM(C139:G139)-MAX(C139:G139))/3,SUM(C139:G139)/3))*B139/7.6) ->  | K139: 0
A140: =IF(Draw!E139=0,"",Draw!E139) ->  | H140: =IF(B140="","",IF(K140=5,(SUM(C140:G140)-MAX(C140:G140)-MIN(C140:G140))/3,IF(K140=4,(SUM(C140:G140)-MAX(C140:G140))/3,SUM(C140:G140)/3))*B140/7.6) ->  | K140: 0
A141: =IF(Draw!E140=0,"",Draw!E140) ->  | H141: =IF(B141="","",IF(K141=5,(SUM(C141:G141)-MAX(C141:G141)-MIN(C141:G141))/3,IF(K141=4,(SUM(C141:G141)-MAX(C141:G141))/3,SUM(C141:G141)/3))*B141/7.6) ->  | K141: 0
A142: =IF(Draw!E141=0,"",Draw!E141) ->  | H142: =IF(B142="","",IF(K142=5,(SUM(C142:G142)-MAX(C142:G142)-MIN(C142:G142))/3,IF(K142=4,(SUM(C142:G142)-MAX(C142:G142))/3,SUM(C142:G142)/3))*B142/7.6) ->  | K142: 0
A143: =IF(Draw!E142=0,"",Draw!E142) ->  | H143: =IF(B143="","",IF(K143=5,(SUM(C143:G143)-MAX(C143:G143)-MIN(C143:G143))/3,IF(K143=4,(SUM(C143:G143)-MAX(C143:G143))/3,SUM(C143:G143)/3))*B143/7.6) ->  | K143: 0
A144: =IF(Draw!E143=0,"",Draw!E143) ->  | H144: =IF(B144="","",IF(K144=5,(SUM(C144:G144)-MAX(C144:G144)-MIN(C144:G144))/3,IF(K144=4,(SUM(C144:G144)-MAX(C144:G144))/3,SUM(C144:G144)/3))*B144/7.6) ->  | K144: 0
A145: =IF(Draw!E144=0,"",Draw!E144) ->  | H145: =IF(B145="","",IF(K145=5,(SUM(C145:G145)-MAX(C145:G145)-MIN(C145:G145))/3,IF(K145=4,(SUM(C145:G145)-MAX(C145:G145))/3,SUM(C145:G145)/3))*B145/7.6) ->  | K145: 0
A146: =IF(Draw!E145=0,"",Draw!E145) ->  | H146: =IF(B146="","",IF(K146=5,(SUM(C146:G146)-MAX(C146:G146)-MIN(C146:G146))/3,IF(K146=4,(SUM(C146:G146)-MAX(C146:G146))/3,SUM(C146:G146)/3))*B146/7.6) ->  | K146: 0
A147: =IF(Draw!E146=0,"",Draw!E146) ->  | H147: =IF(B147="","",IF(K147=5,(SUM(C147:G147)-MAX(C147:G147)-MIN(C147:G147))/3,IF(K147=4,(SUM(C147:G147)-MAX(C147:G147))/3,SUM(C147:G147)/3))*B147/7.6) ->  | K147: 0
A148: =IF(Draw!E147=0,"",Draw!E147) ->  | H148: =IF(B148="","",IF(K148=5,(SUM(C148:G148)-MAX(C148:G148)-MIN(C148:G148))/3,IF(K148=4,(SUM(C148:G148)-MAX(C148:G148))/3,SUM(C148:G148)/3))*B148/7.6) ->  | K148: 0
A149: =IF(Draw!E148=0,"",Draw!E148) ->  | H149: =IF(B149="","",IF(K149=5,(SUM(C149:G149)-MAX(C149:G149)-MIN(C149:G149))/3,IF(K149=4,(SUM(C149:G149)-MAX(C149:G149))/3,SUM(C149:G149)/3))*B149/7.6) ->  | K149: 0
A150: =IF(Draw!E149=0,"",Draw!E149) ->  | H150: =IF(B150="","",IF(K150=5,(SUM(C150:G150)-MAX(C150:G150)-MIN(C150:G150))/3,IF(K150=4,(SUM(C150:G150)-MAX(C150:G150))/3,SUM(C150:G150)/3))*B150/7.6) ->  | K150: 0

Sheet Totals
A1: # | B1: Swimmer | C1: School | D1: Total Score | E1: Place | F1: Figure 1 | G1: Figure 2 | H1: Figure 3 | I1: Figure 4 | J1: Penalties | K1: Score
A2: =IF(Draw!E2=0,"",Draw!E2) -> 1 | B2: Grace Henke | C2: Stillwater | D2: =IF($A2="","",SUM(F2:I2)-J2) -> 58.43859649 | E2: =IF($A2="","",RANK(D2,D$2:D$150)) -> 15 | F2: =IF($A2="","",'Fig 1 Ballet Leg'!H3) -> 12.07017544 | G2: =IF($A2="","",'Fig 2 Barracuda'!H3) -> 15.52631579 | H2: =IF($A2="","",'Fig 3 Tower'!H3) -> 15 | I2: =IF($A2="","",'Fig 4 Walkover'!H3) -> 15.84210526 | J2: =IF($A2="","",'Fig 1 Ballet Leg'!I3+'Fig 2 Barracuda'!I3+'Fig 3 Tower'!I3+'Fig 4 Walkover'!I3) -> 0 | K2: =IF($A2="","",IF(A2="","",VLOOKUP(E2,AX$3:AY$102,2,FALSE))) -> 0
A3: =IF(Draw!E3=0,"",Draw!E3) -> 2 | B3: Drazenovich, Holly | C3: Osseo-Maple Grove | D3: =IF($A3="","",SUM(F3:I3)-J3) -> 49.72368421 | E3: =IF($A3="","",RANK(D3,D$2:D$150)) -> 53 | F3: =IF($A3="","",'Fig 1 Ballet Leg'!H4) -> 10.31578947 | G3: =IF($A3="","",'Fig 2 Barracuda'!H4) -> 13.77192982 | H3: =IF($A3="","",'Fig 3 Tower'!H4) -> 11.08333333 | I3: =IF($A3="","",'Fig 4 Walkover'!H4) -> 14.55263158 | J3: =IF($A3="","",'Fig 1 Ballet Leg'!I4+'Fig 2 Barracuda'!I4+'Fig 3 Tower'!I4+'Fig 4 Walkover'!I4) -> 0 | K3: =IF($A3="","",IF(A3="","",VLOOKUP(E3,AX$3:AY$102,2,FALSE))) -> 0 | AX3: 1 | AY3: 8
A4: =IF(Draw!E4=0,"",Draw!E4) -> 3 | B4: Carolyn Wrightsman | C4: Stillwater | D4: 56.59649123 | E4: 25 | F4: =IF($A4="","",'Fig 1 Ballet Leg'!H5) -> 12.63157895 | G4: =IF($A4="","",'Fig 2 Barracuda'!H5) -> 14.8245614 | H4: =IF($A4="","",'Fig 3 Tower'!H5) -> 13.66666667 | I4: =IF($A4="","",'Fig 4 Walkover'!H5) -> 15.47368421 | J4: =IF($A4="","",'Fig 1 Ballet Leg'!I5+'Fig 2 Barracuda'!I5+'Fig 3 Tower'!I5+'Fig 4 Walkover'!I5) -> 0 | K4: 0 | AX4: 2 | AY4: 6
A5: =IF(Draw!E5=0,"",Draw!E5) -> 4 | B5: Ruohoniemi, Jessica (Jess) | C5: Osseo-Maple Grove | D5: =IF($A5="","",SUM(F5:I5)-J5) -> 52.29824561 | E5: =IF($A5="","",RANK(D5,D$2:D$150)) -> 43 | F5: =IF($A5="","",'Fig 1 Ballet Leg'!H6) -> 11.29824561 | G5: =IF($A5="","",'Fig 2 Barracuda'!H6) -> 12.98245614 | H5: =IF($A5="","",'Fig 3 Tower'!H6) -> 13.83333333 | I5: =IF($A5="","",'Fig 4 Walkover'!H6) -> 14.18421053 | J5: =IF($A5="","",'Fig 1 Ballet Leg'!I6+'Fig 2 Barracuda'!I6+'Fig 3 Tower'!I6+'Fig 4 Walkover'!I6) -> 0 | K5: =IF($A5="","",IF(A5="","",VLOOKUP(E5,AX$3:AY$102,2,FALSE))) -> 0 | AX5: 3 | AY5: 5
A6: =IF(Draw!E6=0,"",Draw!E6) -> 5 | B6: Grace Zimmer | C6: Stillwater | D6: 63.0745614 | E6: 3 | F6: =IF($A6="","",'Fig 1 Ballet Leg'!H7) -> 12.84210526 | G6: =IF($A6="","",'Fig 2 Barracuda'!H7) -> 16.57894737 | H6: =IF($A6="","",'Fig 3 Tower'!H7) -> 15.41666667 | I6: =IF($A6="","",'Fig 4 Walkover'!H7) -> 18.23684211 | J6: =IF($A6="","",'Fig 1 Ballet Leg'!I7+'Fig 2 Barracuda'!I7+'Fig 3 Tower'!I7+'Fig 4 Walkover'!I7) -> 0 | K6: 5 | AX6: 4 | AY6: 4
A7: =IF(Draw!E7=0,"",Draw!E7) -> 6 | B7: Grace Gualtieri | C7: Stillwater | D7: 62.14473684 | E7: 6 | F7: =IF($A7="","",'Fig 1 Ballet Leg'!H8) -> 13.05263158 | G7: =IF($A7="","",'Fig 2 Barracuda'!H8) -> 16.84210526 | H7: =IF($A7="","",'Fig 3 Tower'!H8) -> 14.75 | I7: =IF($A7="","",'Fig 4 Walkover'!H8) -> 17.5 | J7: =IF($A7="","",'Fig 1 Ballet Leg'!I8+'Fig 2 Barracuda'!I8+'Fig 3 Tower'!I8+'Fig 4 Walkover'!I8) -> 0 | K7: 2 | AX7: 5 | AY7: 3
A8: =IF(Draw!E8=0,"",Draw!E8) -> 7 | B8: Jane Sorenson | C8: Stillwater | D8: 52.08333333 | E8: 45 | F8: =IF($A8="","",'Fig 1 Ballet Leg'!H9) -> 11.36842105 | G8: =IF($A8="","",'Fig 2 Barracuda'!H9) -> 12.98245614 | H8: =IF($A8="","",'Fig 3 Tower'!H9) -> 13.91666667 | I8: =IF($A8="","",'Fig 4 Walkover'!H9) -> 13.81578947 | J8: =IF($A8="","",'Fig 1 Ballet Leg'!I9+'Fig 2 Barracuda'!I9+'Fig 3 Tower'!I9+'Fig 4 Walkover'!I9) -> 0 | K8: 0 | AX8: 6 | AY8: 2
A9: =IF(Draw!E9=0,"",Draw!E9) -> 8 | B9: Rubie Ballantyne | C9: Stillwater | D9: 58.99561404 | E9: 12 | F9: =IF($A9="","",'Fig 1 Ballet Leg'!H10) -> 11.92982456 | G9: =IF($A9="","",'Fig 2 Barracuda'!H10) -> 16.05263158 | H9: =IF($A9="","",'Fig 3 Tower'!H10) -> 14.25 | I9: =IF($A9="","",'Fig 4 Walkover'!H10) -> 16.76315789 | J9: =IF($A9="","",'Fig 1 Ballet Leg'!I10+'Fig 2 Barracuda'!I10+'Fig 3 Tower'!I10+'Fig 4 Walkover'!I10) -> 0 | K9: 0 | AX9: 7 | AY9: 1
A10: =IF(Draw!E10=0,"",Draw!E10) -> 9 | B10: Hannah Dettmann | C10: Stillwater | D10: 58.93859649 | E10: 13 | F10: =IF($A10="","",'Fig 1 Ballet Leg'!H11) -> 11.92982456 | G10: =IF($A10="","",'Fig 2 Barracuda'!H11) -> 15.96491228 | H10: =IF($A10="","",'Fig 3 Tower'!H11) -> 14.83333333 | I10: =IF($A10="","",'Fig 4 Walkover'!H11) -> 16.21052632 | J10: =IF($A10="","",'Fig 1 Ballet Leg'!I11+'Fig 2 Barracuda'!I11+'Fig 3 Tower'!I11+'Fig 4 Walkover'!I11) -> 0 | K10: 0 | AX10: 8 | AY10: 0
A11: =IF(Draw!E11=0,"",Draw!E11) -> 10 | B11: Ellie Bliss | C11: Stillwater | D11: 55.53508772 | E11: 28 | F11: =IF($A11="","",'Fig 1 Ballet Leg'!H12) -> 11.29824561 | G11: =IF($A11="","",'Fig 2 Barracuda'!H12) -> 14.56140351 | H11: =IF($A11="","",'Fig 3 Tower'!H12) -> 13.83333333 | I11: =IF($A11="","",'Fig 4 Walkover'!H12) -> 15.84210526 | J11: =IF($A11="","",'Fig 1 Ballet Leg'!I12+'Fig 2 Barracuda'!I12+'Fig 3 Tower'!I12+'Fig 4 Walkover'!I12) -> 0 | K11: 0 | AX11: 9 | AY11: 0
A12: =IF(Draw!E12=0,"",Draw!E12) -> 11 | B12: Ganser, Anna | C12: Osseo-Maple Grove | D12: 60.05701754 | E12: 7 | F12: =IF($A12="","",'Fig 1 Ballet Leg'!H13) -> 13.33333333 | G12: =IF($A12="","",'Fig 2 Barracuda'!H13) -> 15.43859649 | H12: =IF($A12="","",'Fig 3 Tower'!H13) -> 15.16666667 | I12: =IF($A12="","",'Fig 4 Walkover'!H13) -> 16.11842105 | J12: =IF($A12="","",'Fig 1 Ballet Leg'!I13+'Fig 2 Barracuda'!I13+'Fig 3 Tower'!I13+'Fig 4 Walkover'!I13) -> 0 | K12: 1 | AX12: 10 | AY12: 0
A13: =IF(Draw!E13=0,"",Draw!E13) -> 12 | B13: Miranda Bergan | C13: Stillwater | D13: 58.19298246 | E13: 17 | F13: =IF($A13="","",'Fig 1 Ballet Leg'!H14) -> 12.28070175 | G13: =IF($A13="","",'Fig 2 Barracuda'!H14) -> 15.87719298 | H13: =IF($A13="","",'Fig 3 Tower'!H14) -> 13.91666667 | I13: =IF($A13="","",'Fig 4 Walkover'!H14) -> 16.11842105 | J13: =IF($A13="","",'Fig 1 Ballet Leg'!I14+'Fig 2 Barracuda'!I14+'Fig 3 Tower'!I14+'Fig 4 Walkover'!I14) -> 0 | K13: 0 | AX13: 11 | AY13: 0
A14: =IF(Draw!E14=0,"",Draw!E14) -> 13 | B14: Waldron, Zoe | C14: Osseo-Maple Grove | D14: 54.8377193 | E14: 33 | F14: =IF($A14="","",'Fig 1 Ballet Leg'!H15) -> 11.85964912 | G14: =IF($A14="","",'Fig 2 Barracuda'!H15) -> 14.8245614 | H14: =IF($A14="","",'Fig 3 Tower'!H15) -> 13.41666667 | I14: =IF($A14="","",'Fig 4 Walkover'!H15) -> 14.73684211 | J14: =IF($A14="","",'Fig 1 Ballet Leg'!I15+'Fig 2 Barracuda'!I15+'Fig 3 Tower'!I15+'Fig 4 Walkover'!I15) -> 0 | K14: 0 | AX14: 12 | AY14: 0
A15: =IF(Draw!E15=0,"",Draw!E15) -> 14 | B15: Vanderwarn, Marie | C15: Osseo-Maple Grove | D15: 56.27631579 | E15: 27 | F15: =IF($A15="","",'Fig 1 Ballet Leg'!H16) -> 11.78947368 | G15: =IF($A15="","",'Fig 2 Barracuda'!H16) -> 15.0877193 | H15: =IF($A15="","",'Fig 3 Tower'!H16) -> 13.83333333 | I15: =IF($A15="","",'Fig 4 Walkover'!H16) -> 15.56578947 | J15: =IF($A15="","",'Fig 1 Ballet Leg'!I16+'Fig 2 Barracuda'!I16+'Fig 3 Tower'!I16+'Fig 4 Walkover'!I16) -> 0 | K15: 0 | AX15: 13 | AY15: 0
A16: =IF(Draw!E16=0,"",Draw!E16) -> 15 | B16: Linnea Coltvet | C16: Stillwater | D16: 59.4254386 | E16: 10 | F16: =IF($A16="","",'Fig 1 Ballet Leg'!H17) -> 13.19298246 | G16: =IF($A16="","",'Fig 2 Barracuda'!H17) -> 15.26315789 | H16: =IF($A16="","",'Fig 3 Tower'!H17) -> 14.66666667 | I16: =IF($A16="","",'Fig 4 Walkover'!H17) -> 16.30263158 | J16: =IF($A16="","",'Fig 1 Ballet Leg'!I17+'Fig 2 Barracuda'!I17+'Fig 3 Tower'!I17+'Fig 4 Walkover'!I17) -> 0 | K16: 0 | AX16: 14 | AY16: 0
A17: =IF(Draw!E17=0,"",Draw!E17) -> 16 | B17: Ryann Ellis | C17: Stillwater | D17: 54.71929825 | E17: 35 | F17: =IF($A17="","",'Fig 1 Ballet Leg'!H18) -> 10.80701754 | G17: =IF($A17="","",'Fig 2 Barracuda'!H18) -> 14.47368421 | H17: =IF($A17="","",'Fig 3 Tower'!H18) -> 14.33333333 | I17: =IF($A17="","",'Fig 4 Walkover'!H18) -> 15.10526316 | J17: =IF($A17="","",'Fig 1 Ballet Leg'!I18+'Fig 2 Barracuda'!I18+'Fig 3 Tower'!I18+'Fig 4 Walkover'!I18) -> 0 | K17: 0 | AX17: 15 | AY17: 0
A18: =IF(Draw!E18=0,"",Draw!E18) -> 17 | B18: Kya Hodgdon | C18: Stillwater | D18: 52.25877193 | E18: 44 | F18: =IF($A18="","",'Fig 1 Ballet Leg'!H19) -> 11.01754386 | G18: =IF($A18="","",'Fig 2 Barracuda'!H19) -> 14.29824561 | H18: =IF($A18="","",'Fig 3 Tower'!H19) -> 12.66666667 | I18: =IF($A18="","",'Fig 4 Walkover'!H19) -> 14.27631579 | J18: =IF($A18="","",'Fig 1 Ballet Leg'!I19+'Fig 2 Barracuda'!I19+'Fig 3 Tower'!I19+'Fig 4 Walkover'!I19) -> 0 | K18: 0 | AX18: 16 | AY18: 0
A19: =IF(Draw!E19=0,"",Draw!E19) -> 18 | B19: Hawes, Danielle | C19: Osseo-Maple Grove | D19: 59.10087719 | E19: 11 | F19: =IF($A19="","",'Fig 1 Ballet Leg'!H20) -> 12.9122807 | G19: =IF($A19="","",'Fig 2 Barracuda'!H20) -> 15 | H19: =IF($A19="","",'Fig 3 Tower'!H20) -> 14.33333333 | I19: =IF($A19="","",'Fig 4 Walkover'!H20) -> 16.85526316 | J19: =IF($A19="","",'Fig 1 Ballet Leg'!I20+'Fig 2 Barracuda'!I20+'Fig 3 Tower'!I20+'Fig 4 Walkover'!I20) -> 0 | K19: 0 | AX19: 17 | AY19: 0
A20: =IF(Draw!E20=0,"",Draw!E20) -> 19 | B20: Andrea Finholt | C20: Stillwater | D20: 53.58333333 | E20: 37 | F20: =IF($A20="","",'Fig 1 Ballet Leg'!H21) -> 11.92982456 | G20: =IF($A20="","",'Fig 2 Barracuda'!H21) -> 14.21052632 | H20: =IF($A20="","",'Fig 3 Tower'!H21) -> 13.16666667 | I20: =IF($A20="","",'Fig 4 Walkover'!H21) -> 14.27631579 | J20: =IF($A20="","",'Fig 1 Ballet Leg'!I21+'Fig 2 Barracuda'!I21+'Fig 3 Tower'!I21+'Fig 4 Walkover'!I21) -> 0 | K20: 0 | AX20: 18 | AY20: 0
A21: =IF(Draw!E21=0,"",Draw!E21) -> 20 | B21: Sophie Ogaard | C21: Stillwater | D21: 64.09210526 | E21: 1 | F21: =IF($A21="","",'Fig 1 Ballet Leg'!H22) -> 13.33333333 | G21: =IF($A21="","",'Fig 2 Barracuda'!H22) -> 16.84210526 | H21: =IF($A21="","",'Fig 3 Tower'!H22) -> 16.41666667 | I21: =IF($A21="","",'Fig 4 Walkover'!H22) -> 17.5 | J21: =IF($A21="","",'Fig 1 Ballet Leg'!I22+'Fig 2 Barracuda'!I22+'Fig 3 Tower'!I22+'Fig 4 Walkover'!I22) -> 0 | K21: 8 | AX21: 19 | AY21: 0
A22: =IF(Draw!E22=0,"",Draw!E22) -> 21 | B22: Ali Gerard | C22: Stillwater | D22: 54.79385965 | E22: 34 | F22: =IF($A22="","",'Fig 1 Ballet Leg'!H23) -> 11.78947368 | G22: =IF($A22="","",'Fig 2 Barracuda'!H23) -> 15.1754386 | H22: =IF($A22="","",'Fig 3 Tower'!H23) -> 13 | I22: =IF($A22="","",'Fig 4 Walkover'!H23) -> 14.82894737 | J22: =IF($A22="","",'Fig 1 Ballet Leg'!I23+'Fig 2 Barracuda'!I23+'Fig 3 Tower'!I23+'Fig 4 Walkover'!I23) -> 0 | K22: 0 | AX22: 20 | AY22: 0
A23: =IF(Draw!E23=0,"",Draw!E23) -> 22 | B23: Grace Sneden | C23: Stillwater | D23: 56.78070175 | E23: 23 | F23: =IF($A23="","",'Fig 1 Ballet Leg'!H24) -> 11.92982456 | G23: =IF($A23="","",'Fig 2 Barracuda'!H24) -> 15.70175439 | H23: =IF($A23="","",'Fig 3 Tower'!H24) -> 13.58333333 | I23: =IF($A23="","",'Fig 4 Walkover'!H24) -> 15.56578947 | J23: =IF($A23="","",'Fig 1 Ballet Leg'!I24+'Fig 2 Barracuda'!I24+'Fig 3 Tower'!I24+'Fig 4 Walkover'!I24) -> 0 | K23: 0 | AX23: 21 | AY23: 0
A24: =IF(Draw!E24=0,"",Draw!E24) -> 23 | B24: Moline, Katelyn (Katie) | C24: Osseo-Maple Grove | D24: 52.50438596 | E24: 40 | F24: =IF($A24="","",'Fig 1 Ballet Leg'!H25) -> 11.15789474 | G24: =IF($A24="","",'Fig 2 Barracuda'!H25) -> 13.68421053 | H24: =IF($A24="","",'Fig 3 Tower'!H25) -> 12.83333333 | I24: =IF($A24="","",'Fig 4 Walkover'!H25) -> 14.82894737 | J24: =IF($A24="","",'Fig 1 Ballet Leg'!I25+'Fig 2 Barracuda'!I25+'Fig 3 Tower'!I25+'Fig 4 Walkover'!I25) -> 0 | K24: 0 | AX24: 22 | AY24: 0
A25: =IF(Draw!E25=0,"",Draw!E25) -> 24 | B25: Prentice, Margo | C25: Osseo-Maple Grove | D25: 51.33333333 | E25: 49 | F25: =IF($A25="","",'Fig 1 Ballet Leg'!H26) -> 10.94736842 | G25: =IF($A25="","",'Fig 2 Barracuda'!H26) -> 12.98245614 | H25: =IF($A25="","",'Fig 3 Tower'!H26) -> 12.66666667 | I25: =IF($A25="","",'Fig 4 Walkover'!H26) -> 14.73684211 | J25: =IF($A25="","",'Fig 1 Ballet Leg'!I26+'Fig 2 Barracuda'!I26+'Fig 3 Tower'!I26+'Fig 4 Walkover'!I26) -> 0 | K25: 0 | AX25: 23 | AY25: 0
A26: =IF(Draw!E26=0,"",Draw!E26) -> 25 | B26: Honnold, Emily | C26: Osseo-Maple Grove | D26: 47.43421053 | E26: 55 | F26: =IF($A26="","",'Fig 1 Ballet Leg'!H27) -> 9.964912281 | G26: =IF($A26="","",'Fig 2 Barracuda'!H27) -> 12.71929825 | H26: =IF($A26="","",'Fig 3 Tower'!H27) -> 10.75 | I26: =IF($A26="","",'Fig 4 Walkover'!H27) -> 14 | J26: =IF($A26="","",'Fig 1 Ballet Leg'!I27+'Fig 2 Barracuda'!I27+'Fig 3 Tower'!I27+'Fig 4 Walkover'!I27) -> 0 | K26: 0 | AX26: 24 | AY26: 0
A27: =IF(Draw!E27=0,"",Draw!E27) -> 26 | B27: Laborde, Caroline | C27: Osseo-Maple Grove | D27: 52.83333333 | E27: 39 | F27: =IF($A27="","",'Fig 1 Ballet Leg'!H28) -> 11.22807018 | G27: =IF($A27="","",'Fig 2 Barracuda'!H28) -> 14.38596491 | H27: =IF($A27="","",'Fig 3 Tower'!H28) -> 12.66666667 | I27: =IF($A27="","",'Fig 4 Walkover'!H28) -> 14.55263158 | J27: =IF($A27="","",'Fig 1 Ballet Leg'!I28+'Fig 2 Barracuda'!I28+'Fig 3 Tower'!I28+'Fig 4 Walkover'!I28) -> 0 | K27: 0 | AX27: 25 | AY27: 0
A28: =IF(Draw!E28=0,"",Draw!E28) -> 27 | B28: Peters, Madison | C28: Osseo-Maple Grove | D28: 51.57894737 | E28: 47 | F28: =IF($A28="","",'Fig 1 Ballet Leg'!H29) -> 10.80701754 | G28: =IF($A28="","",'Fig 2 Barracuda'!H29) -> 13.42105263 | H28: =IF($A28="","",'Fig 3 Tower'!H29) -> 13.16666667 | I28: =IF($A28="","",'Fig 4 Walkover'!H29) -> 14.18421053 | J28: =IF($A28="","",'Fig 1 Ballet Leg'!I29+'Fig 2 Barracuda'!I29+'Fig 3 Tower'!I29+'Fig 4 Walkover'!I29) -> 0 | K28: 0 | AX28: 26 | AY28: 0
A29: =IF(Draw!E29=0,"",Draw!E29) -> 28 | B29: Hammann, Allison | C29: Osseo-Maple Grove | D29: 49.72368421 | E29: 54 | F29: =IF($A29="","",'Fig 1 Ballet Leg'!H30) -> 11.57894737 | G29: =IF($A29="","",'Fig 2 Barracuda'!H30) -> 12.80701754 | H29: =IF($A29="","",'Fig 3 Tower'!H30) -> 12.16666667 | I29: =IF($A29="","",'Fig 4 Walkover'!H30) -> 13.17105263 | J29: =IF($A29="","",'Fig 1 Ballet Leg'!I30+'Fig 2 Barracuda'!I30+'Fig 3 Tower'!I30+'Fig 4 Walkover'!I30) -> 0 | K29: 0 | AX29: 27 | AY29: 0
A30: =IF(Draw!E30=0,"",Draw!E30) -> 29 | B30: McBride, Elizabeth (Lizzy) | C30: Osseo-Maple Grove | D30: 62.23684211 | E30: 5 | F30: =IF($A30="","",'Fig 1 Ballet Leg'!H31) -> 12.84210526 | G30: =IF($A30="","",'Fig 2 Barracuda'!H31) -> 16.40350877 | H30: =IF($A30="","",'Fig 3 Tower'!H31) -> 15.58333333 | I30: =IF($A30="","",'Fig 4 Walkover'!H31) -> 17.40789474 | J30: =IF($A30="","",'Fig 1 Ballet Leg'!I31+'Fig 2 Barracuda'!I31+'Fig 3 Tower'!I31+'Fig 4 Walkover'!I31) -> 0 | K30: 3 | AX30: 28 | AY30: 0
A31: =IF(Draw!E31=0,"",Draw!E31) -> 30 | B31: Sophie Browning | C31: Stillwater | D31: 50.87280702 | E31: 50 | F31: =IF($A31="","",'Fig 1 Ballet Leg'!H32) -> 11.22807018 | G31: =IF($A31="","",'Fig 2 Barracuda'!H32) -> 13.77192982 | H31: =IF($A31="","",'Fig 3 Tower'!H32) -> 12.33333333 | I31: =IF($A31="","",'Fig 4 Walkover'!H32) -> 13.53947368 | J31: =IF($A31="","",'Fig 1 Ballet Leg'!I32+'Fig 2 Barracuda'!I32+'Fig 3 Tower'!I32+'Fig 4 Walkover'!I32) -> 0 | K31: 0 | AX31: 29 | AY31: 0
A32: =IF(Draw!E32=0,"",Draw!E32) -> 31 | B32: McNamee, Kelly | C32: Osseo-Maple Grove | D32: 54.99561404 | E32: 32 | F32: =IF($A32="","",'Fig 1 Ballet Leg'!H33) -> 12.98245614 | G32: =IF($A32="","",'Fig 2 Barracuda'!H33) -> 14.38596491 | H32: =IF($A32="","",'Fig 3 Tower'!H33) -> 13.16666667 | I32: =IF($A32="","",'Fig 4 Walkover'!H33) -> 14.46052632 | J32: =IF($A32="","",'Fig 1 Ballet Leg'!I33+'Fig 2 Barracuda'!I33+'Fig 3 Tower'!I33+'Fig 4 Walkover'!I33) -> 0 | K32: 0 | AX32: 30 | AY32: 0
A33: =IF(Draw!E33=0,"",Draw!E33) -> 32 | B33: Claire Summary | C33: Stillwater | D33: 57.89912281 | E33: 19 | F33: =IF($A33="","",'Fig 1 Ballet Leg'!H34) -> 13.05263158 | G33: =IF($A33="","",'Fig 2 Barracuda'!H34) -> 15.26315789 | H33: =IF($A33="","",'Fig 3 Tower'!H34) -> 13.83333333 | I33: =IF($A33="","",'Fig 4 Walkover'!H34) -> 15.75 | J33: =IF($A33="","",'Fig 1 Ballet Leg'!I34+'Fig 2 Barracuda'!I34+'Fig 3 Tower'!I34+'Fig 4 Walkover'!I34) -> 0 | K33: 0 | AX33: 31 | AY33: 0
A34: =IF(Draw!E34=0,"",Draw!E34) -> 33 | B34: Isabel Solheim | C34: Stillwater | D34: 59.60087719 | E34: 8 | F34: =IF($A34="","",'Fig 1 Ballet Leg'!H35) -> 12.49122807 | G34: =IF($A34="","",'Fig 2 Barracuda'!H35) -> 15.43859649 | H34: =IF($A34="","",'Fig 3 Tower'!H35) -> 15 | I34: =IF($A34="","",'Fig 4 Walkover'!H35) -> 16.67105263 | J34: =IF($A34="","",'Fig 1 Ballet Leg'!I35+'Fig 2 Barracuda'!I35+'Fig 3 Tower'!I35+'Fig 4 Walkover'!I35) -> 0 | K34: 0 | AX34: 32 | AY34: 0
A35: =IF(Draw!E35=0,"",Draw!E35) -> 34 | B35: Emily Cossetta | C35: Stillwater | D35: 56.87719298 | E35: 22 | F35: =IF($A35="","",'Fig 1 Ballet Leg'!H36) -> 12.07017544 | G35: =IF($A35="","",'Fig 2 Barracuda'!H36) -> 14.64912281 | H35: =IF($A35="","",'Fig 3 Tower'!H36) -> 14.5 | I35: =IF($A35="","",'Fig 4 Walkover'!H36) -> 15.65789474 | J35: =IF($A35="","",'Fig 1 Ballet Leg'!I36+'Fig 2 Barracuda'!I36+'Fig 3 Tower'!I36+'Fig 4 Walkover'!I36) -> 0 | K35: 0 | AX35: 33 | AY35: 0
A36: =IF(Draw!E36=0,"",Draw!E36) -> 35 | B36: Mason, Ellery | C36: Osseo-Maple Grove | D36: 0 | E36: 56 | F36: =IF($A36="","",'Fig 1 Ballet Leg'!H37) -> 0 | G36: =IF($A36="","",'Fig 2 Barracuda'!H37) -> 0 | H36: =IF($A36="","",'Fig 3 Tower'!H37) -> 0 | I36: =IF($A36="","",'Fig 4 Walkover'!H37) -> 0 | J36: =IF($A36="","",'Fig 1 Ballet Leg'!I37+'Fig 2 Barracuda'!I37+'Fig 3 Tower'!I37+'Fig 4 Walkover'!I37) -> 0 | K36: 0 | AX36: 34 | AY36: 0
A37: =IF(Draw!E37=0,"",Draw!E37) -> 36 | B37: Kaitlin Johnson | C37: Stillwater | D37: 53.91666667 | E37: 36 | F37: =IF($A37="","",'Fig 1 Ballet Leg'!H38) -> 11.43859649 | G37: =IF($A37="","",'Fig 2 Barracuda'!H38) -> 14.64912281 | H37: =IF($A37="","",'Fig 3 Tower'!H38) -> 13 | I37: =IF($A37="","",'Fig 4 Walkover'!H38) -> 14.82894737 | J37: =IF($A37="","",'Fig 1 Ballet Leg'!I38+'Fig 2 Barracuda'!I38+'Fig 3 Tower'!I38+'Fig 4 Walkover'!I38) -> 0 | K37: 0 | AX37: 35 | AY37: 0
A38: =IF(Draw!E38=0,"",Draw!E38) -> 37 | B38: Emma Sneden | C38: Stillwater | D38: 59.53070175 | E38: 9 | F38: =IF($A38="","",'Fig 1 Ballet Leg'!H39) -> 13.89473684 | G38: =IF($A38="","",'Fig 2 Barracuda'!H39) -> 16.40350877 | H38: =IF($A38="","",'Fig 3 Tower'!H39) -> 13.66666667 | I38: =IF($A38="","",'Fig 4 Walkover'!H39) -> 15.56578947 | J38: =IF($A38="","",'Fig 1 Ballet Leg'!I39+'Fig 2 Barracuda'!I39+'Fig 3 Tower'!I39+'Fig 4 Walkover'!I39) -> 0 | K38: 0 | AX38: 36 | AY38: 0
A39: =IF(Draw!E39=0,"",Draw!E39) -> 38 | B39: Greta Bliss | C39: Stillwater | D39: 56.9254386 | E39: 21 | F39: =IF($A39="","",'Fig 1 Ballet Leg'!H40) -> 11.50877193 | G39: =IF($A39="","",'Fig 2 Barracuda'!H40) -> 15.87719298 | H39: =IF($A39="","",'Fig 3 Tower'!H40) -> 14.25 | I39: =IF($A39="","",'Fig 4 Walkover'!H40) -> 15.28947368 | J39: =IF($A39="","",'Fig 1 Ballet Leg'!I40+'Fig 2 Barracuda'!I40+'Fig 3 Tower'!I40+'Fig 4 Walkover'!I40) -> 0 | K39: 0 | AX39: 37 | AY39: 0
A40: =IF(Draw!E40=0,"",Draw!E40) -> 39 | B40: Vrba, Elena (Ellie) | C40: Osseo-Maple Grove | D40: 0 | E40: 56 | F40: =IF($A40="","",'Fig 1 Ballet Leg'!H41) -> 0 | G40: =IF($A40="","",'Fig 2 Barracuda'!H41) -> 0 | H40: =IF($A40="","",'Fig 3 Tower'!H41) -> 0 | I40: =IF($A40="","",'Fig 4 Walkover'!H41) -> 0 | J40: =IF($A40="","",'Fig 1 Ballet Leg'!I41+'Fig 2 Barracuda'!I41+'Fig 3 Tower'!I41+'Fig 4 Walkover'!I41) -> 0 | K40: 0 | AX40: 38 | AY40: 0
A41: =IF(Draw!E41=0,"",Draw!E41) -> 40 | B41: Emily Shanley | C41: Stillwater | D41: 51.35526316 | E41: 48 | F41: =IF($A41="","",'Fig 1 Ballet Leg'!H42) -> 11.64912281 | G41: =IF($A41="","",'Fig 2 Barracuda'!H42) -> 12.98245614 | H41: =IF($A41="","",'Fig 3 Tower'!H42) -> 13 | I41: =IF($A41="","",'Fig 4 Walkover'!H42) -> 13.72368421 | J41: =IF($A41="","",'Fig 1 Ballet Leg'!I42+'Fig 2 Barracuda'!I42+'Fig 3 Tower'!I42+'Fig 4 Walkover'!I42) -> 0 | K41: 0 | AX41: 39 | AY41: 0
A42: =IF(Draw!E42=0,"",Draw!E42) -> 41 | B42: Raina Hoge | C42: Stillwater | D42: 55.22807018 | E42: 30 | F42: =IF($A42="","",'Fig 1 Ballet Leg'!H43) -> 11.92982456 | G42: =IF($A42="","",'Fig 2 Barracuda'!H43) -> 15.35087719 | H42: =IF($A42="","",'Fig 3 Tower'!H43) -> 12.75 | I42: =IF($A42="","",'Fig 4 Walkover'!H43) -> 15.19736842 | J42: =IF($A42="","",'Fig 1 Ballet Leg'!I43+'Fig 2 Barracuda'!I43+'Fig 3 Tower'!I43+'Fig 4 Walkover'!I43) -> 0 | K42: 0 | AX42: 40 | AY42: 0
A43: =IF(Draw!E43=0,"",Draw!E43) -> 42 | B43: Courtney Lillemoen | C43: Stillwater | D43: 55.22368421 | E43: 31 | F43: =IF($A43="","",'Fig 1 Ballet Leg'!H44) -> 11.22807018 | G43: =IF($A43="","",'Fig 2 Barracuda'!H44) -> 15.1754386 | H43: =IF($A43="","",'Fig 3 Tower'!H44) -> 14.08333333 | I43: =IF($A43="","",'Fig 4 Walkover'!H44) -> 14.73684211 | J43: =IF($A43="","",'Fig 1 Ballet Leg'!I44+'Fig 2 Barracuda'!I44+'Fig 3 Tower'!I44+'Fig 4 Walkover'!I44) -> 0 | K43: 0 | AX43: 41 | AY43: 0
A44: =IF(Draw!E44=0,"",Draw!E44) -> 43 | B44: Trudeau, Alexandra (Trudy) | C44: Osseo-Maple Grove | D44: 50.60526316 | E44: 51 | F44: =IF($A44="","",'Fig 1 Ballet Leg'!H45) -> 11.01754386 | G44: =IF($A44="","",'Fig 2 Barracuda'!H45) -> 13.94736842 | H44: =IF($A44="","",'Fig 3 Tower'!H45) -> 11.91666667 | I44: =IF($A44="","",'Fig 4 Walkover'!H45) -> 13.72368421 | J44: =IF($A44="","",'Fig 1 Ballet Leg'!I45+'Fig 2 Barracuda'!I45+'Fig 3 Tower'!I45+'Fig 4 Walkover'!I45) -> 0 | K44: 0 | AX44: 42 | AY44: 0
A45: =IF(Draw!E45=0,"",Draw!E45) -> 44 | B45: Aubrie Filandrinos | C45: Stillwater | D45: 56.52631579 | E45: 26 | F45: =IF($A45="","",'Fig 1 Ballet Leg'!H46) -> 12.07017544 | G45: =IF($A45="","",'Fig 2 Barracuda'!H46) -> 14.47368421 | H45: =IF($A45="","",'Fig 3 Tower'!H46) -> 14.41666667 | I45: =IF($A45="","",'Fig 4 Walkover'!H46) -> 15.56578947 | J45: =IF($A45="","",'Fig 1 Ballet Leg'!I46+'Fig 2 Barracuda'!I46+'Fig 3 Tower'!I46+'Fig 4 Walkover'!I46) -> 0 | K45: 0 | AX45: 43 | AY45: 0
A46: =IF(Draw!E46=0,"",Draw!E46) -> 45 | B46: Olsen, Katherine (Katie) | C46: Osseo-Maple Grove | D46: 52.39035088 | E46: 42 | F46: =IF($A46="","",'Fig 1 Ballet Leg'!H47) -> 11.43859649 | G46: =IF($A46="","",'Fig 2 Barracuda'!H47) -> 14.64912281 | H46: =IF($A46="","",'Fig 3 Tower'!H47) -> 11.75 | I46: =IF($A46="","",'Fig 4 Walkover'!H47) -> 14.55263158 | J46: =IF($A46="","",'Fig 1 Ballet Leg'!I47+'Fig 2 Barracuda'!I47+'Fig 3 Tower'!I47+'Fig 4 Walkover'!I47) -> 0 | K46: 0 | AX46: 44 | AY46: 0
A47: =IF(Draw!E47=0,"",Draw!E47) -> 46 | B47: Morgan Tope-Yates | C47: Stillwater | D47: 56.72368421 | E47: 24 | F47: =IF($A47="","",'Fig 1 Ballet Leg'!H48) -> 12.21052632 | G47: =IF($A47="","",'Fig 2 Barracuda'!H48) -> 14.21052632 | H47: =IF($A47="","",'Fig 3 Tower'!H48) -> 14 | I47: =IF($A47="","",'Fig 4 Walkover'!H48) -> 16.30263158 | J47: =IF($A47="","",'Fig 1 Ballet Leg'!I48+'Fig 2 Barracuda'!I48+'Fig 3 Tower'!I48+'Fig 4 Walkover'!I48) -> 0 | K47: 0 | AX47: 45 | AY47: 0
A48: =IF(Draw!E48=0,"",Draw!E48) -> 47 | B48: Heiss, Hayley | C48: Osseo-Maple Grove | D48: 53.07017544 | E48: 38 | F48: =IF($A48="","",'Fig 1 Ballet Leg'!H49) -> 11.0877193 | G48: =IF($A48="","",'Fig 2 Barracuda'!H49) -> 14.64912281 | H48: =IF($A48="","",'Fig 3 Tower'!H49) -> 13.33333333 | I48: =IF($A48="","",'Fig 4 Walkover'!H49) -> 14 | J48: =IF($A48="","",'Fig 1 Ballet Leg'!I49+'Fig 2 Barracuda'!I49+'Fig 3 Tower'!I49+'Fig 4 Walkover'!I49) -> 0 | K48: 0 | AX48: 46 | AY48: 0
A49: =IF(Draw!E49=0,"",Draw!E49) -> 48 | B49: Madi Kulzer | C49: Stillwater | D49: 58.50877193 | E49: 14 | F49: =IF($A49="","",'Fig 1 Ballet Leg'!H50) -> 12.63157895 | G49: =IF($A49="","",'Fig 2 Barracuda'!H50) -> 15.70175439 | H49: =IF($A49="","",'Fig 3 Tower'!H50) -> 14.33333333 | I49: =IF($A49="","",'Fig 4 Walkover'!H50) -> 15.84210526 | J49: =IF($A49="","",'Fig 1 Ballet Leg'!I50+'Fig 2 Barracuda'!I50+'Fig 3 Tower'!I50+'Fig 4 Walkover'!I50) -> 0 | K49: 0 | AX49: 47 | AY49: 0
A50: =IF(Draw!E50=0,"",Draw!E50) -> 49 | B50: Heitzig, Elisabeth (Ellie) | C50: Osseo-Maple Grove | D50: 0 | E50: 56 | F50: =IF($A50="","",'Fig 1 Ballet Leg'!H51) -> 0 | G50: =IF($A50="","",'Fig 2 Barracuda'!H51) -> 0 | H50: =IF($A50="","",'Fig 3 Tower'!H51) -> 0 | I50: =IF($A50="","",'Fig 4 Walkover'!H51) -> 0 | J50: =IF($A50="","",'Fig 1 Ballet Leg'!I51+'Fig 2 Barracuda'!I51+'Fig 3 Tower'!I51+'Fig 4 Walkover'!I51) -> 0 | K50: 0 | AX50: 48 | AY50: 0
A51: =IF(Draw!E51=0,"",Draw!E51) -> 50 | B51: Knox, Rachel | C51: Osseo-Maple Grove | D51: 50.49561404 | E51: 52 | F51: =IF($A51="","",'Fig 1 Ballet Leg'!H52) -> 10.45614035 | G51: =IF($A51="","",'Fig 2 Barracuda'!H52) -> 13.77192982 | H51: =IF($A51="","",'Fig 3 Tower'!H52) -> 12.08333333 | I51: =IF($A51="","",'Fig 4 Walkover'!H52) -> 14.18421053 | J51: =IF($A51="","",'Fig 1 Ballet Leg'!I52+'Fig 2 Barracuda'!I52+'Fig 3 Tower'!I52+'Fig 4 Walkover'!I52) -> 0 | K51: 0 | AX51: 49 | AY51: 0
A52: =IF(Draw!E52=0,"",Draw!E52) -> 51 | B52: Breidenbach, Heather | C52: Osseo-Maple Grove | D52: 51.82894737 | E52: 46 | F52: =IF($A52="","",'Fig 1 Ballet Leg'!H53) -> 10.87719298 | G52: =IF($A52="","",'Fig 2 Barracuda'!H53) -> 13.68421053 | H52: =IF($A52="","",'Fig 3 Tower'!H53) -> 13.08333333 | I52: =IF($A52="","",'Fig 4 Walkover'!H53) -> 14.18421053 | J52: =IF($A52="","",'Fig 1 Ballet Leg'!I53+'Fig 2 Barracuda'!I53+'Fig 3 Tower'!I53+'Fig 4 Walkover'!I53) -> 0 | K52: 0 | AX52: 50 | AY52: 0
A53: =IF(Draw!E53=0,"",Draw!E53) -> 52 | B53: Rachel Duerr | C53: Stillwater | D53: 58.32894737 | E53: 16 | F53: =IF($A53="","",'Fig 1 Ballet Leg'!H54) -> 11.57894737 | G53: =IF($A53="","",'Fig 2 Barracuda'!H54) -> 16.31578947 | H53: =IF($A53="","",'Fig 3 Tower'!H54) -> 14.5 | I53: =IF($A53="","",'Fig 4 Walkover'!H54) -> 15.93421053 | J53: =IF($A53="","",'Fig 1 Ballet Leg'!I54+'Fig 2 Barracuda'!I54+'Fig 3 Tower'!I54+'Fig 4 Walkover'!I54) -> 0 | K53: 0 | AX53: 51 | AY53: 0
A54: =IF(Draw!E54=0,"",Draw!E54) -> 53 | B54: Sofia Johnson | C54: Stillwater | D54: 55.38157895 | E54: 29 | F54: =IF($A54="","",'Fig 1 Ballet Leg'!H55) -> 12.70175439 | G54: =IF($A54="","",'Fig 2 Barracuda'!H55) -> 15 | H54: =IF($A54="","",'Fig 3 Tower'!H55) -> 12.66666667 | I54: =IF($A54="","",'Fig 4 Walkover'!H55) -> 15.01315789 | J54: =IF($A54="","",'Fig 1 Ballet Leg'!I55+'Fig 2 Barracuda'!I55+'Fig 3 Tower'!I55+'Fig 4 Walkover'!I55) -> 0 | K54: 0 | AX54: 52 | AY54: 0
A55: =IF(Draw!E55=0,"",Draw!E55) -> 54 | B55: Littel, Hannah | C55: Osseo-Maple Grove | D55: 57.50438596 | E55: 20 | F55: =IF($A55="","",'Fig 1 Ballet Leg'!H56) -> 12.35087719 | G55: =IF($A55="","",'Fig 2 Barracuda'!H56) -> 15.26315789 | H55: =IF($A55="","",'Fig 3 Tower'!H56) -> 14.41666667 | I55: =IF($A55="","",'Fig 4 Walkover'!H56) -> 15.47368421 | J55: =IF($A55="","",'Fig 1 Ballet Leg'!I56+'Fig 2 Barracuda'!I56+'Fig 3 Tower'!I56+'Fig 4 Walkover'!I56) -> 0 | K55: 0 | AX55: 53 | AY55: 0
A56: =IF(Draw!E56=0,"",Draw!E56) -> 55 | B56: Anna Koenning | C56: Stillwater | D56: 63.86403509 | E56: 2 | F56: =IF($A56="","",'Fig 1 Ballet Leg'!H57) -> 13.89473684 | G56: =IF($A56="","",'Fig 2 Barracuda'!H57) -> 16.92982456 | H56: =IF($A56="","",'Fig 3 Tower'!H57) -> 16 | I56: =IF($A56="","",'Fig 4 Walkover'!H57) -> 17.03947368 | J56: =IF($A56="","",'Fig 1 Ballet Leg'!I57+'Fig 2 Barracuda'!I57+'Fig 3 Tower'!I57+'Fig 4 Walkover'!I57) -> 0 | K56: 6 | AX56: 54 | AY56: 0
A57: =IF(Draw!E57=0,"",Draw!E57) -> 56 | B57: Mamie Thrall | C57: Stillwater | D57: 63.01315789 | E57: 4 | F57: =IF($A57="","",'Fig 1 Ballet Leg'!H58) -> 13.26315789 | G57: =IF($A57="","",'Fig 2 Barracuda'!H58) -> 15.96491228 | H57: =IF($A57="","",'Fig 3 Tower'!H58) -> 15.91666667 | I57: =IF($A57="","",'Fig 4 Walkover'!H58) -> 17.86842105 | J57: =IF($A57="","",'Fig 1 Ballet Leg'!I58+'Fig 2 Barracuda'!I58+'Fig 3 Tower'!I58+'Fig 4 Walkover'!I58) -> 0 | K57: 4 | AX57: 55 | AY57: 0
A58: =IF(Draw!E58=0,"",Draw!E58) -> 57 | B58: Brie Sheridan | C58: Stillwater | D58: 52.49561404 | E58: 41 | F58: =IF($A58="","",'Fig 1 Ballet Leg'!H59) -> 11.36842105 | G58: =IF($A58="","",'Fig 2 Barracuda'!H59) -> 14.8245614 | H58: =IF($A58="","",'Fig 3 Tower'!H59) -> 11.75 | I58: =IF($A58="","",'Fig 4 Walkover'!H59) -> 14.55263158 | J58: =IF($A58="","",'Fig 1 Ballet Leg'!I59+'Fig 2 Barracuda'!I59+'Fig 3 Tower'!I59+'Fig 4 Walkover'!I59) -> 0 | K58: 0 | AX58: 56 | AY58: 0
A59: =IF(Draw!E59=0,"",Draw!E59) -> 58 | B59: Kelly Keenan | C59: Stillwater | D59: 57.90789474 | E59: 18 | F59: =IF($A59="","",'Fig 1 Ballet Leg'!H60) -> 12.21052632 | G59: =IF($A59="","",'Fig 2 Barracuda'!H60) -> 15.26315789 | H59: =IF($A59="","",'Fig 3 Tower'!H60) -> 14.5 | I59: =IF($A59="","",'Fig 4 Walkover'!H60) -> 15.93421053 | J59: =IF($A59="","",'Fig 1 Ballet Leg'!I60+'Fig 2 Barracuda'!I60+'Fig 3 Tower'!I60+'Fig 4 Walkover'!I60) -> 0 | K59: 0 | AX59: 57 | AY59: 0
A60: =IF(Draw!E60=0,"",Draw!E60) ->  | F60: =IF($A60="","",'Fig 1 Ballet Leg'!H61) ->  | G60: =IF($A60="","",'Fig 2 Barracuda'!H61) ->  | H60: =IF($A60="","",'Fig 3 Tower'!H61) ->  | I60: =IF($A60="","",'Fig 4 Walkover'!H61) ->  | J60: =IF($A60="","",'Fig 1 Ballet Leg'!I61+'Fig 2 Barracuda'!I61+'Fig 3 Tower'!I61+'Fig 4 Walkover'!I61) ->  | AX60: 58 | AY60: 0
A61: =IF(Draw!E61=0,"",Draw!E61) ->  | F61: =IF($A61="","",'Fig 1 Ballet Leg'!H62) ->  | G61: =IF($A61="","",'Fig 2 Barracuda'!H62) ->  | H61: =IF($A61="","",'Fig 3 Tower'!H62) ->  | I61: =IF($A61="","",'Fig 4 Walkover'!H62) ->  | J61: =IF($A61="","",'Fig 1 Ballet Leg'!I62+'Fig 2 Barracuda'!I62+'Fig 3 Tower'!I62+'Fig 4 Walkover'!I62) ->  | AX61: 59 | AY61: 0
A62: =IF(Draw!E62=0,"",Draw!E62) ->  | F62: =IF($A62="","",'Fig 1 Ballet Leg'!H63) ->  | G62: =IF($A62="","",'Fig 2 Barracuda'!H63) ->  | H62: =IF($A62="","",'Fig 3 Tower'!H63) ->  | I62: =IF($A62="","",'Fig 4 Walkover'!H63) ->  | J62: =IF($A62="","",'Fig 1 Ballet Leg'!I63+'Fig 2 Barracuda'!I63+'Fig 3 Tower'!I63+'Fig 4 Walkover'!I63) ->  | AX62: 60 | AY62: 0
A63: =IF(Draw!E63=0,"",Draw!E63) ->  | F63: =IF($A63="","",'Fig 1 Ballet Leg'!H64) ->  | G63: =IF($A63="","",'Fig 2 Barracuda'!H64) ->  | H63: =IF($A63="","",'Fig 3 Tower'!H64) ->  | I63: =IF($A63="","",'Fig 4 Walkover'!H64) ->  | J63: =IF($A63="","",'Fig 1 Ballet Leg'!I64+'Fig 2 Barracuda'!I64+'Fig 3 Tower'!I64+'Fig 4 Walkover'!I64) ->  | AX63: 61 | AY63: 0
A64: =IF(Draw!E64=0,"",Draw!E64) ->  | F64: =IF($A64="","",'Fig 1 Ballet Leg'!H65) ->  | G64: =IF($A64="","",'Fig 2 Barracuda'!H65) ->  | H64: =IF($A64="","",'Fig 3 Tower'!H65) ->  | I64: =IF($A64="","",'Fig 4 Walkover'!H65) ->  | J64: =IF($A64="","",'Fig 1 Ballet Leg'!I65+'Fig 2 Barracuda'!I65+'Fig 3 Tower'!I65+'Fig 4 Walkover'!I65) ->  | AX64: 62 | AY64: 0
A65: =IF(Draw!E65=0,"",Draw!E65) ->  | F65: =IF($A65="","",'Fig 1 Ballet Leg'!H66) ->  | G65: =IF($A65="","",'Fig 2 Barracuda'!H66) ->  | H65: =IF($A65="","",'Fig 3 Tower'!H66) ->  | I65: =IF($A65="","",'Fig 4 Walkover'!H66) ->  | J65: =IF($A65="","",'Fig 1 Ballet Leg'!I66+'Fig 2 Barracuda'!I66+'Fig 3 Tower'!I66+'Fig 4 Walkover'!I66) ->  | AX65: 63 | AY65: 0
A66: =IF(Draw!E66=0,"",Draw!E66) ->  | F66: =IF($A66="","",'Fig 1 Ballet Leg'!H67) ->  | G66: =IF($A66="","",'Fig 2 Barracuda'!H67) ->  | H66: =IF($A66="","",'Fig 3 Tower'!H67) ->  | I66: =IF($A66="","",'Fig 4 Walkover'!H67) ->  | J66: =IF($A66="","",'Fig 1 Ballet Leg'!I67+'Fig 2 Barracuda'!I67+'Fig 3 Tower'!I67+'Fig 4 Walkover'!I67) ->  | AX66: 64 | AY66: 0
A67: =IF(Draw!E67=0,"",Draw!E67) ->  | F67: =IF($A67="","",'Fig 1 Ballet Leg'!H68) ->  | G67: =IF($A67="","",'Fig 2 Barracuda'!H68) ->  | H67: =IF($A67="","",'Fig 3 Tower'!H68) ->  | I67: =IF($A67="","",'Fig 4 Walkover'!H68) ->  | J67: =IF($A67="","",'Fig 1 Ballet Leg'!I68+'Fig 2 Barracuda'!I68+'Fig 3 Tower'!I68+'Fig 4 Walkover'!I68) ->  | AX67: 65 | AY67: 0
A68: =IF(Draw!E68=0,"",Draw!E68) ->  | F68: =IF($A68="","",'Fig 1 Ballet Leg'!H69) ->  | G68: =IF($A68="","",'Fig 2 Barracuda'!H69) ->  | H68: =IF($A68="","",'Fig 3 Tower'!H69) ->  | I68: =IF($A68="","",'Fig 4 Walkover'!H69) ->  | J68: =IF($A68="","",'Fig 1 Ballet Leg'!I69+'Fig 2 Barracuda'!I69+'Fig 3 Tower'!I69+'Fig 4 Walkover'!I69) ->  | AX68: 66 | AY68: 0
A69: =IF(Draw!E69=0,"",Draw!E69) ->  | D69: =IF($A69="","",SUM(F69:I69)-J69) ->  | E69: =IF($A69="","",RANK(D69,D$2:D$150)) ->  | F69: =IF($A69="","",'Fig 1 Ballet Leg'!H70) ->  | G69: =IF($A69="","",'Fig 2 Barracuda'!H70) ->  | H69: =IF($A69="","",'Fig 3 Tower'!H70) ->  | I69: =IF($A69="","",'Fig 4 Walkover'!H70) ->  | J69: =IF($A69="","",'Fig 1 Ballet Leg'!I70+'Fig 2 Barracuda'!I70+'Fig 3 Tower'!I70+'Fig 4 Walkover'!I70) ->  | K69: =IF($A69="","",IF(A69="","",VLOOKUP(E69,AX$3:AY$102,2,FALSE))) ->  | AX69: 67 | AY69: 0
A70: =IF(Draw!E70=0,"",Draw!E70) ->  | F70: =IF($A70="","",'Fig 1 Ballet Leg'!H71) ->  | G70: =IF($A70="","",'Fig 2 Barracuda'!H71) ->  | H70: =IF($A70="","",'Fig 3 Tower'!H71) ->  | I70: =IF($A70="","",'Fig 4 Walkover'!H71) ->  | J70: =IF($A70="","",'Fig 1 Ballet Leg'!I71+'Fig 2 Barracuda'!I71+'Fig 3 Tower'!I71+'Fig 4 Walkover'!I71) ->  | AX70: 68 | AY70: 0
A71: =IF(Draw!E71=0,"",Draw!E71) ->  | F71: =IF($A71="","",'Fig 1 Ballet Leg'!H72) ->  | G71: =IF($A71="","",'Fig 2 Barracuda'!H72) ->  | H71: =IF($A71="","",'Fig 3 Tower'!H72) ->  | I71: =IF($A71="","",'Fig 4 Walkover'!H72) ->  | J71: =IF($A71="","",'Fig 1 Ballet Leg'!I72+'Fig 2 Barracuda'!I72+'Fig 3 Tower'!I72+'Fig 4 Walkover'!I72) ->  | AX71: 69 | AY71: 0
A72: =IF(Draw!E72=0,"",Draw!E72) ->  | F72: =IF($A72="","",'Fig 1 Ballet Leg'!H73) ->  | G72: =IF($A72="","",'Fig 2 Barracuda'!H73) ->  | H72: =IF($A72="","",'Fig 3 Tower'!H73) ->  | I72: =IF($A72="","",'Fig 4 Walkover'!H73) ->  | J72: =IF($A72="","",'Fig 1 Ballet Leg'!I73+'Fig 2 Barracuda'!I73+'Fig 3 Tower'!I73+'Fig 4 Walkover'!I73) ->  | AX72: 70 | AY72: 0
A73: =IF(Draw!E73=0,"",Draw!E73) ->  | F73: =IF($A73="","",'Fig 1 Ballet Leg'!H74) ->  | G73: =IF($A73="","",'Fig 2 Barracuda'!H74) ->  | H73: =IF($A73="","",'Fig 3 Tower'!H74) ->  | I73: =IF($A73="","",'Fig 4 Walkover'!H74) ->  | J73: =IF($A73="","",'Fig 1 Ballet Leg'!I74+'Fig 2 Barracuda'!I74+'Fig 3 Tower'!I74+'Fig 4 Walkover'!I74) ->  | AX73: 71 | AY73: 0
A74: =IF(Draw!E74=0,"",Draw!E74) ->  | F74: =IF($A74="","",'Fig 1 Ballet Leg'!H75) ->  | G74: =IF($A74="","",'Fig 2 Barracuda'!H75) ->  | H74: =IF($A74="","",'Fig 3 Tower'!H75) ->  | I74: =IF($A74="","",'Fig 4 Walkover'!H75) ->  | J74: =IF($A74="","",'Fig 1 Ballet Leg'!I75+'Fig 2 Barracuda'!I75+'Fig 3 Tower'!I75+'Fig 4 Walkover'!I75) ->  | AX74: 72 | AY74: 0
A75: =IF(Draw!E75=0,"",Draw!E75) ->  | F75: =IF($A75="","",'Fig 1 Ballet Leg'!H76) ->  | G75: =IF($A75="","",'Fig 2 Barracuda'!H76) ->  | H75: =IF($A75="","",'Fig 3 Tower'!H76) ->  | I75: =IF($A75="","",'Fig 4 Walkover'!H76) ->  | J75: =IF($A75="","",'Fig 1 Ballet Leg'!I76+'Fig 2 Barracuda'!I76+'Fig 3 Tower'!I76+'Fig 4 Walkover'!I76) ->  | AX75: 73 | AY75: 0
A76: =IF(Draw!E76=0,"",Draw!E76) ->  | F76: =IF($A76="","",'Fig 1 Ballet Leg'!H77) ->  | G76: =IF($A76="","",'Fig 2 Barracuda'!H77) ->  | H76: =IF($A76="","",'Fig 3 Tower'!H77) ->  | I76: =IF($A76="","",'Fig 4 Walkover'!H77) ->  | J76: =IF($A76="","",'Fig 1 Ballet Leg'!I77+'Fig 2 Barracuda'!I77+'Fig 3 Tower'!I77+'Fig 4 Walkover'!I77) ->  | AX76: 74 | AY76: 0
A77: =IF(Draw!E77=0,"",Draw!E77) ->  | F77: =IF($A77="","",'Fig 1 Ballet Leg'!H78) ->  | G77: =IF($A77="","",'Fig 2 Barracuda'!H78) ->  | H77: =IF($A77="","",'Fig 3 Tower'!H78) ->  | I77: =IF($A77="","",'Fig 4 Walkover'!H78) ->  | J77: =IF($A77="","",'Fig 1 Ballet Leg'!I78+'Fig 2 Barracuda'!I78+'Fig 3 Tower'!I78+'Fig 4 Walkover'!I78) ->  | AX77: 75 | AY77: 0
A78: =IF(Draw!E78=0,"",Draw!E78) ->  | F78: =IF($A78="","",'Fig 1 Ballet Leg'!H79) ->  | G78: =IF($A78="","",'Fig 2 Barracuda'!H79) ->  | H78: =IF($A78="","",'Fig 3 Tower'!H79) ->  | I78: =IF($A78="","",'Fig 4 Walkover'!H79) ->  | J78: =IF($A78="","",'Fig 1 Ballet Leg'!I79+'Fig 2 Barracuda'!I79+'Fig 3 Tower'!I79+'Fig 4 Walkover'!I79) ->  | AX78: 76 | AY78: 0
A79: =IF(Draw!E79=0,"",Draw!E79) ->  | F79: =IF($A79="","",'Fig 1 Ballet Leg'!H80) ->  | G79: =IF($A79="","",'Fig 2 Barracuda'!H80) ->  | H79: =IF($A79="","",'Fig 3 Tower'!H80) ->  | I79: =IF($A79="","",'Fig 4 Walkover'!H80) ->  | J79: =IF($A79="","",'Fig 1 Ballet Leg'!I80+'Fig 2 Barracuda'!I80+'Fig 3 Tower'!I80+'Fig 4 Walkover'!I80) ->  | AX79: 77 | AY79: 0
A80: =IF(Draw!E80=0,"",Draw!E80) ->  | F80: =IF($A80="","",'Fig 1 Ballet Leg'!H81) ->  | G80: =IF($A80="","",'Fig 2 Barracuda'!H81) ->  | H80: =IF($A80="","",'Fig 3 Tower'!H81) ->  | I80: =IF($A80="","",'Fig 4 Walkover'!H81) ->  | J80: =IF($A80="","",'Fig 1 Ballet Leg'!I81+'Fig 2 Barracuda'!I81+'Fig 3 Tower'!I81+'Fig 4 Walkover'!I81) ->  | AX80: 78 | AY80: 0
A81: =IF(Draw!E81=0,"",Draw!E81) ->  | F81: =IF($A81="","",'Fig 1 Ballet Leg'!H82) ->  | G81: =IF($A81="","",'Fig 2 Barracuda'!H82) ->  | H81: =IF($A81="","",'Fig 3 Tower'!H82) ->  | I81: =IF($A81="","",'Fig 4 Walkover'!H82) ->  | J81: =IF($A81="","",'Fig 1 Ballet Leg'!I82+'Fig 2 Barracuda'!I82+'Fig 3 Tower'!I82+'Fig 4 Walkover'!I82) ->  | AX81: 79 | AY81: 0
A82: =IF(Draw!E82=0,"",Draw!E82) ->  | F82: =IF($A82="","",'Fig 1 Ballet Leg'!H83) ->  | G82: =IF($A82="","",'Fig 2 Barracuda'!H83) ->  | H82: =IF($A82="","",'Fig 3 Tower'!H83) ->  | I82: =IF($A82="","",'Fig 4 Walkover'!H83) ->  | J82: =IF($A82="","",'Fig 1 Ballet Leg'!I83+'Fig 2 Barracuda'!I83+'Fig 3 Tower'!I83+'Fig 4 Walkover'!I83) ->  | AX82: 80 | AY82: 0
A83: =IF(Draw!E83=0,"",Draw!E83) ->  | F83: =IF($A83="","",'Fig 1 Ballet Leg'!H84) ->  | G83: =IF($A83="","",'Fig 2 Barracuda'!H84) ->  | H83: =IF($A83="","",'Fig 3 Tower'!H84) ->  | I83: =IF($A83="","",'Fig 4 Walkover'!H84) ->  | J83: =IF($A83="","",'Fig 1 Ballet Leg'!I84+'Fig 2 Barracuda'!I84+'Fig 3 Tower'!I84+'Fig 4 Walkover'!I84) ->  | AX83: 81 | AY83: 0
A84: =IF(Draw!E84=0,"",Draw!E84) ->  | F84: =IF($A84="","",'Fig 1 Ballet Leg'!H85) ->  | G84: =IF($A84="","",'Fig 2 Barracuda'!H85) ->  | H84: =IF($A84="","",'Fig 3 Tower'!H85) ->  | I84: =IF($A84="","",'Fig 4 Walkover'!H85) ->  | J84: =IF($A84="","",'Fig 1 Ballet Leg'!I85+'Fig 2 Barracuda'!I85+'Fig 3 Tower'!I85+'Fig 4 Walkover'!I85) ->  | AX84: 82 | AY84: 0
A85: =IF(Draw!E85=0,"",Draw!E85) ->  | F85: =IF($A85="","",'Fig 1 Ballet Leg'!H86) ->  | G85: =IF($A85="","",'Fig 2 Barracuda'!H86) ->  | H85: =IF($A85="","",'Fig 3 Tower'!H86) ->  | I85: =IF($A85="","",'Fig 4 Walkover'!H86) ->  | J85: =IF($A85="","",'Fig 1 Ballet Leg'!I86+'Fig 2 Barracuda'!I86+'Fig 3 Tower'!I86+'Fig 4 Walkover'!I86) ->  | AX85: 83 | AY85: 0
A86: =IF(Draw!E86=0,"",Draw!E86) ->  | F86: =IF($A86="","",'Fig 1 Ballet Leg'!H87) ->  | G86: =IF($A86="","",'Fig 2 Barracuda'!H87) ->  | H86: =IF($A86="","",'Fig 3 Tower'!H87) ->  | I86: =IF($A86="","",'Fig 4 Walkover'!H87) ->  | J86: =IF($A86="","",'Fig 1 Ballet Leg'!I87+'Fig 2 Barracuda'!I87+'Fig 3 Tower'!I87+'Fig 4 Walkover'!I87) ->  | AX86: 84 | AY86: 0
A87: =IF(Draw!E87=0,"",Draw!E87) ->  | F87: =IF($A87="","",'Fig 1 Ballet Leg'!H88) ->  | G87: =IF($A87="","",'Fig 2 Barracuda'!H88) ->  | H87: =IF($A87="","",'Fig 3 Tower'!H88) ->  | I87: =IF($A87="","",'Fig 4 Walkover'!H88) ->  | J87: =IF($A87="","",'Fig 1 Ballet Leg'!I88+'Fig 2 Barracuda'!I88+'Fig 3 Tower'!I88+'Fig 4 Walkover'!I88) ->  | AX87: 85 | AY87: 0
A88: =IF(Draw!E88=0,"",Draw!E88) ->  | F88: =IF($A88="","",'Fig 1 Ballet Leg'!H89) ->  | G88: =IF($A88="","",'Fig 2 Barracuda'!H89) ->  | H88: =IF($A88="","",'Fig 3 Tower'!H89) ->  | I88: =IF($A88="","",'Fig 4 Walkover'!H89) ->  | J88: =IF($A88="","",'Fig 1 Ballet Leg'!I89+'Fig 2 Barracuda'!I89+'Fig 3 Tower'!I89+'Fig 4 Walkover'!I89) ->  | AX88: 86 | AY88: 0
A89: =IF(Draw!E89=0,"",Draw!E89) ->  | F89: =IF($A89="","",'Fig 1 Ballet Leg'!H90) ->  | G89: =IF($A89="","",'Fig 2 Barracuda'!H90) ->  | H89: =IF($A89="","",'Fig 3 Tower'!H90) ->  | I89: =IF($A89="","",'Fig 4 Walkover'!H90) ->  | J89: =IF($A89="","",'Fig 1 Ballet Leg'!I90+'Fig 2 Barracuda'!I90+'Fig 3 Tower'!I90+'Fig 4 Walkover'!I90) ->  | AX89: 87 | AY89: 0
A90: =IF(Draw!E90=0,"",Draw!E90) ->  | F90: =IF($A90="","",'Fig 1 Ballet Leg'!H91) ->  | G90: =IF($A90="","",'Fig 2 Barracuda'!H91) ->  | H90: =IF($A90="","",'Fig 3 Tower'!H91) ->  | I90: =IF($A90="","",'Fig 4 Walkover'!H91) ->  | J90: =IF($A90="","",'Fig 1 Ballet Leg'!I91+'Fig 2 Barracuda'!I91+'Fig 3 Tower'!I91+'Fig 4 Walkover'!I91) ->  | AX90: 88 | AY90: 0
A91: =IF(Draw!E91=0,"",Draw!E91) ->  | F91: =IF($A91="","",'Fig 1 Ballet Leg'!H92) ->  | G91: =IF($A91="","",'Fig 2 Barracuda'!H92) ->  | H91: =IF($A91="","",'Fig 3 Tower'!H92) ->  | I91: =IF($A91="","",'Fig 4 Walkover'!H92) ->  | J91: =IF($A91="","",'Fig 1 Ballet Leg'!I92+'Fig 2 Barracuda'!I92+'Fig 3 Tower'!I92+'Fig 4 Walkover'!I92) ->  | AX91: 89 | AY91: 0
A92: =IF(Draw!E92=0,"",Draw!E92) ->  | F92: =IF($A92="","",'Fig 1 Ballet Leg'!H93) ->  | G92: =IF($A92="","",'Fig 2 Barracuda'!H93) ->  | H92: =IF($A92="","",'Fig 3 Tower'!H93) ->  | I92: =IF($A92="","",'Fig 4 Walkover'!H93) ->  | J92: =IF($A92="","",'Fig 1 Ballet Leg'!I93+'Fig 2 Barracuda'!I93+'Fig 3 Tower'!I93+'Fig 4 Walkover'!I93) ->  | AX92: 90 | AY92: 0
A93: =IF(Draw!E93=0,"",Draw!E93) ->  | F93: =IF($A93="","",'Fig 1 Ballet Leg'!H94) ->  | G93: =IF($A93="","",'Fig 2 Barracuda'!H94) ->  | H93: =IF($A93="","",'Fig 3 Tower'!H94) ->  | I93: =IF($A93="","",'Fig 4 Walkover'!H94) ->  | J93: =IF($A93="","",'Fig 1 Ballet Leg'!I94+'Fig 2 Barracuda'!I94+'Fig 3 Tower'!I94+'Fig 4 Walkover'!I94) ->  | AX93: 91 | AY93: 0
A94: =IF(Draw!E94=0,"",Draw!E94) ->  | F94: =IF($A94="","",'Fig 1 Ballet Leg'!H95) ->  | G94: =IF($A94="","",'Fig 2 Barracuda'!H95) ->  | H94: =IF($A94="","",'Fig 3 Tower'!H95) ->  | I94: =IF($A94="","",'Fig 4 Walkover'!H95) ->  | J94: =IF($A94="","",'Fig 1 Ballet Leg'!I95+'Fig 2 Barracuda'!I95+'Fig 3 Tower'!I95+'Fig 4 Walkover'!I95) ->  | AX94: 92 | AY94: 0
A95: =IF(Draw!E95=0,"",Draw!E95) ->  | F95: =IF($A95="","",'Fig 1 Ballet Leg'!H96) ->  | G95: =IF($A95="","",'Fig 2 Barracuda'!H96) ->  | H95: =IF($A95="","",'Fig 3 Tower'!H96) ->  | I95: =IF($A95="","",'Fig 4 Walkover'!H96) ->  | J95: =IF($A95="","",'Fig 1 Ballet Leg'!I96+'Fig 2 Barracuda'!I96+'Fig 3 Tower'!I96+'Fig 4 Walkover'!I96) ->  | AX95: 93 | AY95: 0
A96: =IF(Draw!E96=0,"",Draw!E96) ->  | F96: =IF($A96="","",'Fig 1 Ballet Leg'!H97) ->  | G96: =IF($A96="","",'Fig 2 Barracuda'!H97) ->  | H96: =IF($A96="","",'Fig 3 Tower'!H97) ->  | I96: =IF($A96="","",'Fig 4 Walkover'!H97) ->  | J96: =IF($A96="","",'Fig 1 Ballet Leg'!I97+'Fig 2 Barracuda'!I97+'Fig 3 Tower'!I97+'Fig 4 Walkover'!I97) ->  | AX96: 94 | AY96: 0
A97: =IF(Draw!E97=0,"",Draw!E97) ->  | F97: =IF($A97="","",'Fig 1 Ballet Leg'!H98) ->  | G97: =IF($A97="","",'Fig 2 Barracuda'!H98) ->  | H97: =IF($A97="","",'Fig 3 Tower'!H98) ->  | I97: =IF($A97="","",'Fig 4 Walkover'!H98) ->  | J97: =IF($A97="","",'Fig 1 Ballet Leg'!I98+'Fig 2 Barracuda'!I98+'Fig 3 Tower'!I98+'Fig 4 Walkover'!I98) ->  | AX97: 95 | AY97: 0
A98: =IF(Draw!E98=0,"",Draw!E98) ->  | F98: =IF($A98="","",'Fig 1 Ballet Leg'!H99) ->  | G98: =IF($A98="","",'Fig 2 Barracuda'!H99) ->  | H98: =IF($A98="","",'Fig 3 Tower'!H99) ->  | I98: =IF($A98="","",'Fig 4 Walkover'!H99) ->  | J98: =IF($A98="","",'Fig 1 Ballet Leg'!I99+'Fig 2 Barracuda'!I99+'Fig 3 Tower'!I99+'Fig 4 Walkover'!I99) ->  | AX98: 96 | AY98: 0
A99: =IF(Draw!E99=0,"",Draw!E99) ->  | F99: =IF($A99="","",'Fig 1 Ballet Leg'!H100) ->  | G99: =IF($A99="","",'Fig 2 Barracuda'!H100) ->  | H99: =IF($A99="","",'Fig 3 Tower'!H100) ->  | I99: =IF($A99="","",'Fig 4 Walkover'!H100) ->  | J99: =IF($A99="","",'Fig 1 Ballet Leg'!I100+'Fig 2 Barracuda'!I100+'Fig 3 Tower'!I100+'Fig 4 Walkover'!I100) ->  | AX99: 97 | AY99: 0
A100: =IF(Draw!E100=0,"",Draw!E100) ->  | F100: =IF($A100="","",'Fig 1 Ballet Leg'!H101) ->  | G100: =IF($A100="","",'Fig 2 Barracuda'!H101) ->  | H100: =IF($A100="","",'Fig 3 Tower'!H101) ->  | I100: =IF($A100="","",'Fig 4 Walkover'!H101) ->  | J100: =IF($A100="","",'Fig 1 Ballet Leg'!I101+'Fig 2 Barracuda'!I101+'Fig 3 Tower'!I101+'Fig 4 Walkover'!I101) ->  | AX100: 98 | AY100: 0
A101: =IF(Draw!E101=0,"",Draw!E101) ->  | F101: =IF($A101="","",'Fig 1 Ballet Leg'!H102) ->  | G101: =IF($A101="","",'Fig 2 Barracuda'!H102) ->  | H101: =IF($A101="","",'Fig 3 Tower'!H102) ->  | I101: =IF($A101="","",'Fig 4 Walkover'!H102) ->  | J101: =IF($A101="","",'Fig 1 Ballet Leg'!I102+'Fig 2 Barracuda'!I102+'Fig 3 Tower'!I102+'Fig 4 Walkover'!I102) ->  | AX101: 99 | AY101: 0
A102: =IF(Draw!E102=0,"",Draw!E102) ->  | F102: =IF($A102="","",'Fig 1 Ballet Leg'!H103) ->  | G102: =IF($A102="","",'Fig 2 Barracuda'!H103) ->  | H102: =IF($A102="","",'Fig 3 Tower'!H103) ->  | I102: =IF($A102="","",'Fig 4 Walkover'!H103) ->  | J102: =IF($A102="","",'Fig 1 Ballet Leg'!I103+'Fig 2 Barracuda'!I103+'Fig 3 Tower'!I103+'Fig 4 Walkover'!I103) ->  | AX102: 100 | AY102: 0
A103: =IF(Draw!E103=0,"",Draw!E103) ->  | F103: =IF($A103="","",'Fig 1 Ballet Leg'!H104) ->  | G103: =IF($A103="","",'Fig 2 Barracuda'!H104) ->  | H103: =IF($A103="","",'Fig 3 Tower'!H104) ->  | I103: =IF($A103="","",'Fig 4 Walkover'!H104) ->  | J103: =IF($A103="","",'Fig 1 Ballet Leg'!I104+'Fig 2 Barracuda'!I104+'Fig 3 Tower'!I104+'Fig 4 Walkover'!I104) -> 
A104: =IF(Draw!E104=0,"",Draw!E104) ->  | F104: =IF($A104="","",'Fig 1 Ballet Leg'!H105) ->  | G104: =IF($A104="","",'Fig 2 Barracuda'!H105) ->  | H104: =IF($A104="","",'Fig 3 Tower'!H105) ->  | I104: =IF($A104="","",'Fig 4 Walkover'!H105) ->  | J104: =IF($A104="","",'Fig 1 Ballet Leg'!I105+'Fig 2 Barracuda'!I105+'Fig 3 Tower'!I105+'Fig 4 Walkover'!I105) -> 
A105: =IF(Draw!E105=0,"",Draw!E105) ->  | F105: =IF($A105="","",'Fig 1 Ballet Leg'!H106) ->  | G105: =IF($A105="","",'Fig 2 Barracuda'!H106) ->  | H105: =IF($A105="","",'Fig 3 Tower'!H106) ->  | I105: =IF($A105="","",'Fig 4 Walkover'!H106) ->  | J105: =IF($A105="","",'Fig 1 Ballet Leg'!I106+'Fig 2 Barracuda'!I106+'Fig 3 Tower'!I106+'Fig 4 Walkover'!I106) -> 
A106: =IF(Draw!E106=0,"",Draw!E106) ->  | F106: =IF($A106="","",'Fig 1 Ballet Leg'!H107) ->  | G106: =IF($A106="","",'Fig 2 Barracuda'!H107) ->  | H106: =IF($A106="","",'Fig 3 Tower'!H107) ->  | I106: =IF($A106="","",'Fig 4 Walkover'!H107) ->  | J106: =IF($A106="","",'Fig 1 Ballet Leg'!I107+'Fig 2 Barracuda'!I107+'Fig 3 Tower'!I107+'Fig 4 Walkover'!I107) -> 
A107: =IF(Draw!E107=0,"",Draw!E107) ->  | F107: =IF($A107="","",'Fig 1 Ballet Leg'!H108) ->  | G107: =IF($A107="","",'Fig 2 Barracuda'!H108) ->  | H107: =IF($A107="","",'Fig 3 Tower'!H108) ->  | I107: =IF($A107="","",'Fig 4 Walkover'!H108) ->  | J107: =IF($A107="","",'Fig 1 Ballet Leg'!I108+'Fig 2 Barracuda'!I108+'Fig 3 Tower'!I108+'Fig 4 Walkover'!I108) -> 
A108: =IF(Draw!E108=0,"",Draw!E108) ->  | F108: =IF($A108="","",'Fig 1 Ballet Leg'!H109) ->  | G108: =IF($A108="","",'Fig 2 Barracuda'!H109) ->  | H108: =IF($A108="","",'Fig 3 Tower'!H109) ->  | I108: =IF($A108="","",'Fig 4 Walkover'!H109) ->  | J108: =IF($A108="","",'Fig 1 Ballet Leg'!I109+'Fig 2 Barracuda'!I109+'Fig 3 Tower'!I109+'Fig 4 Walkover'!I109) -> 
A109: =IF(Draw!E109=0,"",Draw!E109) ->  | F109: =IF($A109="","",'Fig 1 Ballet Leg'!H110) ->  | G109: =IF($A109="","",'Fig 2 Barracuda'!H110) ->  | H109: =IF($A109="","",'Fig 3 Tower'!H110) ->  | I109: =IF($A109="","",'Fig 4 Walkover'!H110) ->  | J109: =IF($A109="","",'Fig 1 Ballet Leg'!I110+'Fig 2 Barracuda'!I110+'Fig 3 Tower'!I110+'Fig 4 Walkover'!I110) -> 
A110: =IF(Draw!E110=0,"",Draw!E110) ->  | F110: =IF($A110="","",'Fig 1 Ballet Leg'!H111) ->  | G110: =IF($A110="","",'Fig 2 Barracuda'!H111) ->  | H110: =IF($A110="","",'Fig 3 Tower'!H111) ->  | I110: =IF($A110="","",'Fig 4 Walkover'!H111) ->  | J110: =IF($A110="","",'Fig 1 Ballet Leg'!I111+'Fig 2 Barracuda'!I111+'Fig 3 Tower'!I111+'Fig 4 Walkover'!I111) -> 
A111: =IF(Draw!E111=0,"",Draw!E111) ->  | F111: =IF($A111="","",'Fig 1 Ballet Leg'!H112) ->  | G111: =IF($A111="","",'Fig 2 Barracuda'!H112) ->  | H111: =IF($A111="","",'Fig 3 Tower'!H112) ->  | I111: =IF($A111="","",'Fig 4 Walkover'!H112) ->  | J111: =IF($A111="","",'Fig 1 Ballet Leg'!I112+'Fig 2 Barracuda'!I112+'Fig 3 Tower'!I112+'Fig 4 Walkover'!I112) -> 
A112: =IF(Draw!E112=0,"",Draw!E112) ->  | F112: =IF($A112="","",'Fig 1 Ballet Leg'!H113) ->  | G112: =IF($A112="","",'Fig 2 Barracuda'!H113) ->  | H112: =IF($A112="","",'Fig 3 Tower'!H113) ->  | I112: =IF($A112="","",'Fig 4 Walkover'!H113) ->  | J112: =IF($A112="","",'Fig 1 Ballet Leg'!I113+'Fig 2 Barracuda'!I113+'Fig 3 Tower'!I113+'Fig 4 Walkover'!I113) -> 
A113: =IF(Draw!E113=0,"",Draw!E113) ->  | F113: =IF($A113="","",'Fig 1 Ballet Leg'!H114) ->  | G113: =IF($A113="","",'Fig 2 Barracuda'!H114) ->  | H113: =IF($A113="","",'Fig 3 Tower'!H114) ->  | I113: =IF($A113="","",'Fig 4 Walkover'!H114) ->  | J113: =IF($A113="","",'Fig 1 Ballet Leg'!I114+'Fig 2 Barracuda'!I114+'Fig 3 Tower'!I114+'Fig 4 Walkover'!I114) -> 
A114: =IF(Draw!E114=0,"",Draw!E114) ->  | F114: =IF($A114="","",'Fig 1 Ballet Leg'!H115) ->  | G114: =IF($A114="","",'Fig 2 Barracuda'!H115) ->  | H114: =IF($A114="","",'Fig 3 Tower'!H115) ->  | I114: =IF($A114="","",'Fig 4 Walkover'!H115) ->  | J114: =IF($A114="","",'Fig 1 Ballet Leg'!I115+'Fig 2 Barracuda'!I115+'Fig 3 Tower'!I115+'Fig 4 Walkover'!I115) -> 
A115: =IF(Draw!E115=0,"",Draw!E115) ->  | F115: =IF($A115="","",'Fig 1 Ballet Leg'!H116) ->  | G115: =IF($A115="","",'Fig 2 Barracuda'!H116) ->  | H115: =IF($A115="","",'Fig 3 Tower'!H116) ->  | I115: =IF($A115="","",'Fig 4 Walkover'!H116) ->  | J115: =IF($A115="","",'Fig 1 Ballet Leg'!I116+'Fig 2 Barracuda'!I116+'Fig 3 Tower'!I116+'Fig 4 Walkover'!I116) -> 
A116: =IF(Draw!E116=0,"",Draw!E116) ->  | F116: =IF($A116="","",'Fig 1 Ballet Leg'!H117) ->  | G116: =IF($A116="","",'Fig 2 Barracuda'!H117) ->  | H116: =IF($A116="","",'Fig 3 Tower'!H117) ->  | I116: =IF($A116="","",'Fig 4 Walkover'!H117) ->  | J116: =IF($A116="","",'Fig 1 Ballet Leg'!I117+'Fig 2 Barracuda'!I117+'Fig 3 Tower'!I117+'Fig 4 Walkover'!I117) -> 
A117: =IF(Draw!E117=0,"",Draw!E117) ->  | F117: =IF($A117="","",'Fig 1 Ballet Leg'!H118) ->  | G117: =IF($A117="","",'Fig 2 Barracuda'!H118) ->  | H117: =IF($A117="","",'Fig 3 Tower'!H118) ->  | I117: =IF($A117="","",'Fig 4 Walkover'!H118) ->  | J117: =IF($A117="","",'Fig 1 Ballet Leg'!I118+'Fig 2 Barracuda'!I118+'Fig 3 Tower'!I118+'Fig 4 Walkover'!I118) -> 
A118: =IF(Draw!E118=0,"",Draw!E118) ->  | F118: =IF($A118="","",'Fig 1 Ballet Leg'!H119) ->  | G118: =IF($A118="","",'Fig 2 Barracuda'!H119) ->  | H118: =IF($A118="","",'Fig 3 Tower'!H119) ->  | I118: =IF($A118="","",'Fig 4 Walkover'!H119) ->  | J118: =IF($A118="","",'Fig 1 Ballet Leg'!I119+'Fig 2 Barracuda'!I119+'Fig 3 Tower'!I119+'Fig 4 Walkover'!I119) -> 
A119: =IF(Draw!E119=0,"",Draw!E119) ->  | F119: =IF($A119="","",'Fig 1 Ballet Leg'!H120) ->  | G119: =IF($A119="","",'Fig 2 Barracuda'!H120) ->  | H119: =IF($A119="","",'Fig 3 Tower'!H120) ->  | I119: =IF($A119="","",'Fig 4 Walkover'!H120) ->  | J119: =IF($A119="","",'Fig 1 Ballet Leg'!I120+'Fig 2 Barracuda'!I120+'Fig 3 Tower'!I120+'Fig 4 Walkover'!I120) -> 
A120: =IF(Draw!E120=0,"",Draw!E120) ->  | F120: =IF($A120="","",'Fig 1 Ballet Leg'!H121) ->  | G120: =IF($A120="","",'Fig 2 Barracuda'!H121) ->  | H120: =IF($A120="","",'Fig 3 Tower'!H121) ->  | I120: =IF($A120="","",'Fig 4 Walkover'!H121) ->  | J120: =IF($A120="","",'Fig 1 Ballet Leg'!I121+'Fig 2 Barracuda'!I121+'Fig 3 Tower'!I121+'Fig 4 Walkover'!I121) -> 
A121: =IF(Draw!E121=0,"",Draw!E121) ->  | F121: =IF($A121="","",'Fig 1 Ballet Leg'!H122) ->  | G121: =IF($A121="","",'Fig 2 Barracuda'!H122) ->  | H121: =IF($A121="","",'Fig 3 Tower'!H122) ->  | I121: =IF($A121="","",'Fig 4 Walkover'!H122) ->  | J121: =IF($A121="","",'Fig 1 Ballet Leg'!I122+'Fig 2 Barracuda'!I122+'Fig 3 Tower'!I122+'Fig 4 Walkover'!I122) -> 
A122: =IF(Draw!E122=0,"",Draw!E122) ->  | F122: =IF($A122="","",'Fig 1 Ballet Leg'!H123) ->  | G122: =IF($A122="","",'Fig 2 Barracuda'!H123) ->  | H122: =IF($A122="","",'Fig 3 Tower'!H123) ->  | I122: =IF($A122="","",'Fig 4 Walkover'!H123) ->  | J122: =IF($A122="","",'Fig 1 Ballet Leg'!I123+'Fig 2 Barracuda'!I123+'Fig 3 Tower'!I123+'Fig 4 Walkover'!I123) -> 
A123: =IF(Draw!E123=0,"",Draw!E123) ->  | F123: =IF($A123="","",'Fig 1 Ballet Leg'!H124) ->  | G123: =IF($A123="","",'Fig 2 Barracuda'!H124) ->  | H123: =IF($A123="","",'Fig 3 Tower'!H124) ->  | I123: =IF($A123="","",'Fig 4 Walkover'!H124) ->  | J123: =IF($A123="","",'Fig 1 Ballet Leg'!I124+'Fig 2 Barracuda'!I124+'Fig 3 Tower'!I124+'Fig 4 Walkover'!I124) -> 
A124: =IF(Draw!E124=0,"",Draw!E124) ->  | F124: =IF($A124="","",'Fig 1 Ballet Leg'!H125) ->  | G124: =IF($A124="","",'Fig 2 Barracuda'!H125) ->  | H124: =IF($A124="","",'Fig 3 Tower'!H125) ->  | I124: =IF($A124="","",'Fig 4 Walkover'!H125) ->  | J124: =IF($A124="","",'Fig 1 Ballet Leg'!I125+'Fig 2 Barracuda'!I125+'Fig 3 Tower'!I125+'Fig 4 Walkover'!I125) -> 
A125: =IF(Draw!E125=0,"",Draw!E125) ->  | F125: =IF($A125="","",'Fig 1 Ballet Leg'!H126) ->  | G125: =IF($A125="","",'Fig 2 Barracuda'!H126) ->  | H125: =IF($A125="","",'Fig 3 Tower'!H126) ->  | I125: =IF($A125="","",'Fig 4 Walkover'!H126) ->  | J125: =IF($A125="","",'Fig 1 Ballet Leg'!I126+'Fig 2 Barracuda'!I126+'Fig 3 Tower'!I126+'Fig 4 Walkover'!I126) -> 
A126: =IF(Draw!E126=0,"",Draw!E126) ->  | F126: =IF($A126="","",'Fig 1 Ballet Leg'!H127) ->  | G126: =IF($A126="","",'Fig 2 Barracuda'!H127) ->  | H126: =IF($A126="","",'Fig 3 Tower'!H127) ->  | I126: =IF($A126="","",'Fig 4 Walkover'!H127) ->  | J126: =IF($A126="","",'Fig 1 Ballet Leg'!I127+'Fig 2 Barracuda'!I127+'Fig 3 Tower'!I127+'Fig 4 Walkover'!I127) -> 
A127: =IF(Draw!E127=0,"",Draw!E127) ->  | F127: =IF($A127="","",'Fig 1 Ballet Leg'!H128) ->  | G127: =IF($A127="","",'Fig 2 Barracuda'!H128) ->  | H127: =IF($A127="","",'Fig 3 Tower'!H128) ->  | I127: =IF($A127="","",'Fig 4 Walkover'!H128) ->  | J127: =IF($A127="","",'Fig 1 Ballet Leg'!I128+'Fig 2 Barracuda'!I128+'Fig 3 Tower'!I128+'Fig 4 Walkover'!I128) -> 
A128: =IF(Draw!E128=0,"",Draw!E128) ->  | F128: =IF($A128="","",'Fig 1 Ballet Leg'!H129) ->  | G128: =IF($A128="","",'Fig 2 Barracuda'!H129) ->  | H128: =IF($A128="","",'Fig 3 Tower'!H129) ->  | I128: =IF($A128="","",'Fig 4 Walkover'!H129) ->  | J128: =IF($A128="","",'Fig 1 Ballet Leg'!I129+'Fig 2 Barracuda'!I129+'Fig 3 Tower'!I129+'Fig 4 Walkover'!I129) -> 
A129: =IF(Draw!E129=0,"",Draw!E129) ->  | F129: =IF($A129="","",'Fig 1 Ballet Leg'!H130) ->  | G129: =IF($A129="","",'Fig 2 Barracuda'!H130) ->  | H129: =IF($A129="","",'Fig 3 Tower'!H130) ->  | I129: =IF($A129="","",'Fig 4 Walkover'!H130) ->  | J129: =IF($A129="","",'Fig 1 Ballet Leg'!I130+'Fig 2 Barracuda'!I130+'Fig 3 Tower'!I130+'Fig 4 Walkover'!I130) -> 
A130: =IF(Draw!E130=0,"",Draw!E130) ->  | F130: =IF($A130="","",'Fig 1 Ballet Leg'!H131) ->  | G130: =IF($A130="","",'Fig 2 Barracuda'!H131) ->  | H130: =IF($A130="","",'Fig 3 Tower'!H131) ->  | I130: =IF($A130="","",'Fig 4 Walkover'!H131) ->  | J130: =IF($A130="","",'Fig 1 Ballet Leg'!I131+'Fig 2 Barracuda'!I131+'Fig 3 Tower'!I131+'Fig 4 Walkover'!I131) -> 
A131: =IF(Draw!E131=0,"",Draw!E131) ->  | F131: =IF($A131="","",'Fig 1 Ballet Leg'!H132) ->  | G131: =IF($A131="","",'Fig 2 Barracuda'!H132) ->  | H131: =IF($A131="","",'Fig 3 Tower'!H132) ->  | I131: =IF($A131="","",'Fig 4 Walkover'!H132) ->  | J131: =IF($A131="","",'Fig 1 Ballet Leg'!I132+'Fig 2 Barracuda'!I132+'Fig 3 Tower'!I132+'Fig 4 Walkover'!I132) -> 
A132: =IF(Draw!E132=0,"",Draw!E132) ->  | F132: =IF($A132="","",'Fig 1 Ballet Leg'!H133) ->  | G132: =IF($A132="","",'Fig 2 Barracuda'!H133) ->  | H132: =IF($A132="","",'Fig 3 Tower'!H133) ->  | I132: =IF($A132="","",'Fig 4 Walkover'!H133) ->  | J132: =IF($A132="","",'Fig 1 Ballet Leg'!I133+'Fig 2 Barracuda'!I133+'Fig 3 Tower'!I133+'Fig 4 Walkover'!I133) -> 
A133: =IF(Draw!E133=0,"",Draw!E133) ->  | D133: =IF($A133="","",SUM(F133:I133)-J133) ->  | E133: =IF($A133="","",RANK(D133,D$2:D$150)) ->  | F133: =IF($A133="","",'Fig 1 Ballet Leg'!H134) ->  | G133: =IF($A133="","",'Fig 2 Barracuda'!H134) ->  | H133: =IF($A133="","",'Fig 3 Tower'!H134) ->  | I133: =IF($A133="","",'Fig 4 Walkover'!H134) ->  | J133: =IF($A133="","",'Fig 1 Ballet Leg'!I134+'Fig 2 Barracuda'!I134+'Fig 3 Tower'!I134+'Fig 4 Walkover'!I134) ->  | K133: =IF($A133="","",IF(A133="","",VLOOKUP(E133,AX$3:AY$102,2,FALSE))) -> 
A134: =IF(Draw!E134=0,"",Draw!E134) ->  | F134: =IF($A134="","",'Fig 1 Ballet Leg'!H135) ->  | G134: =IF($A134="","",'Fig 2 Barracuda'!H135) ->  | H134: =IF($A134="","",'Fig 3 Tower'!H135) ->  | I134: =IF($A134="","",'Fig 4 Walkover'!H135) ->  | J134: =IF($A134="","",'Fig 1 Ballet Leg'!I135+'Fig 2 Barracuda'!I135+'Fig 3 Tower'!I135+'Fig 4 Walkover'!I135) -> 
A135: =IF(Draw!E135=0,"",Draw!E135) ->  | F135: =IF($A135="","",'Fig 1 Ballet Leg'!H136) ->  | G135: =IF($A135="","",'Fig 2 Barracuda'!H136) ->  | H135: =IF($A135="","",'Fig 3 Tower'!H136) ->  | I135: =IF($A135="","",'Fig 4 Walkover'!H136) ->  | J135: =IF($A135="","",'Fig 1 Ballet Leg'!I136+'Fig 2 Barracuda'!I136+'Fig 3 Tower'!I136+'Fig 4 Walkover'!I136) -> 
A136: =IF(Draw!E136=0,"",Draw!E136) ->  | F136: =IF($A136="","",'Fig 1 Ballet Leg'!H137) ->  | G136: =IF($A136="","",'Fig 2 Barracuda'!H137) ->  | H136: =IF($A136="","",'Fig 3 Tower'!H137) ->  | I136: =IF($A136="","",'Fig 4 Walkover'!H137) ->  | J136: =IF($A136="","",'Fig 1 Ballet Leg'!I137+'Fig 2 Barracuda'!I137+'Fig 3 Tower'!I137+'Fig 4 Walkover'!I137) -> 
A137: =IF(Draw!E137=0,"",Draw!E137) ->  | F137: =IF($A137="","",'Fig 1 Ballet Leg'!H138) ->  | G137: =IF($A137="","",'Fig 2 Barracuda'!H138) ->  | H137: =IF($A137="","",'Fig 3 Tower'!H138) ->  | I137: =IF($A137="","",'Fig 4 Walkover'!H138) ->  | J137: =IF($A137="","",'Fig 1 Ballet Leg'!I138+'Fig 2 Barracuda'!I138+'Fig 3 Tower'!I138+'Fig 4 Walkover'!I138) -> 
A138: =IF(Draw!E138=0,"",Draw!E138) ->  | F138: =IF($A138="","",'Fig 1 Ballet Leg'!H139) ->  | G138: =IF($A138="","",'Fig 2 Barracuda'!H139) ->  | H138: =IF($A138="","",'Fig 3 Tower'!H139) ->  | I138: =IF($A138="","",'Fig 4 Walkover'!H139) ->  | J138: =IF($A138="","",'Fig 1 Ballet Leg'!I139+'Fig 2 Barracuda'!I139+'Fig 3 Tower'!I139+'Fig 4 Walkover'!I139) -> 
A139: =IF(Draw!E139=0,"",Draw!E139) ->  | F139: =IF($A139="","",'Fig 1 Ballet Leg'!H140) ->  | G139: =IF($A139="","",'Fig 2 Barracuda'!H140) ->  | H139: =IF($A139="","",'Fig 3 Tower'!H140) ->  | I139: =IF($A139="","",'Fig 4 Walkover'!H140) ->  | J139: =IF($A139="","",'Fig 1 Ballet Leg'!I140+'Fig 2 Barracuda'!I140+'Fig 3 Tower'!I140+'Fig 4 Walkover'!I140) -> 
A140: =IF(Draw!E140=0,"",Draw!E140) ->  | F140: =IF($A140="","",'Fig 1 Ballet Leg'!H141) ->  | G140: =IF($A140="","",'Fig 2 Barracuda'!H141) ->  | H140: =IF($A140="","",'Fig 3 Tower'!H141) ->  | I140: =IF($A140="","",'Fig 4 Walkover'!H141) ->  | J140: =IF($A140="","",'Fig 1 Ballet Leg'!I141+'Fig 2 Barracuda'!I141+'Fig 3 Tower'!I141+'Fig 4 Walkover'!I141) -> 
A141: =IF(Draw!E141=0,"",Draw!E141) ->  | F141: =IF($A141="","",'Fig 1 Ballet Leg'!H142) ->  | G141: =IF($A141="","",'Fig 2 Barracuda'!H142) ->  | H141: =IF($A141="","",'Fig 3 Tower'!H142) ->  | I141: =IF($A141="","",'Fig 4 Walkover'!H142) ->  | J141: =IF($A141="","",'Fig 1 Ballet Leg'!I142+'Fig 2 Barracuda'!I142+'Fig 3 Tower'!I142+'Fig 4 Walkover'!I142) -> 
A142: =IF(Draw!E142=0,"",Draw!E142) ->  | F142: =IF($A142="","",'Fig 1 Ballet Leg'!H143) ->  | G142: =IF($A142="","",'Fig 2 Barracuda'!H143) ->  | H142: =IF($A142="","",'Fig 3 Tower'!H143) ->  | I142: =IF($A142="","",'Fig 4 Walkover'!H143) ->  | J142: =IF($A142="","",'Fig 1 Ballet Leg'!I143+'Fig 2 Barracuda'!I143+'Fig 3 Tower'!I143+'Fig 4 Walkover'!I143) -> 
A143: =IF(Draw!E143=0,"",Draw!E143) ->  | F143: =IF($A143="","",'Fig 1 Ballet Leg'!H144) ->  | G143: =IF($A143="","",'Fig 2 Barracuda'!H144) ->  | H143: =IF($A143="","",'Fig 3 Tower'!H144) ->  | I143: =IF($A143="","",'Fig 4 Walkover'!H144) ->  | J143: =IF($A143="","",'Fig 1 Ballet Leg'!I144+'Fig 2 Barracuda'!I144+'Fig 3 Tower'!I144+'Fig 4 Walkover'!I144) -> 
A144: =IF(Draw!E144=0,"",Draw!E144) ->  | F144: =IF($A144="","",'Fig 1 Ballet Leg'!H145) ->  | G144: =IF($A144="","",'Fig 2 Barracuda'!H145) ->  | H144: =IF($A144="","",'Fig 3 Tower'!H145) ->  | I144: =IF($A144="","",'Fig 4 Walkover'!H145) ->  | J144: =IF($A144="","",'Fig 1 Ballet Leg'!I145+'Fig 2 Barracuda'!I145+'Fig 3 Tower'!I145+'Fig 4 Walkover'!I145) -> 
A145: =IF(Draw!E145=0,"",Draw!E145) ->  | F145: =IF($A145="","",'Fig 1 Ballet Leg'!H146) ->  | G145: =IF($A145="","",'Fig 2 Barracuda'!H146) ->  | H145: =IF($A145="","",'Fig 3 Tower'!H146) ->  | I145: =IF($A145="","",'Fig 4 Walkover'!H146) ->  | J145: =IF($A145="","",'Fig 1 Ballet Leg'!I146+'Fig 2 Barracuda'!I146+'Fig 3 Tower'!I146+'Fig 4 Walkover'!I146) -> 
A146: =IF(Draw!E146=0,"",Draw!E146) ->  | F146: =IF($A146="","",'Fig 1 Ballet Leg'!H147) ->  | G146: =IF($A146="","",'Fig 2 Barracuda'!H147) ->  | H146: =IF($A146="","",'Fig 3 Tower'!H147) ->  | I146: =IF($A146="","",'Fig 4 Walkover'!H147) ->  | J146: =IF($A146="","",'Fig 1 Ballet Leg'!I147+'Fig 2 Barracuda'!I147+'Fig 3 Tower'!I147+'Fig 4 Walkover'!I147) -> 
A147: =IF(Draw!E147=0,"",Draw!E147) ->  | F147: =IF($A147="","",'Fig 1 Ballet Leg'!H148) ->  | G147: =IF($A147="","",'Fig 2 Barracuda'!H148) ->  | H147: =IF($A147="","",'Fig 3 Tower'!H148) ->  | I147: =IF($A147="","",'Fig 4 Walkover'!H148) ->  | J147: =IF($A147="","",'Fig 1 Ballet Leg'!I148+'Fig 2 Barracuda'!I148+'Fig 3 Tower'!I148+'Fig 4 Walkover'!I148) -> 
A148: =IF(Draw!E148=0,"",Draw!E148) ->  | F148: =IF($A148="","",'Fig 1 Ballet Leg'!H149) ->  | G148: =IF($A148="","",'Fig 2 Barracuda'!H149) ->  | H148: =IF($A148="","",'Fig 3 Tower'!H149) ->  | I148: =IF($A148="","",'Fig 4 Walkover'!H149) ->  | J148: =IF($A148="","",'Fig 1 Ballet Leg'!I149+'Fig 2 Barracuda'!I149+'Fig 3 Tower'!I149+'Fig 4 Walkover'!I149) -> 
A149: =IF(Draw!E149=0,"",Draw!E149) ->  | F149: =IF($A149="","",'Fig 1 Ballet Leg'!H150) ->  | G149: =IF($A149="","",'Fig 2 Barracuda'!H150) ->  | H149: =IF($A149="","",'Fig 3 Tower'!H150) ->  | I149: =IF($A149="","",'Fig 4 Walkover'!H150) ->  | J149: =IF($A149="","",'Fig 1 Ballet Leg'!I150+'Fig 2 Barracuda'!I150+'Fig 3 Tower'!I150+'Fig 4 Walkover'!I150) -> 
A150: =IF(Draw!E150=0,"",Draw!E150) ->  | F150: =IF($A150="","",'Fig 1 Ballet Leg'!H151) ->  | G150: =IF($A150="","",'Fig 2 Barracuda'!H151) ->  | H150: =IF($A150="","",'Fig 3 Tower'!H151) ->  | I150: =IF($A150="","",'Fig 4 Walkover'!H151) ->  | J150: =IF($A150="","",'Fig 1 Ballet Leg'!I151+'Fig 2 Barracuda'!I151+'Fig 3 Tower'!I151+'Fig 4 Walkover'!I151) -> 
K151: =IF($A151="","",IF(A151="","",VLOOKUP(E151,AX$3:AY$102,2,FALSE))) -> 

Sheet Draw (hidden)
A1: 1 | B1: Bloomington | C1: =RAND() -> 0.923480786 | G1: School | H1: Name | I1: Draw # | J1: Name | K1: School
A2: Grace Henke | B2: Stillwater | C2: =RAND() -> 0.7094953163 | D2: =IF(ISNA(RANK(C2,C$2:C$150,1)),"",RANK(C2,C$2:C$150,1)) -> 40 | E2: =IF(B2<>"",F2,"") -> 1 | F2: 1 | G2: =B2 -> Stillwater | H2: =A2 -> Grace Henke | I2: =E2 -> 1 | J2: =IF(ISNA(VLOOKUP(I2,D$2:H$150,5,FALSE)),"",VLOOKUP(I2,D$2:H$150,5,FALSE)) -> Waldron, Zoe | K2: =IF(ISNA(VLOOKUP(I2,D$2:G$150,4,FALSE)),"",VLOOKUP(I2,D$2:G$150,4,FALSE)) -> Osseo-Maple Grove | N2: 1 | O2: Grace Henke | P2: Stillwater
A3: Drazenovich, Holly | B3: Osseo-Maple Grove | C3: =RAND() -> 0.903362382 | D3: =IF(ISNA(RANK(C3,C$2:C$150,1)),"",RANK(C3,C$2:C$150,1)) -> 52 | E3: =IF(B3<>"",F3,"") -> 2 | F3: 2 | G3: =B3 -> Osseo-Maple Grove | H3: =A3 -> Drazenovich, Holly | I3: =E3 -> 2 | J3: =IF(ISNA(VLOOKUP(I3,D$2:H$150,5,FALSE)),"",VLOOKUP(I3,D$2:H$150,5,FALSE)) -> Peters, Madison | K3: =IF(ISNA(VLOOKUP(I3,D$2:G$150,4,FALSE)),"",VLOOKUP(I3,D$2:G$150,4,FALSE)) -> Osseo-Maple Grove | N3: 2 | O3: Drazenovich, Holly | P3: Osseo-Maple Grove
A4: Carolyn Wrightsman | B4: Stillwater | C4: 0.031 | D4: 3 | E4: 3 | F4: 3 | G4: Stillwater | H4: Carolyn Wrightsman | I4: 3 | J4: Carolyn Wrightsman | K4: Stillwater | N4: 3 | O4: Carolyn Wrightsman | P4: Stillwater
A5: Ruohoniemi, Jessica (Jess) | B5: Osseo-Maple Grove | C5: =RAND() -> 0.9270844153 | D5: 55 | E5: 4 | F5: 4 | G5: Osseo-Maple Grove | H5: Ruohoniemi, Jessica (Jess) | I5: 4 | J5: Grace Zimmer | K5: Stillwater | N5: 4 | O5: Ruohoniemi, Jessica (Jess) | P5: Osseo-Maple Grove
A6: Grace Zimmer | B6: Stillwater | C6: 0.032 | D6: 4 | E6: 5 | F6: 5 | G6: Stillwater | H6: Grace Zimmer | I6: 5 | J6: Grace Sneden | K6: Stillwater | N6: 5 | O6: Grace Zimmer | P6: Stillwater
A7: Grace Gualtieri | B7: Stillwater | C7: 0.033 | D7: 6 | E7: 6 | F7: 6 | G7: Stillwater | H7: Grace Gualtieri | I7: 6 | J7: Grace Gualtieri | K7: Stillwater | N7: 6 | O7: Grace Gualtieri | P7: Stillwater
A8: Jane Sorenson | B8: Stillwater | C8: =RAND() -> 0.04720063215 | D8: 7 | E8: 7 | F8: 7 | G8: Stillwater | H8: Jane Sorenson | I8: 7 | J8: Jane Sorenson | K8: Stillwater | N8: 7 | O8: Jane Sorenson | P8: Stillwater
A9: Rubie Ballantyne | B9: Stillwater | C9: 0.3227187477 | D9: 19 | E9: 8 | F9: 8 | G9: Stillwater | H9: Rubie Ballantyne | I9: 8 | N9: 8 | O9: Rubie Ballantyne | P9: Stillwater
A10: Hannah Dettmann | B10: Stillwater | C10: 0.3352582065 | D10: 20 | E10: 9 | F10: 9 | G10: Stillwater | H10: Hannah Dettmann | I10: 9 | J10: Honnold, Emily | K10: Osseo-Maple Grove | N10: 9 | O10: Hannah Dettmann | P10: Stillwater
A11: Ellie Bliss | B11: Stillwater | C11: 0.6300719975 | D11: 36 | E11: 10 | F11: 10 | G11: Stillwater | H11: Ellie Bliss | I11: 10 | N11: 10 | O11: Ellie Bliss | P11: Stillwater
A12: Ganser, Anna | B12: Osseo-Maple Grove | C12: 0.2151823552 | D12: 14 | E12: 11 | F12: 11 | G12: Osseo-Maple Grove | H12: Ganser, Anna | I12: 11 | N12: 11 | O12: Ganser, Anna | P12: Osseo-Maple Grove
A13: Miranda Bergan | B13: Stillwater | C13: 0.8119126043 | D13: 46 | E13: 12 | F13: 12 | G13: Stillwater | H13: Miranda Bergan | I13: 12 | N13: 12 | O13: Miranda Bergan | P13: Stillwater
A14: Waldron, Zoe | B14: Osseo-Maple Grove | C14: 0.01648017764 | D14: 1 | E14: 13 | F14: 13 | G14: Osseo-Maple Grove | H14: Waldron, Zoe | I14: 13 | N14: 13 | O14: Waldron, Zoe | P14: Osseo-Maple Grove
A15: Vanderwarn, Marie | B15: Osseo-Maple Grove | C15: 0.818809925 | D15: 47 | E15: 14 | F15: 14 | G15: Osseo-Maple Grove | H15: Vanderwarn, Marie | I15: 14 | J15: Ganser, Anna | K15: Osseo-Maple Grove | N15: 14 | O15: Vanderwarn, Marie | P15: Osseo-Maple Grove
A16: Linnea Coltvet | B16: Stillwater | C16: 0.4955601866 | D16: 26 | E16: 15 | F16: 15 | G16: Stillwater | H16: Linnea Coltvet | I16: 15 | N16: 15 | O16: Linnea Coltvet | P16: Stillwater
A17: Ryann Ellis | B17: Stillwater | C17: 0.4293987135 | D17: 23 | E17: 16 | F17: 16 | G17: Stillwater | H17: Ryann Ellis | I17: 16 | N17: 16 | O17: Ryann Ellis | P17: Stillwater
A18: Kya Hodgdon | B18: Stillwater | C18: 0.2918854328 | D18: 17 | E18: 17 | F18: 17 | G18: Stillwater | H18: Kya Hodgdon | I18: 17 | J18: Kya Hodgdon | K18: Stillwater | N18: 17 | O18: Kya Hodgdon | P18: Stillwater
A19: Hawes, Danielle | B19: Osseo-Maple Grove | C19: 0.546570033 | D19: 33 | E19: 18 | F19: 18 | G19: Osseo-Maple Grove | H19: Hawes, Danielle | I19: 18 | N19: 18 | O19: Hawes, Danielle | P19: Osseo-Maple Grove
A20: Andrea Finholt | B20: Stillwater | C20: 0.5606787893 | D20: 34 | E20: 19 | F20: 19 | G20: Stillwater | H20: Andrea Finholt | I20: 19 | J20: Rubie Ballantyne | K20: Stillwater | N20: 19 | O20: Andrea Finholt | P20: Stillwater
A21: Sophie Ogaard | B21: Stillwater | C21: 0.5022903708 | D21: 27 | E21: 20 | F21: 20 | G21: Stillwater | H21: Sophie Ogaard | I21: 20 | J21: Hannah Dettmann | K21: Stillwater | N21: 20 | O21: Sophie Ogaard | P21: Stillwater
A22: Ali Gerard | B22: Stillwater | C22: 0.9160156417 | D22: 53 | E22: 21 | F22: 21 | G22: Stillwater | H22: Ali Gerard | I22: 21 | J22: Sophie Browning | K22: Stillwater | N22: 21 | O22: Ali Gerard | P22: Stillwater
A23: Grace Sneden | B23: Stillwater | C23: 0.03257516451 | D23: 5 | E23: 22 | F23: 22 | G23: Stillwater | H23: Grace Sneden | I23: 22 | J23: Moline, Katelyn (Katie) | K23: Osseo-Maple Grove | N23: 22 | O23: Grace Sneden | P23: Stillwater
A24: Moline, Katelyn (Katie) | B24: Osseo-Maple Grove | C24: 0.4101149735 | D24: 22 | E24: 23 | F24: 23 | G24: Osseo-Maple Grove | H24: Moline, Katelyn (Katie) | I24: 23 | J24: Ryann Ellis | K24: Stillwater | N24: 23 | O24: Moline, Katelyn (Katie) | P24: Osseo-Maple Grove
A25: Prentice, Margo | B25: Osseo-Maple Grove | C25: 0.5778410513 | D25: 35 | E25: 24 | F25: 24 | G25: Osseo-Maple Grove | H25: Prentice, Margo | I25: 24 | N25: 24 | O25: Prentice, Margo | P25: Osseo-Maple Grove
A26: Honnold, Emily | B26: Osseo-Maple Grove | C26: 0.09015958423 | D26: 9 | E26: 25 | F26: 25 | G26: Osseo-Maple Grove | H26: Honnold, Emily | I26: 25 | J26: Laborde, Caroline | K26: Osseo-Maple Grove | N26: 25 | O26: Honnold, Emily | P26: Osseo-Maple Grove
A27: Laborde, Caroline | B27: Osseo-Maple Grove | C27: 0.4526941597 | D27: 25 | E27: 26 | F27: 26 | G27: Osseo-Maple Grove | H27: Laborde, Caroline | I27: 26 | J27: Linnea Coltvet | K27: Stillwater | N27: 26 | O27: Laborde, Caroline | P27: Osseo-Maple Grove
A28: Peters, Madison | B28: Osseo-Maple Grove | C28: 0.03058009965 | D28: 2 | E28: 27 | F28: 27 | G28: Osseo-Maple Grove | H28: Peters, Madison | I28: 27 | J28: Sophie Ogaard | K28: Stillwater | N28: 27 | O28: Peters, Madison | P28: Osseo-Maple Grove
A29: Hammann, Allison | B29: Osseo-Maple Grove | C29: 0.8703559571 | D29: 50 | E29: 28 | F29: 28 | G29: Osseo-Maple Grove | H29: Hammann, Allison | I29: 28 | N29: 28 | O29: Hammann, Allison | P29: Osseo-Maple Grove
A30: McBride, Elizabeth (Lizzy) | B30: Osseo-Maple Grove | C30: 0.7505704599 | D30: 42 | E30: 29 | F30: 29 | G30: Osseo-Maple Grove | H30: McBride, Elizabeth (Lizzy) | I30: 29 | N30: 29 | O30: McBride, Elizabeth (Lizzy) | P30: Osseo-Maple Grove
A31: Sophie Browning | B31: Stillwater | C31: 0.3447878835 | D31: 21 | E31: 30 | F31: 30 | G31: Stillwater | H31: Sophie Browning | I31: 30 | N31: 30 | O31: Sophie Browning | P31: Stillwater
A32: McNamee, Kelly | B32: Osseo-Maple Grove | C32: 0.7782823803 | E32: =IF(B32<>"",F32,"") -> 31 | F32: 31 | G32: Osseo-Maple Grove | H32: McNamee, Kelly | I32: 31 | N32: 31 | O32: McNamee, Kelly | P32: Osseo-Maple Grove
A33: Claire Summary | B33: Stillwater | C33: 0.9535380764 | E33: 32 | F33: 32 | G33: Stillwater | H33: Claire Summary | I33: 32 | N33: 32 | O33: Claire Summary | P33: Stillwater
A34: Isabel Solheim | B34: Stillwater | C34: 0.07269253652 | E34: 33 | F34: 33 | G34: Stillwater | H34: Isabel Solheim | I34: 33 | J34: Hawes, Danielle | K34: Osseo-Maple Grove | N34: 33 | O34: Isabel Solheim | P34: Stillwater
A35: Emily Cossetta | B35: Stillwater | C35: 0.9199171245 | E35: 34 | F35: 34 | G35: Stillwater | H35: Emily Cossetta | I35: 34 | J35: Andrea Finholt | K35: Stillwater | N35: 34 | O35: Emily Cossetta | P35: Stillwater
A36: Mason, Ellery | B36: Osseo-Maple Grove | C36: 0.5136908905 | E36: 35 | F36: 35 | G36: Osseo-Maple Grove | H36: Mason, Ellery | I36: 35 | J36: Prentice, Margo | K36: Osseo-Maple Grove | N36: 35 | O36: Mason, Ellery | P36: Osseo-Maple Grove
A37: Kaitlin Johnson | B37: Stillwater | C37: 0.7737876526 | E37: 36 | F37: 36 | G37: Stillwater | H37: Kaitlin Johnson | I37: 36 | J37: Ellie Bliss | K37: Stillwater | N37: 36 | O37: Kaitlin Johnson | P37: Stillwater
A38: Emma Sneden | B38: Stillwater | C38: 0.1634716014 | E38: 37 | F38: 37 | G38: Stillwater | H38: Emma Sneden | I38: 37 | N38: 37 | O38: Emma Sneden | P38: Stillwater
A39: Greta Bliss | B39: Stillwater | C39: 0.6369414452 | E39: 38 | F39: 38 | G39: Stillwater | H39: Greta Bliss | I39: 38 | N39: 38 | O39: Greta Bliss | P39: Stillwater
A40: Vrba, Elena (Ellie) | B40: Osseo-Maple Grove | C40: =RAND() -> 0.2150791665 | E40: 39 | F40: 39 | G40: Osseo-Maple Grove | H40: Vrba, Elena (Ellie) | I40: 39 | N40: 39 | O40: Vrba, Elena (Ellie) | P40: Osseo-Maple Grove
A41: Emily Shanley | B41: Stillwater | C41: 0.8804990878 | E41: 40 | F41: 40 | G41: Stillwater | H41: Emily Shanley | I41: 40 | J41: Grace Henke | K41: Stillwater | N41: 40 | O41: Emily Shanley | P41: Stillwater
A42: Raina Hoge | B42: Stillwater | C42: 0.3185533312 | E42: 41 | F42: 41 | G42: Stillwater | H42: Raina Hoge | I42: 41 | N42: 41 | O42: Raina Hoge | P42: Stillwater
A43: Courtney Lillemoen | B43: Stillwater | C43: 0.2720789959 | E43: 42 | F43: 42 | G43: Stillwater | H43: Courtney Lillemoen | I43: 42 | J43: McBride, Elizabeth (Lizzy) | K43: Osseo-Maple Grove | N43: 42 | O43: Courtney Lillemoen | P43: Stillwater
A44: Trudeau, Alexandra (Trudy) | B44: Osseo-Maple Grove | C44: 0.9858188164 | E44: 43 | F44: 43 | G44: Osseo-Maple Grove | H44: Trudeau, Alexandra (Trudy) | I44: 43 | N44: 43 | O44: Trudeau, Alexandra (Trudy) | P44: Osseo-Maple Grove
A45: Aubrie Filandrinos | B45: Stillwater | C45: 0.2508068432 | E45: 44 | F45: 44 | G45: Stillwater | H45: Aubrie Filandrinos | I45: 44 | N45: 44 | O45: Aubrie Filandrinos | P45: Stillwater
A46: Olsen, Katherine (Katie) | B46: Osseo-Maple Grove | C46: 0.5066342543 | E46: 45 | F46: 45 | G46: Osseo-Maple Grove | H46: Olsen, Katherine (Katie) | I46: 45 | N46: 45 | O46: Olsen, Katherine (Katie) | P46: Osseo-Maple Grove
A47: Morgan Tope-Yates | B47: Stillwater | C47: 0.1658031818 | E47: 46 | F47: 46 | G47: Stillwater | H47: Morgan Tope-Yates | I47: 46 | J47: Miranda Bergan | K47: Stillwater | N47: 46 | O47: Morgan Tope-Yates | P47: Stillwater
A48: Heiss, Hayley | B48: Osseo-Maple Grove | C48: 0.8631131023 | E48: 47 | F48: 47 | G48: Osseo-Maple Grove | H48: Heiss, Hayley | I48: 47 | J48: Vanderwarn, Marie | K48: Osseo-Maple Grove | N48: 47 | O48: Heiss, Hayley | P48: Osseo-Maple Grove
A49: Madi Kulzer | B49: Stillwater | C49: 0.5215326905 | E49: 48 | F49: 48 | G49: Stillwater | H49: Madi Kulzer | I49: 48 | N49: 48 | O49: Madi Kulzer | P49: Stillwater
A50: Heitzig, Elisabeth (Ellie) | B50: Osseo-Maple Grove | C50: 0.6578815504 | E50: 49 | F50: 49 | G50: Osseo-Maple Grove | H50: Heitzig, Elisabeth (Ellie) | I50: 49 | N50: 49 | O50: Heitzig, Elisabeth (Ellie) | P50: Osseo-Maple Grove
A51: Knox, Rachel | B51: Osseo-Maple Grove | C51: 0.8013689253 | E51: 50 | F51: 50 | G51: Osseo-Maple Grove | H51: Knox, Rachel | I51: 50 | J51: Hammann, Allison | K51: Osseo-Maple Grove | N51: 50 | O51: Knox, Rachel | P51: Osseo-Maple Grove
A52: Breidenbach, Heather | B52: Osseo-Maple Grove | C52: 0.8566288906 | E52: 51 | F52: 51 | G52: Osseo-Maple Grove | H52: Breidenbach, Heather | I52: 51 | N52: 51 | O52: Breidenbach, Heather | P52: Osseo-Maple Grove
A53: Rachel Duerr | B53: Stillwater | C53: 0.9436757135 | E53: 52 | F53: 52 | G53: Stillwater | H53: Rachel Duerr | I53: 52 | J53: Drazenovich, Holly | K53: Osseo-Maple Grove | N53: 52 | O53: Rachel Duerr | P53: Stillwater
A54: Sofia Johnson | B54: Stillwater | C54: 0.6555117714 | E54: 53 | F54: 53 | G54: Stillwater | H54: Sofia Johnson | I54: 53 | J54: Ali Gerard | K54: Stillwater | N54: 53 | O54: Sofia Johnson | P54: Stillwater
A55: Littel, Hannah | B55: Osseo-Maple Grove | C55: 0.5328350611 | E55: 54 | F55: 54 | G55: Osseo-Maple Grove | H55: Littel, Hannah | I55: 54 | N55: 54 | O55: Littel, Hannah | P55: Osseo-Maple Grove
A56: Anna Koenning | B56: Stillwater | C56: 0.4477783047 | E56: 55 | F56: 55 | G56: Stillwater | H56: Anna Koenning | I56: 55 | J56: Ruohoniemi, Jessica (Jess) | K56: Osseo-Maple Grove | N56: 55 | O56: Anna Koenning | P56: Stillwater
A57: Mamie Thrall | B57: Stillwater | C57: 0.1589784899 | E57: 56 | F57: 56 | G57: Stillwater | H57: Mamie Thrall | I57: 56 | N57: 56 | O57: Mamie Thrall | P57: Stillwater
A58: Brie Sheridan | B58: Stillwater | C58: 0.5306339824 | E58: 57 | F58: 57 | G58: Stillwater | H58: Brie Sheridan | I58: 57 | N58: 57 | O58: Brie Sheridan | P58: Stillwater
A59: Kelly Keenan | B59: Stillwater | C59: 0.7169430523 | E59: 58 | F59: 58 | G59: Stillwater | H59: Kelly Keenan | I59: 58 | N59: 58 | O59: Kelly Keenan | P59: Stillwater
F60: 59 | G60: 0 | H60: 0
F61: 60 | G61: 0 | H61: 0
F62: 61 | G62: 0 | H62: 0
F63: 62 | G63: 0 | H63: 0
F64: 63 | G64: 0 | H64: 0
F65: 64 | G65: 0 | H65: 0
F66: 65 | G66: 0 | H66: 0
F67: 66 | G67: =B67 -> 0 | H67: =A67 -> 0 | I67: =E67 ->  | J67: =IF(ISNA(VLOOKUP(I67,D$2:H$150,5,FALSE)),"",VLOOKUP(I67,D$2:H$150,5,FALSE)) ->  | K67: =IF(ISNA(VLOOKUP(I67,D$2:G$150,4,FALSE)),"",VLOOKUP(I67,D$2:G$150,4,FALSE)) -> 
F68: 67 | G68: 0 | H68: 0
F69: 68 | G69: 0 | H69: 0
F70: 69 | G70: 0 | H70: 0
F71: 70 | G71: 0 | H71: 0
F72: 71 | G72: 0 | H72: 0
F73: 72 | G73: 0 | H73: 0
F74: 73 | G74: 0 | H74: 0
F75: 74 | G75: 0 | H75: 0
F76: 75 | G76: 0 | H76: 0
F77: 76 | G77: 0 | H77: 0
F78: 77 | G78: 0 | H78: 0
F79: 78 | G79: 0 | H79: 0
F80: 79 | G80: 0 | H80: 0
F81: 80 | G81: 0 | H81: 0
F82: 81 | G82: 0 | H82: 0
F83: 82 | G83: 0 | H83: 0
F84: 83 | G84: 0 | H84: 0
F85: 84 | G85: 0 | H85: 0
F86: 85 | G86: 0 | H86: 0
F87: 86 | G87: 0 | H87: 0
F88: 87 | G88: 0 | H88: 0
F89: 88 | G89: 0 | H89: 0
F90: 89 | G90: 0 | H90: 0
F91: 90 | G91: 0 | H91: 0
F92: 91 | G92: 0 | H92: 0
F93: 92 | G93: 0 | H93: 0
F94: 93 | G94: 0 | H94: 0
F95: 94 | G95: =B95 -> 0 | H95: =A95 -> 0 | I95: =E95 -> 
E96: =IF(B96<>"",F96,"") ->  | F96: 95 | G96: 0 | H96: 0
F97: 96 | G97: 0 | H97: 0
F98: 97 | G98: 0 | H98: 0
F99: 98 | G99: 0 | H99: 0
F100: 99 | G100: 0 | H100: 0
F101: 100 | G101: 0 | H101: 0
F102: 101 | G102: 0 | H102: 0
F103: 102 | G103: 0 | H103: 0
F104: 103 | G104: 0 | H104: 0
F105: 104 | G105: 0 | H105: 0
F106: 105 | G106: 0 | H106: 0
F107: 106 | G107: 0 | H107: 0
F108: 107 | G108: 0 | H108: 0
F109: 108 | G109: 0 | H109: 0
F110: 109 | G110: 0 | H110: 0
F111: 110 | G111: 0 | H111: 0
F112: 111 | G112: 0 | H112: 0
F113: 112 | G113: 0 | H113: 0
F114: 113 | G114: 0 | H114: 0
F115: 114 | G115: 0 | H115: 0
F116: 115 | G116: 0 | H116: 0
F117: 116 | G117: 0 | H117: 0
F118: 117 | G118: 0 | H118: 0
F119: 118 | G119: 0 | H119: 0
F120: 119 | G120: 0 | H120: 0
F121: 120 | G121: 0 | H121: 0
F122: 121 | G122: 0 | H122: 0
F123: 122 | G123: 0 | H123: 0
F124: 123 | G124: 0 | H124: 0
F125: 124 | G125: 0 | H125: 0
F126: 125 | G126: 0 | H126: 0
F127: 126 | G127: 0 | H127: 0
F128: 127 | G128: 0 | H128: 0
F129: 128 | G129: 0 | H129: 0
F130: 129 | G130: 0 | H130: 0
F131: 130 | G131: 0 | H131: 0 | J131: =IF(ISNA(VLOOKUP(I131,D$2:H$150,5,FALSE)),"",VLOOKUP(I131,D$2:H$150,5,FALSE)) ->  | K131: =IF(ISNA(VLOOKUP(I131,D$2:G$150,4,FALSE)),"",VLOOKUP(I131,D$2:G$150,4,FALSE)) -> 
F132: 131 | G132: 0 | H132: 0
F133: 132 | G133: 0 | H133: 0
F134: 133 | G134: 0 | H134: 0
F135: 134 | G135: 0 | H135: 0
F136: 135 | G136: 0 | H136: 0
F137: 136 | G137: 0 | H137: 0
F138: 137 | G138: 0 | H138: 0
F139: 138 | G139: 0 | H139: 0
F140: 139 | G140: 0 | H140: 0
F141: 140 | G141: 0 | H141: 0
F142: 141 | G142: 0 | H142: 0
F143: 142 | G143: 0 | H143: 0
F144: 143 | G144: 0 | H144: 0
F145: 144 | G145: 0 | H145: 0
F146: 145 | G146: 0 | H146: 0
F147: 146 | G147: 0 | H147: 0
F148: 147 | G148: 0 | H148: 0
F149: 148 | G149: 0 | H149: 0
F150: 149 | G150: 0 | H150: 0

Sheet Schools (hidden)
A1: List of Schools:
A2: Blake
A3: Bloomington
A4: Columbia Heights
A5: Eden Prairie
A6: Edina
A7: Forest Lake
A8: Hopkins
A9: Itasca
A10: Osseo-Maple Grove
A11: Prior Lake
A12: Richfield
A13: St. Louis Park
A14: Stillwater
A15: Wayzata

Sheet Official Draw
B2: =Draw!I1 -> Draw # | C2: =Draw!J1 -> Name | D2: =Draw!K1 -> School
B3: 1 | C3: Grace Henke | D3: Stillwater
B4: 2 | C4: Drazenovich, Holly | D4: Osseo-Maple Grove
B5: 3 | C5: Carolyn Wrightsman | D5: Stillwater
B6: 4 | C6: Ruohoniemi, Jessica (Jess) | D6: Osseo-Maple Grove
B7: 5 | C7: Grace Zimmer | D7: Stillwater
B8: 6 | C8: Grace Gualtieri | D8: Stillwater
B9: 7 | C9: Jane Sorenson | D9: Stillwater
B10: 8 | C10: Rubie Ballantyne | D10: Stillwater
B11: 9 | C11: Hannah Dettmann | D11: Stillwater
B12: 10 | C12: Ellie Bliss | D12: Stillwater
B13: 11 | C13: Ganser, Anna | D13: Osseo-Maple Grove
B14: 12 | C14: Miranda Bergan | D14: Stillwater
B15: 13 | C15: Waldron, Zoe | D15: Osseo-Maple Grove
B16: 14 | C16: Vanderwarn, Marie | D16: Osseo-Maple Grove
B17: 15 | C17: Linnea Coltvet | D17: Stillwater
B18: 16 | C18: Ryann Ellis | D18: Stillwater
B19: 17 | C19: Kya Hodgdon | D19: Stillwater
B20: 18 | C20: Hawes, Danielle | D20: Osseo-Maple Grove
B21: 19 | C21: Andrea Finholt | D21: Stillwater
B22: 20 | C22: Sophie Ogaard | D22: Stillwater
B23: 21 | C23: Ali Gerard | D23: Stillwater
B24: 22 | C24: Grace Sneden | D24: Stillwater
B25: 23 | C25: Moline, Katelyn (Katie) | D25: Osseo-Maple Grove
B26: 24 | C26: Prentice, Margo | D26: Osseo-Maple Grove
B27: 25 | C27: Honnold, Emily | D27: Osseo-Maple Grove
B28: 26 | C28: Laborde, Caroline | D28: Osseo-Maple Grove
B29: 27 | C29: Peters, Madison | D29: Osseo-Maple Grove
B30: 28 | C30: Hammann, Allison | D30: Osseo-Maple Grove
B31: 29 | C31: McBride, Elizabeth (Lizzy) | D31: Osseo-Maple Grove
B32: 30 | C32: Sophie Browning | D32: Stillwater
B33: 31 | C33: McNamee, Kelly | D33: Osseo-Maple Grove
B34: 32 | C34: Claire Summary | D34: Stillwater
B35: 33 | C35: Isabel Solheim | D35: Stillwater
B36: 34 | C36: Emily Cossetta | D36: Stillwater
B37: 35 | C37: Mason, Ellery | D37: Osseo-Maple Grove
B38: 36 | C38: Kaitlin Johnson | D38: Stillwater
B39: 37 | C39: Emma Sneden | D39: Stillwater
B40: 38 | C40: Greta Bliss | D40: Stillwater
B41: 39 | C41: Vrba, Elena (Ellie) | D41: Osseo-Maple Grove
B42: 40 | C42: Emily Shanley | D42: Stillwater
B43: 41 | C43: Raina Hoge | D43: Stillwater
B44: 42 | C44: Courtney Lillemoen | D44: Stillwater
B45: 43 | C45: Trudeau, Alexandra (Trudy) | D45: Osseo-Maple Grove
B46: 44 | C46: Aubrie Filandrinos | D46: Stillwater
B47: 45 | C47: Olsen, Katherine (Katie) | D47: Osseo-Maple Grove
B48: 46 | C48: Morgan Tope-Yates | D48: Stillwater
B49: 47 | C49: Heiss, Hayley | D49: Osseo-Maple Grove
B50: 48 | C50: Madi Kulzer | D50: Stillwater
B51: 49 | C51: Heitzig, Elisabeth (Ellie) | D51: Osseo-Maple Grove
B52: 50 | C52: Knox, Rachel | D52: Osseo-Maple Grove
B53: 51 | C53: Breidenbach, Heather | D53: Osseo-Maple Grove
B54: 52 | C54: Rachel Duerr | D54: Stillwater
B55: 53 | C55: Sofia Johnson | D55: Stillwater
B56: 54 | C56: Littel, Hannah | D56: Osseo-Maple Grove
B57: 55 | C57: Anna Koenning | D57: Stillwater
B58: 56 | C58: Mamie Thrall | D58: Stillwater
B59: 57 | C59: Brie Sheridan | D59: Stillwater
B60: 58 | C60: Kelly Keenan | D60: Stillwater
B61: =Draw!N60 ->  | C61: =Draw!O60 -> 0 | D61: =Draw!P60 -> 0
B62: =Draw!N61 ->  | C62: =Draw!O61 -> 0 | D62: =Draw!P61 -> 0
B63: =Draw!N62 ->  | C63: =Draw!O62 -> 0 | D63: =Draw!P62 -> 0
B64: =Draw!N63 ->  | C64: =Draw!O63 -> 0 | D64: =Draw!P63 -> 0
B65: =Draw!N64 ->  | C65: =Draw!O64 -> 0 | D65: =Draw!P64 -> 0
B66: =Draw!N65 ->  | C66: =Draw!O65 -> 0 | D66: =Draw!P65 -> 0
B67: =Draw!N66 ->  | C67: =Draw!O66 -> 0 | D67: =Draw!P66 -> 0
B68: =Draw!N67 ->  | C68: =Draw!O67 -> 0 | D68: =Draw!P67 -> 0
B69: =Draw!N68 ->  | C69: =Draw!O68 -> 0 | D69: =Draw!P68 -> 0
B70: =Draw!N69 ->  | C70: =Draw!O69 -> 0 | D70: =Draw!P69 -> 0
B71: =Draw!N70 ->  | C71: =Draw!O70 -> 0 | D71: =Draw!P70 -> 0
B72: =Draw!N71 ->  | C72: =Draw!O71 -> 0 | D72: =Draw!P71 -> 0
B73: =Draw!N72 ->  | C73: =Draw!O72 -> 0 | D73: =Draw!P72 -> 0
B74: =Draw!N73 ->  | C74: =Draw!O73 -> 0 | D74: =Draw!P73 -> 0
B75: =Draw!N74 ->  | C75: =Draw!O74 -> 0 | D75: =Draw!P74 -> 0
B76: =Draw!N75 ->  | C76: =Draw!O75 -> 0 | D76: =Draw!P75 -> 0
B77: =Draw!N76 ->  | C77: =Draw!O76 -> 0 | D77: =Draw!P76 -> 0
B78: =Draw!N77 ->  | C78: =Draw!O77 -> 0 | D78: =Draw!P77 -> 0
B79: =Draw!N78 ->  | C79: =Draw!O78 -> 0 | D79: =Draw!P78 -> 0
B80: =Draw!N79 ->  | C80: =Draw!O79 -> 0 | D80: =Draw!P79 -> 0
B81: =Draw!N80 ->  | C81: =Draw!O80 -> 0 | D81: =Draw!P80 -> 0
B82: =Draw!N81 ->  | C82: =Draw!O81 -> 0 | D82: =Draw!P81 -> 0
B83: =Draw!N82 ->  | C83: =Draw!O82 -> 0 | D83: =Draw!P82 -> 0
B84: =Draw!N83 ->  | C84: =Draw!O83 -> 0 | D84: =Draw!P83 -> 0
B85: =Draw!N84 ->  | C85: =Draw!O84 -> 0 | D85: =Draw!P84 -> 0
B86: =Draw!N85 ->  | C86: =Draw!O85 -> 0 | D86: =Draw!P85 -> 0
B87: =Draw!N86 ->  | C87: =Draw!O86 -> 0 | D87: =Draw!P86 -> 0
B88: =Draw!N87 ->  | C88: =Draw!O87 -> 0 | D88: =Draw!P87 -> 0
B89: =Draw!N88 ->  | C89: =Draw!O88 -> 0 | D89: =Draw!P88 -> 0
B90: =Draw!N89 ->  | C90: =Draw!O89 -> 0 | D90: =Draw!P89 -> 0
B91: =Draw!N90 ->  | C91: =Draw!O90 -> 0 | D91: =Draw!P90 -> 0
B92: =Draw!N91 ->  | C92: =Draw!O91 -> 0 | D92: =Draw!P91 -> 0
B93: =Draw!N92 ->  | C93: =Draw!O92 -> 0 | D93: =Draw!P92 -> 0
B94: =Draw!N93 ->  | C94: =Draw!O93 -> 0 | D94: =Draw!P93 -> 0
B95: =Draw!N94 ->  | C95: =Draw!O94 -> 0 | D95: =Draw!P94 -> 0
B96: =Draw!N95 ->  | C96: =Draw!O95 -> 0 | D96: =Draw!P95 -> 0
B97: =Draw!N96 ->  | C97: =Draw!O96 -> 0 | D97: =Draw!P96 -> 0
B98: =Draw!N97 ->  | C98: =Draw!O97 -> 0 | D98: =Draw!P97 -> 0
B99: =Draw!N98 ->  | C99: =Draw!O98 -> 0 | D99: =Draw!P98 -> 0
B100: =Draw!N99 ->  | C100: =Draw!O99 -> 0 | D100: =Draw!P99 -> 0
B101: =Draw!N100 ->  | C101: =Draw!O100 -> 0 | D101: =Draw!P100 -> 0
B102: =Draw!N101 ->  | C102: =Draw!O101 -> 0 | D102: =Draw!P101 -> 0
B103: =Draw!N102 ->  | C103: =Draw!O102 -> 0 | D103: =Draw!P102 -> 0
B104: =Draw!N103 ->  | C104: =Draw!O103 -> 0 | D104: =Draw!P103 -> 0
B105: =Draw!N104 ->  | C105: =Draw!O104 -> 0 | D105: =Draw!P104 -> 0
B106: =Draw!N105 ->  | C106: =Draw!O105 -> 0 | D106: =Draw!P105 -> 0
B107: =Draw!N106 ->  | C107: =Draw!O106 -> 0 | D107: =Draw!P106 -> 0
B108: =Draw!N107 ->  | C108: =Draw!O107 -> 0 | D108: =Draw!P107 -> 0
B109: =Draw!N108 ->  | C109: =Draw!O108 -> 0 | D109: =Draw!P108 -> 0
B110: =Draw!N109 ->  | C110: =Draw!O109 -> 0 | D110: =Draw!P109 -> 0
B111: =Draw!N110 ->  | C111: =Draw!O110 -> 0 | D111: =Draw!P110 -> 0
B112: =Draw!N111 ->  | C112: =Draw!O111 -> 0 | D112: =Draw!P111 -> 0
B113: =Draw!N112 ->  | C113: =Draw!O112 -> 0 | D113: =Draw!P112 -> 0
B114: =Draw!N113 ->  | C114: =Draw!O113 -> 0 | D114: =Draw!P113 -> 0
B115: =Draw!N114 ->  | C115: =Draw!O114 -> 0 | D115: =Draw!P114 -> 0
B116: =Draw!N115 ->  | C116: =Draw!O115 -> 0 | D116: =Draw!P115 -> 0
B117: =Draw!N116 ->  | C117: =Draw!O116 -> 0 | D117: =Draw!P116 -> 0
B118: =Draw!N117 ->  | C118: =Draw!O117 -> 0 | D118: =Draw!P117 -> 0
B119: =Draw!N118 ->  | C119: =Draw!O118 -> 0 | D119: =Draw!P118 -> 0
B120: =Draw!N119 ->  | C120: =Draw!O119 -> 0 | D120: =Draw!P119 -> 0
B121: =Draw!N120 ->  | C121: =Draw!O120 -> 0 | D121: =Draw!P120 -> 0
B122: =Draw!N121 ->  | C122: =Draw!O121 -> 0 | D122: =Draw!P121 -> 0
B123: =Draw!N122 ->  | C123: =Draw!O122 -> 0 | D123: =Draw!P122 -> 0
B124: =Draw!N123 ->  | C124: =Draw!O123 -> 0 | D124: =Draw!P123 -> 0
B125: =Draw!N124 ->  | C125: =Draw!O124 -> 0 | D125: =Draw!P124 -> 0
B126: =Draw!N125 ->  | C126: =Draw!O125 -> 0 | D126: =Draw!P125 -> 0
B127: =Draw!N126 ->  | C127: =Draw!O126 -> 0 | D127: =Draw!P126 -> 0
B128: =Draw!N127 ->  | C128: =Draw!O127 -> 0 | D128: =Draw!P127 -> 0
B129: =Draw!N128 ->  | C129: =Draw!O128 -> 0 | D129: =Draw!P128 -> 0
B130: =Draw!N129 ->  | C130: =Draw!O129 -> 0 | D130: =Draw!P129 -> 0
B131: =Draw!N130 ->  | C131: =Draw!O130 -> 0 | D131: =Draw!P130 -> 0
B132: =Draw!N131 ->  | C132: =Draw!O131 -> 0 | D132: =Draw!P131 -> 0
B133: =Draw!N132 ->  | C133: =Draw!O132 -> 0 | D133: =Draw!P132 -> 0
B134: =Draw!N133 ->  | C134: =Draw!O133 -> 0 | D134: =Draw!P133 -> 0
B135: =Draw!N134 ->  | C135: =Draw!O134 -> 0 | D135: =Draw!P134 -> 0
B136: =Draw!N135 ->  | C136: =Draw!O135 -> 0 | D136: =Draw!P135 -> 0
B137: =Draw!N136 ->  | C137: =Draw!O136 -> 0 | D137: =Draw!P136 -> 0
B138: =Draw!N137 ->  | C138: =Draw!O137 -> 0 | D138: =Draw!P137 -> 0
B139: =Draw!N138 ->  | C139: =Draw!O138 -> 0 | D139: =Draw!P138 -> 0
B140: =Draw!N139 ->  | C140: =Draw!O139 -> 0 | D140: =Draw!P139 -> 0
B141: =Draw!N140 ->  | C141: =Draw!O140 -> 0 | D141: =Draw!P140 -> 0
B142: =Draw!N141 ->  | C142: =Draw!O141 -> 0 | D142: =Draw!P141 -> 0
B143: =Draw!N142 ->  | C143: =Draw!O142 -> 0 | D143: =Draw!P142 -> 0
B144: =Draw!N143 ->  | C144: =Draw!O143 -> 0 | D144: =Draw!P143 -> 0
B145: =Draw!N144 ->  | C145: =Draw!O144 -> 0 | D145: =Draw!P144 -> 0
B146: =Draw!N145 ->  | C146: =Draw!O145 -> 0 | D146: =Draw!P145 -> 0
B147: =Draw!N146 ->  | C147: =Draw!O146 -> 0 | D147: =Draw!P146 -> 0
B148: =Draw!N147 ->  | C148: =Draw!O147 -> 0 | D148: =Draw!P147 -> 0
B149: =Draw!N148 ->  | C149: =Draw!O148 -> 0 | D149: =Draw!P148 -> 0
B150: =Draw!N149 ->  | C150: =Draw!O149 -> 0 | D150: =Draw!P149 -> 0
B151: =Draw!N150 ->  | C151: =Draw!O150 -> 0 | D151: =Draw!P150 -> 0

Sheet Meet Results
D2: Osseo-Maple Grove | E2: =SUMIF($F5:$G24,D2,$H5:$H24) -> 4 | F2: Stillwater | G2: =SUMIF($F5:$G24,F2,$H5:$H24) -> 25 | K2: Edina | L2: =SUMIF($M5:$N24,K2,$O5:$O24) -> 0 | M2: Edina | N2: =SUMIF($M5:$N24,M2,$O5:$O24) -> 0 | R2: Hopkins | S2: =SUMIF($T5:$U24,R2,$V5:$V24) -> 0 | T2: Hopkins | U2: =SUMIF($T5:$U24,T2,$V5:$V24) -> 0
D3: Total Score | K3: Total Score | R3: Total Score
D4: # | E4: Swimmer | F4: School | G4: Total | H4: SCORE | I4: PLACE | K4: # | L4: Swimmer | M4: School | N4: Total | O4: SCORE | P4: PLACE | R4: # | S4: Swimmer | T4: School | U4: Total | V4: SCORE | W4: PLACE
D5: 20 | E5: Sophie Ogaard | F5: Stillwater | G5: 64.09210526 | H5: =IF(ISNA(VLOOKUP(I5,Totals!$AX$3:$AY$102,2,FALSE)),"",VLOOKUP(I5,Totals!$AX$3:$AY$102,2,FALSE)) -> 8 | I5: =IF(ISNA(RANK(G5,G$5:G$150)),"",RANK(G5,G$5:G$150)) -> 1 | K5: 20 | L5: Sophie Ogaard | M5: Stillwater | N5: 64.09210526 | O5: =IF(ISNA(VLOOKUP(P5,Totals!$AX$3:$AY$102,2,FALSE)),"",VLOOKUP(P5,Totals!$AX$3:$AY$102,2,FALSE)) -> 8 | P5: =IF(ISNA(RANK(N5,N$5:N$150)),"",RANK(N5,N$5:N$150)) -> 1 | R5: 20 | S5: Sophie Ogaard | T5: Stillwater | U5: 64.09210526 | V5: =IF(ISNA(VLOOKUP(W5,Totals!$AX$3:$AY$102,2,FALSE)),"",VLOOKUP(W5,Totals!$AX$3:$AY$102,2,FALSE)) -> 8 | W5: =IF(ISNA(RANK(U5,U$5:U$150)),"",RANK(U5,U$5:U$150)) -> 1
D6: 55 | E6: Anna Koenning | F6: Stillwater | G6: 63.86403509 | H6: =IF(ISNA(VLOOKUP(I6,Totals!$AX$3:$AY$102,2,FALSE)),"",VLOOKUP(I6,Totals!$AX$3:$AY$102,2,FALSE)) -> 6 | I6: =IF(G6=G5,I5,IF(ISNA(RANK(G6,G$5:G$150)),"",RANK(G6,G$5:G$150))) -> 2 | K6: 55 | L6: Anna Koenning | M6: Stillwater | N6: 63.86403509 | O6: =IF(ISNA(VLOOKUP(P6,Totals!$AX$3:$AY$102,2,FALSE)),"",VLOOKUP(P6,Totals!$AX$3:$AY$102,2,FALSE)) -> 6 | P6: =IF(ISNA(RANK(N6,N$5:N$150)),"",RANK(N6,N$5:N$150)) -> 2 | R6: 55 | S6: Anna Koenning | T6: Stillwater | U6: 63.86403509 | V6: =IF(ISNA(VLOOKUP(W6,Totals!$AX$3:$AY$102,2,FALSE)),"",VLOOKUP(W6,Totals!$AX$3:$AY$102,2,FALSE)) -> 6 | W6: =IF(ISNA(RANK(U6,U$5:U$150)),"",RANK(U6,U$5:U$150)) -> 2
D7: 5 | E7: Grace Zimmer | F7: Stillwater | G7: 63.0745614 | H7: =IF(ISNA(VLOOKUP(I7,Totals!$AX$3:$AY$102,2,FALSE)),"",VLOOKUP(I7,Totals!$AX$3:$AY$102,2,FALSE)) -> 5 | I7: =IF(G7=G6,I6,IF(ISNA(RANK(G7,G$5:G$150)),"",RANK(G7,G$5:G$150))) -> 3 | K7: 5 | L7: Grace Zimmer | M7: Stillwater | N7: 63.0745614 | O7: =IF(ISNA(VLOOKUP(P7,Totals!$AX$3:$AY$102,2,FALSE)),"",VLOOKUP(P7,Totals!$AX$3:$AY$102,2,FALSE)) -> 5 | P7: 3 | R7: 5 | S7: Grace Zimmer | T7: Stillwater | U7: 63.0745614 | V7: =IF(ISNA(VLOOKUP(W7,Totals!$AX$3:$AY$102,2,FALSE)),"",VLOOKUP(W7,Totals!$AX$3:$AY$102,2,FALSE)) -> 5 | W7: 3
D8: 56 | E8: Mamie Thrall | F8: Stillwater | G8: 63.01315789 | H8: =IF(ISNA(VLOOKUP(I8,Totals!$AX$3:$AY$102,2,FALSE)),"",VLOOKUP(I8,Totals!$AX$3:$AY$102,2,FALSE)) -> 4 | I8: 4 | K8: 56 | L8: Mamie Thrall | M8: Stillwater | N8: 63.01315789 | O8: =IF(ISNA(VLOOKUP(P8,Totals!$AX$3:$AY$102,2,FALSE)),"",VLOOKUP(P8,Totals!$AX$3:$AY$102,2,FALSE)) -> 4 | P8: 4 | R8: 56 | S8: Mamie Thrall | T8: Stillwater | U8: 63.01315789 | V8: =IF(ISNA(VLOOKUP(W8,Totals!$AX$3:$AY$102,2,FALSE)),"",VLOOKUP(W8,Totals!$AX$3:$AY$102,2,FALSE)) -> 4 | W8: 4
D9: 29 | E9: McBride, Elizabeth (Lizzy) | F9: Osseo-Maple Grove | G9: 62.23684211 | H9: =IF(ISNA(VLOOKUP(I9,Totals!$AX$3:$AY$102,2,FALSE)),"",VLOOKUP(I9,Totals!$AX$3:$AY$102,2,FALSE)) -> 3 | I9: 5 | K9: 29 | L9: McBride, Elizabeth (Lizzy) | M9: Osseo-Maple Grove | N9: 62.23684211 | O9: =IF(ISNA(VLOOKUP(P9,Totals!$AX$3:$AY$102,2,FALSE)),"",VLOOKUP(P9,Totals!$AX$3:$AY$102,2,FALSE)) -> 3 | P9: 5 | R9: 29 | S9: McBride, Elizabeth (Lizzy) | T9: Osseo-Maple Grove | U9: 62.23684211 | V9: =IF(ISNA(VLOOKUP(W9,Totals!$AX$3:$AY$102,2,FALSE)),"",VLOOKUP(W9,Totals!$AX$3:$AY$102,2,FALSE)) -> 3 | W9: 5
D10: 6 | E10: Grace Gualtieri | F10: Stillwater | G10: 62.14473684 | H10: =IF(ISNA(VLOOKUP(I10,Totals!$AX$3:$AY$102,2,FALSE)),"",VLOOKUP(I10,Totals!$AX$3:$AY$102,2,FALSE)) -> 2 | I10: 6 | K10: 6 | L10: Grace Gualtieri | M10: Stillwater | N10: 62.14473684 | O10: =IF(ISNA(VLOOKUP(P10,Totals!$AX$3:$AY$102,2,FALSE)),"",VLOOKUP(P10,Totals!$AX$3:$AY$102,2,FALSE)) -> 2 | P10: 6 | R10: 6 | S10: Grace Gualtieri | T10: Stillwater | U10: 62.14473684 | V10: =IF(ISNA(VLOOKUP(W10,Totals!$AX$3:$AY$102,2,FALSE)),"",VLOOKUP(W10,Totals!$AX$3:$AY$102,2,FALSE)) -> 2 | W10: 6
D11: 11 | E11: Ganser, Anna | F11: Osseo-Maple Grove | G11: 60.05701754 | H11: =IF(ISNA(VLOOKUP(I11,Totals!$AX$3:$AY$102,2,FALSE)),"",VLOOKUP(I11,Totals!$AX$3:$AY$102,2,FALSE)) -> 1 | I11: 7 | K11: 11 | L11: Ganser, Anna | M11: Osseo-Maple Grove | N11: 60.05701754 | O11: =IF(ISNA(VLOOKUP(P11,Totals!$AX$3:$AY$102,2,FALSE)),"",VLOOKUP(P11,Totals!$AX$3:$AY$102,2,FALSE)) -> 1 | P11: 7 | R11: 11 | S11: Ganser, Anna | T11: Osseo-Maple Grove | U11: 60.05701754 | V11: =IF(ISNA(VLOOKUP(W11,Totals!$AX$3:$AY$102,2,FALSE)),"",VLOOKUP(W11,Totals!$AX$3:$AY$102,2,FALSE)) -> 1 | W11: 7
D12: 33 | E12: Isabel Solheim | F12: Stillwater | G12: 59.60087719 | H12: =IF(ISNA(VLOOKUP(I12,Totals!$AX$3:$AY$102,2,FALSE)),"",VLOOKUP(I12,Totals!$AX$3:$AY$102,2,FALSE)) -> 0 | I12: 8 | K12: 33 | L12: Isabel Solheim | M12: Stillwater | N12: 59.60087719 | O12: =IF(ISNA(VLOOKUP(P12,Totals!$AX$3:$AY$102,2,FALSE)),"",VLOOKUP(P12,Totals!$AX$3:$AY$102,2,FALSE)) -> 0 | P12: 8 | R12: 33 | S12: Isabel Solheim | T12: Stillwater | U12: 59.60087719 | V12: =IF(ISNA(VLOOKUP(W12,Totals!$AX$3:$AY$102,2,FALSE)),"",VLOOKUP(W12,Totals!$AX$3:$AY$102,2,FALSE)) -> 0 | W12: 8
D13: 37 | E13: Emma Sneden | F13: Stillwater | G13: 59.53070175 | H13: =IF(ISNA(VLOOKUP(I13,Totals!$AX$3:$AY$102,2,FALSE)),"",VLOOKUP(I13,Totals!$AX$3:$AY$102,2,FALSE)) -> 0 | I13: 9 | K13: 37 | L13: Emma Sneden | M13: Stillwater | N13: 59.53070175 | O13: =IF(ISNA(VLOOKUP(P13,Totals!$AX$3:$AY$102,2,FALSE)),"",VLOOKUP(P13,Totals!$AX$3:$AY$102,2,FALSE)) -> 0 | P13: 9 | R13: 37 | S13: Emma Sneden | T13: Stillwater | U13: 59.53070175 | V13: =IF(ISNA(VLOOKUP(W13,Totals!$AX$3:$AY$102,2,FALSE)),"",VLOOKUP(W13,Totals!$AX$3:$AY$102,2,FALSE)) -> 0 | W13: 9
D14: 15 | E14: Linnea Coltvet | F14: Stillwater | G14: 59.4254386 | H14: =IF(ISNA(VLOOKUP(I14,Totals!$AX$3:$AY$102,2,FALSE)),"",VLOOKUP(I14,Totals!$AX$3:$AY$102,2,FALSE)) -> 0 | I14: 10 | K14: 15 | L14: Linnea Coltvet | M14: Stillwater | N14: 59.4254386 | O14: =IF(ISNA(VLOOKUP(P14,Totals!$AX$3:$AY$102,2,FALSE)),"",VLOOKUP(P14,Totals!$AX$3:$AY$102,2,FALSE)) -> 0 | P14: 10 | R14: 15 | S14: Linnea Coltvet | T14: Stillwater | U14: 59.4254386 | V14: =IF(ISNA(VLOOKUP(W14,Totals!$AX$3:$AY$102,2,FALSE)),"",VLOOKUP(W14,Totals!$AX$3:$AY$102,2,FALSE)) -> 0 | W14: 10
D15: 18 | E15: Hawes, Danielle | F15: Osseo-Maple Grove | G15: 59.10087719 | H15: =IF(ISNA(VLOOKUP(I15,Totals!$AX$3:$AY$102,2,FALSE)),"",VLOOKUP(I15,Totals!$AX$3:$AY$102,2,FALSE)) -> 0 | I15: 11 | K15: 18 | L15: Hawes, Danielle | M15: Osseo-Maple Grove | N15: 59.10087719 | O15: =IF(ISNA(VLOOKUP(P15,Totals!$AX$3:$AY$102,2,FALSE)),"",VLOOKUP(P15,Totals!$AX$3:$AY$102,2,FALSE)) -> 0 | P15: 11 | R15: 18 | S15: Hawes, Danielle | T15: Osseo-Maple Grove | U15: 59.10087719 | V15: =IF(ISNA(VLOOKUP(W15,Totals!$AX$3:$AY$102,2,FALSE)),"",VLOOKUP(W15,Totals!$AX$3:$AY$102,2,FALSE)) -> 0 | W15: 11
D16: 8 | E16: Rubie Ballantyne | F16: Stillwater | G16: 58.99561404 | H16: =IF(ISNA(VLOOKUP(I16,Totals!$AX$3:$AY$102,2,FALSE)),"",VLOOKUP(I16,Totals!$AX$3:$AY$102,2,FALSE)) -> 0 | I16: 12 | K16: 8 | L16: Rubie Ballantyne | M16: Stillwater | N16: 58.99561404 | O16: =IF(ISNA(VLOOKUP(P16,Totals!$AX$3:$AY$102,2,FALSE)),"",VLOOKUP(P16,Totals!$AX$3:$AY$102,2,FALSE)) -> 0 | P16: 12 | R16: 8 | S16: Rubie Ballantyne | T16: Stillwater | U16: 58.99561404 | V16: =IF(ISNA(VLOOKUP(W16,Totals!$AX$3:$AY$102,2,FALSE)),"",VLOOKUP(W16,Totals!$AX$3:$AY$102,2,FALSE)) -> 0 | W16: 12
D17: 9 | E17: Hannah Dettmann | F17: Stillwater | G17: 58.93859649 | H17: =IF(ISNA(VLOOKUP(I17,Totals!$AX$3:$AY$102,2,FALSE)),"",VLOOKUP(I17,Totals!$AX$3:$AY$102,2,FALSE)) -> 0 | I17: 13 | K17: 9 | L17: Hannah Dettmann | M17: Stillwater | N17: 58.93859649 | O17: =IF(ISNA(VLOOKUP(P17,Totals!$AX$3:$AY$102,2,FALSE)),"",VLOOKUP(P17,Totals!$AX$3:$AY$102,2,FALSE)) -> 0 | P17: 13 | R17: 9 | S17: Hannah Dettmann | T17: Stillwater | U17: 58.93859649 | V17: =IF(ISNA(VLOOKUP(W17,Totals!$AX$3:$AY$102,2,FALSE)),"",VLOOKUP(W17,Totals!$AX$3:$AY$102,2,FALSE)) -> 0 | W17: 13
D18: 48 | E18: Madi Kulzer | F18: Stillwater | G18: 58.50877193 | H18: =IF(ISNA(VLOOKUP(I18,Totals!$AX$3:$AY$102,2,FALSE)),"",VLOOKUP(I18,Totals!$AX$3:$AY$102,2,FALSE)) -> 0 | I18: 14 | K18: 48 | L18: Madi Kulzer | M18: Stillwater | N18: 58.50877193 | O18: =IF(ISNA(VLOOKUP(P18,Totals!$AX$3:$AY$102,2,FALSE)),"",VLOOKUP(P18,Totals!$AX$3:$AY$102,2,FALSE)) -> 0 | P18: 14 | R18: 48 | S18: Madi Kulzer | T18: Stillwater | U18: 58.50877193 | V18: =IF(ISNA(VLOOKUP(W18,Totals!$AX$3:$AY$102,2,FALSE)),"",VLOOKUP(W18,Totals!$AX$3:$AY$102,2,FALSE)) -> 0 | W18: 14
D19: 1 | E19: Grace Henke | F19: Stillwater | G19: 58.43859649 | H19: =IF(ISNA(VLOOKUP(I19,Totals!$AX$3:$AY$102,2,FALSE)),"",VLOOKUP(I19,Totals!$AX$3:$AY$102,2,FALSE)) -> 0 | I19: 15 | K19: 1 | L19: Grace Henke | M19: Stillwater | N19: 58.43859649 | O19: =IF(ISNA(VLOOKUP(P19,Totals!$AX$3:$AY$102,2,FALSE)),"",VLOOKUP(P19,Totals!$AX$3:$AY$102,2,FALSE)) -> 0 | P19: 15 | R19: 1 | S19: Grace Henke | T19: Stillwater | U19: 58.43859649 | V19: =IF(ISNA(VLOOKUP(W19,Totals!$AX$3:$AY$102,2,FALSE)),"",VLOOKUP(W19,Totals!$AX$3:$AY$102,2,FALSE)) -> 0 | W19: 15
D20: 52 | E20: Rachel Duerr | F20: Stillwater | G20: 58.32894737 | H20: =IF(ISNA(VLOOKUP(I20,Totals!$AX$3:$AY$102,2,FALSE)),"",VLOOKUP(I20,Totals!$AX$3:$AY$102,2,FALSE)) -> 0 | I20: 16 | K20: 52 | L20: Rachel Duerr | M20: Stillwater | N20: 58.32894737 | O20: =IF(ISNA(VLOOKUP(P20,Totals!$AX$3:$AY$102,2,FALSE)),"",VLOOKUP(P20,Totals!$AX$3:$AY$102,2,FALSE)) -> 0 | P20: 16 | R20: 52 | S20: Rachel Duerr | T20: Stillwater | U20: 58.32894737 | V20: =IF(ISNA(VLOOKUP(W20,Totals!$AX$3:$AY$102,2,FALSE)),"",VLOOKUP(W20,Totals!$AX$3:$AY$102,2,FALSE)) -> 0 | W20: 16
D21: 12 | E21: Miranda Bergan | F21: Stillwater | G21: 58.19298246 | H21: =IF(ISNA(VLOOKUP(I21,Totals!$AX$3:$AY$102,2,FALSE)),"",VLOOKUP(I21,Totals!$AX$3:$AY$102,2,FALSE)) -> 0 | I21: 17 | K21: 12 | L21: Miranda Bergan | M21: Stillwater | N21: 58.19298246 | O21: =IF(ISNA(VLOOKUP(P21,Totals!$AX$3:$AY$102,2,FALSE)),"",VLOOKUP(P21,Totals!$AX$3:$AY$102,2,FALSE)) -> 0 | P21: 17 | R21: 12 | S21: Miranda Bergan | T21: Stillwater | U21: 58.19298246 | V21: =IF(ISNA(VLOOKUP(W21,Totals!$AX$3:$AY$102,2,FALSE)),"",VLOOKUP(W21,Totals!$AX$3:$AY$102,2,FALSE)) -> 0 | W21: 17
D22: 58 | E22: Kelly Keenan | F22: Stillwater | G22: 57.90789474 | H22: =IF(ISNA(VLOOKUP(I22,Totals!$AX$3:$AY$102,2,FALSE)),"",VLOOKUP(I22,Totals!$AX$3:$AY$102,2,FALSE)) -> 0 | I22: 18 | K22: 58 | L22: Kelly Keenan | M22: Stillwater | N22: 57.90789474 | O22: =IF(ISNA(VLOOKUP(P22,Totals!$AX$3:$AY$102,2,FALSE)),"",VLOOKUP(P22,Totals!$AX$3:$AY$102,2,FALSE)) -> 0 | P22: 18 | R22: 58 | S22: Kelly Keenan | T22: Stillwater | U22: 57.90789474 | V22: =IF(ISNA(VLOOKUP(W22,Totals!$AX$3:$AY$102,2,FALSE)),"",VLOOKUP(W22,Totals!$AX$3:$AY$102,2,FALSE)) -> 0 | W22: 18
D23: 32 | E23: Claire Summary | F23: Stillwater | G23: 57.89912281 | H23: =IF(ISNA(VLOOKUP(I23,Totals!$AX$3:$AY$102,2,FALSE)),"",VLOOKUP(I23,Totals!$AX$3:$AY$102,2,FALSE)) -> 0 | I23: 19 | K23: 32 | L23: Claire Summary | M23: Stillwater | N23: 57.89912281 | O23: =IF(ISNA(VLOOKUP(P23,Totals!$AX$3:$AY$102,2,FALSE)),"",VLOOKUP(P23,Totals!$AX$3:$AY$102,2,FALSE)) -> 0 | P23: 19 | R23: 32 | S23: Claire Summary | T23: Stillwater | U23: 57.89912281 | V23: =IF(ISNA(VLOOKUP(W23,Totals!$AX$3:$AY$102,2,FALSE)),"",VLOOKUP(W23,Totals!$AX$3:$AY$102,2,FALSE)) -> 0 | W23: 19
D24: 54 | E24: Littel, Hannah | F24: Osseo-Maple Grove | G24: 57.50438596 | H24: =IF(ISNA(VLOOKUP(I24,Totals!$AX$3:$AY$102,2,FALSE)),"",VLOOKUP(I24,Totals!$AX$3:$AY$102,2,FALSE)) -> 0 | I24: 20 | K24: 54 | L24: Littel, Hannah | M24: Osseo-Maple Grove | N24: 57.50438596 | O24: =IF(ISNA(VLOOKUP(P24,Totals!$AX$3:$AY$102,2,FALSE)),"",VLOOKUP(P24,Totals!$AX$3:$AY$102,2,FALSE)) -> 0 | P24: 20 | R24: 54 | S24: Littel, Hannah | T24: Osseo-Maple Grove | U24: 57.50438596 | V24: =IF(ISNA(VLOOKUP(W24,Totals!$AX$3:$AY$102,2,FALSE)),"",VLOOKUP(W24,Totals!$AX$3:$AY$102,2,FALSE)) -> 0 | W24: 20
D25: 38 | E25: Greta Bliss | F25: Stillwater | G25: 56.9254386 | H25: =IF(ISNA(VLOOKUP(I25,Totals!$AX$3:$AY$102,2,FALSE)),"",VLOOKUP(I25,Totals!$AX$3:$AY$102,2,FALSE)) -> 0 | I25: 21 | K25: 38 | L25: Greta Bliss | M25: Stillwater | N25: 56.9254386 | O25: =IF(ISNA(VLOOKUP(P25,Totals!$AX$3:$AY$102,2,FALSE)),"",VLOOKUP(P25,Totals!$AX$3:$AY$102,2,FALSE)) -> 0 | P25: 21 | R25: 38 | S25: Greta Bliss | T25: Stillwater | U25: 56.9254386 | V25: =IF(ISNA(VLOOKUP(W25,Totals!$AX$3:$AY$102,2,FALSE)),"",VLOOKUP(W25,Totals!$AX$3:$AY$102,2,FALSE)) -> 0 | W25: 21
D26: 34 | E26: Emily Cossetta | F26: Stillwater | G26: 56.87719298 | H26: =IF(ISNA(VLOOKUP(I26,Totals!$AX$3:$AY$102,2,FALSE)),"",VLOOKUP(I26,Totals!$AX$3:$AY$102,2,FALSE)) -> 0 | I26: 22 | K26: 34 | L26: Emily Cossetta | M26: Stillwater | N26: 56.87719298 | O26: =IF(ISNA(VLOOKUP(P26,Totals!$AX$3:$AY$102,2,FALSE)),"",VLOOKUP(P26,Totals!$AX$3:$AY$102,2,FALSE)) -> 0 | P26: 22 | R26: 34 | S26: Emily Cossetta | T26: Stillwater | U26: 56.87719298 | V26: =IF(ISNA(VLOOKUP(W26,Totals!$AX$3:$AY$102,2,FALSE)),"",VLOOKUP(W26,Totals!$AX$3:$AY$102,2,FALSE)) -> 0 | W26: 22
D27: 22 | E27: Grace Sneden | F27: Stillwater | G27: 56.78070175 | H27: =IF(ISNA(VLOOKUP(I27,Totals!$AX$3:$AY$102,2,FALSE)),"",VLOOKUP(I27,Totals!$AX$3:$AY$102,2,FALSE)) -> 0 | I27: 23 | K27: 22 | L27: Grace Sneden | M27: Stillwater | N27: 56.78070175 | O27: =IF(ISNA(VLOOKUP(P27,Totals!$AX$3:$AY$102,2,FALSE)),"",VLOOKUP(P27,Totals!$AX$3:$AY$102,2,FALSE)) -> 0 | P27: 23 | R27: 22 | S27: Grace Sneden | T27: Stillwater | U27: 56.78070175 | V27: =IF(ISNA(VLOOKUP(W27,Totals!$AX$3:$AY$102,2,FALSE)),"",VLOOKUP(W27,Totals!$AX$3:$AY$102,2,FALSE)) -> 0 | W27: 23
D28: 46 | E28: Morgan Tope-Yates | F28: Stillwater | G28: 56.72368421 | H28: =IF(ISNA(VLOOKUP(I28,Totals!$AX$3:$AY$102,2,FALSE)),"",VLOOKUP(I28,Totals!$AX$3:$AY$102,2,FALSE)) -> 0 | I28: 24 | K28: 46 | L28: Morgan Tope-Yates | M28: Stillwater | N28: 56.72368421 | O28: =IF(ISNA(VLOOKUP(P28,Totals!$AX$3:$AY$102,2,FALSE)),"",VLOOKUP(P28,Totals!$AX$3:$AY$102,2,FALSE)) -> 0 | P28: 24 | R28: 46 | S28: Morgan Tope-Yates | T28: Stillwater | U28: 56.72368421 | V28: =IF(ISNA(VLOOKUP(W28,Totals!$AX$3:$AY$102,2,FALSE)),"",VLOOKUP(W28,Totals!$AX$3:$AY$102,2,FALSE)) -> 0 | W28: 24
D29: 3 | E29: Carolyn Wrightsman | F29: Stillwater | G29: 56.59649123 | H29: =IF(ISNA(VLOOKUP(I29,Totals!$AX$3:$AY$102,2,FALSE)),"",VLOOKUP(I29,Totals!$AX$3:$AY$102,2,FALSE)) -> 0 | I29: 25 | K29: 3 | L29: Carolyn Wrightsman | M29: Stillwater | N29: 56.59649123 | O29: =IF(ISNA(VLOOKUP(P29,Totals!$AX$3:$AY$102,2,FALSE)),"",VLOOKUP(P29,Totals!$AX$3:$AY$102,2,FALSE)) -> 0 | P29: 25 | R29: 3 | S29: Carolyn Wrightsman | T29: Stillwater | U29: 56.59649123 | V29: =IF(ISNA(VLOOKUP(W29,Totals!$AX$3:$AY$102,2,FALSE)),"",VLOOKUP(W29,Totals!$AX$3:$AY$102,2,FALSE)) -> 0 | W29: 25
D30: 44 | E30: Aubrie Filandrinos | F30: Stillwater | G30: 56.52631579 | H30: =IF(ISNA(VLOOKUP(I30,Totals!$AX$3:$AY$102,2,FALSE)),"",VLOOKUP(I30,Totals!$AX$3:$AY$102,2,FALSE)) -> 0 | I30: 26 | K30: 44 | L30: Aubrie Filandrinos | M30: Stillwater | N30: 56.52631579 | O30: =IF(ISNA(VLOOKUP(P30,Totals!$AX$3:$AY$102,2,FALSE)),"",VLOOKUP(P30,Totals!$AX$3:$AY$102,2,FALSE)) -> 0 | P30: 26 | R30: 44 | S30: Aubrie Filandrinos | T30: Stillwater | U30: 56.52631579 | V30: =IF(ISNA(VLOOKUP(W30,Totals!$AX$3:$AY$102,2,FALSE)),"",VLOOKUP(W30,Totals!$AX$3:$AY$102,2,FALSE)) -> 0 | W30: 26
D31: 14 | E31: Vanderwarn, Marie | F31: Osseo-Maple Grove | G31: 56.27631579 | H31: =IF(ISNA(VLOOKUP(I31,Totals!$AX$3:$AY$102,2,FALSE)),"",VLOOKUP(I31,Totals!$AX$3:$AY$102,2,FALSE)) -> 0 | I31: 27 | K31: 14 | L31: Vanderwarn, Marie | M31: Osseo-Maple Grove | N31: 56.27631579 | O31: =IF(ISNA(VLOOKUP(P31,Totals!$AX$3:$AY$102,2,FALSE)),"",VLOOKUP(P31,Totals!$AX$3:$AY$102,2,FALSE)) -> 0 | P31: 27 | R31: 14 | S31: Vanderwarn, Marie | T31: Osseo-Maple Grove | U31: 56.27631579 | V31: =IF(ISNA(VLOOKUP(W31,Totals!$AX$3:$AY$102,2,FALSE)),"",VLOOKUP(W31,Totals!$AX$3:$AY$102,2,FALSE)) -> 0 | W31: 27
D32: 10 | E32: Ellie Bliss | F32: Stillwater | G32: 55.53508772 | H32: =IF(ISNA(VLOOKUP(I32,Totals!$AX$3:$AY$102,2,FALSE)),"",VLOOKUP(I32,Totals!$AX$3:$AY$102,2,FALSE)) -> 0 | I32: 28 | K32: 10 | L32: Ellie Bliss | M32: Stillwater | N32: 55.53508772 | O32: =IF(ISNA(VLOOKUP(P32,Totals!$AX$3:$AY$102,2,FALSE)),"",VLOOKUP(P32,Totals!$AX$3:$AY$102,2,FALSE)) -> 0 | P32: 28 | R32: 10 | S32: Ellie Bliss | T32: Stillwater | U32: 55.53508772 | V32: =IF(ISNA(VLOOKUP(W32,Totals!$AX$3:$AY$102,2,FALSE)),"",VLOOKUP(W32,Totals!$AX$3:$AY$102,2,FALSE)) -> 0 | W32: 28
D33: 53 | E33: Sofia Johnson | F33: Stillwater | G33: 55.38157895 | H33: =IF(ISNA(VLOOKUP(I33,Totals!$AX$3:$AY$102,2,FALSE)),"",VLOOKUP(I33,Totals!$AX$3:$AY$102,2,FALSE)) -> 0 | I33: 29 | K33: 53 | L33: Sofia Johnson | M33: Stillwater | N33: 55.38157895 | O33: =IF(ISNA(VLOOKUP(P33,Totals!$AX$3:$AY$102,2,FALSE)),"",VLOOKUP(P33,Totals!$AX$3:$AY$102,2,FALSE)) -> 0 | P33: 29 | R33: 53 | S33: Sofia Johnson | T33: Stillwater | U33: 55.38157895 | V33: =IF(ISNA(VLOOKUP(W33,Totals!$AX$3:$AY$102,2,FALSE)),"",VLOOKUP(W33,Totals!$AX$3:$AY$102,2,FALSE)) -> 0 | W33: 29
D34: 41 | E34: Raina Hoge | F34: Stillwater | G34: 55.22807018 | H34: =IF(ISNA(VLOOKUP(I34,Totals!$AX$3:$AY$102,2,FALSE)),"",VLOOKUP(I34,Totals!$AX$3:$AY$102,2,FALSE)) -> 0 | I34: 30 | K34: 41 | L34: Raina Hoge | M34: Stillwater | N34: 55.22807018 | O34: =IF(ISNA(VLOOKUP(P34,Totals!$AX$3:$AY$102,2,FALSE)),"",VLOOKUP(P34,Totals!$AX$3:$AY$102,2,FALSE)) -> 0 | P34: 30 | R34: 41 | S34: Raina Hoge | T34: Stillwater | U34: 55.22807018 | V34: =IF(ISNA(VLOOKUP(W34,Totals!$AX$3:$AY$102,2,FALSE)),"",VLOOKUP(W34,Totals!$AX$3:$AY$102,2,FALSE)) -> 0 | W34: 30
D35: 42 | E35: Courtney Lillemoen | F35: Stillwater | G35: 55.22368421 | H35: =IF(ISNA(VLOOKUP(I35,Totals!$AX$3:$AY$102,2,FALSE)),"",VLOOKUP(I35,Totals!$AX$3:$AY$102,2,FALSE)) -> 0 | I35: 31 | K35: 42 | L35: Courtney Lillemoen | M35: Stillwater | N35: 55.22368421 | O35: =IF(ISNA(VLOOKUP(P35,Totals!$AX$3:$AY$102,2,FALSE)),"",VLOOKUP(P35,Totals!$AX$3:$AY$102,2,FALSE)) -> 0 | P35: 31 | R35: 42 | S35: Courtney Lillemoen | T35: Stillwater | U35: 55.22368421 | V35: =IF(ISNA(VLOOKUP(W35,Totals!$AX$3:$AY$102,2,FALSE)),"",VLOOKUP(W35,Totals!$AX$3:$AY$102,2,FALSE)) -> 0 | W35: 31
D36: 31 | E36: McNamee, Kelly | F36: Osseo-Maple Grove | G36: 54.99561404 | H36: =IF(ISNA(VLOOKUP(I36,Totals!$AX$3:$AY$102,2,FALSE)),"",VLOOKUP(I36,Totals!$AX$3:$AY$102,2,FALSE)) -> 0 | I36: 32 | K36: 31 | L36: McNamee, Kelly | M36: Osseo-Maple Grove | N36: 54.99561404 | O36: =IF(ISNA(VLOOKUP(P36,Totals!$AX$3:$AY$102,2,FALSE)),"",VLOOKUP(P36,Totals!$AX$3:$AY$102,2,FALSE)) -> 0 | P36: 32 | R36: 31 | S36: McNamee, Kelly | T36: Osseo-Maple Grove | U36: 54.99561404 | V36: =IF(ISNA(VLOOKUP(W36,Totals!$AX$3:$AY$102,2,FALSE)),"",VLOOKUP(W36,Totals!$AX$3:$AY$102,2,FALSE)) -> 0 | W36: 32
D37: 13 | E37: Waldron, Zoe | F37: Osseo-Maple Grove | G37: 54.8377193 | H37: =IF(ISNA(VLOOKUP(I37,Totals!$AX$3:$AY$102,2,FALSE)),"",VLOOKUP(I37,Totals!$AX$3:$AY$102,2,FALSE)) -> 0 | I37: 33 | K37: 13 | L37: Waldron, Zoe | M37: Osseo-Maple Grove | N37: 54.8377193 | O37: =IF(ISNA(VLOOKUP(P37,Totals!$AX$3:$AY$102,2,FALSE)),"",VLOOKUP(P37,Totals!$AX$3:$AY$102,2,FALSE)) -> 0 | P37: 33 | R37: 13 | S37: Waldron, Zoe | T37: Osseo-Maple Grove | U37: 54.8377193 | V37: =IF(ISNA(VLOOKUP(W37,Totals!$AX$3:$AY$102,2,FALSE)),"",VLOOKUP(W37,Totals!$AX$3:$AY$102,2,FALSE)) -> 0 | W37: 33
D38: 21 | E38: Ali Gerard | F38: Stillwater | G38: 54.79385965 | H38: =IF(ISNA(VLOOKUP(I38,Totals!$AX$3:$AY$102,2,FALSE)),"",VLOOKUP(I38,Totals!$AX$3:$AY$102,2,FALSE)) -> 0 | I38: =IF(G38=G37,I37,IF(ISNA(RANK(G38,G$5:G$150)),"",RANK(G38,G$5:G$150))) -> 34 | K38: 21 | L38: Ali Gerard | M38: Stillwater | N38: 54.79385965 | O38: =IF(ISNA(VLOOKUP(P38,Totals!$AX$3:$AY$102,2,FALSE)),"",VLOOKUP(P38,Totals!$AX$3:$AY$102,2,FALSE)) -> 0 | P38: 34 | R38: 21 | S38: Ali Gerard | T38: Stillwater | U38: 54.79385965 | V38: =IF(ISNA(VLOOKUP(W38,Totals!$AX$3:$AY$102,2,FALSE)),"",VLOOKUP(W38,Totals!$AX$3:$AY$102,2,FALSE)) -> 0 | W38: 34
D39: 16 | E39: Ryann Ellis | F39: Stillwater | G39: 54.71929825 | H39: =IF(ISNA(VLOOKUP(I39,Totals!$AX$3:$AY$102,2,FALSE)),"",VLOOKUP(I39,Totals!$AX$3:$AY$102,2,FALSE)) -> 0 | I39: 35 | K39: 16 | L39: Ryann Ellis | M39: Stillwater | N39: 54.71929825 | O39: =IF(ISNA(VLOOKUP(P39,Totals!$AX$3:$AY$102,2,FALSE)),"",VLOOKUP(P39,Totals!$AX$3:$AY$102,2,FALSE)) -> 0 | P39: 35 | R39: 16 | S39: Ryann Ellis | T39: Stillwater | U39: 54.71929825 | V39: =IF(ISNA(VLOOKUP(W39,Totals!$AX$3:$AY$102,2,FALSE)),"",VLOOKUP(W39,Totals!$AX$3:$AY$102,2,FALSE)) -> 0 | W39: 35
D40: 36 | E40: Kaitlin Johnson | F40: Stillwater | G40: 53.91666667 | H40: =IF(ISNA(VLOOKUP(I40,Totals!$AX$3:$AY$102,2,FALSE)),"",VLOOKUP(I40,Totals!$AX$3:$AY$102,2,FALSE)) -> 0 | I40: 36 | K40: 36 | L40: Kaitlin Johnson | M40: Stillwater | N40: 53.91666667 | O40: =IF(ISNA(VLOOKUP(P40,Totals!$AX$3:$AY$102,2,FALSE)),"",VLOOKUP(P40,Totals!$AX$3:$AY$102,2,FALSE)) -> 0 | P40: 36 | R40: 36 | S40: Kaitlin Johnson | T40: Stillwater | U40: 53.91666667 | V40: =IF(ISNA(VLOOKUP(W40,Totals!$AX$3:$AY$102,2,FALSE)),"",VLOOKUP(W40,Totals!$AX$3:$AY$102,2,FALSE)) -> 0 | W40: 36
D41: 19 | E41: Andrea Finholt | F41: Stillwater | G41: 53.58333333 | H41: =IF(ISNA(VLOOKUP(I41,Totals!$AX$3:$AY$102,2,FALSE)),"",VLOOKUP(I41,Totals!$AX$3:$AY$102,2,FALSE)) -> 0 | I41: 37 | K41: 19 | L41: Andrea Finholt | M41: Stillwater | N41: 53.58333333 | O41: =IF(ISNA(VLOOKUP(P41,Totals!$AX$3:$AY$102,2,FALSE)),"",VLOOKUP(P41,Totals!$AX$3:$AY$102,2,FALSE)) -> 0 | P41: 37 | R41: 19 | S41: Andrea Finholt | T41: Stillwater | U41: 53.58333333 | V41: =IF(ISNA(VLOOKUP(W41,Totals!$AX$3:$AY$102,2,FALSE)),"",VLOOKUP(W41,Totals!$AX$3:$AY$102,2,FALSE)) -> 0 | W41: 37
D42: 47 | E42: Heiss, Hayley | F42: Osseo-Maple Grove | G42: 53.07017544 | H42: =IF(ISNA(VLOOKUP(I42,Totals!$AX$3:$AY$102,2,FALSE)),"",VLOOKUP(I42,Totals!$AX$3:$AY$102,2,FALSE)) -> 0 | I42: 38 | K42: 47 | L42: Heiss, Hayley | M42: Osseo-Maple Grove | N42: 53.07017544 | O42: =IF(ISNA(VLOOKUP(P42,Totals!$AX$3:$AY$102,2,FALSE)),"",VLOOKUP(P42,Totals!$AX$3:$AY$102,2,FALSE)) -> 0 | P42: 38 | R42: 47 | S42: Heiss, Hayley | T42: Osseo-Maple Grove | U42: 53.07017544 | V42: =IF(ISNA(VLOOKUP(W42,Totals!$AX$3:$AY$102,2,FALSE)),"",VLOOKUP(W42,Totals!$AX$3:$AY$102,2,FALSE)) -> 0 | W42: 38
D43: 26 | E43: Laborde, Caroline | F43: Osseo-Maple Grove | G43: 52.83333333 | H43: =IF(ISNA(VLOOKUP(I43,Totals!$AX$3:$AY$102,2,FALSE)),"",VLOOKUP(I43,Totals!$AX$3:$AY$102,2,FALSE)) -> 0 | I43: 39 | K43: 26 | L43: Laborde, Caroline | M43: Osseo-Maple Grove | N43: 52.83333333 | O43: =IF(ISNA(VLOOKUP(P43,Totals!$AX$3:$AY$102,2,FALSE)),"",VLOOKUP(P43,Totals!$AX$3:$AY$102,2,FALSE)) -> 0 | P43: 39 | R43: 26 | S43: Laborde, Caroline | T43: Osseo-Maple Grove | U43: 52.83333333 | V43: =IF(ISNA(VLOOKUP(W43,Totals!$AX$3:$AY$102,2,FALSE)),"",VLOOKUP(W43,Totals!$AX$3:$AY$102,2,FALSE)) -> 0 | W43: 39
D44: 23 | E44: Moline, Katelyn (Katie) | F44: Osseo-Maple Grove | G44: 52.50438596 | H44: =IF(ISNA(VLOOKUP(I44,Totals!$AX$3:$AY$102,2,FALSE)),"",VLOOKUP(I44,Totals!$AX$3:$AY$102,2,FALSE)) -> 0 | I44: 40 | K44: 23 | L44: Moline, Katelyn (Katie) | M44: Osseo-Maple Grove | N44: 52.50438596 | O44: =IF(ISNA(VLOOKUP(P44,Totals!$AX$3:$AY$102,2,FALSE)),"",VLOOKUP(P44,Totals!$AX$3:$AY$102,2,FALSE)) -> 0 | P44: 40 | R44: 23 | S44: Moline, Katelyn (Katie) | T44: Osseo-Maple Grove | U44: 52.50438596 | V44: =IF(ISNA(VLOOKUP(W44,Totals!$AX$3:$AY$102,2,FALSE)),"",VLOOKUP(W44,Totals!$AX$3:$AY$102,2,FALSE)) -> 0 | W44: 40
D45: 57 | E45: Brie Sheridan | F45: Stillwater | G45: 52.49561404 | H45: =IF(ISNA(VLOOKUP(I45,Totals!$AX$3:$AY$102,2,FALSE)),"",VLOOKUP(I45,Totals!$AX$3:$AY$102,2,FALSE)) -> 0 | I45: 41 | K45: 57 | L45: Brie Sheridan | M45: Stillwater | N45: 52.49561404 | O45: =IF(ISNA(VLOOKUP(P45,Totals!$AX$3:$AY$102,2,FALSE)),"",VLOOKUP(P45,Totals!$AX$3:$AY$102,2,FALSE)) -> 0 | P45: 41 | R45: 57 | S45: Brie Sheridan | T45: Stillwater | U45: 52.49561404 | V45: =IF(ISNA(VLOOKUP(W45,Totals!$AX$3:$AY$102,2,FALSE)),"",VLOOKUP(W45,Totals!$AX$3:$AY$102,2,FALSE)) -> 0 | W45: 41
D46: 45 | E46: Olsen, Katherine (Katie) | F46: Osseo-Maple Grove | G46: 52.39035088 | H46: =IF(ISNA(VLOOKUP(I46,Totals!$AX$3:$AY$102,2,FALSE)),"",VLOOKUP(I46,Totals!$AX$3:$AY$102,2,FALSE)) -> 0 | I46: 42 | K46: 45 | L46: Olsen, Katherine (Katie) | M46: Osseo-Maple Grove | N46: 52.39035088 | O46: =IF(ISNA(VLOOKUP(P46,Totals!$AX$3:$AY$102,2,FALSE)),"",VLOOKUP(P46,Totals!$AX$3:$AY$102,2,FALSE)) -> 0 | P46: 42 | R46: 45 | S46: Olsen, Katherine (Katie) | T46: Osseo-Maple Grove | U46: 52.39035088 | V46: =IF(ISNA(VLOOKUP(W46,Totals!$AX$3:$AY$102,2,FALSE)),"",VLOOKUP(W46,Totals!$AX$3:$AY$102,2,FALSE)) -> 0 | W46: 42
D47: 4 | E47: Ruohoniemi, Jessica (Jess) | F47: Osseo-Maple Grove | G47: 52.29824561 | H47: =IF(ISNA(VLOOKUP(I47,Totals!$AX$3:$AY$102,2,FALSE)),"",VLOOKUP(I47,Totals!$AX$3:$AY$102,2,FALSE)) -> 0 | I47: 43 | K47: 4 | L47: Ruohoniemi, Jessica (Jess) | M47: Osseo-Maple Grove | N47: 52.29824561 | O47: =IF(ISNA(VLOOKUP(P47,Totals!$AX$3:$AY$102,2,FALSE)),"",VLOOKUP(P47,Totals!$AX$3:$AY$102,2,FALSE)) -> 0 | P47: 43 | R47: 4 | S47: Ruohoniemi, Jessica (Jess) | T47: Osseo-Maple Grove | U47: 52.29824561 | V47: =IF(ISNA(VLOOKUP(W47,Totals!$AX$3:$AY$102,2,FALSE)),"",VLOOKUP(W47,Totals!$AX$3:$AY$102,2,FALSE)) -> 0 | W47: 43
D48: 17 | E48: Kya Hodgdon | F48: Stillwater | G48: 52.25877193 | H48: =IF(ISNA(VLOOKUP(I48,Totals!$AX$3:$AY$102,2,FALSE)),"",VLOOKUP(I48,Totals!$AX$3:$AY$102,2,FALSE)) -> 0 | I48: 44 | K48: 17 | L48: Kya Hodgdon | M48: Stillwater | N48: 52.25877193 | O48: =IF(ISNA(VLOOKUP(P48,Totals!$AX$3:$AY$102,2,FALSE)),"",VLOOKUP(P48,Totals!$AX$3:$AY$102,2,FALSE)) -> 0 | P48: 44 | R48: 17 | S48: Kya Hodgdon | T48: Stillwater | U48: 52.25877193 | V48: =IF(ISNA(VLOOKUP(W48,Totals!$AX$3:$AY$102,2,FALSE)),"",VLOOKUP(W48,Totals!$AX$3:$AY$102,2,FALSE)) -> 0 | W48: 44
D49: 7 | E49: Jane Sorenson | F49: Stillwater | G49: 52.08333333 | H49: =IF(ISNA(VLOOKUP(I49,Totals!$AX$3:$AY$102,2,FALSE)),"",VLOOKUP(I49,Totals!$AX$3:$AY$102,2,FALSE)) -> 0 | I49: 45 | K49: 7 | L49: Jane Sorenson | M49: Stillwater | N49: 52.08333333 | O49: =IF(ISNA(VLOOKUP(P49,Totals!$AX$3:$AY$102,2,FALSE)),"",VLOOKUP(P49,Totals!$AX$3:$AY$102,2,FALSE)) -> 0 | P49: 45 | R49: 7 | S49: Jane Sorenson | T49: Stillwater | U49: 52.08333333 | V49: =IF(ISNA(VLOOKUP(W49,Totals!$AX$3:$AY$102,2,FALSE)),"",VLOOKUP(W49,Totals!$AX$3:$AY$102,2,FALSE)) -> 0 | W49: 45
D50: 51 | E50: Breidenbach, Heather | F50: Osseo-Maple Grove | G50: 51.82894737 | H50: =IF(ISNA(VLOOKUP(I50,Totals!$AX$3:$AY$102,2,FALSE)),"",VLOOKUP(I50,Totals!$AX$3:$AY$102,2,FALSE)) -> 0 | I50: 46 | K50: 51 | L50: Breidenbach, Heather | M50: Osseo-Maple Grove | N50: 51.82894737 | O50: =IF(ISNA(VLOOKUP(P50,Totals!$AX$3:$AY$102,2,FALSE)),"",VLOOKUP(P50,Totals!$AX$3:$AY$102,2,FALSE)) -> 0 | P50: 46 | R50: 51 | S50: Breidenbach, Heather | T50: Osseo-Maple Grove | U50: 51.82894737 | V50: =IF(ISNA(VLOOKUP(W50,Totals!$AX$3:$AY$102,2,FALSE)),"",VLOOKUP(W50,Totals!$AX$3:$AY$102,2,FALSE)) -> 0 | W50: 46
D51: 27 | E51: Peters, Madison | F51: Osseo-Maple Grove | G51: 51.57894737 | H51: =IF(ISNA(VLOOKUP(I51,Totals!$AX$3:$AY$102,2,FALSE)),"",VLOOKUP(I51,Totals!$AX$3:$AY$102,2,FALSE)) -> 0 | I51: 47 | K51: 27 | L51: Peters, Madison | M51: Osseo-Maple Grove | N51: 51.57894737 | O51: =IF(ISNA(VLOOKUP(P51,Totals!$AX$3:$AY$102,2,FALSE)),"",VLOOKUP(P51,Totals!$AX$3:$AY$102,2,FALSE)) -> 0 | P51: 47 | R51: 27 | S51: Peters, Madison | T51: Osseo-Maple Grove | U51: 51.57894737 | V51: =IF(ISNA(VLOOKUP(W51,Totals!$AX$3:$AY$102,2,FALSE)),"",VLOOKUP(W51,Totals!$AX$3:$AY$102,2,FALSE)) -> 0 | W51: 47
D52: 40 | E52: Emily Shanley | F52: Stillwater | G52: 51.35526316 | H52: =IF(ISNA(VLOOKUP(I52,Totals!$AX$3:$AY$102,2,FALSE)),"",VLOOKUP(I52,Totals!$AX$3:$AY$102,2,FALSE)) -> 0 | I52: 48 | K52: 40 | L52: Emily Shanley | M52: Stillwater | N52: 51.35526316 | O52: =IF(ISNA(VLOOKUP(P52,Totals!$AX$3:$AY$102,2,FALSE)),"",VLOOKUP(P52,Totals!$AX$3:$AY$102,2,FALSE)) -> 0 | P52: 48 | R52: 40 | S52: Emily Shanley | T52: Stillwater | U52: 51.35526316 | V52: =IF(ISNA(VLOOKUP(W52,Totals!$AX$3:$AY$102,2,FALSE)),"",VLOOKUP(W52,Totals!$AX$3:$AY$102,2,FALSE)) -> 0 | W52: 48
D53: 24 | E53: Prentice, Margo | F53: Osseo-Maple Grove | G53: 51.33333333 | H53: =IF(ISNA(VLOOKUP(I53,Totals!$AX$3:$AY$102,2,FALSE)),"",VLOOKUP(I53,Totals!$AX$3:$AY$102,2,FALSE)) -> 0 | I53: 49 | K53: 24 | L53: Prentice, Margo | M53: Osseo-Maple Grove | N53: 51.33333333 | O53: =IF(ISNA(VLOOKUP(P53,Totals!$AX$3:$AY$102,2,FALSE)),"",VLOOKUP(P53,Totals!$AX$3:$AY$102,2,FALSE)) -> 0 | P53: 49 | R53: 24 | S53: Prentice, Margo | T53: Osseo-Maple Grove | U53: 51.33333333 | V53: =IF(ISNA(VLOOKUP(W53,Totals!$AX$3:$AY$102,2,FALSE)),"",VLOOKUP(W53,Totals!$AX$3:$AY$102,2,FALSE)) -> 0 | W53: 49
D54: 30 | E54: Sophie Browning | F54: Stillwater | G54: 50.87280702 | H54: =IF(ISNA(VLOOKUP(I54,Totals!$AX$3:$AY$102,2,FALSE)),"",VLOOKUP(I54,Totals!$AX$3:$AY$102,2,FALSE)) -> 0 | I54: 50 | K54: 30 | L54: Sophie Browning | M54: Stillwater | N54: 50.87280702 | O54: =IF(ISNA(VLOOKUP(P54,Totals!$AX$3:$AY$102,2,FALSE)),"",VLOOKUP(P54,Totals!$AX$3:$AY$102,2,FALSE)) -> 0 | P54: 50 | R54: 30 | S54: Sophie Browning | T54: Stillwater | U54: 50.87280702 | V54: =IF(ISNA(VLOOKUP(W54,Totals!$AX$3:$AY$102,2,FALSE)),"",VLOOKUP(W54,Totals!$AX$3:$AY$102,2,FALSE)) -> 0 | W54: 50
D55: 43 | E55: Trudeau, Alexandra (Trudy) | F55: Osseo-Maple Grove | G55: 50.60526316 | H55: =IF(ISNA(VLOOKUP(I55,Totals!$AX$3:$AY$102,2,FALSE)),"",VLOOKUP(I55,Totals!$AX$3:$AY$102,2,FALSE)) -> 0 | I55: 51 | K55: 43 | L55: Trudeau, Alexandra (Trudy) | M55: Osseo-Maple Grove | N55: 50.60526316 | O55: =IF(ISNA(VLOOKUP(P55,Totals!$AX$3:$AY$102,2,FALSE)),"",VLOOKUP(P55,Totals!$AX$3:$AY$102,2,FALSE)) -> 0 | P55: 51 | R55: 43 | S55: Trudeau, Alexandra (Trudy) | T55: Osseo-Maple Grove | U55: 50.60526316 | V55: =IF(ISNA(VLOOKUP(W55,Totals!$AX$3:$AY$102,2,FALSE)),"",VLOOKUP(W55,Totals!$AX$3:$AY$102,2,FALSE)) -> 0 | W55: 51
D56: 50 | E56: Knox, Rachel | F56: Osseo-Maple Grove | G56: 50.49561404 | H56: =IF(ISNA(VLOOKUP(I56,Totals!$AX$3:$AY$102,2,FALSE)),"",VLOOKUP(I56,Totals!$AX$3:$AY$102,2,FALSE)) -> 0 | I56: 52 | K56: 50 | L56: Knox, Rachel | M56: Osseo-Maple Grove | N56: 50.49561404 | O56: =IF(ISNA(VLOOKUP(P56,Totals!$AX$3:$AY$102,2,FALSE)),"",VLOOKUP(P56,Totals!$AX$3:$AY$102,2,FALSE)) -> 0 | P56: 52 | R56: 50 | S56: Knox, Rachel | T56: Osseo-Maple Grove | U56: 50.49561404 | V56: =IF(ISNA(VLOOKUP(W56,Totals!$AX$3:$AY$102,2,FALSE)),"",VLOOKUP(W56,Totals!$AX$3:$AY$102,2,FALSE)) -> 0 | W56: 52
D57: 2 | E57: Drazenovich, Holly | F57: Osseo-Maple Grove | G57: 49.72368421 | H57: =IF(ISNA(VLOOKUP(I57,Totals!$AX$3:$AY$102,2,FALSE)),"",VLOOKUP(I57,Totals!$AX$3:$AY$102,2,FALSE)) -> 0 | I57: 53 | K57: 2 | L57: Drazenovich, Holly | M57: Osseo-Maple Grove | N57: 49.72368421 | O57: =IF(ISNA(VLOOKUP(P57,Totals!$AX$3:$AY$102,2,FALSE)),"",VLOOKUP(P57,Totals!$AX$3:$AY$102,2,FALSE)) -> 0 | P57: 53 | R57: 2 | S57: Drazenovich, Holly | T57: Osseo-Maple Grove | U57: 49.72368421 | V57: =IF(ISNA(VLOOKUP(W57,Totals!$AX$3:$AY$102,2,FALSE)),"",VLOOKUP(W57,Totals!$AX$3:$AY$102,2,FALSE)) -> 0 | W57: 53
D58: 28 | E58: Hammann, Allison | F58: Osseo-Maple Grove | G58: 49.72368421 | H58: =IF(ISNA(VLOOKUP(I58,Totals!$AX$3:$AY$102,2,FALSE)),"",VLOOKUP(I58,Totals!$AX$3:$AY$102,2,FALSE)) -> 0 | I58: 53 | K58: 28 | L58: Hammann, Allison | M58: Osseo-Maple Grove | N58: 49.72368421 | O58: =IF(ISNA(VLOOKUP(P58,Totals!$AX$3:$AY$102,2,FALSE)),"",VLOOKUP(P58,Totals!$AX$3:$AY$102,2,FALSE)) -> 0 | P58: 54 | R58: 28 | S58: Hammann, Allison | T58: Osseo-Maple Grove | U58: 49.72368421 | V58: =IF(ISNA(VLOOKUP(W58,Totals!$AX$3:$AY$102,2,FALSE)),"",VLOOKUP(W58,Totals!$AX$3:$AY$102,2,FALSE)) -> 0 | W58: 54
D59: 25 | E59: Honnold, Emily | F59: Osseo-Maple Grove | G59: 47.43421053 | H59: =IF(ISNA(VLOOKUP(I59,Totals!$AX$3:$AY$102,2,FALSE)),"",VLOOKUP(I59,Totals!$AX$3:$AY$102,2,FALSE)) -> 0 | I59: 55 | K59: 25 | L59: Honnold, Emily | M59: Osseo-Maple Grove | N59: 47.43421053 | O59: =IF(ISNA(VLOOKUP(P59,Totals!$AX$3:$AY$102,2,FALSE)),"",VLOOKUP(P59,Totals!$AX$3:$AY$102,2,FALSE)) -> 0 | P59: 55 | R59: 25 | S59: Honnold, Emily | T59: Osseo-Maple Grove | U59: 47.43421053 | V59: =IF(ISNA(VLOOKUP(W59,Totals!$AX$3:$AY$102,2,FALSE)),"",VLOOKUP(W59,Totals!$AX$3:$AY$102,2,FALSE)) -> 0 | W59: 55
D60: 49 | E60: Heitzig, Elisabeth (Ellie) | F60: Osseo-Maple Grove | G60: 0 | H60: =IF(ISNA(VLOOKUP(I60,Totals!$AX$3:$AY$102,2,FALSE)),"",VLOOKUP(I60,Totals!$AX$3:$AY$102,2,FALSE)) -> 0 | I60: 56 | K60: 49 | L60: Heitzig, Elisabeth (Ellie) | M60: Osseo-Maple Grove | N60: 0 | O60: =IF(ISNA(VLOOKUP(P60,Totals!$AX$3:$AY$102,2,FALSE)),"",VLOOKUP(P60,Totals!$AX$3:$AY$102,2,FALSE)) -> 0 | P60: 56 | R60: 49 | S60: Heitzig, Elisabeth (Ellie) | T60: Osseo-Maple Grove | U60: 0 | V60: =IF(ISNA(VLOOKUP(W60,Totals!$AX$3:$AY$102,2,FALSE)),"",VLOOKUP(W60,Totals!$AX$3:$AY$102,2,FALSE)) -> 0 | W60: 56
D61: 35 | E61: Mason, Ellery | F61: Osseo-Maple Grove | G61: 0 | H61: =IF(ISNA(VLOOKUP(I61,Totals!$AX$3:$AY$102,2,FALSE)),"",VLOOKUP(I61,Totals!$AX$3:$AY$102,2,FALSE)) -> 0 | I61: 56 | K61: 35 | L61: Mason, Ellery | M61: Osseo-Maple Grove | N61: 0 | O61: =IF(ISNA(VLOOKUP(P61,Totals!$AX$3:$AY$102,2,FALSE)),"",VLOOKUP(P61,Totals!$AX$3:$AY$102,2,FALSE)) -> 0 | P61: 56 | R61: 35 | S61: Mason, Ellery | T61: Osseo-Maple Grove | U61: 0 | V61: =IF(ISNA(VLOOKUP(W61,Totals!$AX$3:$AY$102,2,FALSE)),"",VLOOKUP(W61,Totals!$AX$3:$AY$102,2,FALSE)) -> 0 | W61: 56
D62: 39 | E62: Vrba, Elena (Ellie) | F62: Osseo-Maple Grove | G62: 0 | H62: =IF(ISNA(VLOOKUP(I62,Totals!$AX$3:$AY$102,2,FALSE)),"",VLOOKUP(I62,Totals!$AX$3:$AY$102,2,FALSE)) -> 0 | I62: 56 | K62: 39 | L62: Vrba, Elena (Ellie) | M62: Osseo-Maple Grove | N62: 0 | O62: =IF(ISNA(VLOOKUP(P62,Totals!$AX$3:$AY$102,2,FALSE)),"",VLOOKUP(P62,Totals!$AX$3:$AY$102,2,FALSE)) -> 0 | P62: 56 | R62: 39 | S62: Vrba, Elena (Ellie) | T62: Osseo-Maple Grove | U62: 0 | V62: =IF(ISNA(VLOOKUP(W62,Totals!$AX$3:$AY$102,2,FALSE)),"",VLOOKUP(W62,Totals!$AX$3:$AY$102,2,FALSE)) -> 0 | W62: 56
H63: =IF(ISNA(VLOOKUP(I63,Totals!$AX$3:$AY$102,2,FALSE)),"",VLOOKUP(I63,Totals!$AX$3:$AY$102,2,FALSE)) -> 0 | I63: 56 | O63: =IF(ISNA(VLOOKUP(P63,Totals!$AX$3:$AY$102,2,FALSE)),"",VLOOKUP(P63,Totals!$AX$3:$AY$102,2,FALSE)) -> 0 | P63: 56 | V63: =IF(ISNA(VLOOKUP(W63,Totals!$AX$3:$AY$102,2,FALSE)),"",VLOOKUP(W63,Totals!$AX$3:$AY$102,2,FALSE)) -> 0 | W63: 56
H64: =IF(ISNA(VLOOKUP(I64,Totals!$AX$3:$AY$102,2,FALSE)),"",VLOOKUP(I64,Totals!$AX$3:$AY$102,2,FALSE)) -> 0 | I64: 56 | O64: =IF(ISNA(VLOOKUP(P64,Totals!$AX$3:$AY$102,2,FALSE)),"",VLOOKUP(P64,Totals!$AX$3:$AY$102,2,FALSE)) -> 0 | P64: 56 | V64: =IF(ISNA(VLOOKUP(W64,Totals!$AX$3:$AY$102,2,FALSE)),"",VLOOKUP(W64,Totals!$AX$3:$AY$102,2,FALSE)) -> 0 | W64: 56
H65: =IF(ISNA(VLOOKUP(I65,Totals!$AX$3:$AY$102,2,FALSE)),"",VLOOKUP(I65,Totals!$AX$3:$AY$102,2,FALSE)) -> 0 | I65: 56 | O65: =IF(ISNA(VLOOKUP(P65,Totals!$AX$3:$AY$102,2,FALSE)),"",VLOOKUP(P65,Totals!$AX$3:$AY$102,2,FALSE)) -> 0 | P65: 56 | V65: =IF(ISNA(VLOOKUP(W65,Totals!$AX$3:$AY$102,2,FALSE)),"",VLOOKUP(W65,Totals!$AX$3:$AY$102,2,FALSE)) -> 0 | W65: 56
H66: =IF(ISNA(VLOOKUP(I66,Totals!$AX$3:$AY$102,2,FALSE)),"",VLOOKUP(I66,Totals!$AX$3:$AY$102,2,FALSE)) -> 0 | I66: 56 | O66: =IF(ISNA(VLOOKUP(P66,Totals!$AX$3:$AY$102,2,FALSE)),"",VLOOKUP(P66,Totals!$AX$3:$AY$102,2,FALSE)) -> 0 | P66: 56 | V66: =IF(ISNA(VLOOKUP(W66,Totals!$AX$3:$AY$102,2,FALSE)),"",VLOOKUP(W66,Totals!$AX$3:$AY$102,2,FALSE)) -> 0 | W66: 56
H67: =IF(ISNA(VLOOKUP(I67,Totals!$AX$3:$AY$102,2,FALSE)),"",VLOOKUP(I67,Totals!$AX$3:$AY$102,2,FALSE)) -> 0 | I67: 56 | O67: =IF(ISNA(VLOOKUP(P67,Totals!$AX$3:$AY$102,2,FALSE)),"",VLOOKUP(P67,Totals!$AX$3:$AY$102,2,FALSE)) -> 0 | P67: 56 | V67: =IF(ISNA(VLOOKUP(W67,Totals!$AX$3:$AY$102,2,FALSE)),"",VLOOKUP(W67,Totals!$AX$3:$AY$102,2,FALSE)) -> 0 | W67: 56
H68: =IF(ISNA(VLOOKUP(I68,Totals!$AX$3:$AY$102,2,FALSE)),"",VLOOKUP(I68,Totals!$AX$3:$AY$102,2,FALSE)) -> 0 | I68: 56 | O68: =IF(ISNA(VLOOKUP(P68,Totals!$AX$3:$AY$102,2,FALSE)),"",VLOOKUP(P68,Totals!$AX$3:$AY$102,2,FALSE)) -> 0 | P68: 56 | V68: =IF(ISNA(VLOOKUP(W68,Totals!$AX$3:$AY$102,2,FALSE)),"",VLOOKUP(W68,Totals!$AX$3:$AY$102,2,FALSE)) -> 0 | W68: 56
H69: =IF(ISNA(VLOOKUP(I69,Totals!$AX$3:$AY$102,2,FALSE)),"",VLOOKUP(I69,Totals!$AX$3:$AY$102,2,FALSE)) -> 0 | I69: 56 | O69: =IF(ISNA(VLOOKUP(P69,Totals!$AX$3:$AY$102,2,FALSE)),"",VLOOKUP(P69,Totals!$AX$3:$AY$102,2,FALSE)) -> 0 | P69: 56 | V69: =IF(ISNA(VLOOKUP(W69,Totals!$AX$3:$AY$102,2,FALSE)),"",VLOOKUP(W69,Totals!$AX$3:$AY$102,2,FALSE)) -> 0 | W69: 56
H70: =IF(ISNA(VLOOKUP(I70,Totals!$AX$3:$AY$102,2,FALSE)),"",VLOOKUP(I70,Totals!$AX$3:$AY$102,2,FALSE)) -> 0 | I70: 56 | O70: =IF(ISNA(VLOOKUP(P70,Totals!$AX$3:$AY$102,2,FALSE)),"",VLOOKUP(P70,Totals!$AX$3:$AY$102,2,FALSE)) -> 0 | P70: =IF(ISNA(RANK(N70,N$5:N$150)),"",RANK(N70,N$5:N$150)) -> 56 | V70: =IF(ISNA(VLOOKUP(W70,Totals!$AX$3:$AY$102,2,FALSE)),"",VLOOKUP(W70,Totals!$AX$3:$AY$102,2,FALSE)) -> 0 | W70: =IF(ISNA(RANK(U70,U$5:U$150)),"",RANK(U70,U$5:U$150)) -> 56
H71: =IF(ISNA(VLOOKUP(I71,Totals!$AX$3:$AY$102,2,FALSE)),"",VLOOKUP(I71,Totals!$AX$3:$AY$102,2,FALSE)) -> 0 | I71: =IF(G71=G70,I70,IF(ISNA(RANK(G71,G$5:G$150)),"",RANK(G71,G$5:G$150))) -> 56 | O71: =IF(ISNA(VLOOKUP(P71,Totals!$AX$3:$AY$102,2,FALSE)),"",VLOOKUP(P71,Totals!$AX$3:$AY$102,2,FALSE)) -> 0 | P71: 56 | V71: =IF(ISNA(VLOOKUP(W71,Totals!$AX$3:$AY$102,2,FALSE)),"",VLOOKUP(W71,Totals!$AX$3:$AY$102,2,FALSE)) -> 0 | W71: 56
H72: =IF(ISNA(VLOOKUP(I72,Totals!$AX$3:$AY$102,2,FALSE)),"",VLOOKUP(I72,Totals!$AX$3:$AY$102,2,FALSE)) -> 0 | I72: 56 | O72: =IF(ISNA(VLOOKUP(P72,Totals!$AX$3:$AY$102,2,FALSE)),"",VLOOKUP(P72,Totals!$AX$3:$AY$102,2,FALSE)) -> 0 | P72: 56 | V72: =IF(ISNA(VLOOKUP(W72,Totals!$AX$3:$AY$102,2,FALSE)),"",VLOOKUP(W72,Totals!$AX$3:$AY$102,2,FALSE)) -> 0 | W72: 56
H73: =IF(ISNA(VLOOKUP(I73,Totals!$AX$3:$AY$102,2,FALSE)),"",VLOOKUP(I73,Totals!$AX$3:$AY$102,2,FALSE)) -> 0 | I73: 56 | O73: =IF(ISNA(VLOOKUP(P73,Totals!$AX$3:$AY$102,2,FALSE)),"",VLOOKUP(P73,Totals!$AX$3:$AY$102,2,FALSE)) -> 0 | P73: 56 | V73: =IF(ISNA(VLOOKUP(W73,Totals!$AX$3:$AY$102,2,FALSE)),"",VLOOKUP(W73,Totals!$AX$3:$AY$102,2,FALSE)) -> 0 | W73: 56
H74: =IF(ISNA(VLOOKUP(I74,Totals!$AX$3:$AY$102,2,FALSE)),"",VLOOKUP(I74,Totals!$AX$3:$AY$102,2,FALSE)) -> 0 | I74: 56 | O74: =IF(ISNA(VLOOKUP(P74,Totals!$AX$3:$AY$102,2,FALSE)),"",VLOOKUP(P74,Totals!$AX$3:$AY$102,2,FALSE)) -> 0 | P74: 56 | V74: =IF(ISNA(VLOOKUP(W74,Totals!$AX$3:$AY$102,2,FALSE)),"",VLOOKUP(W74,Totals!$AX$3:$AY$102,2,FALSE)) -> 0 | W74: 56
H75: =IF(ISNA(VLOOKUP(I75,Totals!$AX$3:$AY$102,2,FALSE)),"",VLOOKUP(I75,Totals!$AX$3:$AY$102,2,FALSE)) -> 0 | I75: 56 | O75: =IF(ISNA(VLOOKUP(P75,Totals!$AX$3:$AY$102,2,FALSE)),"",VLOOKUP(P75,Totals!$AX$3:$AY$102,2,FALSE)) -> 0 | P75: 56 | V75: =IF(ISNA(VLOOKUP(W75,Totals!$AX$3:$AY$102,2,FALSE)),"",VLOOKUP(W75,Totals!$AX$3:$AY$102,2,FALSE)) -> 0 | W75: 56
H76: =IF(ISNA(VLOOKUP(I76,Totals!$AX$3:$AY$102,2,FALSE)),"",VLOOKUP(I76,Totals!$AX$3:$AY$102,2,FALSE)) -> 0 | I76: 56 | O76: =IF(ISNA(VLOOKUP(P76,Totals!$AX$3:$AY$102,2,FALSE)),"",VLOOKUP(P76,Totals!$AX$3:$AY$102,2,FALSE)) -> 0 | P76: 56 | V76: =IF(ISNA(VLOOKUP(W76,Totals!$AX$3:$AY$102,2,FALSE)),"",VLOOKUP(W76,Totals!$AX$3:$AY$102,2,FALSE)) -> 0 | W76: 56
H77: =IF(ISNA(VLOOKUP(I77,Totals!$AX$3:$AY$102,2,FALSE)),"",VLOOKUP(I77,Totals!$AX$3:$AY$102,2,FALSE)) -> 0 | I77: 56 | O77: =IF(ISNA(VLOOKUP(P77,Totals!$AX$3:$AY$102,2,FALSE)),"",VLOOKUP(P77,Totals!$AX$3:$AY$102,2,FALSE)) -> 0 | P77: 56 | V77: =IF(ISNA(VLOOKUP(W77,Totals!$AX$3:$AY$102,2,FALSE)),"",VLOOKUP(W77,Totals!$AX$3:$AY$102,2,FALSE)) -> 0 | W77: 56
H78: =IF(ISNA(VLOOKUP(I78,Totals!$AX$3:$AY$102,2,FALSE)),"",VLOOKUP(I78,Totals!$AX$3:$AY$102,2,FALSE)) -> 0 | I78: 56 | O78: =IF(ISNA(VLOOKUP(P78,Totals!$AX$3:$AY$102,2,FALSE)),"",VLOOKUP(P78,Totals!$AX$3:$AY$102,2,FALSE)) -> 0 | P78: 56 | V78: =IF(ISNA(VLOOKUP(W78,Totals!$AX$3:$AY$102,2,FALSE)),"",VLOOKUP(W78,Totals!$AX$3:$AY$102,2,FALSE)) -> 0 | W78: 56
H79: =IF(ISNA(VLOOKUP(I79,Totals!$AX$3:$AY$102,2,FALSE)),"",VLOOKUP(I79,Totals!$AX$3:$AY$102,2,FALSE)) -> 0 | I79: 56 | O79: =IF(ISNA(VLOOKUP(P79,Totals!$AX$3:$AY$102,2,FALSE)),"",VLOOKUP(P79,Totals!$AX$3:$AY$102,2,FALSE)) -> 0 | P79: 56 | V79: =IF(ISNA(VLOOKUP(W79,Totals!$AX$3:$AY$102,2,FALSE)),"",VLOOKUP(W79,Totals!$AX$3:$AY$102,2,FALSE)) -> 0 | W79: 56
H80: =IF(ISNA(VLOOKUP(I80,Totals!$AX$3:$AY$102,2,FALSE)),"",VLOOKUP(I80,Totals!$AX$3:$AY$102,2,FALSE)) -> 0 | I80: 56 | O80: =IF(ISNA(VLOOKUP(P80,Totals!$AX$3:$AY$102,2,FALSE)),"",VLOOKUP(P80,Totals!$AX$3:$AY$102,2,FALSE)) -> 0 | P80: 56 | V80: =IF(ISNA(VLOOKUP(W80,Totals!$AX$3:$AY$102,2,FALSE)),"",VLOOKUP(W80,Totals!$AX$3:$AY$102,2,FALSE)) -> 0 | W80: 56
H81: =IF(ISNA(VLOOKUP(I81,Totals!$AX$3:$AY$102,2,FALSE)),"",VLOOKUP(I81,Totals!$AX$3:$AY$102,2,FALSE)) -> 0 | I81: 56 | O81: =IF(ISNA(VLOOKUP(P81,Totals!$AX$3:$AY$102,2,FALSE)),"",VLOOKUP(P81,Totals!$AX$3:$AY$102,2,FALSE)) -> 0 | P81: 56 | V81: =IF(ISNA(VLOOKUP(W81,Totals!$AX$3:$AY$102,2,FALSE)),"",VLOOKUP(W81,Totals!$AX$3:$AY$102,2,FALSE)) -> 0 | W81: 56
H82: =IF(ISNA(VLOOKUP(I82,Totals!$AX$3:$AY$102,2,FALSE)),"",VLOOKUP(I82,Totals!$AX$3:$AY$102,2,FALSE)) -> 0 | I82: 56 | O82: =IF(ISNA(VLOOKUP(P82,Totals!$AX$3:$AY$102,2,FALSE)),"",VLOOKUP(P82,Totals!$AX$3:$AY$102,2,FALSE)) -> 0 | P82: 56 | V82: =IF(ISNA(VLOOKUP(W82,Totals!$AX$3:$AY$102,2,FALSE)),"",VLOOKUP(W82,Totals!$AX$3:$AY$102,2,FALSE)) -> 0 | W82: 56
H83: =IF(ISNA(VLOOKUP(I83,Totals!$AX$3:$AY$102,2,FALSE)),"",VLOOKUP(I83,Totals!$AX$3:$AY$102,2,FALSE)) -> 0 | I83: 56 | O83: =IF(ISNA(VLOOKUP(P83,Totals!$AX$3:$AY$102,2,FALSE)),"",VLOOKUP(P83,Totals!$AX$3:$AY$102,2,FALSE)) -> 0 | P83: 56 | V83: =IF(ISNA(VLOOKUP(W83,Totals!$AX$3:$AY$102,2,FALSE)),"",VLOOKUP(W83,Totals!$AX$3:$AY$102,2,FALSE)) -> 0 | W83: 56
H84: =IF(ISNA(VLOOKUP(I84,Totals!$AX$3:$AY$102,2,FALSE)),"",VLOOKUP(I84,Totals!$AX$3:$AY$102,2,FALSE)) -> 0 | I84: 56 | O84: =IF(ISNA(VLOOKUP(P84,Totals!$AX$3:$AY$102,2,FALSE)),"",VLOOKUP(P84,Totals!$AX$3:$AY$102,2,FALSE)) -> 0 | P84: 56 | V84: =IF(ISNA(VLOOKUP(W84,Totals!$AX$3:$AY$102,2,FALSE)),"",VLOOKUP(W84,Totals!$AX$3:$AY$102,2,FALSE)) -> 0 | W84: 56
H85: =IF(ISNA(VLOOKUP(I85,Totals!$AX$3:$AY$102,2,FALSE)),"",VLOOKUP(I85,Totals!$AX$3:$AY$102,2,FALSE)) -> 0 | I85: 56 | O85: =IF(ISNA(VLOOKUP(P85,Totals!$AX$3:$AY$102,2,FALSE)),"",VLOOKUP(P85,Totals!$AX$3:$AY$102,2,FALSE)) -> 0 | P85: 56 | V85: =IF(ISNA(VLOOKUP(W85,Totals!$AX$3:$AY$102,2,FALSE)),"",VLOOKUP(W85,Totals!$AX$3:$AY$102,2,FALSE)) -> 0 | W85: 56
H86: =IF(ISNA(VLOOKUP(I86,Totals!$AX$3:$AY$102,2,FALSE)),"",VLOOKUP(I86,Totals!$AX$3:$AY$102,2,FALSE)) -> 0 | I86: 56 | O86: =IF(ISNA(VLOOKUP(P86,Totals!$AX$3:$AY$102,2,FALSE)),"",VLOOKUP(P86,Totals!$AX$3:$AY$102,2,FALSE)) -> 0 | P86: 56 | V86: =IF(ISNA(VLOOKUP(W86,Totals!$AX$3:$AY$102,2,FALSE)),"",VLOOKUP(W86,Totals!$AX$3:$AY$102,2,FALSE)) -> 0 | W86: 56
H87: =IF(ISNA(VLOOKUP(I87,Totals!$AX$3:$AY$102,2,FALSE)),"",VLOOKUP(I87,Totals!$AX$3:$AY$102,2,FALSE)) -> 0 | I87: 56 | O87: =IF(ISNA(VLOOKUP(P87,Totals!$AX$3:$AY$102,2,FALSE)),"",VLOOKUP(P87,Totals!$AX$3:$AY$102,2,FALSE)) -> 0 | P87: 56 | V87: =IF(ISNA(VLOOKUP(W87,Totals!$AX$3:$AY$102,2,FALSE)),"",VLOOKUP(W87,Totals!$AX$3:$AY$102,2,FALSE)) -> 0 | W87: 56
H88: =IF(ISNA(VLOOKUP(I88,Totals!$AX$3:$AY$102,2,FALSE)),"",VLOOKUP(I88,Totals!$AX$3:$AY$102,2,FALSE)) -> 0 | I88: 56 | O88: =IF(ISNA(VLOOKUP(P88,Totals!$AX$3:$AY$102,2,FALSE)),"",VLOOKUP(P88,Totals!$AX$3:$AY$102,2,FALSE)) -> 0 | P88: 56 | V88: =IF(ISNA(VLOOKUP(W88,Totals!$AX$3:$AY$102,2,FALSE)),"",VLOOKUP(W88,Totals!$AX$3:$AY$102,2,FALSE)) -> 0 | W88: 56
H89: =IF(ISNA(VLOOKUP(I89,Totals!$AX$3:$AY$102,2,FALSE)),"",VLOOKUP(I89,Totals!$AX$3:$AY$102,2,FALSE)) -> 0 | I89: 56 | O89: =IF(ISNA(VLOOKUP(P89,Totals!$AX$3:$AY$102,2,FALSE)),"",VLOOKUP(P89,Totals!$AX$3:$AY$102,2,FALSE)) -> 0 | P89: 56 | V89: =IF(ISNA(VLOOKUP(W89,Totals!$AX$3:$AY$102,2,FALSE)),"",VLOOKUP(W89,Totals!$AX$3:$AY$102,2,FALSE)) -> 0 | W89: 56
H90: =IF(ISNA(VLOOKUP(I90,Totals!$AX$3:$AY$102,2,FALSE)),"",VLOOKUP(I90,Totals!$AX$3:$AY$102,2,FALSE)) -> 0 | I90: 56 | O90: =IF(ISNA(VLOOKUP(P90,Totals!$AX$3:$AY$102,2,FALSE)),"",VLOOKUP(P90,Totals!$AX$3:$AY$102,2,FALSE)) -> 0 | P90: 56 | V90: =IF(ISNA(VLOOKUP(W90,Totals!$AX$3:$AY$102,2,FALSE)),"",VLOOKUP(W90,Totals!$AX$3:$AY$102,2,FALSE)) -> 0 | W90: 56
H91: =IF(ISNA(VLOOKUP(I91,Totals!$AX$3:$AY$102,2,FALSE)),"",VLOOKUP(I91,Totals!$AX$3:$AY$102,2,FALSE)) -> 0 | I91: 56 | O91: =IF(ISNA(VLOOKUP(P91,Totals!$AX$3:$AY$102,2,FALSE)),"",VLOOKUP(P91,Totals!$AX$3:$AY$102,2,FALSE)) -> 0 | P91: 56 | V91: =IF(ISNA(VLOOKUP(W91,Totals!$AX$3:$AY$102,2,FALSE)),"",VLOOKUP(W91,Totals!$AX$3:$AY$102,2,FALSE)) -> 0 | W91: 56
H92: =IF(ISNA(VLOOKUP(I92,Totals!$AX$3:$AY$102,2,FALSE)),"",VLOOKUP(I92,Totals!$AX$3:$AY$102,2,FALSE)) -> 0 | I92: 56 | O92: =IF(ISNA(VLOOKUP(P92,Totals!$AX$3:$AY$102,2,FALSE)),"",VLOOKUP(P92,Totals!$AX$3:$AY$102,2,FALSE)) -> 0 | P92: 56 | V92: =IF(ISNA(VLOOKUP(W92,Totals!$AX$3:$AY$102,2,FALSE)),"",VLOOKUP(W92,Totals!$AX$3:$AY$102,2,FALSE)) -> 0 | W92: 56
H93: =IF(ISNA(VLOOKUP(I93,Totals!$AX$3:$AY$102,2,FALSE)),"",VLOOKUP(I93,Totals!$AX$3:$AY$102,2,FALSE)) -> 0 | I93: 56 | O93: =IF(ISNA(VLOOKUP(P93,Totals!$AX$3:$AY$102,2,FALSE)),"",VLOOKUP(P93,Totals!$AX$3:$AY$102,2,FALSE)) -> 0 | P93: 56 | V93: =IF(ISNA(VLOOKUP(W93,Totals!$AX$3:$AY$102,2,FALSE)),"",VLOOKUP(W93,Totals!$AX$3:$AY$102,2,FALSE)) -> 0 | W93: 56
H94: =IF(ISNA(VLOOKUP(I94,Totals!$AX$3:$AY$102,2,FALSE)),"",VLOOKUP(I94,Totals!$AX$3:$AY$102,2,FALSE)) -> 0 | I94: 56 | O94: =IF(ISNA(VLOOKUP(P94,Totals!$AX$3:$AY$102,2,FALSE)),"",VLOOKUP(P94,Totals!$AX$3:$AY$102,2,FALSE)) -> 0 | P94: 56 | V94: =IF(ISNA(VLOOKUP(W94,Totals!$AX$3:$AY$102,2,FALSE)),"",VLOOKUP(W94,Totals!$AX$3:$AY$102,2,FALSE)) -> 0 | W94: 56
H95: =IF(ISNA(VLOOKUP(I95,Totals!$AX$3:$AY$102,2,FALSE)),"",VLOOKUP(I95,Totals!$AX$3:$AY$102,2,FALSE)) -> 0 | I95: 56 | O95: =IF(ISNA(VLOOKUP(P95,Totals!$AX$3:$AY$102,2,FALSE)),"",VLOOKUP(P95,Totals!$AX$3:$AY$102,2,FALSE)) -> 0 | P95: 56 | V95: =IF(ISNA(VLOOKUP(W95,Totals!$AX$3:$AY$102,2,FALSE)),"",VLOOKUP(W95,Totals!$AX$3:$AY$102,2,FALSE)) -> 0 | W95: 56
H96: =IF(ISNA(VLOOKUP(I96,Totals!$AX$3:$AY$102,2,FALSE)),"",VLOOKUP(I96,Totals!$AX$3:$AY$102,2,FALSE)) -> 0 | I96: 56 | O96: =IF(ISNA(VLOOKUP(P96,Totals!$AX$3:$AY$102,2,FALSE)),"",VLOOKUP(P96,Totals!$AX$3:$AY$102,2,FALSE)) -> 0 | P96: 56 | V96: =IF(ISNA(VLOOKUP(W96,Totals!$AX$3:$AY$102,2,FALSE)),"",VLOOKUP(W96,Totals!$AX$3:$AY$102,2,FALSE)) -> 0 | W96: 56
H97: =IF(ISNA(VLOOKUP(I97,Totals!$AX$3:$AY$102,2,FALSE)),"",VLOOKUP(I97,Totals!$AX$3:$AY$102,2,FALSE)) -> 0 | I97: 56 | O97: =IF(ISNA(VLOOKUP(P97,Totals!$AX$3:$AY$102,2,FALSE)),"",VLOOKUP(P97,Totals!$AX$3:$AY$102,2,FALSE)) -> 0 | P97: 56 | V97: =IF(ISNA(VLOOKUP(W97,Totals!$AX$3:$AY$102,2,FALSE)),"",VLOOKUP(W97,Totals!$AX$3:$AY$102,2,FALSE)) -> 0 | W97: 56
H98: =IF(ISNA(VLOOKUP(I98,Totals!$AX$3:$AY$102,2,FALSE)),"",VLOOKUP(I98,Totals!$AX$3:$AY$102,2,FALSE)) -> 0 | I98: 56 | O98: =IF(ISNA(VLOOKUP(P98,Totals!$AX$3:$AY$102,2,FALSE)),"",VLOOKUP(P98,Totals!$AX$3:$AY$102,2,FALSE)) -> 0 | P98: 56 | V98: =IF(ISNA(VLOOKUP(W98,Totals!$AX$3:$AY$102,2,FALSE)),"",VLOOKUP(W98,Totals!$AX$3:$AY$102,2,FALSE)) -> 0 | W98: 56
H99: =IF(ISNA(VLOOKUP(I99,Totals!$AX$3:$AY$102,2,FALSE)),"",VLOOKUP(I99,Totals!$AX$3:$AY$102,2,FALSE)) -> 0 | I99: 56 | O99: =IF(ISNA(VLOOKUP(P99,Totals!$AX$3:$AY$102,2,FALSE)),"",VLOOKUP(P99,Totals!$AX$3:$AY$102,2,FALSE)) -> 0 | P99: 56 | V99: =IF(ISNA(VLOOKUP(W99,Totals!$AX$3:$AY$102,2,FALSE)),"",VLOOKUP(W99,Totals!$AX$3:$AY$102,2,FALSE)) -> 0 | W99: 56
H100: =IF(ISNA(VLOOKUP(I100,Totals!$AX$3:$AY$102,2,FALSE)),"",VLOOKUP(I100,Totals!$AX$3:$AY$102,2,FALSE)) -> 0 | I100: 56 | O100: =IF(ISNA(VLOOKUP(P100,Totals!$AX$3:$AY$102,2,FALSE)),"",VLOOKUP(P100,Totals!$AX$3:$AY$102,2,FALSE)) -> 0 | P100: 56 | V100: =IF(ISNA(VLOOKUP(W100,Totals!$AX$3:$AY$102,2,FALSE)),"",VLOOKUP(W100,Totals!$AX$3:$AY$102,2,FALSE)) -> 0 | W100: 56
H101: =IF(ISNA(VLOOKUP(I101,Totals!$AX$3:$AY$102,2,FALSE)),"",VLOOKUP(I101,Totals!$AX$3:$AY$102,2,FALSE)) -> 0 | I101: 56 | O101: =IF(ISNA(VLOOKUP(P101,Totals!$AX$3:$AY$102,2,FALSE)),"",VLOOKUP(P101,Totals!$AX$3:$AY$102,2,FALSE)) -> 0 | P101: 56 | V101: =IF(ISNA(VLOOKUP(W101,Totals!$AX$3:$AY$102,2,FALSE)),"",VLOOKUP(W101,Totals!$AX$3:$AY$102,2,FALSE)) -> 0 | W101: 56
H102: =IF(ISNA(VLOOKUP(I102,Totals!$AX$3:$AY$102,2,FALSE)),"",VLOOKUP(I102,Totals!$AX$3:$AY$102,2,FALSE)) -> 0 | I102: 56 | O102: =IF(ISNA(VLOOKUP(P102,Totals!$AX$3:$AY$102,2,FALSE)),"",VLOOKUP(P102,Totals!$AX$3:$AY$102,2,FALSE)) -> 0 | P102: 56 | V102: =IF(ISNA(VLOOKUP(W102,Totals!$AX$3:$AY$102,2,FALSE)),"",VLOOKUP(W102,Totals!$AX$3:$AY$102,2,FALSE)) -> 0 | W102: 56
H103: =IF(ISNA(VLOOKUP(I103,Totals!$AX$3:$AY$102,2,FALSE)),"",VLOOKUP(I103,Totals!$AX$3:$AY$102,2,FALSE)) -> 0 | I103: 56 | O103: =IF(ISNA(VLOOKUP(P103,Totals!$AX$3:$AY$102,2,FALSE)),"",VLOOKUP(P103,Totals!$AX$3:$AY$102,2,FALSE)) -> 0 | P103: 56 | V103: =IF(ISNA(VLOOKUP(W103,Totals!$AX$3:$AY$102,2,FALSE)),"",VLOOKUP(W103,Totals!$AX$3:$AY$102,2,FALSE)) -> 0 | W103: 56
H104: =IF(ISNA(VLOOKUP(I104,Totals!$AX$3:$AY$102,2,FALSE)),"",VLOOKUP(I104,Totals!$AX$3:$AY$102,2,FALSE)) -> 0 | I104: 56 | O104: =IF(ISNA(VLOOKUP(P104,Totals!$AX$3:$AY$102,2,FALSE)),"",VLOOKUP(P104,Totals!$AX$3:$AY$102,2,FALSE)) -> 0 | P104: 56 | V104: =IF(ISNA(VLOOKUP(W104,Totals!$AX$3:$AY$102,2,FALSE)),"",VLOOKUP(W104,Totals!$AX$3:$AY$102,2,FALSE)) -> 0 | W104: 56
H105: =IF(ISNA(VLOOKUP(I105,Totals!$AX$3:$AY$102,2,FALSE)),"",VLOOKUP(I105,Totals!$AX$3:$AY$102,2,FALSE)) -> 0 | I105: 56 | O105: =IF(ISNA(VLOOKUP(P105,Totals!$AX$3:$AY$102,2,FALSE)),"",VLOOKUP(P105,Totals!$AX$3:$AY$102,2,FALSE)) -> 0 | P105: 56 | V105: =IF(ISNA(VLOOKUP(W105,Totals!$AX$3:$AY$102,2,FALSE)),"",VLOOKUP(W105,Totals!$AX$3:$AY$102,2,FALSE)) -> 0 | W105: 56
H106: =IF(ISNA(VLOOKUP(I106,Totals!$AX$3:$AY$102,2,FALSE)),"",VLOOKUP(I106,Totals!$AX$3:$AY$102,2,FALSE)) -> 0 | I106: 56 | O106: =IF(ISNA(VLOOKUP(P106,Totals!$AX$3:$AY$102,2,FALSE)),"",VLOOKUP(P106,Totals!$AX$3:$AY$102,2,FALSE)) -> 0 | P106: 56 | V106: =IF(ISNA(VLOOKUP(W106,Totals!$AX$3:$AY$102,2,FALSE)),"",VLOOKUP(W106,Totals!$AX$3:$AY$102,2,FALSE)) -> 0 | W106: 56
H107: =IF(ISNA(VLOOKUP(I107,Totals!$AX$3:$AY$102,2,FALSE)),"",VLOOKUP(I107,Totals!$AX$3:$AY$102,2,FALSE)) -> 0 | I107: 56 | O107: =IF(ISNA(VLOOKUP(P107,Totals!$AX$3:$AY$102,2,FALSE)),"",VLOOKUP(P107,Totals!$AX$3:$AY$102,2,FALSE)) -> 0 | P107: 56 | V107: =IF(ISNA(VLOOKUP(W107,Totals!$AX$3:$AY$102,2,FALSE)),"",VLOOKUP(W107,Totals!$AX$3:$AY$102,2,FALSE)) -> 0 | W107: 56
H108: =IF(ISNA(VLOOKUP(I108,Totals!$AX$3:$AY$102,2,FALSE)),"",VLOOKUP(I108,Totals!$AX$3:$AY$102,2,FALSE)) -> 0 | I108: 56 | O108: =IF(ISNA(VLOOKUP(P108,Totals!$AX$3:$AY$102,2,FALSE)),"",VLOOKUP(P108,Totals!$AX$3:$AY$102,2,FALSE)) -> 0 | P108: 56 | V108: =IF(ISNA(VLOOKUP(W108,Totals!$AX$3:$AY$102,2,FALSE)),"",VLOOKUP(W108,Totals!$AX$3:$AY$102,2,FALSE)) -> 0 | W108: 56
H109: =IF(ISNA(VLOOKUP(I109,Totals!$AX$3:$AY$102,2,FALSE)),"",VLOOKUP(I109,Totals!$AX$3:$AY$102,2,FALSE)) -> 0 | I109: 56 | O109: =IF(ISNA(VLOOKUP(P109,Totals!$AX$3:$AY$102,2,FALSE)),"",VLOOKUP(P109,Totals!$AX$3:$AY$102,2,FALSE)) -> 0 | P109: 56 | V109: =IF(ISNA(VLOOKUP(W109,Totals!$AX$3:$AY$102,2,FALSE)),"",VLOOKUP(W109,Totals!$AX$3:$AY$102,2,FALSE)) -> 0 | W109: 56
H110: =IF(ISNA(VLOOKUP(I110,Totals!$AX$3:$AY$102,2,FALSE)),"",VLOOKUP(I110,Totals!$AX$3:$AY$102,2,FALSE)) -> 0 | I110: 56 | O110: =IF(ISNA(VLOOKUP(P110,Totals!$AX$3:$AY$102,2,FALSE)),"",VLOOKUP(P110,Totals!$AX$3:$AY$102,2,FALSE)) -> 0 | P110: 56 | V110: =IF(ISNA(VLOOKUP(W110,Totals!$AX$3:$AY$102,2,FALSE)),"",VLOOKUP(W110,Totals!$AX$3:$AY$102,2,FALSE)) -> 0 | W110: 56
H111: =IF(ISNA(VLOOKUP(I111,Totals!$AX$3:$AY$102,2,FALSE)),"",VLOOKUP(I111,Totals!$AX$3:$AY$102,2,FALSE)) -> 0 | I111: 56 | O111: =IF(ISNA(VLOOKUP(P111,Totals!$AX$3:$AY$102,2,FALSE)),"",VLOOKUP(P111,Totals!$AX$3:$AY$102,2,FALSE)) -> 0 | P111: 56 | V111: =IF(ISNA(VLOOKUP(W111,Totals!$AX$3:$AY$102,2,FALSE)),"",VLOOKUP(W111,Totals!$AX$3:$AY$102,2,FALSE)) -> 0 | W111: 56
H112: =IF(ISNA(VLOOKUP(I112,Totals!$AX$3:$AY$102,2,FALSE)),"",VLOOKUP(I112,Totals!$AX$3:$AY$102,2,FALSE)) -> 0 | I112: 56 | O112: =IF(ISNA(VLOOKUP(P112,Totals!$AX$3:$AY$102,2,FALSE)),"",VLOOKUP(P112,Totals!$AX$3:$AY$102,2,FALSE)) -> 0 | P112: 56 | V112: =IF(ISNA(VLOOKUP(W112,Totals!$AX$3:$AY$102,2,FALSE)),"",VLOOKUP(W112,Totals!$AX$3:$AY$102,2,FALSE)) -> 0 | W112: 56
H113: =IF(ISNA(VLOOKUP(I113,Totals!$AX$3:$AY$102,2,FALSE)),"",VLOOKUP(I113,Totals!$AX$3:$AY$102,2,FALSE)) -> 0 | I113: 56 | O113: =IF(ISNA(VLOOKUP(P113,Totals!$AX$3:$AY$102,2,FALSE)),"",VLOOKUP(P113,Totals!$AX$3:$AY$102,2,FALSE)) -> 0 | P113: 56 | V113: =IF(ISNA(VLOOKUP(W113,Totals!$AX$3:$AY$102,2,FALSE)),"",VLOOKUP(W113,Totals!$AX$3:$AY$102,2,FALSE)) -> 0 | W113: 56
H114: =IF(ISNA(VLOOKUP(I114,Totals!$AX$3:$AY$102,2,FALSE)),"",VLOOKUP(I114,Totals!$AX$3:$AY$102,2,FALSE)) -> 0 | I114: 56 | O114: =IF(ISNA(VLOOKUP(P114,Totals!$AX$3:$AY$102,2,FALSE)),"",VLOOKUP(P114,Totals!$AX$3:$AY$102,2,FALSE)) -> 0 | P114: 56 | V114: =IF(ISNA(VLOOKUP(W114,Totals!$AX$3:$AY$102,2,FALSE)),"",VLOOKUP(W114,Totals!$AX$3:$AY$102,2,FALSE)) -> 0 | W114: 56
H115: =IF(ISNA(VLOOKUP(I115,Totals!$AX$3:$AY$102,2,FALSE)),"",VLOOKUP(I115,Totals!$AX$3:$AY$102,2,FALSE)) -> 0 | I115: 56 | O115: =IF(ISNA(VLOOKUP(P115,Totals!$AX$3:$AY$102,2,FALSE)),"",VLOOKUP(P115,Totals!$AX$3:$AY$102,2,FALSE)) -> 0 | P115: 56 | V115: =IF(ISNA(VLOOKUP(W115,Totals!$AX$3:$AY$102,2,FALSE)),"",VLOOKUP(W115,Totals!$AX$3:$AY$102,2,FALSE)) -> 0 | W115: 56
H116: =IF(ISNA(VLOOKUP(I116,Totals!$AX$3:$AY$102,2,FALSE)),"",VLOOKUP(I116,Totals!$AX$3:$AY$102,2,FALSE)) -> 0 | I116: 56 | O116: =IF(ISNA(VLOOKUP(P116,Totals!$AX$3:$AY$102,2,FALSE)),"",VLOOKUP(P116,Totals!$AX$3:$AY$102,2,FALSE)) -> 0 | P116: 56 | V116: =IF(ISNA(VLOOKUP(W116,Totals!$AX$3:$AY$102,2,FALSE)),"",VLOOKUP(W116,Totals!$AX$3:$AY$102,2,FALSE)) -> 0 | W116: 56
H117: =IF(ISNA(VLOOKUP(I117,Totals!$AX$3:$AY$102,2,FALSE)),"",VLOOKUP(I117,Totals!$AX$3:$AY$102,2,FALSE)) -> 0 | I117: 56 | O117: =IF(ISNA(VLOOKUP(P117,Totals!$AX$3:$AY$102,2,FALSE)),"",VLOOKUP(P117,Totals!$AX$3:$AY$102,2,FALSE)) -> 0 | P117: 56 | V117: =IF(ISNA(VLOOKUP(W117,Totals!$AX$3:$AY$102,2,FALSE)),"",VLOOKUP(W117,Totals!$AX$3:$AY$102,2,FALSE)) -> 0 | W117: 56
H118: =IF(ISNA(VLOOKUP(I118,Totals!$AX$3:$AY$102,2,FALSE)),"",VLOOKUP(I118,Totals!$AX$3:$AY$102,2,FALSE)) -> 0 | I118: 56 | O118: =IF(ISNA(VLOOKUP(P118,Totals!$AX$3:$AY$102,2,FALSE)),"",VLOOKUP(P118,Totals!$AX$3:$AY$102,2,FALSE)) -> 0 | P118: 56 | V118: =IF(ISNA(VLOOKUP(W118,Totals!$AX$3:$AY$102,2,FALSE)),"",VLOOKUP(W118,Totals!$AX$3:$AY$102,2,FALSE)) -> 0 | W118: 56
H119: =IF(ISNA(VLOOKUP(I119,Totals!$AX$3:$AY$102,2,FALSE)),"",VLOOKUP(I119,Totals!$AX$3:$AY$102,2,FALSE)) -> 0 | I119: 56 | O119: =IF(ISNA(VLOOKUP(P119,Totals!$AX$3:$AY$102,2,FALSE)),"",VLOOKUP(P119,Totals!$AX$3:$AY$102,2,FALSE)) -> 0 | P119: 56 | V119: =IF(ISNA(VLOOKUP(W119,Totals!$AX$3:$AY$102,2,FALSE)),"",VLOOKUP(W119,Totals!$AX$3:$AY$102,2,FALSE)) -> 0 | W119: 56
H120: =IF(ISNA(VLOOKUP(I120,Totals!$AX$3:$AY$102,2,FALSE)),"",VLOOKUP(I120,Totals!$AX$3:$AY$102,2,FALSE)) -> 0 | I120: 56 | O120: =IF(ISNA(VLOOKUP(P120,Totals!$AX$3:$AY$102,2,FALSE)),"",VLOOKUP(P120,Totals!$AX$3:$AY$102,2,FALSE)) -> 0 | P120: 56 | V120: =IF(ISNA(VLOOKUP(W120,Totals!$AX$3:$AY$102,2,FALSE)),"",VLOOKUP(W120,Totals!$AX$3:$AY$102,2,FALSE)) -> 0 | W120: 56
H121: =IF(ISNA(VLOOKUP(I121,Totals!$AX$3:$AY$102,2,FALSE)),"",VLOOKUP(I121,Totals!$AX$3:$AY$102,2,FALSE)) -> 0 | I121: 56 | O121: =IF(ISNA(VLOOKUP(P121,Totals!$AX$3:$AY$102,2,FALSE)),"",VLOOKUP(P121,Totals!$AX$3:$AY$102,2,FALSE)) -> 0 | P121: 56 | V121: =IF(ISNA(VLOOKUP(W121,Totals!$AX$3:$AY$102,2,FALSE)),"",VLOOKUP(W121,Totals!$AX$3:$AY$102,2,FALSE)) -> 0 | W121: 56
H122: =IF(ISNA(VLOOKUP(I122,Totals!$AX$3:$AY$102,2,FALSE)),"",VLOOKUP(I122,Totals!$AX$3:$AY$102,2,FALSE)) -> 0 | I122: 56 | O122: =IF(ISNA(VLOOKUP(P122,Totals!$AX$3:$AY$102,2,FALSE)),"",VLOOKUP(P122,Totals!$AX$3:$AY$102,2,FALSE)) -> 0 | P122: 56 | V122: =IF(ISNA(VLOOKUP(W122,Totals!$AX$3:$AY$102,2,FALSE)),"",VLOOKUP(W122,Totals!$AX$3:$AY$102,2,FALSE)) -> 0 | W122: 56
H123: =IF(ISNA(VLOOKUP(I123,Totals!$AX$3:$AY$102,2,FALSE)),"",VLOOKUP(I123,Totals!$AX$3:$AY$102,2,FALSE)) -> 0 | I123: 56 | O123: =IF(ISNA(VLOOKUP(P123,Totals!$AX$3:$AY$102,2,FALSE)),"",VLOOKUP(P123,Totals!$AX$3:$AY$102,2,FALSE)) -> 0 | P123: 56 | V123: =IF(ISNA(VLOOKUP(W123,Totals!$AX$3:$AY$102,2,FALSE)),"",VLOOKUP(W123,Totals!$AX$3:$AY$102,2,FALSE)) -> 0 | W123: 56
H124: =IF(ISNA(VLOOKUP(I124,Totals!$AX$3:$AY$102,2,FALSE)),"",VLOOKUP(I124,Totals!$AX$3:$AY$102,2,FALSE)) -> 0 | I124: 56 | O124: =IF(ISNA(VLOOKUP(P124,Totals!$AX$3:$AY$102,2,FALSE)),"",VLOOKUP(P124,Totals!$AX$3:$AY$102,2,FALSE)) -> 0 | P124: 56 | V124: =IF(ISNA(VLOOKUP(W124,Totals!$AX$3:$AY$102,2,FALSE)),"",VLOOKUP(W124,Totals!$AX$3:$AY$102,2,FALSE)) -> 0 | W124: 56
H125: =IF(ISNA(VLOOKUP(I125,Totals!$AX$3:$AY$102,2,FALSE)),"",VLOOKUP(I125,Totals!$AX$3:$AY$102,2,FALSE)) -> 0 | I125: 56 | O125: =IF(ISNA(VLOOKUP(P125,Totals!$AX$3:$AY$102,2,FALSE)),"",VLOOKUP(P125,Totals!$AX$3:$AY$102,2,FALSE)) -> 0 | P125: 56 | V125: =IF(ISNA(VLOOKUP(W125,Totals!$AX$3:$AY$102,2,FALSE)),"",VLOOKUP(W125,Totals!$AX$3:$AY$102,2,FALSE)) -> 0 | W125: 56
H126: =IF(ISNA(VLOOKUP(I126,Totals!$AX$3:$AY$102,2,FALSE)),"",VLOOKUP(I126,Totals!$AX$3:$AY$102,2,FALSE)) -> 0 | I126: 56 | O126: =IF(ISNA(VLOOKUP(P126,Totals!$AX$3:$AY$102,2,FALSE)),"",VLOOKUP(P126,Totals!$AX$3:$AY$102,2,FALSE)) -> 0 | P126: 56 | V126: =IF(ISNA(VLOOKUP(W126,Totals!$AX$3:$AY$102,2,FALSE)),"",VLOOKUP(W126,Totals!$AX$3:$AY$102,2,FALSE)) -> 0 | W126: 56
H127: =IF(ISNA(VLOOKUP(I127,Totals!$AX$3:$AY$102,2,FALSE)),"",VLOOKUP(I127,Totals!$AX$3:$AY$102,2,FALSE)) -> 0 | I127: 56 | O127: =IF(ISNA(VLOOKUP(P127,Totals!$AX$3:$AY$102,2,FALSE)),"",VLOOKUP(P127,Totals!$AX$3:$AY$102,2,FALSE)) -> 0 | P127: 56 | V127: =IF(ISNA(VLOOKUP(W127,Totals!$AX$3:$AY$102,2,FALSE)),"",VLOOKUP(W127,Totals!$AX$3:$AY$102,2,FALSE)) -> 0 | W127: 56
H128: =IF(ISNA(VLOOKUP(I128,Totals!$AX$3:$AY$102,2,FALSE)),"",VLOOKUP(I128,Totals!$AX$3:$AY$102,2,FALSE)) -> 0 | I128: 56 | O128: =IF(ISNA(VLOOKUP(P128,Totals!$AX$3:$AY$102,2,FALSE)),"",VLOOKUP(P128,Totals!$AX$3:$AY$102,2,FALSE)) -> 0 | P128: 56 | V128: =IF(ISNA(VLOOKUP(W128,Totals!$AX$3:$AY$102,2,FALSE)),"",VLOOKUP(W128,Totals!$AX$3:$AY$102,2,FALSE)) -> 0 | W128: 56
H129: =IF(ISNA(VLOOKUP(I129,Totals!$AX$3:$AY$102,2,FALSE)),"",VLOOKUP(I129,Totals!$AX$3:$AY$102,2,FALSE)) -> 0 | I129: 56 | O129: =IF(ISNA(VLOOKUP(P129,Totals!$AX$3:$AY$102,2,FALSE)),"",VLOOKUP(P129,Totals!$AX$3:$AY$102,2,FALSE)) -> 0 | P129: 56 | V129: =IF(ISNA(VLOOKUP(W129,Totals!$AX$3:$AY$102,2,FALSE)),"",VLOOKUP(W129,Totals!$AX$3:$AY$102,2,FALSE)) -> 0 | W129: 56
H130: =IF(ISNA(VLOOKUP(I130,Totals!$AX$3:$AY$102,2,FALSE)),"",VLOOKUP(I130,Totals!$AX$3:$AY$102,2,FALSE)) -> 0 | I130: 56 | O130: =IF(ISNA(VLOOKUP(P130,Totals!$AX$3:$AY$102,2,FALSE)),"",VLOOKUP(P130,Totals!$AX$3:$AY$102,2,FALSE)) -> 0 | P130: 56 | V130: =IF(ISNA(VLOOKUP(W130,Totals!$AX$3:$AY$102,2,FALSE)),"",VLOOKUP(W130,Totals!$AX$3:$AY$102,2,FALSE)) -> 0 | W130: 56
H131: =IF(ISNA(VLOOKUP(I131,Totals!$AX$3:$AY$102,2,FALSE)),"",VLOOKUP(I131,Totals!$AX$3:$AY$102,2,FALSE)) -> 0 | I131: 56 | O131: =IF(ISNA(VLOOKUP(P131,Totals!$AX$3:$AY$102,2,FALSE)),"",VLOOKUP(P131,Totals!$AX$3:$AY$102,2,FALSE)) -> 0 | P131: 56 | V131: =IF(ISNA(VLOOKUP(W131,Totals!$AX$3:$AY$102,2,FALSE)),"",VLOOKUP(W131,Totals!$AX$3:$AY$102,2,FALSE)) -> 0 | W131: 56
H132: =IF(ISNA(VLOOKUP(I132,Totals!$AX$3:$AY$102,2,FALSE)),"",VLOOKUP(I132,Totals!$AX$3:$AY$102,2,FALSE)) -> 0 | I132: 56 | O132: =IF(ISNA(VLOOKUP(P132,Totals!$AX$3:$AY$102,2,FALSE)),"",VLOOKUP(P132,Totals!$AX$3:$AY$102,2,FALSE)) -> 0 | P132: 56 | V132: =IF(ISNA(VLOOKUP(W132,Totals!$AX$3:$AY$102,2,FALSE)),"",VLOOKUP(W132,Totals!$AX$3:$AY$102,2,FALSE)) -> 0 | W132: 56
H133: =IF(ISNA(VLOOKUP(I133,Totals!$AX$3:$AY$102,2,FALSE)),"",VLOOKUP(I133,Totals!$AX$3:$AY$102,2,FALSE)) -> 0 | I133: 56 | O133: =IF(ISNA(VLOOKUP(P133,Totals!$AX$3:$AY$102,2,FALSE)),"",VLOOKUP(P133,Totals!$AX$3:$AY$102,2,FALSE)) -> 0 | P133: 56 | V133: =IF(ISNA(VLOOKUP(W133,Totals!$AX$3:$AY$102,2,FALSE)),"",VLOOKUP(W133,Totals!$AX$3:$AY$102,2,FALSE)) -> 0 | W133: 56
H134: =IF(ISNA(VLOOKUP(I134,Totals!$AX$3:$AY$102,2,FALSE)),"",VLOOKUP(I134,Totals!$AX$3:$AY$102,2,FALSE)) -> 0 | I134: 56 | O134: =IF(ISNA(VLOOKUP(P134,Totals!$AX$3:$AY$102,2,FALSE)),"",VLOOKUP(P134,Totals!$AX$3:$AY$102,2,FALSE)) -> 0 | P134: =IF(ISNA(RANK(N134,N$5:N$150)),"",RANK(N134,N$5:N$150)) -> 56 | V134: =IF(ISNA(VLOOKUP(W134,Totals!$AX$3:$AY$102,2,FALSE)),"",VLOOKUP(W134,Totals!$AX$3:$AY$102,2,FALSE)) -> 0 | W134: =IF(ISNA(RANK(U134,U$5:U$150)),"",RANK(U134,U$5:U$150)) -> 56
H135: =IF(ISNA(VLOOKUP(I135,Totals!$AX$3:$AY$102,2,FALSE)),"",VLOOKUP(I135,Totals!$AX$3:$AY$102,2,FALSE)) -> 0 | I135: =IF(G135=G134,I134,IF(ISNA(RANK(G135,G$5:G$150)),"",RANK(G135,G$5:G$150))) -> 56 | O135: =IF(ISNA(VLOOKUP(P135,Totals!$AX$3:$AY$102,2,FALSE)),"",VLOOKUP(P135,Totals!$AX$3:$AY$102,2,FALSE)) -> 0 | P135: 56 | V135: =IF(ISNA(VLOOKUP(W135,Totals!$AX$3:$AY$102,2,FALSE)),"",VLOOKUP(W135,Totals!$AX$3:$AY$102,2,FALSE)) -> 0 | W135: 56
H136: =IF(ISNA(VLOOKUP(I136,Totals!$AX$3:$AY$102,2,FALSE)),"",VLOOKUP(I136,Totals!$AX$3:$AY$102,2,FALSE)) -> 0 | I136: 56 | O136: =IF(ISNA(VLOOKUP(P136,Totals!$AX$3:$AY$102,2,FALSE)),"",VLOOKUP(P136,Totals!$AX$3:$AY$102,2,FALSE)) -> 0 | P136: 56 | V136: =IF(ISNA(VLOOKUP(W136,Totals!$AX$3:$AY$102,2,FALSE)),"",VLOOKUP(W136,Totals!$AX$3:$AY$102,2,FALSE)) -> 0 | W136: 56
H137: =IF(ISNA(VLOOKUP(I137,Totals!$AX$3:$AY$102,2,FALSE)),"",VLOOKUP(I137,Totals!$AX$3:$AY$102,2,FALSE)) -> 0 | I137: 56 | O137: =IF(ISNA(VLOOKUP(P137,Totals!$AX$3:$AY$102,2,FALSE)),"",VLOOKUP(P137,Totals!$AX$3:$AY$102,2,FALSE)) -> 0 | P137: 56 | V137: =IF(ISNA(VLOOKUP(W137,Totals!$AX$3:$AY$102,2,FALSE)),"",VLOOKUP(W137,Totals!$AX$3:$AY$102,2,FALSE)) -> 0 | W137: 56
H138: =IF(ISNA(VLOOKUP(I138,Totals!$AX$3:$AY$102,2,FALSE)),"",VLOOKUP(I138,Totals!$AX$3:$AY$102,2,FALSE)) -> 0 | I138: 56 | O138: =IF(ISNA(VLOOKUP(P138,Totals!$AX$3:$AY$102,2,FALSE)),"",VLOOKUP(P138,Totals!$AX$3:$AY$102,2,FALSE)) -> 0 | P138: 56 | V138: =IF(ISNA(VLOOKUP(W138,Totals!$AX$3:$AY$102,2,FALSE)),"",VLOOKUP(W138,Totals!$AX$3:$AY$102,2,FALSE)) -> 0 | W138: 56
H139: =IF(ISNA(VLOOKUP(I139,Totals!$AX$3:$AY$102,2,FALSE)),"",VLOOKUP(I139,Totals!$AX$3:$AY$102,2,FALSE)) -> 0 | I139: 56 | O139: =IF(ISNA(VLOOKUP(P139,Totals!$AX$3:$AY$102,2,FALSE)),"",VLOOKUP(P139,Totals!$AX$3:$AY$102,2,FALSE)) -> 0 | P139: 56 | V139: =IF(ISNA(VLOOKUP(W139,Totals!$AX$3:$AY$102,2,FALSE)),"",VLOOKUP(W139,Totals!$AX$3:$AY$102,2,FALSE)) -> 0 | W139: 56
H140: =IF(ISNA(VLOOKUP(I140,Totals!$AX$3:$AY$102,2,FALSE)),"",VLOOKUP(I140,Totals!$AX$3:$AY$102,2,FALSE)) -> 0 | I140: 56 | O140: =IF(ISNA(VLOOKUP(P140,Totals!$AX$3:$AY$102,2,FALSE)),"",VLOOKUP(P140,Totals!$AX$3:$AY$102,2,FALSE)) -> 0 | P140: 56 | V140: =IF(ISNA(VLOOKUP(W140,Totals!$AX$3:$AY$102,2,FALSE)),"",VLOOKUP(W140,Totals!$AX$3:$AY$102,2,FALSE)) -> 0 | W140: 56
H141: =IF(ISNA(VLOOKUP(I141,Totals!$AX$3:$AY$102,2,FALSE)),"",VLOOKUP(I141,Totals!$AX$3:$AY$102,2,FALSE)) -> 0 | I141: 56 | O141: =IF(ISNA(VLOOKUP(P141,Totals!$AX$3:$AY$102,2,FALSE)),"",VLOOKUP(P141,Totals!$AX$3:$AY$102,2,FALSE)) -> 0 | P141: 56 | V141: =IF(ISNA(VLOOKUP(W141,Totals!$AX$3:$AY$102,2,FALSE)),"",VLOOKUP(W141,Totals!$AX$3:$AY$102,2,FALSE)) -> 0 | W141: 56
H142: =IF(ISNA(VLOOKUP(I142,Totals!$AX$3:$AY$102,2,FALSE)),"",VLOOKUP(I142,Totals!$AX$3:$AY$102,2,FALSE)) -> 0 | I142: 56 | O142: =IF(ISNA(VLOOKUP(P142,Totals!$AX$3:$AY$102,2,FALSE)),"",VLOOKUP(P142,Totals!$AX$3:$AY$102,2,FALSE)) -> 0 | P142: 56 | V142: =IF(ISNA(VLOOKUP(W142,Totals!$AX$3:$AY$102,2,FALSE)),"",VLOOKUP(W142,Totals!$AX$3:$AY$102,2,FALSE)) -> 0 | W142: 56
H143: =IF(ISNA(VLOOKUP(I143,Totals!$AX$3:$AY$102,2,FALSE)),"",VLOOKUP(I143,Totals!$AX$3:$AY$102,2,FALSE)) -> 0 | I143: 56 | O143: =IF(ISNA(VLOOKUP(P143,Totals!$AX$3:$AY$102,2,FALSE)),"",VLOOKUP(P143,Totals!$AX$3:$AY$102,2,FALSE)) -> 0 | P143: 56 | V143: =IF(ISNA(VLOOKUP(W143,Totals!$AX$3:$AY$102,2,FALSE)),"",VLOOKUP(W143,Totals!$AX$3:$AY$102,2,FALSE)) -> 0 | W143: 56
H144: =IF(ISNA(VLOOKUP(I144,Totals!$AX$3:$AY$102,2,FALSE)),"",VLOOKUP(I144,Totals!$AX$3:$AY$102,2,FALSE)) -> 0 | I144: 56 | O144: =IF(ISNA(VLOOKUP(P144,Totals!$AX$3:$AY$102,2,FALSE)),"",VLOOKUP(P144,Totals!$AX$3:$AY$102,2,FALSE)) -> 0 | P144: 56 | V144: =IF(ISNA(VLOOKUP(W144,Totals!$AX$3:$AY$102,2,FALSE)),"",VLOOKUP(W144,Totals!$AX$3:$AY$102,2,FALSE)) -> 0 | W144: 56
H145: =IF(ISNA(VLOOKUP(I145,Totals!$AX$3:$AY$102,2,FALSE)),"",VLOOKUP(I145,Totals!$AX$3:$AY$102,2,FALSE)) -> 0 | I145: 56 | O145: =IF(ISNA(VLOOKUP(P145,Totals!$AX$3:$AY$102,2,FALSE)),"",VLOOKUP(P145,Totals!$AX$3:$AY$102,2,FALSE)) -> 0 | P145: 56 | V145: =IF(ISNA(VLOOKUP(W145,Totals!$AX$3:$AY$102,2,FALSE)),"",VLOOKUP(W145,Totals!$AX$3:$AY$102,2,FALSE)) -> 0 | W145: 56
H146: =IF(ISNA(VLOOKUP(I146,Totals!$AX$3:$AY$102,2,FALSE)),"",VLOOKUP(I146,Totals!$AX$3:$AY$102,2,FALSE)) -> 0 | I146: 56 | O146: =IF(ISNA(VLOOKUP(P146,Totals!$AX$3:$AY$102,2,FALSE)),"",VLOOKUP(P146,Totals!$AX$3:$AY$102,2,FALSE)) -> 0 | P146: 56 | V146: =IF(ISNA(VLOOKUP(W146,Totals!$AX$3:$AY$102,2,FALSE)),"",VLOOKUP(W146,Totals!$AX$3:$AY$102,2,FALSE)) -> 0 | W146: 56
H147: =IF(ISNA(VLOOKUP(I147,Totals!$AX$3:$AY$102,2,FALSE)),"",VLOOKUP(I147,Totals!$AX$3:$AY$102,2,FALSE)) -> 0 | I147: 56 | O147: =IF(ISNA(VLOOKUP(P147,Totals!$AX$3:$AY$102,2,FALSE)),"",VLOOKUP(P147,Totals!$AX$3:$AY$102,2,FALSE)) -> 0 | P147: 56 | V147: =IF(ISNA(VLOOKUP(W147,Totals!$AX$3:$AY$102,2,FALSE)),"",VLOOKUP(W147,Totals!$AX$3:$AY$102,2,FALSE)) -> 0 | W147: 56
H148: =IF(ISNA(VLOOKUP(I148,Totals!$AX$3:$AY$102,2,FALSE)),"",VLOOKUP(I148,Totals!$AX$3:$AY$102,2,FALSE)) -> 0 | I148: 56 | O148: =IF(ISNA(VLOOKUP(P148,Totals!$AX$3:$AY$102,2,FALSE)),"",VLOOKUP(P148,Totals!$AX$3:$AY$102,2,FALSE)) -> 0 | P148: 56 | V148: =IF(ISNA(VLOOKUP(W148,Totals!$AX$3:$AY$102,2,FALSE)),"",VLOOKUP(W148,Totals!$AX$3:$AY$102,2,FALSE)) -> 0 | W148: 56
H149: =IF(ISNA(VLOOKUP(I149,Totals!$AX$3:$AY$102,2,FALSE)),"",VLOOKUP(I149,Totals!$AX$3:$AY$102,2,FALSE)) -> 0 | I149: 56 | O149: =IF(ISNA(VLOOKUP(P149,Totals!$AX$3:$AY$102,2,FALSE)),"",VLOOKUP(P149,Totals!$AX$3:$AY$102,2,FALSE)) -> 0 | P149: 56 | V149: =IF(ISNA(VLOOKUP(W149,Totals!$AX$3:$AY$102,2,FALSE)),"",VLOOKUP(W149,Totals!$AX$3:$AY$102,2,FALSE)) -> 0 | W149: 56
H150: =IF(ISNA(VLOOKUP(I150,Totals!$AX$3:$AY$102,2,FALSE)),"",VLOOKUP(I150,Totals!$AX$3:$AY$102,2,FALSE)) -> 0 | I150: 56 | O150: =IF(ISNA(VLOOKUP(P150,Totals!$AX$3:$AY$102,2,FALSE)),"",VLOOKUP(P150,Totals!$AX$3:$AY$102,2,FALSE)) -> 0 | P150: 56 | V150: =IF(ISNA(VLOOKUP(W150,Totals!$AX$3:$AY$102,2,FALSE)),"",VLOOKUP(W150,Totals!$AX$3:$AY$102,2,FALSE)) -> 0 | W150: 56
